Workbook

Sheet Cover

Sheet Model Index
B9: A. | E9: B. | H9: C. | K9: D.
B11: A. | E11: B. | H11: C. | K11: D.
B13: A. | E13: B. | H13: C.
B15: A. | E15: B. | H15: C. | K15: E.
H17: C.
B20: Version | D20: Date | F20: Description | L20: Approved By:
B21: 1 | D21: 2019-01-02 | F21: Final | L21: Ausgrid

Sheet A. Summary
A1: Asset Summary Information
A3: Data Inputs
B5: Data Inputs
B6: Population | C6: ='A. Age Profile'!L4 -> 2156
B7: Object Types | C7: SW_HV_ISOL
C8: (ZN/STS only)
B9: Conditional & Function Failures (count) | C9: 458
B10: Analysis Period (Years) | C10: 6
B11: Asset RAB Life (Years) | C11: ='D. Risk Index Parameters'!E23 -> 46.84
B12: Planned Replacement Cost | C12: ='D. Risk Index Parameters'!$E$22 -> 80329
B13: WACC | C13: ='D. Risk Index Parameters'!$E$21 -> 0.039
B16: Loss of Supply Consequence Information
B17: ='C. PoC Summary Stats & Para'!C16 -> Proportion Failures Resulting in Unserved Energy | C17: ='C. PoC Summary Stats & Para'!E16 -> 0.06
B18: Value of Customer Reliability (VCR) per kWh | C18: ='C. PoC Summary Stats & Para'!F14 -> 40.729
B19: Outage Type (HV / LV / CBD) | C19: ='C. PoC Summary Stats & Para'!E18 -> STS
B20: Automatic Protection Time (minutes) | C20: ='C. PoC Summary Stats & Para'!E19 -> 0
B21: Switching Time (hours) | C21: ='C. PoC Summary Stats & Para'!E20 -> 0
B22: Restoration/Repair Time (hours) | C22: ='C. PoC Summary Stats & Para'!E21 -> 0.4
B23: Automatic Protection (% load) | C23: ='C. PoC Summary Stats & Para'!E22 -> 0
B24: Switching (% load) | C24: ='C. PoC Summary Stats & Para'!E23 -> 0
B25: Restoration/Repair (% load) | C25: ='C. PoC Summary Stats & Para'!E24 -> 1
B26: Time without Supply (hours) | C26: ='C. PoC Summary Stats & Para'!E25 -> 0.024
B27: Avg. Value of Energy Unserved (per asset per event) | C27: =AVERAGEIF('C. Reliability Consequence'!$C:$C,C19,'C. Reliability Consequence'!$H:$H) -> 50423.27007
B30: Finance Consequence Information
B31: Reactive Replacement Cost | C31: ='C. PoC Summary Stats & Para'!E31 -> 96394.8
B32: Repair Cost | C32: ='C. PoC Summary Stats & Para'!E33 -> 2263
B33: Proportion Replacement | C33: ='C. PoC Summary Stats & Para'!E32 -> 0.01
B34: ='C. PoC Summary Stats & Para'!C35 -> Weighted Replacement / Repair Cost | C34: ='C. PoC Summary Stats & Para'!E35 -> 2276.552841
B35: Maintenance original asset per annum | C35: ='C. PoC Summary Stats & Para'!E38 -> 0
B36: Maintenance replacement asset per annum | C36: ='C. PoC Summary Stats & Para'!E39 -> 0
B37: Maintenance benefit per asset per annum | C37: ='C. PoC Summary Stats & Para'!E40 -> 0
A40: Failure Model Parameters
B42: Weibull Parameters | E42: Crow-AMSAA Parameters
B43: βgood | C43: =IF('B. PoF Summary Stats & Params'!$C$12="C", "Not Applicable", 'B. PoF Summary Stats & Params'!M12) -> 1.7135 | E43: βgood | F43: =IF('B. PoF Summary Stats & Params'!$C$12="W", "Not Applicable", 'B. PoF Summary Stats & Params'!I12) -> Not Applicable
B44: ηgood | C44: =IF('B. PoF Summary Stats & Params'!$C$12="C", "Not Applicable", 'B. PoF Summary Stats & Params'!O12) -> 59.7114 | E44: βaverage | F44: =IF('B. PoF Summary Stats & Params'!$C$12="W", "Not Applicable", 'B. PoF Summary Stats & Params'!I6) -> Not Applicable
B45: βaverage | C45: =IF('B. PoF Summary Stats & Params'!$C$12="C", "Not Applicable", 'B. PoF Summary Stats & Params'!M6) -> 1.7933 | E45: βpoor | F45: =IF('B. PoF Summary Stats & Params'!$C$12="W", "Not Applicable", 'B. PoF Summary Stats & Params'!I10) -> Not Applicable
B46: ηaverage | C46: =IF('B. PoF Summary Stats & Params'!$C$12="C", "Not Applicable", 'B. PoF Summary Stats & Params'!M8) -> 49.77 | E46: λaverage | F46: =IF('B. PoF Summary Stats & Params'!$C$12="W", "Not Applicable", 'B. PoF Summary Stats & Params'!I8) -> Not Applicable
B47: βpoor | C47: =IF('B. PoF Summary Stats & Params'!$C$12="C", "Not Applicable", 'B. PoF Summary Stats & Params'!M14) -> 1.8732
B48: ηpoor | C48: =IF('B. PoF Summary Stats & Params'!$C$12="C", "Not Applicable", 'B. PoF Summary Stats & Params'!O14) -> 42.1329
B49: b (intercept) | C49: =IF('B. PoF Summary Stats & Params'!$C$12="C", "Not Applicable", 'B. PoF Summary Stats & Params'!M10) -> -7.0072
A52: Adjustments to Probability of Failure (PoF)
B54: PoF Adjustment Fators
B55: =IF(ISBLANK('A. Population Info'!G5), "", 'A. Population Info'!G5) -> Model
B56: =IF(ISBLANK('A. Population Info'!H5), "", 'A. Population Info'!H5) -> 
B57: =IF(ISBLANK('A. Population Info'!I5), "", 'A. Population Info'!I5) -> 
B58: =IF(ISBLANK('A. Population Info'!J5), "", 'A. Population Info'!J5) -> 
B59: =IF(ISBLANK('A. Population Info'!K5), "", 'A. Population Info'!K5) -> 
A62: Adjustments to Probability of Consequence (PoC)
B64: PoC Adjustment Factors
B65: =IF(ISBLANK('A. Population Info'!L5), "", 'A. Population Info'!L5) -> 
B66: =IF(ISBLANK('A. Population Info'!M5), "", 'A. Population Info'!M5) -> 
B67: =IF(ISBLANK('A. Population Info'!N5), "", 'A. Population Info'!N5) -> 
B68: =IF(ISBLANK('A. Population Info'!O5), "", 'A. Population Info'!O5) -> 
B69: =IF(ISBLANK('A. Population Info'!P5), "", 'A. Population Info'!P5) -> 
A72: Model Calculated Failures
E74: Financial Year | F74: FY19 | G74: FY20 | H74: FY21 | I74: FY22 | J74: FY23 | K74: FY24
E75: Model Calculated Failures | F75: ='B. Asset PoF & Health Index'!J4 -> 58.16322745 | G75: ='B. Asset PoF & Health Index'!K4 -> 59.56220052 | H75: ='B. Asset PoF & Health Index'!L4 -> 60.93759917 | I75: ='B. Asset PoF & Health Index'!M4 -> 62.29391688 | J75: ='B. Asset PoF & Health Index'!N4 -> 63.63387576 | K75: ='B. Asset PoF & Health Index'!O4 -> 64.95937876
A79: Asset Health Index
A118: Asset Risk Index

Sheet A. Population Info
C1: Asset Population Information
A4: Asset Identifier | B4: Asset Age | C4: Asset Length or Number within Asset ID | D4: Reliability Asset ID | E4: Average Energy Usage (kW) | F4: Reliability Asset Voltage | G4: PoF Factor 1 | H4: PoF Factor 2 | I4: PoF Factor 3 | J4: PoF Factor 4 | K4: PoF Factor 5 | L4: Consequence Factor 1 | M4: Consequence Factor 2 | N4: Consequence Factor 3 | O4: Consequence Factor 4 | P4: Consequence Factor 5
G5: Model
A6: 1000000927 | B6: 14 | C6: 1 | D6: T.S.TS00415.132.F0099Y/0.SW | E6: 31501.2219 | F6: STS | G6: N/A
A7: 1000000930 | B7: 14 | C7: 1 | D7: T.S.TS00415.132.F0099Y/0.SW | E7: 31501.2219 | F7: STS | G7: N/A
A8: 1000003430 | B8: 55 | C8: 1 | D8: T.S.ZN15005.033.BB0002/0.SW | E8: 10456.23216 | F8: Bus-section | G8: N/A
A9: 1000003471 | B9: 47 | C9: 1 | D9: T.S.ZN15008.033.BB0002/0.SW | E9: 7418.023059 | F9: Bus-section | G9: N/A
A10: 1000003482 | B10: 47 | C10: 1 | D10: T.S.ZN15008.033.BB0003/0.SW | E10: 7418.023059 | F10: Bus-section | G10: N/A
A11: 1000003517 | B11: 46 | C11: 1 | D11: T.S.ZN15012.033.F00S14/0.SW | E11: 5442.614985 | F11: ZN | G11: N/A
A12: 1000003529 | B12: 46 | C12: 1 | D12: T.S.ZN15012.033.BB0001/0.SW | E12: 5442.614985 | F12: Bus-section | G12: N/A
A13: 1000003572 | B13: 46 | C13: 1 | D13: T.S.ZN15012.033.F00S02/0.SW | E13: 5442.614985 | F13: ZN | G13: N/A
A14: 1000003585 | B14: 46 | C14: 1 | D14: T.S.ZN15012.033.BB0003/0.SW | E14: 5442.614985 | F14: Bus-section | G14: N/A
A15: 1000003641 | B15: 46 | C15: 1 | D15: T.S.ZN15012.033.BB0001/0.SW | E15: 5442.614985 | F15: Bus-section | G15: N/A
A16: 1000003662 | B16: 46 | C16: 1 | D16: T.S.ZN15012.033.BB0002/0.SW | E16: 5442.614985 | F16: Bus-section | G16: N/A
A17: 1000003720 | B17: 46 | C17: 1 | D17: T.S.ZN15012.033.BB0002/0.SW | E17: 5442.614985 | F17: Bus-section | G17: N/A
A18: 1000003744 | B18: 46 | C18: 1 | D18: T.S.ZN15012.033.BB0003/0.SW | E18: 5442.614985 | F18: Bus-section | G18: N/A
A19: 1000003785 | B19: 46 | C19: 1 | D19: T.S.ZN15012.033.BB0001/0.SW | E19: 5442.614985 | F19: Bus-section | G19: N/A
A20: 1000003873 | B20: 46 | C20: 1 | D20: T.S.ZN15012.033.BB0002/0.SW | E20: 5442.614985 | F20: Bus-section | G20: N/A
A21: 1000005002 | B21: 59 | C21: 1 | D21: T.S.ZN09252.033.F00730/0.SW | E21: 10806.84867 | F21: ZN | G21: Rocker
A22: 1000007209 | B22: 40 | C22: 1 | D22: T.S.ZN15013.033.F00S22/0.SW | E22: 6927.868324 | F22: ZN | G22: N/A
A23: 1000007243 | B23: 40 | C23: 1 | D23: T.S.ZN15013.033.F00S24/0.SW | E23: 6927.868324 | F23: ZN | G23: N/A
A24: 1000014701 | B24: 11 | C24: 1 | D24: T.S.ZN00515.066.BB0002/0.SW | E24: 3244.885121 | F24: Bus-section | G24: N/A
A25: 1000014736 | B25: 11 | C25: 1 | D25: T.S.ZN00515.066.F66238/0.SW | E25: 3244.885121 | F25: ZN | G25: N/A
A26: 1000015080 | B26: 67 | C26: 1 | D26: T.S.ZN15001.033.BB0003/0.SW | E26: 18343.24556 | F26: Bus-section | G26: N/A
A27: 1000015930 | B27: 22 | C27: 1 | D27: T.S.TS07150.132.F009S6/1.SW | F27: STS | G27: N/A
A28: 1000023037 | B28: 22 | C28: 1 | D28: T.S.TS07150.132.F009S6/1.SW | F28: STS | G28: N/A
A29: 1000023357 | B29: 22 | C29: 1 | D29: T.S.TS07150.132.F009S6/1.SW | F29: STS | G29: N/A
A30: 1000023929 | B30: 22 | C30: 1 | D30: T.S.TS07150.132.F009S9/1.SW | F30: STS | G30: N/A
A31: 1000023962 | B31: 22 | C31: 1 | D31: T.S.TS07150.132.F009S9/1.SW | F31: STS | G31: N/A
A32: 1000024065 | B32: 14 | C32: 1 | D32: T.S.TS00415.033.F33859/0.SW | E32: 31501.2219 | F32: STS | G32: N/A
A33: 1000025001 | B33: 14 | C33: 1 | D33: T.S.TS00415.033.F33904/0.SW | E33: 31501.2219 | F33: STS | G33: N/A
A34: 1000025018 | B34: 14 | C34: 1 | D34: T.S.TS00415.132.S33818/0.SW | E34: 31501.2219 | F34: STS | G34: N/A
A35: 1000025054 | B35: 14 | C35: 1 | D35: T.S.TS00415.TXF.T00003/0.SW | E35: 31501.2219 | F35: STS | G35: N/A
A36: 1000025058 | B36: 14 | C36: 1 | D36: T.S.TS00415.132.S33818/0.SW | E36: 31501.2219 | F36: STS | G36: N/A
A37: 1000025064 | B37: 14 | C37: 1 | D37: T.S.TS00415.033.F33904/0.SW | E37: 31501.2219 | F37: STS | G37: N/A
A38: 1000025070 | B38: 14 | C38: 1 | D38: T.S.TS00415.TXF.T00003/0.SW | E38: 31501.2219 | F38: STS | G38: N/A
A39: 1000025074 | B39: 14 | C39: 1 | D39: T.S.TS00415.033.F33899/0.SW | E39: 31501.2219 | F39: STS | G39: N/A
A40: 1000025080 | B40: 14 | C40: 1 | D40: T.S.TS00415.033.F33899/0.SW | E40: 31501.2219 | F40: STS | G40: N/A
A41: 1000025086 | B41: 14 | C41: 1 | D41: T.S.TS00415.033.BB0003/0.SW | E41: 31501.2219 | F41: Bus-section | G41: N/A
A42: 1000025092 | B42: 14 | C42: 1 | D42: T.S.TS00415.033.S33889/0.SW | E42: 31501.2219 | F42: STS | G42: N/A
A43: 1000025100 | B43: 14 | C43: 1 | D43: T.S.TS00415.033.S33889/0.SW | E43: 31501.2219 | F43: STS | G43: N/A
A44: 1000025161 | B44: 13 | C44: 1 | D44: T.S.ZN00520.066.F66134/0.SW | E44: 395.1149987 | F44: ZN | G44: N/A
A45: 1000025441 | B45: 14 | C45: 1 | D45: T.S.ZN00524.033.F33542/0.SW | E45: 7630.648923 | F45: ZN | G45: N/A
A46: 1000025447 | B46: 14 | C46: 1 | D46: T.S.ZN00524.033.F33528/0.SW | E46: 7630.648923 | F46: ZN | G46: N/A
A47: 1000025459 | B47: 14 | C47: 1 | D47: T.S.ZN00524.033.F33528/0.SW | E47: 7630.648923 | F47: ZN | G47: N/A
A48: 1000025462 | B48: 14 | C48: 1 | D48: T.S.ZN00524.TXF.T00001/0.SW | E48: 7630.648923 | F48: ZN | G48: N/A
A49: 1000025465 | B49: 14 | C49: 1 | D49: T.S.ZN00524.033.S33536/0.SW | E49: 7630.648923 | F49: ZN | G49: N/A
A50: 1000025471 | B50: 14 | C50: 1 | D50: T.S.ZN00524.033.S33536/0.SW | E50: 7630.648923 | F50: ZN | G50: N/A
A51: 1000025474 | B51: 14 | C51: 1 | D51: T.S.ZN00524.033.F33542/0.SW | E51: 7630.648923 | F51: ZN | G51: N/A
A52: 1000025476 | B52: 14 | C52: 1 | D52: T.S.ZN00524.TXF.T00002/0.SW | E52: 7630.648923 | F52: ZN | G52: N/A
A53: 1000029974 | B53: 58 | C53: 1 | D53: T.S.ZN09035.033.F00728/0.SW | E53: 11720.9114 | F53: ZN | G53: Rocker
A54: 1000029995 | B54: 58 | C54: 1 | D54: T.S.ZN09035.033.F00745/0.SW | E54: 11720.9114 | F54: ZN | G54: Rocker
A55: 1000030807 | B55: 11 | C55: 1 | D55: T.S.ZN00847.132.F00252/0.SW | E55: 33545.3967 | F55: ZN | G55: N/A
A56: 1000030860 | B56: 11 | C56: 1 | D56: T.S.ZN00847.132.F00252/0.SW | E56: 33545.3967 | F56: ZN | G56: N/A
A57: 1000030913 | B57: 11 | C57: 1 | D57: T.S.ZN00847.132.S00001/2.SW | E57: 33545.3967 | F57: ZN | G57: N/A
A58: 1000030923 | B58: 11 | C58: 1 | D58: T.S.ZN00847.132.S00001/2.SW | E58: 33545.3967 | F58: ZN | G58: N/A
A59: 1000035052 | B59: 11 | C59: 1 | D59: T.S.ZN12610.066.BB0001/0.SW | E59: 17868.84157 | F59: Bus-section | G59: N/A
A60: 1000035682 | B60: 12 | C60: 1 | D60: T.S.ZN03155.TXF.T00002/0.SW | E60: 31275.53978 | F60: ZN | G60: N/A
A61: 1000037393 | B61: 11 | C61: 1 | D61: T.S.ZN00847.TXF.T00001/0.SW | E61: 33545.3967 | F61: ZN | G61: N/A
A62: 1000037698 | B62: 10 | C62: 1 | D62: T.S.ZN00515.066.F66230/0.SW | E62: 3244.885121 | F62: ZN | G62: N/A
A63: 1000038444 | B63: 59 | C63: 1 | D63: T.S.ZN09252.033.F00738/0.SW | E63: 10806.84867 | F63: ZN | G63: N/A
A64: 1000038470 | B64: 59 | C64: 1 | D64: T.S.ZN09252.033.F00749/0.SW | E64: 10806.84867 | F64: ZN | G64: Rocker
A65: 1000041246 | B65: 11 | C65: 1 | D65: T.S.TS07150.132.F0090W/3.SW | F65: STS | G65: N/A
A66: 1000043039 | B66: 13 | C66: 1 | D66: T.S.ZN00232.033.F33366/0.SW | E66: 10539.66032 | F66: ZN | G66: N/A
A67: 1000043074 | B67: 14 | C67: 1 | D67: T.S.TS00415.132.F0098N/0.SW | E67: 31501.2219 | F67: STS | G67: N/A
A68: 1000043140 | B68: 14 | C68: 1 | D68: T.S.ZN00180.TXF.T00003/0.SW | E68: 31309.22085 | F68: ZN | G68: N/A
A69: 1000043362 | B69: 14 | C69: 1 | D69: T.S.TS00415.132.F009NA/0.SW | E69: 31501.2219 | F69: STS | G69: N/A
A70: 1000043364 | B70: 14 | C70: 1 | D70: T.S.ZN00523.066.F33460/0.SW | E70: 5332.806227 | F70: ZN | G70: N/A
A71: 1000043377 | B71: 14 | C71: 1 | D71: T.S.ZN00523.066.F33474/0.SW | E71: 5332.806227 | F71: ZN | G71: N/A
A72: 1000043383 | B72: 14 | C72: 1 | D72: T.S.ZN00523.066.BB0001/0.SW | E72: 5332.806227 | F72: Bus-section | G72: N/A
A73: 1000043386 | B73: 14 | C73: 1 | D73: T.S.ZN00523.066.BB0001/0.SW | E73: 5332.806227 | F73: Bus-section | G73: N/A
A74: 1000043389 | B74: 14 | C74: 1 | D74: T.S.TS00415.132.F0098R/0.SW | E74: 31501.2219 | F74: STS | G74: N/A
A75: 1000043392 | B75: 14 | C75: 1 | D75: T.S.ZN00523.066.BB0001/0.SW | E75: 5332.806227 | F75: Bus-section | G75: N/A
A76: 1000043396 | B76: 14 | C76: 1 | D76: T.S.ZN00523.066.BB0002/0.SW | E76: 5332.806227 | F76: Bus-section | G76: N/A
A77: 1000043400 | B77: 14 | C77: 1 | D77: T.S.ZN00523.066.BB0002/0.SW | E77: 5332.806227 | F77: Bus-section | G77: N/A
A78: 1000043403 | B78: 14 | C78: 1 | D78: T.S.ZN00523.066.BB0002/0.SW | E78: 5332.806227 | F78: Bus-section | G78: N/A
A79: 1000043558 | B79: 13 | C79: 1 | D79: T.S.ZN12580.066.BB0002/0.SW | E79: 13233.20855 | F79: Bus-section | G79: N/A
A80: 1000043887 | B80: 14 | C80: 1 | D80: T.S.ZN00232.033.F03600/0.SW | E80: 10539.66032 | F80: ZN | G80: N/A
A81: 1000047291 | B81: 28 | C81: 1 | D81: T.S.ZN14460.033.F00670/0.SW | E81: 3222.965481 | F81: ZN | G81: N/A
A82: 1000047348 | B82: 28 | C82: 1 | D82: T.S.ZN14460.033.F00670/0.SW | E82: 3222.965481 | F82: ZN | G82: N/A
A83: 1000048505 | B83: 54 | C83: 1 | D83: T.S.TS07170.033.C00002/0.SW | E83: 74979.33449 | F83: STS | G83: N/A
A84: 1000048517 | B84: 54 | C84: 1 | D84: T.S.TS07170.033.C00002/0.SW | E84: 74979.33449 | F84: STS | G84: N/A
A85: 1000048540 | B85: 54 | C85: 1 | D85: T.S.TS07170.033.C00004/0.SW | E85: 74979.33449 | F85: STS | G85: N/A
A86: 1000048551 | B86: 54 | C86: 1 | D86: T.S.TS07170.033.C00004/0.SW | E86: 74979.33449 | F86: STS | G86: N/A
A87: 1000048601 | B87: 54 | C87: 1 | D87: T.S.TS07170.033.C00005/0.SW | E87: 74979.33449 | F87: STS | G87: N/A
A88: 1000048613 | B88: 54 | C88: 1 | D88: T.S.TS07170.033.C00005/0.SW | E88: 74979.33449 | F88: STS | G88: N/A
A89: 1000048674 | B89: 54 | C89: 1 | D89: T.S.TS07170.033.C00006/0.SW | E89: 74979.33449 | F89: STS | G89: N/A
A90: 1000048684 | B90: 54 | C90: 1 | D90: T.S.TS07170.033.C00006/0.SW | E90: 74979.33449 | F90: STS | G90: N/A
A91: 1000054362 | B91: 11 | C91: 1 | D91: T.S.ZN00512.066.F0KU12/0.SW | E91: 3864.108048 | F91: ZN | G91: N/A
A92: 1000054371 | B92: 11 | C92: 1 | D92: T.S.ZN00525.033.F80162/0.SW | E92: 459.3551057 | F92: ZN | G92: N/A
A93: 1000054392 | B93: 11 | C93: 1 | D93: T.S.ZN00525.033.F80162/0.SW | E93: 459.3551057 | F93: ZN | G93: N/A
A94: 1000054412 | B94: 11 | C94: 1 | D94: T.S.ZN00525.033.S34512/0.SW | E94: 459.3551057 | F94: ZN | G94: N/A
A95: 1000054433 | B95: 11 | C95: 1 | D95: T.S.ZN00525.033.BB0002/0.SW | E95: 459.3551057 | F95: Bus-section | G95: N/A
A96: 1000054448 | B96: 11 | C96: 1 | D96: T.S.ZN00512.066.F34954/0.SW | E96: 3864.108048 | F96: ZN | G96: N/A
A97: 1000054453 | B97: 11 | C97: 1 | D97: T.S.ZN00525.033.BB0002/0.SW | E97: 459.3551057 | F97: Bus-section | G97: N/A
A98: 1000054493 | B98: 11 | C98: 1 | D98: T.S.ZN00512.066.BB0001/0.SW | E98: 3864.108048 | F98: Bus-section | G98: N/A
A99: 1000054501 | B99: 11 | C99: 1 | D99: T.S.ZN00512.066.BB0001/0.SW | E99: 3864.108048 | F99: Bus-section | G99: N/A
A100: 1000054544 | B100: 11 | C100: 1 | D100: T.S.ZN00512.066.BB0001/0.SW | E100: 3864.108048 | F100: Bus-section | G100: N/A
A101: 1000054554 | B101: 11 | C101: 1 | D101: T.S.ZN00512.066.BB0003/0.SW | E101: 3864.108048 | F101: Bus-section | G101: N/A
A102: 1000054562 | B102: 11 | C102: 1 | D102: T.S.ZN00512.066.BB0003/0.SW | E102: 3864.108048 | F102: Bus-section | G102: N/A
A103: 1000054575 | B103: 11 | C103: 1 | D103: T.S.ZN00512.066.BB0002/0.SW | E103: 3864.108048 | F103: Bus-section | G103: N/A
A104: 1000062322 | B104: 13 | C104: 1 | D104: T.S.ZN00238.033.F34089/0.SW | E104: 9352.164429 | F104: ZN | G104: N/A
A105: 1000062328 | B105: 13 | C105: 1 | D105: T.S.ZN00238.033.F34089/0.SW | E105: 9352.164429 | F105: ZN | G105: N/A
A106: 1000062334 | B106: 13 | C106: 1 | D106: T.S.ZN00238.033.S34094/0.SW | E106: 9352.164429 | F106: ZN | G106: N/A
A107: 1000062347 | B107: 13 | C107: 1 | D107: T.S.ZN00238.033.S34094/0.SW | E107: 9352.164429 | F107: ZN | G107: N/A
A108: 1000062353 | B108: 13 | C108: 1 | D108: T.S.ZN00238.033.F34099/0.SW | E108: 9352.164429 | F108: ZN | G108: N/A
A109: 1000062359 | B109: 13 | C109: 1 | D109: T.S.ZN00238.033.F34099/0.SW | E109: 9352.164429 | F109: ZN | G109: N/A
A110: 1000062366 | B110: 13 | C110: 1 | D110: T.S.ZN00238.033.S34104/0.SW | E110: 9352.164429 | F110: ZN | G110: N/A
A111: 1000062385 | B111: 13 | C111: 1 | D111: T.S.ZN00238.033.S34104/0.SW | E111: 9352.164429 | F111: ZN | G111: N/A
A112: 1000062391 | B112: 13 | C112: 1 | D112: T.S.ZN00238.033.F34109/0.SW | E112: 9352.164429 | F112: ZN | G112: N/A
A113: 1000062398 | B113: 13 | C113: 1 | D113: T.S.ZN00238.033.F34109/0.SW | E113: 9352.164429 | F113: ZN | G113: N/A
A114: 1000062403 | B114: 13 | C114: 1 | D114: T.S.ZN00238.033.BB0003/0.SW | E114: 9352.164429 | F114: Bus-section | G114: N/A
A115: 1000062410 | B115: 13 | C115: 1 | D115: T.S.ZN00238.033.F34116/0.SW | E115: 9352.164429 | F115: ZN | G115: N/A
A116: 1000062416 | B116: 13 | C116: 1 | D116: T.S.ZN00238.033.F34116/0.SW | E116: 9352.164429 | F116: ZN | G116: N/A
A117: 1000062422 | B117: 13 | C117: 1 | D117: T.S.ZN00238.TXF.T00001/0.SW | E117: 9352.164429 | F117: ZN | G117: N/A
A118: 1000062428 | B118: 13 | C118: 1 | D118: T.S.ZN00238.TXF.T00002/0.SW | E118: 9352.164429 | F118: ZN | G118: N/A
A119: 1000062437 | B119: 13 | C119: 1 | D119: T.S.ZN00238.TXF.T00003/0.SW | E119: 9352.164429 | F119: ZN | G119: N/A
A120: 1000062503 | B120: 14 | C120: 1 | D120: T.S.TS00415.033.S33869/0.SW | E120: 31501.2219 | F120: STS | G120: N/A
A121: 1000062509 | B121: 14 | C121: 1 | D121: T.S.TS00415.033.BB0002/0.SW | E121: 31501.2219 | F121: Bus-section | G121: N/A
A122: 1000062515 | B122: 14 | C122: 1 | D122: T.S.TS00415.033.F33854/0.SW | E122: 31501.2219 | F122: STS | G122: N/A
A123: 1000062521 | B123: 14 | C123: 1 | D123: T.S.TS00415.033.F33859/0.SW | E123: 31501.2219 | F123: STS | G123: N/A
A124: 1000062527 | B124: 14 | C124: 1 | D124: T.S.TS00415.033.BB0001/0.SW | E124: 31501.2219 | F124: Bus-section | G124: N/A
A125: 1000062533 | B125: 14 | C125: 1 | D125: T.S.TS00415.033.S33869/0.SW | E125: 31501.2219 | F125: STS | G125: N/A
A126: 1000062539 | B126: 14 | C126: 1 | D126: T.S.TS00415.TXF.T00001/0.SW | E126: 31501.2219 | F126: STS | G126: N/A
A127: 1000062550 | B127: 14 | C127: 1 | D127: T.S.TS00415.033.F33884/0.SW | E127: 31501.2219 | F127: STS | G127: N/A
A128: 1000062820 | B128: 12 | C128: 1 | D128: T.S.ZN12570.TXF.T00011/0 | E128: 15425.08455 | F128: ZN | G128: N/A
A129: 1000063569 | B129: 53 | C129: 1 | D129: T.S.TS16700.033.F00S23/0.SW | E129: 38323.41927 | F129: STS | G129: N/A
A130: 1000065397 | B130: 46 | C130: 1 | D130: O.L.ST08000 | F130: STS | G130: N/A
A131: 1000065408 | B131: 46 | C131: 1 | D131: O.L.ST08000 | F131: STS | G131: N/A
A132: 1000072579 | B132: 10 | C132: 1 | D132: T.S.ZN00243.132.F0095Y/0.SW | E132: 8997.921237 | F132: ZN | G132: N/A
A133: 1000072591 | B133: 10 | C133: 1 | D133: T.S.ZN00243.132.F00957/0.SW | E133: 8997.921237 | F133: ZN | G133: N/A
A134: 1000072620 | B134: 11 | C134: 1 | D134: T.S.ZN00525.033.F34507/0.SW | E134: 459.3551057 | F134: ZN | G134: N/A
A135: 1000072630 | B135: 11 | C135: 1 | D135: T.S.ZN00525.033.F34507/0.SW | E135: 459.3551057 | F135: ZN | G135: N/A
A136: 1000072640 | B136: 11 | C136: 1 | D136: T.S.ZN00525.033.S34512/0.SW | E136: 459.3551057 | F136: ZN | G136: N/A
A137: 1000072641 | B137: 10 | C137: 1 | D137: T.S.ZN00243.132.BB0001/0.SW | E137: 8997.921237 | F137: Bus-section | G137: N/A
A138: 1000072651 | B138: 10 | C138: 1 | D138: T.S.ZN00243.132.BB0001/0.SW | E138: 8997.921237 | F138: Bus-section | G138: N/A
A139: 1000072663 | B139: 10 | C139: 1 | D139: T.S.ZN00243.132.BB0001/0.SW | E139: 8997.921237 | F139: Bus-section | G139: N/A
A140: 1000072674 | B140: 10 | C140: 1 | D140: T.S.ZN00243.132.BB0001/0.SW | E140: 8997.921237 | F140: Bus-section | G140: N/A
A141: 1000072687 | B141: 10 | C141: 1 | D141: T.S.ZN00243.132.BB0002/0.SW | E141: 8997.921237 | F141: Bus-section | G141: N/A
A142: 1000072692 | B142: 11 | C142: 1 | D142: T.S.ZN00525.TXF.T00001/0.SW | E142: 459.3551057 | F142: ZN | G142: N/A
A143: 1000072697 | B143: 10 | C143: 1 | D143: T.S.ZN00243.132.BB0002/0.SW | E143: 8997.921237 | F143: Bus-section | G143: N/A
A144: 1000072707 | B144: 10 | C144: 1 | D144: T.S.ZN00243.132.BB0002/0.SW | E144: 8997.921237 | F144: Bus-section | G144: N/A
A145: 1000075585 | B145: 19 | C145: 1 | D145: T.C.HC92082.033 | F145: STS | G145: N/A
A146: 1000076190 | B146: 23 | C146: 1 | D146: T.S.TS16700.033.BB0006/0.SW | E146: 38323.41927 | F146: Bus-section | G146: N/A
A147: 1000077155 | B147: 46 | C147: 1 | D147: O.L.ST08000 | F147: STS | G147: N/A
A148: 1000077951 | B148: 15 | C148: 1 | D148: T.S.ZN00232.033.C33634/0.SW | E148: 10539.66032 | F148: ZN | G148: N/A
A149: 1000084044 | B149: 54 | C149: 1 | D149: T.S.TS10900.TXF.T00004/0.SW | E149: 42909.49412 | F149: STS | G149: N/A
A150: 1000084048 | B150: 54 | C150: 1 | D150: T.S.TS10900.TXF.T00003/0.SW | E150: 42909.49412 | F150: STS | G150: N/A
A151: 1000084301 | B151: 54 | C151: 1 | D151: T.S.TS10900.132.F0091F/0.SW | E151: 42909.49412 | F151: STS | G151: N/A
A152: 1000084347 | B152: 54 | C152: 1 | D152: T.S.TS10900.132.BB00A2/0.SW | E152: 42909.49412 | F152: Bus-section | G152: N/A
A153: 1000084466 | B153: 54 | C153: 1 | D153: T.S.TS10900.033.BB0004/0.SW | E153: 42909.49412 | F153: Bus-section | G153: N/A
A154: 1000088143 | B154: 65 | C154: 1 | D154: T.S.ZN15002.033.BB0001/0.SW | E154: 5375.699897 | F154: Bus-section | G154: N/A
A155: 1000088498 | B155: 61 | C155: 1 | D155: T.S.ZN15004.033.BB0001/0.SW | E155: 5614.77063 | F155: Bus-section | G155: N/A
A156: 1000093235 | B156: 54 | C156: 1 | D156: T.S.TS10900.033.BB0004/0.SW | E156: 42909.49412 | F156: Bus-section | G156: N/A
A157: 1000093295 | B157: 54 | C157: 1 | D157: T.S.TS10900.033.BB0004/0.SW | E157: 42909.49412 | F157: Bus-section | G157: N/A
A158: 1000093386 | B158: 54 | C158: 1 | D158: T.S.TS10900.132.BB00A2/0.SW | E158: 42909.49412 | F158: Bus-section | G158: N/A
A159: 1000093456 | B159: 54 | C159: 1 | D159: T.S.TS10900.033.BB0001/0.SW | E159: 42909.49412 | F159: Bus-section | G159: N/A
A160: 1000093503 | B160: 54 | C160: 1 | D160: T.S.TS10900.033.BB0004/0.SW | E160: 42909.49412 | F160: Bus-section | G160: N/A
A161: 1000093551 | B161: 54 | C161: 1 | D161: T.S.TS10900.033.BB0004/0.SW | E161: 42909.49412 | F161: Bus-section | G161: N/A
A162: 1000093592 | B162: 54 | C162: 1 | D162: T.S.TS10900.033.BB0004/0.SW | E162: 42909.49412 | F162: Bus-section | G162: N/A
A163: 1000093813 | B163: 54 | C163: 1 | D163: T.S.TS10900.132.BB00A1/0.SW | E163: 42909.49412 | F163: Bus-section | G163: N/A
A164: 1000093879 | B164: 54 | C164: 1 | D164: T.S.TS10900.132.F0091J/0.SW | E164: 42909.49412 | F164: STS | G164: N/A
A165: 1000093910 | B165: 54 | C165: 1 | D165: T.S.TS10900.132.BB00B1/0.SW | E165: 42909.49412 | F165: Bus-section | G165: N/A
A166: 1000098531 | B166: 10 | C166: 1 | D166: T.S.TW66027.066.F66027/0.SW | F166: STS | G166: N/A
A167: 1000098542 | B167: 17 | C167: 1 | D167: T.S.TW66027.066.F66027/0.SW | F167: STS | G167: N/A
A168: 1000098628 | B168: 12 | C168: 1 | D168: T.S.ZN14460.033.F00744/2.SW | E168: 3222.965481 | F168: ZN | G168: N/A
A169: 1000101007 | B169: 54 | C169: 1 | D169: T.S.TS10900.132.F009RT/0.SW | E169: 42909.49412 | F169: STS | G169: N/A
A170: 1000101014 | B170: 54 | C170: 1 | D170: T.S.TS10900.132.BB00B2/0.SW | E170: 42909.49412 | F170: Bus-section | G170: N/A
A171: 1000101047 | B171: 54 | C171: 1 | D171: T.S.TS10900.132.BB00B2/0.SW | E171: 42909.49412 | F171: Bus-section | G171: N/A
A172: 1000101114 | B172: 54 | C172: 1 | D172: T.S.TS10900.132.BB00B1/0.SW | E172: 42909.49412 | F172: Bus-section | G172: N/A
A173: 1000101316 | B173: 54 | C173: 1 | D173: T.S.TS10900.033.BB0003/0.SW | E173: 42909.49412 | F173: Bus-section | G173: N/A
A174: 1000101375 | B174: 54 | C174: 1 | D174: T.S.TS10900.033.BB0002/0.SW | E174: 42909.49412 | F174: Bus-section | G174: N/A
A175: 1000101381 | B175: 54 | C175: 1 | D175: T.S.TS10900.TXF.T00002/0.SW | E175: 42909.49412 | F175: STS | G175: N/A
A176: 1000101488 | B176: 17 | C176: 1 | D176: T.S.ZN08000.132.F0092A/0.SW | E176: 44100.79264 | F176: ZN | G176: N/A
A177: 1000101526 | B177: 17 | C177: 1 | D177: T.S.ZN08000.132.F0092A/0.SW | E177: 44100.79264 | F177: ZN | G177: N/A
A178: 1000101611 | B178: 54 | C178: 1 | D178: T.S.TS10900.033.BB0003/0.SW | E178: 42909.49412 | F178: Bus-section | G178: N/A
A179: 1000101613 | B179: 17 | C179: 1 | D179: T.S.ZN08000.132.F0092B/0.SW | E179: 44100.79264 | F179: ZN | G179: N/A
A180: 1000101659 | B180: 17 | C180: 1 | D180: T.S.ZN08000.132.F0092B/0.SW | E180: 44100.79264 | F180: ZN | G180: N/A
A181: 1000101720 | B181: 54 | C181: 1 | D181: T.S.TS10900.033.BB0003/0.SW | E181: 42909.49412 | F181: Bus-section | G181: N/A
A182: 1000101732 | B182: 54 | C182: 1 | D182: T.S.TS10900.033.C00003/0.SW | E182: 42909.49412 | F182: STS | G182: N/A
A183: 1000101757 | B183: 17 | C183: 1 | D183: T.S.ZN08000.132.S001_1/2.SW | E183: 44100.79264 | F183: ZN | G183: N/A
A184: 1000101851 | B184: 17 | C184: 1 | D184: T.S.ZN08000.132.S002_1/2.SW | E184: 44100.79264 | F184: ZN | G184: N/A
A185: 1000101881 | B185: 17 | C185: 1 | D185: T.S.ZN08000.132.S002_2/3.SW | E185: 44100.79264 | F185: ZN | G185: N/A
A186: 1000101925 | B186: 17 | C186: 1 | D186: T.S.ZN08000.132.S002_2/3.SW | E186: 44100.79264 | F186: ZN | G186: N/A
A187: 1000101945 | B187: 17 | C187: 1 | D187: T.S.ZN08000.TXF.T00001/0.SW | E187: 44100.79264 | F187: ZN | G187: N/A
A188: 1000103391 | B188: 12 | C188: 1 | D188: T.S.ZN09700.132.S00001/2.SW | E188: 16771.27295 | F188: ZN | G188: N/A
A189: 1000103434 | B189: 12 | C189: 1 | D189: T.S.ZN09700.132.F00281/0.SW | E189: 16771.27295 | F189: ZN | G189: N/A
A190: 1000103521 | B190: 12 | C190: 1 | D190: T.S.ZN09700.TXF.T00001/0.SW | E190: 16771.27295 | F190: ZN | G190: N/A
A191: 1000103528 | B191: 22 | C191: 1 | D191: T.S.TS07150.132.F0090W/4.SW | F191: STS | G191: N/A
A192: 1000103538 | B192: 22 | C192: 1 | D192: T.S.TS07150.TXF.T00003/0.SW | F192: STS | G192: N/A
A193: 1000103970 | B193: 10 | C193: 1 | D193: T.S.ZN12690.132.F0094L/0.SW | E193: 20722.69862 | F193: ZN | G193: N/A
A194: 1000104702 | B194: 47 | C194: 1 | D194: T.S.ZN10996.AUX | F194: ZN | G194: N/A
A195: 1000104713 | B195: 47 | C195: 1 | D195: T.S.ZN10996.033.F00776/0.SW | F195: ZN | G195: N/A
A196: 1000104724 | B196: 47 | C196: 1 | D196: T.S.ZN10996.033.F00775/0.SW | F196: ZN | G196: N/A
A197: 1000106226 | B197: 25 | C197: 1 | D197: T.C.HC32032.033 | F197: STS | G197: N/A
A198: 1000108443 | B198: 13 | C198: 1 | D198: T.S.TW00237.033.F33724/0.SW | F198: STS | G198: N/A
A199: 1000108449 | B199: 13 | C199: 1 | D199: T.S.TW00237.033.F33730/0.SW | F199: STS | G199: N/A
A200: 1000108452 | B200: 13 | C200: 1 | D200: T.S.TW00237.033.F33724/0.SW | F200: STS | G200: N/A
A201: 1000108455 | B201: 13 | C201: 1 | D201: T.S.TW00237.033.F33730/0.SW | F201: STS | G201: N/A
A202: 1000108465 | B202: 13 | C202: 1 | D202: T.S.TW00237.033.F33735/0.SW | F202: STS | G202: N/A
... 923 more rows

Sheet A. Age Profile
C1: Asset Population Age Profile
A3: Asset Age | B3: Median Age (x) | C3: Freq. of x (f) | D3: Cumulative Freq. of x (F) | E3: f.x | G3: E(f) | H3: Asset Units | K3: Summary Statisitics | N3: Additional Information for Graph
A4: 0 | B4: 0.5 | C4: =COUNTIF('A. Population Info'!$B:$B, 'A. Age Profile'!A4) -> 23 | D4: =SUM($C$4:C4) -> 23 | E4: =B4*C4 -> 11.5 | F4: =(B4-$L$6)^2*C4 -> 28338.02736 | G4: =_xlfn.NORM.DIST(B4,$L$6,$L$7,FALSE)*$L$5 -> 10.81580464 | H4: =SUMIF('A. Population Info'!$B:$B, A4,'A. Population Info'!$C:$C) -> 23 | K4: Population Bins (n) | L4: =SUM(C:C) -> 2156
A5: 1 | B5: 1.5 | C5: =COUNTIF('A. Population Info'!$B:$B, 'A. Age Profile'!A5) -> 58 | D5: =SUM($C$4:C5) -> 81 | E5: =B5*C5 -> 87 | F5: =(B5-$L$6)^2*C5 -> 67447.38334 | G5: =_xlfn.NORM.DIST(B5,$L$6,$L$7,FALSE)*$L$5 -> 11.63038974 | H5: =SUMIF('A. Population Info'!$B:$B, A5,'A. Population Info'!$C:$C) -> 58 | K5: No. of Asset Units | L5: =SUM(H:H) -> 2156
A6: 2 | B6: 2.5 | C6: =COUNTIF('A. Population Info'!$B:$B, 'A. Age Profile'!A6) -> 28 | D6: =SUM($C$4:C6) -> 109 | E6: =B6*C6 -> 70 | F6: 30679.14341 | G6: 12.48010683 | H6: =SUMIF('A. Population Info'!$B:$B, A6,'A. Population Info'!$C:$C) -> 28 | K6: Mean Age | L6: =SUM(E:E)/SUM(C:C) -> 35.60111317 | N6: Mean Marker | O6: =MATCH(L6,$A$4:$A$104,1) -> 36 | P6: =P8 -> 84
A7: 3 | B7: 3.5 | C7: =COUNTIF('A. Population Info'!$B:$B, 'A. Age Profile'!A7) -> 23 | D7: =SUM($C$4:C7) -> 132 | E7: 80.5 | F7: 23701.07374 | G7: 13.36382987 | H7: =SUMIF('A. Population Info'!$B:$B, A7,'A. Population Info'!$C:$C) -> 23 | K7: Standard Deviation | L7: =(SUM(F:F)/SUM(C:C))^0.5 -> 21.82919822
A8: 4 | B8: 4.5 | C8: =COUNTIF('A. Population Info'!$B:$B, 'A. Age Profile'!A8) -> 51 | D8: =SUM($C$4:C8) -> 183 | E8: 229.5 | F8: 49331.24127 | G8: 14.28013043 | H8: =SUMIF('A. Population Info'!$B:$B, A8,'A. Population Info'!$C:$C) -> 51 | K8: Median Age | L8: =L13+(((L4/2)-L10)/L11)*L12 -> 41 | N8: Median Marker | O8: =MATCH(L8,$A$4:$A$104,1) -> 42 | P8: =INDEX($C$4:$C$104,O8)+70 -> 84
A9: 5 | B9: 5.5 | C9: =COUNTIF('A. Population Info'!$B:$B, 'A. Age Profile'!A9) -> 58 | D9: =SUM($C$4:C9) -> 241 | E9: 319 | F9: 52552.46683 | G9: 15.22726867 | H9: =SUMIF('A. Population Info'!$B:$B, A9,'A. Population Info'!$C:$C) -> 58 | K9: Mode Age | L9: =MATCH(MAX(C4:C104),C4:C104,0) -> 55
A10: 6 | B10: 6.5 | C10: =COUNTIF('A. Population Info'!$B:$B, 'A. Age Profile'!A10) -> 94 | D10: =SUM($C$4:C10) -> 335 | E10: 611 | F10: 79606.23006 | G10: 16.20318712 | H10: =SUMIF('A. Population Info'!$B:$B, A10,'A. Population Info'!$C:$C) -> 94 | K10: F | L10: =INDEX(D4:D104,MATCH(L4/2,$D$4:$D$104,1)) -> 1078
A11: 7 | B11: 7.5 | C11: =COUNTIF('A. Population Info'!$B:$B, 'A. Age Profile'!A11) -> 34 | D11: =SUM($C$4:C11) -> 369 | E11: 255 | F11: 26848.86709 | G11: 17.20550742 | H11: =SUMIF('A. Population Info'!$B:$B, A11,'A. Population Info'!$C:$C) -> 34 | K11: fm | L11: =INDEX(C4:C104,MATCH(L4/2,$D$4:$D$104,1)+1) -> 14
A12: 8 | B12: 8.5 | C12: =COUNTIF('A. Population Info'!$B:$B, 'A. Age Profile'!A12) -> 65 | D12: =SUM($C$4:C12) -> 434 | E12: 552.5 | F12: 47740.57179 | G12: 18.23153029 | H12: =SUMIF('A. Population Info'!$B:$B, A12,'A. Population Info'!$C:$C) -> 65 | K12: i | L12: =B6-B5 -> 1
A13: 9 | B13: 9.5 | C13: =COUNTIF('A. Population Info'!$B:$B, 'A. Age Profile'!A13) -> 45 | D13: =SUM($C$4:C13) -> 479 | E13: 427.5 | F13: 30657.0649 | G13: 19.27823909 | H13: =SUMIF('A. Population Info'!$B:$B, A13,'A. Population Info'!$C:$C) -> 45 | K13: Lm | L13: =INDEX(B4:B104,MATCH(L4/2,$D$4:$D$104,1))+L12/2 -> 41
A14: 10 | B14: 10.5 | C14: =COUNTIF('A. Population Info'!$B:$B, 'A. Age Profile'!A14) -> 41 | D14: =SUM($C$4:C14) -> 520 | E14: 430.5 | F14: 25832.70118 | G14: 20.34230687 | H14: =SUMIF('A. Population Info'!$B:$B, A14,'A. Population Info'!$C:$C) -> 41
A15: 11 | B15: 11.5 | C15: =COUNTIF('A. Population Info'!$B:$B, 'A. Age Profile'!A15) -> 48 | D15: =SUM($C$4:C15) -> 568 | E15: 552 | F15: 27881.4555 | G15: 21.42010728 | H15: =SUMIF('A. Population Info'!$B:$B, A15,'A. Population Info'!$C:$C) -> 48
A16: 12 | B16: 12.5 | C16: =COUNTIF('A. Population Info'!$B:$B, 'A. Age Profile'!A16) -> 18 | D16: =SUM($C$4:C16) -> 586 | E16: 225 | F16: 9605.905737 | G16: 22.50772924 | H16: =SUMIF('A. Population Info'!$B:$B, A16,'A. Population Info'!$C:$C) -> 18
A17: 13 | B17: 13.5 | C17: =COUNTIF('A. Population Info'!$B:$B, 'A. Age Profile'!A17) -> 53 | D17: =SUM($C$4:C17) -> 639 | E17: 715.5 | F17: 25888.33778 | G17: 23.60099557 | H17: =SUMIF('A. Population Info'!$B:$B, A17,'A. Population Info'!$C:$C) -> 53
A18: 14 | B18: 14.5 | C18: =COUNTIF('A. Population Info'!$B:$B, 'A. Age Profile'!A18) -> 57 | D18: =SUM($C$4:C18) -> 696 | E18: 826.5 | F18: 25379.6477 | G18: 24.6954853 | H18: =SUMIF('A. Population Info'!$B:$B, A18,'A. Population Info'!$C:$C) -> 57
A19: 15 | B19: 15.5 | C19: =COUNTIF('A. Population Info'!$B:$B, 'A. Age Profile'!A19) -> 19 | D19: =SUM($C$4:C19) -> 715 | E19: 294.5 | F19: 7677.040265 | G19: 25.78655986 | H19: =SUMIF('A. Population Info'!$B:$B, A19,'A. Population Info'!$C:$C) -> 19
A20: 16 | B20: 16.5 | C20: =COUNTIF('A. Population Info'!$B:$B, 'A. Age Profile'!A20) -> 16 | D20: =SUM($C$4:C20) -> 731 | E20: 264 | F20: 5837.640391 | G20: 26.86939268 | H20: =SUMIF('A. Population Info'!$B:$B, A20,'A. Population Info'!$C:$C) -> 16
A21: 17 | B21: 17.5 | C21: =COUNTIF('A. Population Info'!$B:$B, 'A. Age Profile'!A21) -> 36 | D21: =SUM($C$4:C21) -> 767 | E21: 630 | F21: 11795.41073 | G21: 27.93900233 | H21: =SUMIF('A. Population Info'!$B:$B, A21,'A. Population Info'!$C:$C) -> 36
A22: 18 | B22: 18.5 | C22: =COUNTIF('A. Population Info'!$B:$B, 'A. Age Profile'!A22) -> 10 | D22: =SUM($C$4:C22) -> 777 | E22: 185 | F22: 2924.480717 | G22: 28.99028855 | H22: =SUMIF('A. Population Info'!$B:$B, A22,'A. Population Info'!$C:$C) -> 10
A23: 19 | B23: 19.5 | C23: =COUNTIF('A. Population Info'!$B:$B, 'A. Age Profile'!A23) -> 1 | D23: =SUM($C$4:C23) -> 778 | E23: 19.5 | F23: 259.2458454 | G23: 30.01807116 | H23: =SUMIF('A. Population Info'!$B:$B, A23,'A. Population Info'!$C:$C) -> 1
A24: 20 | B24: 20.5 | C24: =COUNTIF('A. Population Info'!$B:$B, 'A. Age Profile'!A24) -> 10 | D24: =SUM($C$4:C24) -> 788 | E24: 205 | F24: 2280.43619 | G24: 31.01713127 | H24: =SUMIF('A. Population Info'!$B:$B, A24,'A. Population Info'!$C:$C) -> 10
A25: 21 | B25: 21.5 | C25: =COUNTIF('A. Population Info'!$B:$B, 'A. Age Profile'!A25) -> 0 | D25: =SUM($C$4:C25) -> 788 | E25: 0 | F25: 0 | G25: 31.98225444 | H25: =SUMIF('A. Population Info'!$B:$B, A25,'A. Population Info'!$C:$C) -> 0
A26: 22 | B26: 22.5 | C26: =COUNTIF('A. Population Info'!$B:$B, 'A. Age Profile'!A26) -> 15 | D26: =SUM($C$4:C26) -> 803 | E26: 337.5 | F26: 2574.587495 | G26: 32.9082752 | H26: =SUMIF('A. Population Info'!$B:$B, A26,'A. Population Info'!$C:$C) -> 15
A27: 23 | B27: 23.5 | C27: =COUNTIF('A. Population Info'!$B:$B, 'A. Age Profile'!A27) -> 1 | D27: =SUM($C$4:C27) -> 804 | E27: 23.5 | F27: 146.43694 | G27: 33.79012261 | H27: =SUMIF('A. Population Info'!$B:$B, A27,'A. Population Info'!$C:$C) -> 1
A28: 24 | B28: 24.5 | C28: =COUNTIF('A. Population Info'!$B:$B, 'A. Age Profile'!A28) -> 11 | D28: =SUM($C$4:C28) -> 815 | E28: 269.5 | F28: 1355.58185 | G28: 34.62286603 | H28: =SUMIF('A. Population Info'!$B:$B, A28,'A. Population Info'!$C:$C) -> 11
A29: 25 | B29: 25.5 | C29: =COUNTIF('A. Population Info'!$B:$B, 'A. Age Profile'!A29) -> 1 | D29: =SUM($C$4:C29) -> 816 | E29: 25.5 | F29: 102.0324873 | G29: 35.40176082 | H29: =SUMIF('A. Population Info'!$B:$B, A29,'A. Population Info'!$C:$C) -> 1
A30: 26 | B30: 26.5 | C30: =COUNTIF('A. Population Info'!$B:$B, 'A. Age Profile'!A30) -> 5 | D30: =SUM($C$4:C30) -> 821 | E30: 132.5 | F30: 414.1513049 | G30: 36.12229312 | H30: =SUMIF('A. Population Info'!$B:$B, A30,'A. Population Info'!$C:$C) -> 5
A31: 27 | B31: 27.5 | C31: =COUNTIF('A. Population Info'!$B:$B, 'A. Age Profile'!A31) -> 0 | D31: =SUM($C$4:C31) -> 821 | E31: 0 | F31: 0 | G31: 36.78022333 | H31: =SUMIF('A. Population Info'!$B:$B, A31,'A. Population Info'!$C:$C) -> 0
A32: 28 | B32: 28.5 | C32: =COUNTIF('A. Population Info'!$B:$B, 'A. Age Profile'!A32) -> 2 | D32: =SUM($C$4:C32) -> 823 | E32: 57 | F32: 100.8516166 | G32: 37.37162755 | H32: =SUMIF('A. Population Info'!$B:$B, A32,'A. Population Info'!$C:$C) -> 2
A33: 29 | B33: 29.5 | C33: =COUNTIF('A. Population Info'!$B:$B, 'A. Age Profile'!A33) -> 2 | D33: =SUM($C$4:C33) -> 825 | E33: 59 | F33: 74.44716389 | G33: 37.89293654 | H33: =SUMIF('A. Population Info'!$B:$B, A33,'A. Population Info'!$C:$C) -> 2
A34: 30 | B34: 30.5 | C34: =COUNTIF('A. Population Info'!$B:$B, 'A. Age Profile'!A34) -> 0 | D34: =SUM($C$4:C34) -> 825 | E34: 0 | F34: 0 | G34: 38.34097157 | H34: =SUMIF('A. Population Info'!$B:$B, A34,'A. Population Info'!$C:$C) -> 0
A35: 31 | B35: 31.5 | C35: =COUNTIF('A. Population Info'!$B:$B, 'A. Age Profile'!A35) -> 2 | D35: =SUM($C$4:C35) -> 827 | E35: 63 | F35: 33.63825851 | G35: 38.71297665 | H35: =SUMIF('A. Population Info'!$B:$B, A35,'A. Population Info'!$C:$C) -> 2
A36: 32 | B36: 32.5 | C36: =COUNTIF('A. Population Info'!$B:$B, 'A. Age Profile'!A36) -> 0 | D36: =SUM($C$4:C36) -> 827 | E36: 0 | F36: =(B36-$L$6)^2*C36 -> 0 | G36: 39.00664682 | H36: =SUMIF('A. Population Info'!$B:$B, A36,'A. Population Info'!$C:$C) -> 0
A37: 33 | B37: 33.5 | C37: =COUNTIF('A. Population Info'!$B:$B, 'A. Age Profile'!A37) -> 21 | D37: =SUM($C$4:C37) -> 848 | E37: 703.5 | F37: 92.70820784 | G37: 39.22015187 | H37: =SUMIF('A. Population Info'!$B:$B, A37,'A. Population Info'!$C:$C) -> 21
A38: 34 | B38: 34.5 | C38: =COUNTIF('A. Population Info'!$B:$B, 'A. Age Profile'!A38) -> 10 | D38: =SUM($C$4:C38) -> 858 | E38: 345 | F38: 12.12450219 | G38: 39.35215541 | H38: =SUMIF('A. Population Info'!$B:$B, A38,'A. Population Info'!$C:$C) -> 10
A39: 35 | B39: 35.5 | C39: =COUNTIF('A. Population Info'!$B:$B, 'A. Age Profile'!A39) -> 53 | D39: =SUM($C$4:C39) -> 911 | E39: 1881.5 | F39: 0.5418653041 | G39: 39.40182873 | H39: =SUMIF('A. Population Info'!$B:$B, A39,'A. Population Info'!$C:$C) -> 53
A40: 36 | B40: 36.5 | C40: =COUNTIF('A. Population Info'!$B:$B, 'A. Age Profile'!A40) -> 25 | D40: =SUM($C$4:C40) -> 936 | E40: 912.5 | F40: 20.19993821 | G40: 39.3688595 | H40: =SUMIF('A. Population Info'!$B:$B, A40,'A. Population Info'!$C:$C) -> 25
A41: 37 | B41: 37.5 | C41: =COUNTIF('A. Population Info'!$B:$B, 'A. Age Profile'!A41) -> 7 | D41: =SUM($C$4:C41) -> 943 | E41: 262.5 | F41: 25.24039828 | G41: 39.25345506 | H41: =SUMIF('A. Population Info'!$B:$B, A41,'A. Population Info'!$C:$C) -> 7
A42: 38 | B42: 38.5 | C42: =COUNTIF('A. Population Info'!$B:$B, 'A. Age Profile'!A42) -> 11 | D42: =SUM($C$4:C42) -> 954 | E42: 423.5 | F42: 92.43899322 | G42: 39.0563402 | H42: =SUMIF('A. Population Info'!$B:$B, A42,'A. Population Info'!$C:$C) -> 11
A43: 39 | B43: 39.5 | C43: =COUNTIF('A. Population Info'!$B:$B, 'A. Age Profile'!A43) -> 52 | D43: =SUM($C$4:C43) -> 1006 | E43: 2054 | F43: 790.4685617 | G43: 38.77874961 | H43: =SUMIF('A. Population Info'!$B:$B, A43,'A. Population Info'!$C:$C) -> 52
A44: 40 | B44: 40.5 | C44: =COUNTIF('A. Population Info'!$B:$B, 'A. Age Profile'!A44) -> 72 | D44: =SUM($C$4:C44) -> 1078 | E44: 2916 | F44: 1727.934635 | G44: 38.42241502 | H44: =SUMIF('A. Population Info'!$B:$B, A44,'A. Population Info'!$C:$C) -> 72
A45: 41 | B45: 41.5 | C45: =COUNTIF('A. Population Info'!$B:$B, 'A. Age Profile'!A45) -> 14 | D45: =SUM($C$4:C45) -> 1092 | E45: 581 | F45: 487.1561212 | G45: 37.98954713 | H45: =SUMIF('A. Population Info'!$B:$B, A45,'A. Population Info'!$C:$C) -> 14
A46: 42 | B46: 42.5 | C46: =COUNTIF('A. Population Info'!$B:$B, 'A. Age Profile'!A46) -> 4 | D46: =SUM($C$4:C46) -> 1096 | E46: 170 | F46: 190.3785578 | G46: 37.48281287 | H46: =SUMIF('A. Population Info'!$B:$B, A46,'A. Population Info'!$C:$C) -> 4
A47: 43 | B47: 43.5 | C47: =COUNTIF('A. Population Info'!$B:$B, 'A. Age Profile'!A47) -> 9 | D47: =SUM($C$4:C47) -> 1105 | E47: 391.5 | F47: 561.531718 | G47: 36.90530796 | H47: =SUMIF('A. Population Info'!$B:$B, A47,'A. Population Info'!$C:$C) -> 9
A48: 44 | B48: 44.5 | C48: =COUNTIF('A. Population Info'!$B:$B, 'A. Age Profile'!A48) -> 19 | D48: =SUM($C$4:C48) -> 1124 | E48: 845.5 | F48: 1504.613549 | G48: 36.26052545 | H48: =SUMIF('A. Population Info'!$B:$B, A48,'A. Population Info'!$C:$C) -> 19
A49: 45 | B49: 45.5 | C49: =COUNTIF('A. Population Info'!$B:$B, 'A. Age Profile'!A49) -> 4 | D49: =SUM($C$4:C49) -> 1128 | E49: 182 | F49: 391.9518417 | G49: 35.55232057 | H49: =SUMIF('A. Population Info'!$B:$B, A49,'A. Population Info'!$C:$C) -> 4
A50: 46 | B50: 46.5 | C50: =COUNTIF('A. Population Info'!$B:$B, 'A. Age Profile'!A50) -> 29 | D50: =SUM($C$4:C50) -> 1157 | E50: 1348.5 | F50: 3444.786288 | G50: 34.78487235 | H50: =SUMIF('A. Population Info'!$B:$B, A50,'A. Population Info'!$C:$C) -> 29
A51: 47 | B51: 47.5 | C51: =COUNTIF('A. Population Info'!$B:$B, 'A. Age Profile'!A51) -> 43 | D51: =SUM($C$4:C51) -> 1200 | E51: 2042.5 | F51: 6088.090833 | G51: 33.96264263 | H51: =SUMIF('A. Population Info'!$B:$B, A51,'A. Population Info'!$C:$C) -> 43
A52: 48 | B52: 48.5 | C52: =COUNTIF('A. Population Info'!$B:$B, 'A. Age Profile'!A52) -> 16 | D52: =SUM($C$4:C52) -> 1216 | E52: 776 | F52: 2662.100502 | G52: 33.09033296 | H52: =SUMIF('A. Population Info'!$B:$B, A52,'A. Population Info'!$C:$C) -> 16
A53: 49 | B53: 49.5 | C53: =COUNTIF('A. Population Info'!$B:$B, 'A. Age Profile'!A53) -> 12 | D53: =SUM($C$4:C53) -> 1228 | E53: 594 | F53: 2318.148661 | G53: 32.17284003 | H53: =SUMIF('A. Population Info'!$B:$B, A53,'A. Population Info'!$C:$C) -> 12
A54: 50 | B54: 50.5 | C54: =COUNTIF('A. Population Info'!$B:$B, 'A. Age Profile'!A54) -> 85 | D54: =SUM($C$4:C54) -> 1313 | E54: 4292.5 | F54: 18868.03044 | G54: 31.21521012 | H54: =SUMIF('A. Population Info'!$B:$B, A54,'A. Population Info'!$C:$C) -> 85
A55: 51 | B55: 51.5 | C55: =COUNTIF('A. Population Info'!$B:$B, 'A. Age Profile'!A55) -> 72 | D55: =SUM($C$4:C55) -> 1385 | E55: 3708 | F55: 18199.77137 | G55: 30.22259326 | H55: =SUMIF('A. Population Info'!$B:$B, A55,'A. Population Info'!$C:$C) -> 72
A56: 52 | B56: 52.5 | C56: =COUNTIF('A. Population Info'!$B:$B, 'A. Age Profile'!A56) -> 21 | D56: =SUM($C$4:C56) -> 1406 | E56: 1102.5 | F56: 5997.019896 | G56: 29.20019762 | H56: =SUMIF('A. Population Info'!$B:$B, A56,'A. Population Info'!$C:$C) -> 21
A57: 53 | B57: 53.5 | C57: =COUNTIF('A. Population Info'!$B:$B, 'A. Age Profile'!A57) -> 52 | D57: =SUM($C$4:C57) -> 1458 | E57: 2782 | F57: 16659.24778 | G57: 28.15324472 | H57: =SUMIF('A. Population Info'!$B:$B, A57,'A. Population Info'!$C:$C) -> 52
A58: 54 | B58: 54.5 | C58: =COUNTIF('A. Population Info'!$B:$B, 'A. Age Profile'!A58) -> 253 | D58: =SUM($C$4:C58) -> 1711 | E58: 13788.5 | F58: 90363.4846 | G58: 27.08692597 | H58: =SUMIF('A. Population Info'!$B:$B, A58,'A. Population Info'!$C:$C) -> 253
A59: 55 | B59: 55.5 | C59: =COUNTIF('A. Population Info'!$B:$B, 'A. Age Profile'!A59) -> 38 | D59: =SUM($C$4:C59) -> 1749 | E59: 2109 | F59: 15046.69648 | G59: 26.00636101 | H59: =SUMIF('A. Population Info'!$B:$B, A59,'A. Population Info'!$C:$C) -> 38
A60: 56 | B60: 56.5 | C60: =COUNTIF('A. Population Info'!$B:$B, 'A. Age Profile'!A60) -> 59 | D60: =SUM($C$4:C60) -> 1808 | E60: 3333.5 | F60: 25769.04477 | G60: 24.9165583 | H60: =SUMIF('A. Population Info'!$B:$B, A60,'A. Population Info'!$C:$C) -> 59
A61: 57 | B61: 57.5 | C61: =COUNTIF('A. Population Info'!$B:$B, 'A. Age Profile'!A61) -> 56 | D61: =SUM($C$4:C61) -> 1864 | E61: 3220 | F61: 26855.42968 | G61: 23.8223785 | H61: =SUMIF('A. Population Info'!$B:$B, A61,'A. Population Info'!$C:$C) -> 56
A62: 58 | B62: 58.5 | C62: =COUNTIF('A. Population Info'!$B:$B, 'A. Age Profile'!A62) -> 74 | D62: =SUM($C$4:C62) -> 1938 | E62: 4329 | F62: 38802.56733 | G62: 22.72850072 | H62: =SUMIF('A. Population Info'!$B:$B, A62,'A. Population Info'!$C:$C) -> 74
A63: 59 | B63: 59.5 | C63: =COUNTIF('A. Population Info'!$B:$B, 'A. Age Profile'!A63) -> 23 | D63: =SUM($C$4:C63) -> 1961 | E63: 1368.5 | F63: 13136.60621 | G63: 21.63939213 | H63: =SUMIF('A. Population Info'!$B:$B, A63,'A. Population Info'!$C:$C) -> 23
A64: 60 | B64: 60.5 | C64: =COUNTIF('A. Population Info'!$B:$B, 'A. Age Profile'!A64) -> 19 | D64: =SUM($C$4:C64) -> 1980 | E64: 1149.5 | F64: 11779.13674 | G64: 20.55928116 | H64: =SUMIF('A. Population Info'!$B:$B, A64,'A. Population Info'!$C:$C) -> 19
A65: 61 | B65: 61.5 | C65: =COUNTIF('A. Population Info'!$B:$B, 'A. Age Profile'!A65) -> 88 | D65: =SUM($C$4:C65) -> 2068 | E65: 5412 | F65: 59026.20582 | G65: 19.49213432 | H65: =SUMIF('A. Population Info'!$B:$B, A65,'A. Population Info'!$C:$C) -> 88
A66: 62 | B66: 62.5 | C66: =COUNTIF('A. Population Info'!$B:$B, 'A. Age Profile'!A66) -> 4 | D66: =SUM($C$4:C66) -> 2072 | E66: 250 | F66: 2894.20045 | G66: 18.44163684 | H66: =SUMIF('A. Population Info'!$B:$B, A66,'A. Population Info'!$C:$C) -> 4
A67: 63 | B67: 63.5 | C67: =COUNTIF('A. Population Info'!$B:$B, 'A. Age Profile'!A67) -> 19 | D67: =SUM($C$4:C67) -> 2091 | E67: 1206.5 | F67: 14788.60984 | G67: 17.41117723 | H67: =SUMIF('A. Population Info'!$B:$B, A67,'A. Population Info'!$C:$C) -> 19
A68: 64 | B68: 64.5 | C68: =COUNTIF('A. Population Info'!$B:$B, 'A. Age Profile'!A68) -> 2 | D68: =SUM($C$4:C68) -> 2093 | E68: 129 | F68: =(B68-$L$6)^2*C68 -> 1670.29132 | G68: 16.40383558 | H68: =SUMIF('A. Population Info'!$B:$B, A68,'A. Population Info'!$C:$C) -> 2
A69: 65 | B69: 65.5 | C69: =COUNTIF('A. Population Info'!$B:$B, 'A. Age Profile'!A69) -> 4 | D69: =SUM($C$4:C69) -> 2097 | E69: 262 | F69: 3575.773734 | G69: =_xlfn.NORM.DIST(B69,$L$6,$L$7,FALSE)*$L$5 -> 15.42237573 | H69: =SUMIF('A. Population Info'!$B:$B, A69,'A. Population Info'!$C:$C) -> 4
A70: 66 | B70: 66.5 | C70: =COUNTIF('A. Population Info'!$B:$B, 'A. Age Profile'!A70) -> 57 | D70: =SUM($C$4:C70) -> 2154 | E70: =B70*C70 -> 3790.5 | F70: 54420.24881 | G70: 14.46924106 | H70: =SUMIF('A. Population Info'!$B:$B, A70,'A. Population Info'!$C:$C) -> 57
A71: 67 | B71: 67.5 | C71: =COUNTIF('A. Population Info'!$B:$B, 'A. Age Profile'!A71) -> 2 | D71: =SUM($C$4:C71) -> 2156 | E71: 135 | F71: 2035.077962 | G71: 13.54655377 | H71: =SUMIF('A. Population Info'!$B:$B, A71,'A. Population Info'!$C:$C) -> 2
A72: 68 | B72: 68.5 | C72: =COUNTIF('A. Population Info'!$B:$B, 'A. Age Profile'!A72) -> 0 | D72: =SUM($C$4:C72) -> 2156 | E72: 0 | F72: 0 | G72: 12.65611752 | H72: =SUMIF('A. Population Info'!$B:$B, A72,'A. Population Info'!$C:$C) -> 0
A73: 69 | B73: 69.5 | C73: =COUNTIF('A. Population Info'!$B:$B, 'A. Age Profile'!A73) -> 0 | D73: =SUM($C$4:C73) -> 2156 | E73: 0 | F73: 0 | G73: 11.79942307 | H73: =SUMIF('A. Population Info'!$B:$B, A73,'A. Population Info'!$C:$C) -> 0
A74: 70 | B74: 70.5 | C74: =COUNTIF('A. Population Info'!$B:$B, 'A. Age Profile'!A74) -> 0 | D74: =SUM($C$4:C74) -> 2156 | E74: 0 | F74: 0 | G74: 10.97765678 | H74: =SUMIF('A. Population Info'!$B:$B, A74,'A. Population Info'!$C:$C) -> 0
A75: 71 | B75: 71.5 | C75: =COUNTIF('A. Population Info'!$B:$B, 'A. Age Profile'!A75) -> 0 | D75: =SUM($C$4:C75) -> 2156 | E75: 0 | F75: 0 | G75: 10.19171155 | H75: =SUMIF('A. Population Info'!$B:$B, A75,'A. Population Info'!$C:$C) -> 0
A76: 72 | B76: 72.5 | C76: =COUNTIF('A. Population Info'!$B:$B, 'A. Age Profile'!A76) -> 0 | D76: =SUM($C$4:C76) -> 2156 | E76: 0 | F76: 0 | G76: 9.442200098 | H76: =SUMIF('A. Population Info'!$B:$B, A76,'A. Population Info'!$C:$C) -> 0
A77: 73 | B77: 73.5 | C77: =COUNTIF('A. Population Info'!$B:$B, 'A. Age Profile'!A77) -> 0 | D77: =SUM($C$4:C77) -> 2156 | E77: 0 | F77: 0 | G77: 8.729469992 | H77: =SUMIF('A. Population Info'!$B:$B, A77,'A. Population Info'!$C:$C) -> 0
A78: 74 | B78: 74.5 | C78: =COUNTIF('A. Population Info'!$B:$B, 'A. Age Profile'!A78) -> 0 | D78: =SUM($C$4:C78) -> 2156 | E78: 0 | F78: 0 | G78: 8.053620362 | H78: =SUMIF('A. Population Info'!$B:$B, A78,'A. Population Info'!$C:$C) -> 0
A79: 75 | B79: 75.5 | C79: =COUNTIF('A. Population Info'!$B:$B, 'A. Age Profile'!A79) -> 0 | D79: =SUM($C$4:C79) -> 2156 | E79: 0 | F79: 0 | G79: 7.414519838 | H79: =SUMIF('A. Population Info'!$B:$B, A79,'A. Population Info'!$C:$C) -> 0
A80: 76 | B80: 76.5 | C80: =COUNTIF('A. Population Info'!$B:$B, 'A. Age Profile'!A80) -> 0 | D80: =SUM($C$4:C80) -> 2156 | E80: 0 | F80: 0 | G80: 6.811825436 | H80: =SUMIF('A. Population Info'!$B:$B, A80,'A. Population Info'!$C:$C) -> 0
A81: 77 | B81: 77.5 | C81: =COUNTIF('A. Population Info'!$B:$B, 'A. Age Profile'!A81) -> 0 | D81: =SUM($C$4:C81) -> 2156 | E81: 0 | F81: 0 | G81: 6.245002103 | H81: =SUMIF('A. Population Info'!$B:$B, A81,'A. Population Info'!$C:$C) -> 0
A82: 78 | B82: 78.5 | C82: =COUNTIF('A. Population Info'!$B:$B, 'A. Age Profile'!A82) -> 0 | D82: =SUM($C$4:C82) -> 2156 | E82: 0 | F82: 0 | G82: 5.713342618 | H82: =SUMIF('A. Population Info'!$B:$B, A82,'A. Population Info'!$C:$C) -> 0
A83: 79 | B83: 79.5 | C83: =COUNTIF('A. Population Info'!$B:$B, 'A. Age Profile'!A83) -> 0 | D83: =SUM($C$4:C83) -> 2156 | E83: 0 | F83: 0 | G83: 5.215987583 | H83: =SUMIF('A. Population Info'!$B:$B, A83,'A. Population Info'!$C:$C) -> 0
A84: 80 | B84: 80.5 | C84: =COUNTIF('A. Population Info'!$B:$B, 'A. Age Profile'!A84) -> 0 | D84: =SUM($C$4:C84) -> 2156 | E84: 0 | F84: 0 | G84: 4.751945265 | H84: =SUMIF('A. Population Info'!$B:$B, A84,'A. Population Info'!$C:$C) -> 0
A85: 81 | B85: 81.5 | C85: =COUNTIF('A. Population Info'!$B:$B, 'A. Age Profile'!A85) -> 0 | D85: =SUM($C$4:C85) -> 2156 | E85: 0 | F85: 0 | G85: 4.320111054 | H85: =SUMIF('A. Population Info'!$B:$B, A85,'A. Population Info'!$C:$C) -> 0
A86: 82 | B86: 82.5 | C86: =COUNTIF('A. Population Info'!$B:$B, 'A. Age Profile'!A86) -> 0 | D86: =SUM($C$4:C86) -> 2156 | E86: 0 | F86: 0 | G86: 3.919286333 | H86: =SUMIF('A. Population Info'!$B:$B, A86,'A. Population Info'!$C:$C) -> 0
A87: 83 | B87: 83.5 | C87: =COUNTIF('A. Population Info'!$B:$B, 'A. Age Profile'!A87) -> 0 | D87: =SUM($C$4:C87) -> 2156 | E87: 0 | F87: 0 | G87: 3.548196602 | H87: =SUMIF('A. Population Info'!$B:$B, A87,'A. Population Info'!$C:$C) -> 0
A88: 84 | B88: 84.5 | C88: =COUNTIF('A. Population Info'!$B:$B, 'A. Age Profile'!A88) -> 0 | D88: =SUM($C$4:C88) -> 2156 | E88: 0 | F88: 0 | G88: 3.205508692 | H88: =SUMIF('A. Population Info'!$B:$B, A88,'A. Population Info'!$C:$C) -> 0
A89: 85 | B89: 85.5 | C89: =COUNTIF('A. Population Info'!$B:$B, 'A. Age Profile'!A89) -> 0 | D89: =SUM($C$4:C89) -> 2156 | E89: 0 | F89: 0 | G89: 2.88984695 | H89: =SUMIF('A. Population Info'!$B:$B, A89,'A. Population Info'!$C:$C) -> 0
A90: 86 | B90: 86.5 | C90: =COUNTIF('A. Population Info'!$B:$B, 'A. Age Profile'!A90) -> 0 | D90: =SUM($C$4:C90) -> 2156 | E90: 0 | F90: 0 | G90: 2.599808306 | H90: =SUMIF('A. Population Info'!$B:$B, A90,'A. Population Info'!$C:$C) -> 0
A91: 87 | B91: 87.5 | C91: =COUNTIF('A. Population Info'!$B:$B, 'A. Age Profile'!A91) -> 0 | D91: =SUM($C$4:C91) -> 2156 | E91: 0 | F91: 0 | G91: 2.333976139 | H91: =SUMIF('A. Population Info'!$B:$B, A91,'A. Population Info'!$C:$C) -> 0
A92: 88 | B92: 88.5 | C92: =COUNTIF('A. Population Info'!$B:$B, 'A. Age Profile'!A92) -> 0 | D92: =SUM($C$4:C92) -> 2156 | E92: 0 | F92: 0 | G92: 2.090932906 | H92: =SUMIF('A. Population Info'!$B:$B, A92,'A. Population Info'!$C:$C) -> 0
A93: 89 | B93: 89.5 | C93: =COUNTIF('A. Population Info'!$B:$B, 'A. Age Profile'!A93) -> 0 | D93: =SUM($C$4:C93) -> 2156 | E93: 0 | F93: 0 | G93: 1.869271496 | H93: =SUMIF('A. Population Info'!$B:$B, A93,'A. Population Info'!$C:$C) -> 0
A94: 90 | B94: 90.5 | C94: =COUNTIF('A. Population Info'!$B:$B, 'A. Age Profile'!A94) -> 0 | D94: =SUM($C$4:C94) -> 2156 | E94: =B94*C94 -> 0 | F94: 0 | G94: 1.667605314 | H94: =SUMIF('A. Population Info'!$B:$B, A94,'A. Population Info'!$C:$C) -> 0
A95: 91 | B95: 91.5 | C95: =COUNTIF('A. Population Info'!$B:$B, 'A. Age Profile'!A95) -> 0 | D95: =SUM($C$4:C95) -> 2156 | E95: =B95*C95 -> 0 | F95: 0 | G95: 1.484577101 | H95: =SUMIF('A. Population Info'!$B:$B, A95,'A. Population Info'!$C:$C) -> 0
A96: 92 | B96: 92.5 | C96: =COUNTIF('A. Population Info'!$B:$B, 'A. Age Profile'!A96) -> 0 | D96: =SUM($C$4:C96) -> 2156 | E96: 0 | F96: 0 | G96: 1.318866526 | H96: =SUMIF('A. Population Info'!$B:$B, A96,'A. Population Info'!$C:$C) -> 0
A97: 93 | B97: 93.5 | C97: =COUNTIF('A. Population Info'!$B:$B, 'A. Age Profile'!A97) -> 0 | D97: =SUM($C$4:C97) -> 2156 | E97: 0 | F97: 0 | G97: 1.169196574 | H97: =SUMIF('A. Population Info'!$B:$B, A97,'A. Population Info'!$C:$C) -> 0
A98: 94 | B98: 94.5 | C98: =COUNTIF('A. Population Info'!$B:$B, 'A. Age Profile'!A98) -> 0 | D98: =SUM($C$4:C98) -> 2156 | E98: 0 | F98: 0 | G98: 1.034338816 | H98: =SUMIF('A. Population Info'!$B:$B, A98,'A. Population Info'!$C:$C) -> 0
A99: 95 | B99: 95.5 | C99: =COUNTIF('A. Population Info'!$B:$B, 'A. Age Profile'!A99) -> 0 | D99: =SUM($C$4:C99) -> 2156 | E99: 0 | F99: 0 | G99: 0.913117598 | H99: =SUMIF('A. Population Info'!$B:$B, A99,'A. Population Info'!$C:$C) -> 0
A100: 96 | B100: 96.5 | C100: =COUNTIF('A. Population Info'!$B:$B, 'A. Age Profile'!A100) -> 0 | D100: =SUM($C$4:C100) -> 2156 | E100: 0 | F100: 0 | G100: 0.8044132269 | H100: =SUMIF('A. Population Info'!$B:$B, A100,'A. Population Info'!$C:$C) -> 0
A101: 97 | B101: 97.5 | C101: =COUNTIF('A. Population Info'!$B:$B, 'A. Age Profile'!A101) -> 0 | D101: =SUM($C$4:C101) -> 2156 | E101: 0 | F101: 0 | G101: 0.7071642446 | H101: =SUMIF('A. Population Info'!$B:$B, A101,'A. Population Info'!$C:$C) -> 0
A102: 98 | B102: 98.5 | C102: =COUNTIF('A. Population Info'!$B:$B, 'A. Age Profile'!A102) -> 0 | D102: =SUM($C$4:C102) -> 2156 | E102: 0 | F102: 0 | G102: 0.6203688536 | H102: =SUMIF('A. Population Info'!$B:$B, A102,'A. Population Info'!$C:$C) -> 0
A103: 99 | B103: 99.5 | C103: =COUNTIF('A. Population Info'!$B:$B, 'A. Age Profile'!A103) -> 0 | D103: =SUM($C$4:C103) -> 2156 | E103: 0 | F103: 0 | G103: 0.5430855873 | H103: =SUMIF('A. Population Info'!$B:$B, A103,'A. Population Info'!$C:$C) -> 0
A104: 100 | B104: 100.5 | C104: =COUNTIF('A. Population Info'!$B:$B, 'A. Age Profile'!A104) -> 0 | D104: =SUM($C$4:C104) -> 2156 | E104: 0 | F104: 0 | G104: 0.4744333065 | H104: =SUMIF('A. Population Info'!$B:$B, A104,'A. Population Info'!$C:$C) -> 0

Sheet A. Initial PoF
B1: Initial Probability of Failure
A3: Age Label | B3: No. of Asset Units | C3: PoFpoor (Upper 95%) | D3: PoFavg | E3: PoFgood (Lower 95%)
A4: 0 | B4: 1 | C4: =IF('B. PoF Summary Stats & Params'!$C$12="C", B4*'B. PoF Summary Stats & Params'!$I$8*'B. PoF Summary Stats & Params'!$I$10*A4^('B. PoF Summary Stats & Params'!$I$10-1), IF('B. PoF Summary Stats & Params'!$C$12="W", B4*(('B. PoF Summary Stats & Params'!$M$14/'B. PoF Summary Stats & Params'!$O$14)*((A4)/'B. PoF Summary Stats & Params'!$O$14)^('B. PoF Summary Stats & Params'!$M$14-1)), "Choose Model")) -> 0 | D4: =IF('B. PoF Summary Stats & Params'!$C$12="C", B4*'B. PoF Summary Stats & Params'!$I$8*'B. PoF Summary Stats & Params'!$I$6*A4^('B. PoF Summary Stats & Params'!$I$6-1), IF('B. PoF Summary Stats & Params'!$C$12="W", B4*(('B. PoF Summary Stats & Params'!$M$6/'B. PoF Summary Stats & Params'!$M$8)*((A4)/'B. PoF Summary Stats & Params'!$M$8)^('B. PoF Summary Stats & Params'!$M$6-1)), "Choose Model")) -> 0 | E4: =IF('B. PoF Summary Stats & Params'!$C$12="C", B4*'B. PoF Summary Stats & Params'!$I$8*'B. PoF Summary Stats & Params'!$I$12*A4^('B. PoF Summary Stats & Params'!$I$12-1), IF('B. PoF Summary Stats & Params'!$C$12="W", B4*(('B. PoF Summary Stats & Params'!$M$12/'B. PoF Summary Stats & Params'!$O$12)*((A4)/'B. PoF Summary Stats & Params'!$O$12)^('B. PoF Summary Stats & Params'!$M$12-1)), "Choose Model")) -> 0
A5: 1 | B5: 1 | C5: =IF('B. PoF Summary Stats & Params'!$C$12="C", B5*'B. PoF Summary Stats & Params'!$I$8*'B. PoF Summary Stats & Params'!$I$10*A5^('B. PoF Summary Stats & Params'!$I$10-1), IF('B. PoF Summary Stats & Params'!$C$12="W", B5*(('B. PoF Summary Stats & Params'!$M$14/'B. PoF Summary Stats & Params'!$O$14)*((A5)/'B. PoF Summary Stats & Params'!$O$14)^('B. PoF Summary Stats & Params'!$M$14-1)), "Choose Model")) -> 0.001695678179 | D5: =IF('B. PoF Summary Stats & Params'!$C$12="C", B5*'B. PoF Summary Stats & Params'!$I$8*'B. PoF Summary Stats & Params'!$I$6*A5^('B. PoF Summary Stats & Params'!$I$6-1), IF('B. PoF Summary Stats & Params'!$C$12="W", B5*(('B. PoF Summary Stats & Params'!$M$6/'B. PoF Summary Stats & Params'!$M$8)*((A5)/'B. PoF Summary Stats & Params'!$M$8)^('B. PoF Summary Stats & Params'!$M$6-1)), "Choose Model")) -> 0.001623606863 | E5: =IF('B. PoF Summary Stats & Params'!$C$12="C", B5*'B. PoF Summary Stats & Params'!$I$8*'B. PoF Summary Stats & Params'!$I$12*A5^('B. PoF Summary Stats & Params'!$I$12-1), IF('B. PoF Summary Stats & Params'!$C$12="W", B5*(('B. PoF Summary Stats & Params'!$M$12/'B. PoF Summary Stats & Params'!$O$12)*((A5)/'B. PoF Summary Stats & Params'!$O$12)^('B. PoF Summary Stats & Params'!$M$12-1)), "Choose Model")) -> 0.001550993595
A6: 2 | B6: 1 | C6: =IF('B. PoF Summary Stats & Params'!$C$12="C", B6*'B. PoF Summary Stats & Params'!$I$8*'B. PoF Summary Stats & Params'!$I$10*A6^('B. PoF Summary Stats & Params'!$I$10-1), IF('B. PoF Summary Stats & Params'!$C$12="W", B6*(('B. PoF Summary Stats & Params'!$M$14/'B. PoF Summary Stats & Params'!$O$14)*((A6)/'B. PoF Summary Stats & Params'!$O$14)^('B. PoF Summary Stats & Params'!$M$14-1)), "Choose Model")) -> 0.003106009814 | D6: =IF('B. PoF Summary Stats & Params'!$C$12="C", B6*'B. PoF Summary Stats & Params'!$I$8*'B. PoF Summary Stats & Params'!$I$6*A6^('B. PoF Summary Stats & Params'!$I$6-1), IF('B. PoF Summary Stats & Params'!$C$12="W", B6*(('B. PoF Summary Stats & Params'!$M$6/'B. PoF Summary Stats & Params'!$M$8)*((A6)/'B. PoF Summary Stats & Params'!$M$8)^('B. PoF Summary Stats & Params'!$M$6-1)), "Choose Model")) -> 0.002813765976 | E6: =IF('B. PoF Summary Stats & Params'!$C$12="C", B6*'B. PoF Summary Stats & Params'!$I$8*'B. PoF Summary Stats & Params'!$I$12*A6^('B. PoF Summary Stats & Params'!$I$12-1), IF('B. PoF Summary Stats & Params'!$C$12="W", B6*(('B. PoF Summary Stats & Params'!$M$12/'B. PoF Summary Stats & Params'!$O$12)*((A6)/'B. PoF Summary Stats & Params'!$O$12)^('B. PoF Summary Stats & Params'!$M$12-1)), "Choose Model")) -> 0.002543284276
A7: 3 | B7: 1 | C7: =IF('B. PoF Summary Stats & Params'!$C$12="C", B7*'B. PoF Summary Stats & Params'!$I$8*'B. PoF Summary Stats & Params'!$I$10*A7^('B. PoF Summary Stats & Params'!$I$10-1), IF('B. PoF Summary Stats & Params'!$C$12="W", B7*(('B. PoF Summary Stats & Params'!$M$14/'B. PoF Summary Stats & Params'!$O$14)*((A7)/'B. PoF Summary Stats & Params'!$O$14)^('B. PoF Summary Stats & Params'!$M$14-1)), "Choose Model")) -> 0.0044255343 | D7: =IF('B. PoF Summary Stats & Params'!$C$12="C", B7*'B. PoF Summary Stats & Params'!$I$8*'B. PoF Summary Stats & Params'!$I$6*A7^('B. PoF Summary Stats & Params'!$I$6-1), IF('B. PoF Summary Stats & Params'!$C$12="W", B7*(('B. PoF Summary Stats & Params'!$M$6/'B. PoF Summary Stats & Params'!$M$8)*((A7)/'B. PoF Summary Stats & Params'!$M$8)^('B. PoF Summary Stats & Params'!$M$6-1)), "Choose Model")) -> 0.003881335368 | E7: =IF('B. PoF Summary Stats & Params'!$C$12="C", B7*'B. PoF Summary Stats & Params'!$I$8*'B. PoF Summary Stats & Params'!$I$12*A7^('B. PoF Summary Stats & Params'!$I$12-1), IF('B. PoF Summary Stats & Params'!$C$12="W", B7*(('B. PoF Summary Stats & Params'!$M$12/'B. PoF Summary Stats & Params'!$O$12)*((A7)/'B. PoF Summary Stats & Params'!$O$12)^('B. PoF Summary Stats & Params'!$M$12-1)), "Choose Model")) -> 0.003396534417
A8: 4 | B8: 1 | C8: =IF('B. PoF Summary Stats & Params'!$C$12="C", B8*'B. PoF Summary Stats & Params'!$I$8*'B. PoF Summary Stats & Params'!$I$10*A8^('B. PoF Summary Stats & Params'!$I$10-1), IF('B. PoF Summary Stats & Params'!$C$12="W", B8*(('B. PoF Summary Stats & Params'!$M$14/'B. PoF Summary Stats & Params'!$O$14)*((A8)/'B. PoF Summary Stats & Params'!$O$14)^('B. PoF Summary Stats & Params'!$M$14-1)), "Choose Model")) -> 0.005689344291 | D8: =IF('B. PoF Summary Stats & Params'!$C$12="C", B8*'B. PoF Summary Stats & Params'!$I$8*'B. PoF Summary Stats & Params'!$I$6*A8^('B. PoF Summary Stats & Params'!$I$6-1), IF('B. PoF Summary Stats & Params'!$C$12="W", B8*(('B. PoF Summary Stats & Params'!$M$6/'B. PoF Summary Stats & Params'!$M$8)*((A8)/'B. PoF Summary Stats & Params'!$M$8)^('B. PoF Summary Stats & Params'!$M$6-1)), "Choose Model")) -> 0.004876352245 | E8: =IF('B. PoF Summary Stats & Params'!$C$12="C", B8*'B. PoF Summary Stats & Params'!$I$8*'B. PoF Summary Stats & Params'!$I$12*A8^('B. PoF Summary Stats & Params'!$I$12-1), IF('B. PoF Summary Stats & Params'!$C$12="W", B8*(('B. PoF Summary Stats & Params'!$M$12/'B. PoF Summary Stats & Params'!$O$12)*((A8)/'B. PoF Summary Stats & Params'!$O$12)^('B. PoF Summary Stats & Params'!$M$12-1)), "Choose Model")) -> 0.00417042013
A9: 5 | B9: 1 | C9: =IF('B. PoF Summary Stats & Params'!$C$12="C", B9*'B. PoF Summary Stats & Params'!$I$8*'B. PoF Summary Stats & Params'!$I$10*A9^('B. PoF Summary Stats & Params'!$I$10-1), IF('B. PoF Summary Stats & Params'!$C$12="W", B9*(('B. PoF Summary Stats & Params'!$M$14/'B. PoF Summary Stats & Params'!$O$14)*((A9)/'B. PoF Summary Stats & Params'!$O$14)^('B. PoF Summary Stats & Params'!$M$14-1)), "Choose Model")) -> 0.006913278286 | D9: =IF('B. PoF Summary Stats & Params'!$C$12="C", B9*'B. PoF Summary Stats & Params'!$I$8*'B. PoF Summary Stats & Params'!$I$6*A9^('B. PoF Summary Stats & Params'!$I$6-1), IF('B. PoF Summary Stats & Params'!$C$12="W", B9*(('B. PoF Summary Stats & Params'!$M$6/'B. PoF Summary Stats & Params'!$M$8)*((A9)/'B. PoF Summary Stats & Params'!$M$8)^('B. PoF Summary Stats & Params'!$M$6-1)), "Choose Model")) -> 0.005820680788 | E9: =IF('B. PoF Summary Stats & Params'!$C$12="C", B9*'B. PoF Summary Stats & Params'!$I$8*'B. PoF Summary Stats & Params'!$I$12*A9^('B. PoF Summary Stats & Params'!$I$12-1), IF('B. PoF Summary Stats & Params'!$C$12="W", B9*(('B. PoF Summary Stats & Params'!$M$12/'B. PoF Summary Stats & Params'!$O$12)*((A9)/'B. PoF Summary Stats & Params'!$O$12)^('B. PoF Summary Stats & Params'!$M$12-1)), "Choose Model")) -> 0.004890182897
A10: 6 | B10: 1 | C10: =IF('B. PoF Summary Stats & Params'!$C$12="C", B10*'B. PoF Summary Stats & Params'!$I$8*'B. PoF Summary Stats & Params'!$I$10*A10^('B. PoF Summary Stats & Params'!$I$10-1), IF('B. PoF Summary Stats & Params'!$C$12="W", B10*(('B. PoF Summary Stats & Params'!$M$14/'B. PoF Summary Stats & Params'!$O$14)*((A10)/'B. PoF Summary Stats & Params'!$O$14)^('B. PoF Summary Stats & Params'!$M$14-1)), "Choose Model")) -> 0.008106345378 | D10: =IF('B. PoF Summary Stats & Params'!$C$12="C", B10*'B. PoF Summary Stats & Params'!$I$8*'B. PoF Summary Stats & Params'!$I$6*A10^('B. PoF Summary Stats & Params'!$I$6-1), IF('B. PoF Summary Stats & Params'!$C$12="W", B10*(('B. PoF Summary Stats & Params'!$M$6/'B. PoF Summary Stats & Params'!$M$8)*((A10)/'B. PoF Summary Stats & Params'!$M$8)^('B. PoF Summary Stats & Params'!$M$6-1)), "Choose Model")) -> 0.006726486351 | E10: =IF('B. PoF Summary Stats & Params'!$C$12="C", B10*'B. PoF Summary Stats & Params'!$I$8*'B. PoF Summary Stats & Params'!$I$12*A10^('B. PoF Summary Stats & Params'!$I$12-1), IF('B. PoF Summary Stats & Params'!$C$12="W", B10*(('B. PoF Summary Stats & Params'!$M$12/'B. PoF Summary Stats & Params'!$O$12)*((A10)/'B. PoF Summary Stats & Params'!$O$12)^('B. PoF Summary Stats & Params'!$M$12-1)), "Choose Model")) -> 0.005569560444
A11: 7 | B11: 1 | C11: =IF('B. PoF Summary Stats & Params'!$C$12="C", B11*'B. PoF Summary Stats & Params'!$I$8*'B. PoF Summary Stats & Params'!$I$10*A11^('B. PoF Summary Stats & Params'!$I$10-1), IF('B. PoF Summary Stats & Params'!$C$12="W", B11*(('B. PoF Summary Stats & Params'!$M$14/'B. PoF Summary Stats & Params'!$O$14)*((A11)/'B. PoF Summary Stats & Params'!$O$14)^('B. PoF Summary Stats & Params'!$M$14-1)), "Choose Model")) -> 0.009274340572 | D11: =IF('B. PoF Summary Stats & Params'!$C$12="C", B11*'B. PoF Summary Stats & Params'!$I$8*'B. PoF Summary Stats & Params'!$I$6*A11^('B. PoF Summary Stats & Params'!$I$6-1), IF('B. PoF Summary Stats & Params'!$C$12="W", B11*(('B. PoF Summary Stats & Params'!$M$6/'B. PoF Summary Stats & Params'!$M$8)*((A11)/'B. PoF Summary Stats & Params'!$M$8)^('B. PoF Summary Stats & Params'!$M$6-1)), "Choose Model")) -> 0.007601462432 | E11: =IF('B. PoF Summary Stats & Params'!$C$12="C", B11*'B. PoF Summary Stats & Params'!$I$8*'B. PoF Summary Stats & Params'!$I$12*A11^('B. PoF Summary Stats & Params'!$I$12-1), IF('B. PoF Summary Stats & Params'!$C$12="W", B11*(('B. PoF Summary Stats & Params'!$M$12/'B. PoF Summary Stats & Params'!$O$12)*((A11)/'B. PoF Summary Stats & Params'!$O$12)^('B. PoF Summary Stats & Params'!$M$12-1)), "Choose Model")) -> 0.006217094317
A12: 8 | B12: 1 | C12: =IF('B. PoF Summary Stats & Params'!$C$12="C", B12*'B. PoF Summary Stats & Params'!$I$8*'B. PoF Summary Stats & Params'!$I$10*A12^('B. PoF Summary Stats & Params'!$I$10-1), IF('B. PoF Summary Stats & Params'!$C$12="W", B12*(('B. PoF Summary Stats & Params'!$M$14/'B. PoF Summary Stats & Params'!$O$14)*((A12)/'B. PoF Summary Stats & Params'!$O$14)^('B. PoF Summary Stats & Params'!$M$14-1)), "Choose Model")) -> 0.01042129304 | D12: =IF('B. PoF Summary Stats & Params'!$C$12="C", B12*'B. PoF Summary Stats & Params'!$I$8*'B. PoF Summary Stats & Params'!$I$6*A12^('B. PoF Summary Stats & Params'!$I$6-1), IF('B. PoF Summary Stats & Params'!$C$12="W", B12*(('B. PoF Summary Stats & Params'!$M$6/'B. PoF Summary Stats & Params'!$M$8)*((A12)/'B. PoF Summary Stats & Params'!$M$8)^('B. PoF Summary Stats & Params'!$M$6-1)), "Choose Model")) -> 0.008450884478 | E12: =IF('B. PoF Summary Stats & Params'!$C$12="C", B12*'B. PoF Summary Stats & Params'!$I$8*'B. PoF Summary Stats & Params'!$I$12*A12^('B. PoF Summary Stats & Params'!$I$12-1), IF('B. PoF Summary Stats & Params'!$C$12="W", B12*(('B. PoF Summary Stats & Params'!$M$12/'B. PoF Summary Stats & Params'!$O$12)*((A12)/'B. PoF Summary Stats & Params'!$O$12)^('B. PoF Summary Stats & Params'!$M$12-1)), "Choose Model")) -> 0.006838560762
A13: 9 | B13: 1 | C13: =IF('B. PoF Summary Stats & Params'!$C$12="C", B13*'B. PoF Summary Stats & Params'!$I$8*'B. PoF Summary Stats & Params'!$I$10*A13^('B. PoF Summary Stats & Params'!$I$10-1), IF('B. PoF Summary Stats & Params'!$C$12="W", B13*(('B. PoF Summary Stats & Params'!$M$14/'B. PoF Summary Stats & Params'!$O$14)*((A13)/'B. PoF Summary Stats & Params'!$O$14)^('B. PoF Summary Stats & Params'!$M$14-1)), "Choose Model")) -> 0.01155015974 | D13: =IF('B. PoF Summary Stats & Params'!$C$12="C", B13*'B. PoF Summary Stats & Params'!$I$8*'B. PoF Summary Stats & Params'!$I$6*A13^('B. PoF Summary Stats & Params'!$I$6-1), IF('B. PoF Summary Stats & Params'!$C$12="W", B13*(('B. PoF Summary Stats & Params'!$M$6/'B. PoF Summary Stats & Params'!$M$8)*((A13)/'B. PoF Summary Stats & Params'!$M$8)^('B. PoF Summary Stats & Params'!$M$6-1)), "Choose Model")) -> 0.009278578814 | E13: =IF('B. PoF Summary Stats & Params'!$C$12="C", B13*'B. PoF Summary Stats & Params'!$I$8*'B. PoF Summary Stats & Params'!$I$12*A13^('B. PoF Summary Stats & Params'!$I$12-1), IF('B. PoF Summary Stats & Params'!$C$12="W", B13*(('B. PoF Summary Stats & Params'!$M$12/'B. PoF Summary Stats & Params'!$O$12)*((A13)/'B. PoF Summary Stats & Params'!$O$12)^('B. PoF Summary Stats & Params'!$M$12-1)), "Choose Model")) -> 0.007438100377
A14: 10 | B14: 1 | C14: =IF('B. PoF Summary Stats & Params'!$C$12="C", B14*'B. PoF Summary Stats & Params'!$I$8*'B. PoF Summary Stats & Params'!$I$10*A14^('B. PoF Summary Stats & Params'!$I$10-1), IF('B. PoF Summary Stats & Params'!$C$12="W", B14*(('B. PoF Summary Stats & Params'!$M$14/'B. PoF Summary Stats & Params'!$O$14)*((A14)/'B. PoF Summary Stats & Params'!$O$14)^('B. PoF Summary Stats & Params'!$M$14-1)), "Choose Model")) -> 0.01266319899 | D14: =IF('B. PoF Summary Stats & Params'!$C$12="C", B14*'B. PoF Summary Stats & Params'!$I$8*'B. PoF Summary Stats & Params'!$I$6*A14^('B. PoF Summary Stats & Params'!$I$6-1), IF('B. PoF Summary Stats & Params'!$C$12="W", B14*(('B. PoF Summary Stats & Params'!$M$6/'B. PoF Summary Stats & Params'!$M$8)*((A14)/'B. PoF Summary Stats & Params'!$M$8)^('B. PoF Summary Stats & Params'!$M$6-1)), "Choose Model")) -> 0.010087438 | E14: =IF('B. PoF Summary Stats & Params'!$C$12="C", B14*'B. PoF Summary Stats & Params'!$I$8*'B. PoF Summary Stats & Params'!$I$12*A14^('B. PoF Summary Stats & Params'!$I$12-1), IF('B. PoF Summary Stats & Params'!$C$12="W", B14*(('B. PoF Summary Stats & Params'!$M$12/'B. PoF Summary Stats & Params'!$O$12)*((A14)/'B. PoF Summary Stats & Params'!$O$12)^('B. PoF Summary Stats & Params'!$M$12-1)), "Choose Model")) -> 0.008018811497
A15: 11 | B15: 1 | C15: =IF('B. PoF Summary Stats & Params'!$C$12="C", B15*'B. PoF Summary Stats & Params'!$I$8*'B. PoF Summary Stats & Params'!$I$10*A15^('B. PoF Summary Stats & Params'!$I$10-1), IF('B. PoF Summary Stats & Params'!$C$12="W", B15*(('B. PoF Summary Stats & Params'!$M$14/'B. PoF Summary Stats & Params'!$O$14)*((A15)/'B. PoF Summary Stats & Params'!$O$14)^('B. PoF Summary Stats & Params'!$M$14-1)), "Choose Model")) -> 0.0137621892 | D15: =IF('B. PoF Summary Stats & Params'!$C$12="C", B15*'B. PoF Summary Stats & Params'!$I$8*'B. PoF Summary Stats & Params'!$I$6*A15^('B. PoF Summary Stats & Params'!$I$6-1), IF('B. PoF Summary Stats & Params'!$C$12="W", B15*(('B. PoF Summary Stats & Params'!$M$6/'B. PoF Summary Stats & Params'!$M$8)*((A15)/'B. PoF Summary Stats & Params'!$M$8)^('B. PoF Summary Stats & Params'!$M$6-1)), "Choose Model")) -> 0.01087971942 | E15: =IF('B. PoF Summary Stats & Params'!$C$12="C", B15*'B. PoF Summary Stats & Params'!$I$8*'B. PoF Summary Stats & Params'!$I$12*A15^('B. PoF Summary Stats & Params'!$I$12-1), IF('B. PoF Summary Stats & Params'!$C$12="W", B15*(('B. PoF Summary Stats & Params'!$M$12/'B. PoF Summary Stats & Params'!$O$12)*((A15)/'B. PoF Summary Stats & Params'!$O$12)^('B. PoF Summary Stats & Params'!$M$12-1)), "Choose Model")) -> 0.008583090371
A16: 12 | B16: 1 | C16: =IF('B. PoF Summary Stats & Params'!$C$12="C", B16*'B. PoF Summary Stats & Params'!$I$8*'B. PoF Summary Stats & Params'!$I$10*A16^('B. PoF Summary Stats & Params'!$I$10-1), IF('B. PoF Summary Stats & Params'!$C$12="W", B16*(('B. PoF Summary Stats & Params'!$M$14/'B. PoF Summary Stats & Params'!$O$14)*((A16)/'B. PoF Summary Stats & Params'!$O$14)^('B. PoF Summary Stats & Params'!$M$14-1)), "Choose Model")) -> 0.01484856538 | D16: =IF('B. PoF Summary Stats & Params'!$C$12="C", B16*'B. PoF Summary Stats & Params'!$I$8*'B. PoF Summary Stats & Params'!$I$6*A16^('B. PoF Summary Stats & Params'!$I$6-1), IF('B. PoF Summary Stats & Params'!$C$12="W", B16*(('B. PoF Summary Stats & Params'!$M$6/'B. PoF Summary Stats & Params'!$M$8)*((A16)/'B. PoF Summary Stats & Params'!$M$8)^('B. PoF Summary Stats & Params'!$M$6-1)), "Choose Model")) -> 0.01165722988 | E16: =IF('B. PoF Summary Stats & Params'!$C$12="C", B16*'B. PoF Summary Stats & Params'!$I$8*'B. PoF Summary Stats & Params'!$I$12*A16^('B. PoF Summary Stats & Params'!$I$12-1), IF('B. PoF Summary Stats & Params'!$C$12="W", B16*(('B. PoF Summary Stats & Params'!$M$12/'B. PoF Summary Stats & Params'!$O$12)*((A16)/'B. PoF Summary Stats & Params'!$O$12)^('B. PoF Summary Stats & Params'!$M$12-1)), "Choose Model")) -> 0.009132839457
A17: 13 | B17: 1 | C17: =IF('B. PoF Summary Stats & Params'!$C$12="C", B17*'B. PoF Summary Stats & Params'!$I$8*'B. PoF Summary Stats & Params'!$I$10*A17^('B. PoF Summary Stats & Params'!$I$10-1), IF('B. PoF Summary Stats & Params'!$C$12="W", B17*(('B. PoF Summary Stats & Params'!$M$14/'B. PoF Summary Stats & Params'!$O$14)*((A17)/'B. PoF Summary Stats & Params'!$O$14)^('B. PoF Summary Stats & Params'!$M$14-1)), "Choose Model")) -> 0.0159235086 | D17: =IF('B. PoF Summary Stats & Params'!$C$12="C", B17*'B. PoF Summary Stats & Params'!$I$8*'B. PoF Summary Stats & Params'!$I$6*A17^('B. PoF Summary Stats & Params'!$I$6-1), IF('B. PoF Summary Stats & Params'!$C$12="W", B17*(('B. PoF Summary Stats & Params'!$M$6/'B. PoF Summary Stats & Params'!$M$8)*((A17)/'B. PoF Summary Stats & Params'!$M$8)^('B. PoF Summary Stats & Params'!$M$6-1)), "Choose Model")) -> 0.01242144554 | E17: =IF('B. PoF Summary Stats & Params'!$C$12="C", B17*'B. PoF Summary Stats & Params'!$I$8*'B. PoF Summary Stats & Params'!$I$12*A17^('B. PoF Summary Stats & Params'!$I$12-1), IF('B. PoF Summary Stats & Params'!$C$12="W", B17*(('B. PoF Summary Stats & Params'!$M$12/'B. PoF Summary Stats & Params'!$O$12)*((A17)/'B. PoF Summary Stats & Params'!$O$12)^('B. PoF Summary Stats & Params'!$M$12-1)), "Choose Model")) -> 0.009669601717
A18: 14 | B18: 1 | C18: =IF('B. PoF Summary Stats & Params'!$C$12="C", B18*'B. PoF Summary Stats & Params'!$I$8*'B. PoF Summary Stats & Params'!$I$10*A18^('B. PoF Summary Stats & Params'!$I$10-1), IF('B. PoF Summary Stats & Params'!$C$12="W", B18*(('B. PoF Summary Stats & Params'!$M$14/'B. PoF Summary Stats & Params'!$O$14)*((A18)/'B. PoF Summary Stats & Params'!$O$14)^('B. PoF Summary Stats & Params'!$M$14-1)), "Choose Model")) -> 0.01698800704 | D18: =IF('B. PoF Summary Stats & Params'!$C$12="C", B18*'B. PoF Summary Stats & Params'!$I$8*'B. PoF Summary Stats & Params'!$I$6*A18^('B. PoF Summary Stats & Params'!$I$6-1), IF('B. PoF Summary Stats & Params'!$C$12="W", B18*(('B. PoF Summary Stats & Params'!$M$6/'B. PoF Summary Stats & Params'!$M$8)*((A18)/'B. PoF Summary Stats & Params'!$M$8)^('B. PoF Summary Stats & Params'!$M$6-1)), "Choose Model")) -> 0.01317359322 | E18: =IF('B. PoF Summary Stats & Params'!$C$12="C", B18*'B. PoF Summary Stats & Params'!$I$8*'B. PoF Summary Stats & Params'!$I$12*A18^('B. PoF Summary Stats & Params'!$I$12-1), IF('B. PoF Summary Stats & Params'!$C$12="W", B18*(('B. PoF Summary Stats & Params'!$M$12/'B. PoF Summary Stats & Params'!$O$12)*((A18)/'B. PoF Summary Stats & Params'!$O$12)^('B. PoF Summary Stats & Params'!$M$12-1)), "Choose Model")) -> 0.01019465088
A19: 15 | B19: 1 | C19: =IF('B. PoF Summary Stats & Params'!$C$12="C", B19*'B. PoF Summary Stats & Params'!$I$8*'B. PoF Summary Stats & Params'!$I$10*A19^('B. PoF Summary Stats & Params'!$I$10-1), IF('B. PoF Summary Stats & Params'!$C$12="W", B19*(('B. PoF Summary Stats & Params'!$M$14/'B. PoF Summary Stats & Params'!$O$14)*((A19)/'B. PoF Summary Stats & Params'!$O$14)^('B. PoF Summary Stats & Params'!$M$14-1)), "Choose Model")) -> 0.01804289903 | D19: =IF('B. PoF Summary Stats & Params'!$C$12="C", B19*'B. PoF Summary Stats & Params'!$I$8*'B. PoF Summary Stats & Params'!$I$6*A19^('B. PoF Summary Stats & Params'!$I$6-1), IF('B. PoF Summary Stats & Params'!$C$12="W", B19*(('B. PoF Summary Stats & Params'!$M$6/'B. PoF Summary Stats & Params'!$M$8)*((A19)/'B. PoF Summary Stats & Params'!$M$8)^('B. PoF Summary Stats & Params'!$M$6-1)), "Choose Model")) -> 0.01391470726 | E19: =IF('B. PoF Summary Stats & Params'!$C$12="C", B19*'B. PoF Summary Stats & Params'!$I$8*'B. PoF Summary Stats & Params'!$I$12*A19^('B. PoF Summary Stats & Params'!$I$12-1), IF('B. PoF Summary Stats & Params'!$C$12="W", B19*(('B. PoF Summary Stats & Params'!$M$12/'B. PoF Summary Stats & Params'!$O$12)*((A19)/'B. PoF Summary Stats & Params'!$O$12)^('B. PoF Summary Stats & Params'!$M$12-1)), "Choose Model")) -> 0.01070905423
A20: 16 | B20: 1 | C20: =IF('B. PoF Summary Stats & Params'!$C$12="C", B20*'B. PoF Summary Stats & Params'!$I$8*'B. PoF Summary Stats & Params'!$I$10*A20^('B. PoF Summary Stats & Params'!$I$10-1), IF('B. PoF Summary Stats & Params'!$C$12="W", B20*(('B. PoF Summary Stats & Params'!$M$14/'B. PoF Summary Stats & Params'!$O$14)*((A20)/'B. PoF Summary Stats & Params'!$O$14)^('B. PoF Summary Stats & Params'!$M$14-1)), "Choose Model")) -> 0.01908890429 | D20: =IF('B. PoF Summary Stats & Params'!$C$12="C", B20*'B. PoF Summary Stats & Params'!$I$8*'B. PoF Summary Stats & Params'!$I$6*A20^('B. PoF Summary Stats & Params'!$I$6-1), IF('B. PoF Summary Stats & Params'!$C$12="W", B20*(('B. PoF Summary Stats & Params'!$M$6/'B. PoF Summary Stats & Params'!$M$8)*((A20)/'B. PoF Summary Stats & Params'!$M$8)^('B. PoF Summary Stats & Params'!$M$6-1)), "Choose Model")) -> 0.01464567055 | E20: =IF('B. PoF Summary Stats & Params'!$C$12="C", B20*'B. PoF Summary Stats & Params'!$I$8*'B. PoF Summary Stats & Params'!$I$12*A20^('B. PoF Summary Stats & Params'!$I$12-1), IF('B. PoF Summary Stats & Params'!$C$12="W", B20*(('B. PoF Summary Stats & Params'!$M$12/'B. PoF Summary Stats & Params'!$O$12)*((A20)/'B. PoF Summary Stats & Params'!$O$12)^('B. PoF Summary Stats & Params'!$M$12-1)), "Choose Model")) -> 0.01121371753
A21: 17 | B21: 1 | C21: =IF('B. PoF Summary Stats & Params'!$C$12="C", B21*'B. PoF Summary Stats & Params'!$I$8*'B. PoF Summary Stats & Params'!$I$10*A21^('B. PoF Summary Stats & Params'!$I$10-1), IF('B. PoF Summary Stats & Params'!$C$12="W", B21*(('B. PoF Summary Stats & Params'!$M$14/'B. PoF Summary Stats & Params'!$O$14)*((A21)/'B. PoF Summary Stats & Params'!$O$14)^('B. PoF Summary Stats & Params'!$M$14-1)), "Choose Model")) -> 0.020126647 | D21: =IF('B. PoF Summary Stats & Params'!$C$12="C", B21*'B. PoF Summary Stats & Params'!$I$8*'B. PoF Summary Stats & Params'!$I$6*A21^('B. PoF Summary Stats & Params'!$I$6-1), IF('B. PoF Summary Stats & Params'!$C$12="W", B21*(('B. PoF Summary Stats & Params'!$M$6/'B. PoF Summary Stats & Params'!$M$8)*((A21)/'B. PoF Summary Stats & Params'!$M$8)^('B. PoF Summary Stats & Params'!$M$6-1)), "Choose Model")) -> 0.01536724473 | E21: =IF('B. PoF Summary Stats & Params'!$C$12="C", B21*'B. PoF Summary Stats & Params'!$I$8*'B. PoF Summary Stats & Params'!$I$12*A21^('B. PoF Summary Stats & Params'!$I$12-1), IF('B. PoF Summary Stats & Params'!$C$12="W", B21*(('B. PoF Summary Stats & Params'!$M$12/'B. PoF Summary Stats & Params'!$O$12)*((A21)/'B. PoF Summary Stats & Params'!$O$12)^('B. PoF Summary Stats & Params'!$M$12-1)), "Choose Model")) -> 0.011709418
A22: 18 | B22: 1 | C22: =IF('B. PoF Summary Stats & Params'!$C$12="C", B22*'B. PoF Summary Stats & Params'!$I$8*'B. PoF Summary Stats & Params'!$I$10*A22^('B. PoF Summary Stats & Params'!$I$10-1), IF('B. PoF Summary Stats & Params'!$C$12="W", B22*(('B. PoF Summary Stats & Params'!$M$14/'B. PoF Summary Stats & Params'!$O$14)*((A22)/'B. PoF Summary Stats & Params'!$O$14)^('B. PoF Summary Stats & Params'!$M$14-1)), "Choose Model")) -> 0.02115667345 | D22: =IF('B. PoF Summary Stats & Params'!$C$12="C", B22*'B. PoF Summary Stats & Params'!$I$8*'B. PoF Summary Stats & Params'!$I$6*A22^('B. PoF Summary Stats & Params'!$I$6-1), IF('B. PoF Summary Stats & Params'!$C$12="W", B22*(('B. PoF Summary Stats & Params'!$M$6/'B. PoF Summary Stats & Params'!$M$8)*((A22)/'B. PoF Summary Stats & Params'!$M$8)^('B. PoF Summary Stats & Params'!$M$6-1)), "Choose Model")) -> 0.01608009302 | E22: =IF('B. PoF Summary Stats & Params'!$C$12="C", B22*'B. PoF Summary Stats & Params'!$I$8*'B. PoF Summary Stats & Params'!$I$12*A22^('B. PoF Summary Stats & Params'!$I$12-1), IF('B. PoF Summary Stats & Params'!$C$12="W", B22*(('B. PoF Summary Stats & Params'!$M$12/'B. PoF Summary Stats & Params'!$O$12)*((A22)/'B. PoF Summary Stats & Params'!$O$12)^('B. PoF Summary Stats & Params'!$M$12-1)), "Choose Model")) -> 0.01219682905
A23: 19 | B23: 1 | C23: =IF('B. PoF Summary Stats & Params'!$C$12="C", B23*'B. PoF Summary Stats & Params'!$I$8*'B. PoF Summary Stats & Params'!$I$10*A23^('B. PoF Summary Stats & Params'!$I$10-1), IF('B. PoF Summary Stats & Params'!$C$12="W", B23*(('B. PoF Summary Stats & Params'!$M$14/'B. PoF Summary Stats & Params'!$O$14)*((A23)/'B. PoF Summary Stats & Params'!$O$14)^('B. PoF Summary Stats & Params'!$M$14-1)), "Choose Model")) -> 0.02217946549 | D23: =IF('B. PoF Summary Stats & Params'!$C$12="C", B23*'B. PoF Summary Stats & Params'!$I$8*'B. PoF Summary Stats & Params'!$I$6*A23^('B. PoF Summary Stats & Params'!$I$6-1), IF('B. PoF Summary Stats & Params'!$C$12="W", B23*(('B. PoF Summary Stats & Params'!$M$6/'B. PoF Summary Stats & Params'!$M$8)*((A23)/'B. PoF Summary Stats & Params'!$M$8)^('B. PoF Summary Stats & Params'!$M$6-1)), "Choose Model")) -> 0.01678479765 | E23: =IF('B. PoF Summary Stats & Params'!$C$12="C", B23*'B. PoF Summary Stats & Params'!$I$8*'B. PoF Summary Stats & Params'!$I$12*A23^('B. PoF Summary Stats & Params'!$I$12-1), IF('B. PoF Summary Stats & Params'!$C$12="W", B23*(('B. PoF Summary Stats & Params'!$M$12/'B. PoF Summary Stats & Params'!$O$12)*((A23)/'B. PoF Summary Stats & Params'!$O$12)^('B. PoF Summary Stats & Params'!$M$12-1)), "Choose Model")) -> 0.01267653905
A24: 20 | B24: 1 | C24: =IF('B. PoF Summary Stats & Params'!$C$12="C", B24*'B. PoF Summary Stats & Params'!$I$8*'B. PoF Summary Stats & Params'!$I$10*A24^('B. PoF Summary Stats & Params'!$I$10-1), IF('B. PoF Summary Stats & Params'!$C$12="W", B24*(('B. PoF Summary Stats & Params'!$M$14/'B. PoF Summary Stats & Params'!$O$14)*((A24)/'B. PoF Summary Stats & Params'!$O$14)^('B. PoF Summary Stats & Params'!$M$14-1)), "Choose Model")) -> 0.02319545114 | D24: =IF('B. PoF Summary Stats & Params'!$C$12="C", B24*'B. PoF Summary Stats & Params'!$I$8*'B. PoF Summary Stats & Params'!$I$6*A24^('B. PoF Summary Stats & Params'!$I$6-1), IF('B. PoF Summary Stats & Params'!$C$12="W", B24*(('B. PoF Summary Stats & Params'!$M$6/'B. PoF Summary Stats & Params'!$M$8)*((A24)/'B. PoF Summary Stats & Params'!$M$8)^('B. PoF Summary Stats & Params'!$M$6-1)), "Choose Model")) -> 0.01748187352 | E24: =IF('B. PoF Summary Stats & Params'!$C$12="C", B24*'B. PoF Summary Stats & Params'!$I$8*'B. PoF Summary Stats & Params'!$I$12*A24^('B. PoF Summary Stats & Params'!$I$12-1), IF('B. PoF Summary Stats & Params'!$C$12="W", B24*(('B. PoF Summary Stats & Params'!$M$12/'B. PoF Summary Stats & Params'!$O$12)*((A24)/'B. PoF Summary Stats & Params'!$O$12)^('B. PoF Summary Stats & Params'!$M$12-1)), "Choose Model")) -> 0.01314906603
A25: 21 | B25: 1 | C25: =IF('B. PoF Summary Stats & Params'!$C$12="C", B25*'B. PoF Summary Stats & Params'!$I$8*'B. PoF Summary Stats & Params'!$I$10*A25^('B. PoF Summary Stats & Params'!$I$10-1), IF('B. PoF Summary Stats & Params'!$C$12="W", B25*(('B. PoF Summary Stats & Params'!$M$14/'B. PoF Summary Stats & Params'!$O$14)*((A25)/'B. PoF Summary Stats & Params'!$O$14)^('B. PoF Summary Stats & Params'!$M$14-1)), "Choose Model")) -> 0.02420501297 | D25: =IF('B. PoF Summary Stats & Params'!$C$12="C", B25*'B. PoF Summary Stats & Params'!$I$8*'B. PoF Summary Stats & Params'!$I$6*A25^('B. PoF Summary Stats & Params'!$I$6-1), IF('B. PoF Summary Stats & Params'!$C$12="W", B25*(('B. PoF Summary Stats & Params'!$M$6/'B. PoF Summary Stats & Params'!$M$8)*((A25)/'B. PoF Summary Stats & Params'!$M$8)^('B. PoF Summary Stats & Params'!$M$6-1)), "Choose Model")) -> 0.01817177893 | E25: =IF('B. PoF Summary Stats & Params'!$C$12="C", B25*'B. PoF Summary Stats & Params'!$I$8*'B. PoF Summary Stats & Params'!$I$12*A25^('B. PoF Summary Stats & Params'!$I$12-1), IF('B. PoF Summary Stats & Params'!$C$12="W", B25*(('B. PoF Summary Stats & Params'!$M$12/'B. PoF Summary Stats & Params'!$O$12)*((A25)/'B. PoF Summary Stats & Params'!$O$12)^('B. PoF Summary Stats & Params'!$M$12-1)), "Choose Model")) -> 0.01361486913
A26: 22 | B26: 1 | C26: =IF('B. PoF Summary Stats & Params'!$C$12="C", B26*'B. PoF Summary Stats & Params'!$I$8*'B. PoF Summary Stats & Params'!$I$10*A26^('B. PoF Summary Stats & Params'!$I$10-1), IF('B. PoF Summary Stats & Params'!$C$12="W", B26*(('B. PoF Summary Stats & Params'!$M$14/'B. PoF Summary Stats & Params'!$O$14)*((A26)/'B. PoF Summary Stats & Params'!$O$14)^('B. PoF Summary Stats & Params'!$M$14-1)), "Choose Model")) -> 0.0252084949 | D26: =IF('B. PoF Summary Stats & Params'!$C$12="C", B26*'B. PoF Summary Stats & Params'!$I$8*'B. PoF Summary Stats & Params'!$I$6*A26^('B. PoF Summary Stats & Params'!$I$6-1), IF('B. PoF Summary Stats & Params'!$C$12="W", B26*(('B. PoF Summary Stats & Params'!$M$6/'B. PoF Summary Stats & Params'!$M$8)*((A26)/'B. PoF Summary Stats & Params'!$M$8)^('B. PoF Summary Stats & Params'!$M$6-1)), "Choose Model")) -> 0.01885492421 | E26: =IF('B. PoF Summary Stats & Params'!$C$12="C", B26*'B. PoF Summary Stats & Params'!$I$8*'B. PoF Summary Stats & Params'!$I$12*A26^('B. PoF Summary Stats & Params'!$I$12-1), IF('B. PoF Summary Stats & Params'!$C$12="W", B26*(('B. PoF Summary Stats & Params'!$M$12/'B. PoF Summary Stats & Params'!$O$12)*((A26)/'B. PoF Summary Stats & Params'!$O$12)^('B. PoF Summary Stats & Params'!$M$12-1)), "Choose Model")) -> 0.01407435779
A27: 23 | B27: 1 | C27: =IF('B. PoF Summary Stats & Params'!$C$12="C", B27*'B. PoF Summary Stats & Params'!$I$8*'B. PoF Summary Stats & Params'!$I$10*A27^('B. PoF Summary Stats & Params'!$I$10-1), IF('B. PoF Summary Stats & Params'!$C$12="W", B27*(('B. PoF Summary Stats & Params'!$M$14/'B. PoF Summary Stats & Params'!$O$14)*((A27)/'B. PoF Summary Stats & Params'!$O$14)^('B. PoF Summary Stats & Params'!$M$14-1)), "Choose Model")) -> 0.02620620765 | D27: =IF('B. PoF Summary Stats & Params'!$C$12="C", B27*'B. PoF Summary Stats & Params'!$I$8*'B. PoF Summary Stats & Params'!$I$6*A27^('B. PoF Summary Stats & Params'!$I$6-1), IF('B. PoF Summary Stats & Params'!$C$12="W", B27*(('B. PoF Summary Stats & Params'!$M$6/'B. PoF Summary Stats & Params'!$M$8)*((A27)/'B. PoF Summary Stats & Params'!$M$8)^('B. PoF Summary Stats & Params'!$M$6-1)), "Choose Model")) -> 0.01953167866 | E27: =IF('B. PoF Summary Stats & Params'!$C$12="C", B27*'B. PoF Summary Stats & Params'!$I$8*'B. PoF Summary Stats & Params'!$I$12*A27^('B. PoF Summary Stats & Params'!$I$12-1), IF('B. PoF Summary Stats & Params'!$C$12="W", B27*(('B. PoF Summary Stats & Params'!$M$12/'B. PoF Summary Stats & Params'!$O$12)*((A27)/'B. PoF Summary Stats & Params'!$O$12)^('B. PoF Summary Stats & Params'!$M$12-1)), "Choose Model")) -> 0.01452789912
A28: 24 | B28: 1 | C28: =IF('B. PoF Summary Stats & Params'!$C$12="C", B28*'B. PoF Summary Stats & Params'!$I$8*'B. PoF Summary Stats & Params'!$I$10*A28^('B. PoF Summary Stats & Params'!$I$10-1), IF('B. PoF Summary Stats & Params'!$C$12="W", B28*(('B. PoF Summary Stats & Params'!$M$14/'B. PoF Summary Stats & Params'!$O$14)*((A28)/'B. PoF Summary Stats & Params'!$O$14)^('B. PoF Summary Stats & Params'!$M$14-1)), "Choose Model")) -> 0.02719843327 | D28: =IF('B. PoF Summary Stats & Params'!$C$12="C", B28*'B. PoF Summary Stats & Params'!$I$8*'B. PoF Summary Stats & Params'!$I$6*A28^('B. PoF Summary Stats & Params'!$I$6-1), IF('B. PoF Summary Stats & Params'!$C$12="W", B28*(('B. PoF Summary Stats & Params'!$M$6/'B. PoF Summary Stats & Params'!$M$8)*((A28)/'B. PoF Summary Stats & Params'!$M$8)^('B. PoF Summary Stats & Params'!$M$6-1)), "Choose Model")) -> 0.02020237631 | E28: =IF('B. PoF Summary Stats & Params'!$C$12="C", B28*'B. PoF Summary Stats & Params'!$I$8*'B. PoF Summary Stats & Params'!$I$12*A28^('B. PoF Summary Stats & Params'!$I$12-1), IF('B. PoF Summary Stats & Params'!$C$12="W", B28*(('B. PoF Summary Stats & Params'!$M$12/'B. PoF Summary Stats & Params'!$O$12)*((A28)/'B. PoF Summary Stats & Params'!$O$12)^('B. PoF Summary Stats & Params'!$M$12-1)), "Choose Model")) -> 0.01497582393
A29: 25 | B29: 1 | C29: =IF('B. PoF Summary Stats & Params'!$C$12="C", B29*'B. PoF Summary Stats & Params'!$I$8*'B. PoF Summary Stats & Params'!$I$10*A29^('B. PoF Summary Stats & Params'!$I$10-1), IF('B. PoF Summary Stats & Params'!$C$12="W", B29*(('B. PoF Summary Stats & Params'!$M$14/'B. PoF Summary Stats & Params'!$O$14)*((A29)/'B. PoF Summary Stats & Params'!$O$14)^('B. PoF Summary Stats & Params'!$M$14-1)), "Choose Model")) -> 0.02818542884 | D29: =IF('B. PoF Summary Stats & Params'!$C$12="C", B29*'B. PoF Summary Stats & Params'!$I$8*'B. PoF Summary Stats & Params'!$I$6*A29^('B. PoF Summary Stats & Params'!$I$6-1), IF('B. PoF Summary Stats & Params'!$C$12="W", B29*(('B. PoF Summary Stats & Params'!$M$6/'B. PoF Summary Stats & Params'!$M$8)*((A29)/'B. PoF Summary Stats & Params'!$M$8)^('B. PoF Summary Stats & Params'!$M$6-1)), "Choose Model")) -> 0.02086732054 | E29: =IF('B. PoF Summary Stats & Params'!$C$12="C", B29*'B. PoF Summary Stats & Params'!$I$8*'B. PoF Summary Stats & Params'!$I$12*A29^('B. PoF Summary Stats & Params'!$I$12-1), IF('B. PoF Summary Stats & Params'!$C$12="W", B29*(('B. PoF Summary Stats & Params'!$M$12/'B. PoF Summary Stats & Params'!$O$12)*((A29)/'B. PoF Summary Stats & Params'!$O$12)^('B. PoF Summary Stats & Params'!$M$12-1)), "Choose Model")) -> 0.01541843167
A30: 26 | B30: 1 | C30: =IF('B. PoF Summary Stats & Params'!$C$12="C", B30*'B. PoF Summary Stats & Params'!$I$8*'B. PoF Summary Stats & Params'!$I$10*A30^('B. PoF Summary Stats & Params'!$I$10-1), IF('B. PoF Summary Stats & Params'!$C$12="W", B30*(('B. PoF Summary Stats & Params'!$M$14/'B. PoF Summary Stats & Params'!$O$14)*((A30)/'B. PoF Summary Stats & Params'!$O$14)^('B. PoF Summary Stats & Params'!$M$14-1)), "Choose Model")) -> 0.02916742964 | D30: =IF('B. PoF Summary Stats & Params'!$C$12="C", B30*'B. PoF Summary Stats & Params'!$I$8*'B. PoF Summary Stats & Params'!$I$6*A30^('B. PoF Summary Stats & Params'!$I$6-1), IF('B. PoF Summary Stats & Params'!$C$12="W", B30*(('B. PoF Summary Stats & Params'!$M$6/'B. PoF Summary Stats & Params'!$M$8)*((A30)/'B. PoF Summary Stats & Params'!$M$8)^('B. PoF Summary Stats & Params'!$M$6-1)), "Choose Model")) -> 0.02152678807 | E30: =IF('B. PoF Summary Stats & Params'!$C$12="C", B30*'B. PoF Summary Stats & Params'!$I$8*'B. PoF Summary Stats & Params'!$I$12*A30^('B. PoF Summary Stats & Params'!$I$12-1), IF('B. PoF Summary Stats & Params'!$C$12="W", B30*(('B. PoF Summary Stats & Params'!$M$12/'B. PoF Summary Stats & Params'!$O$12)*((A30)/'B. PoF Summary Stats & Params'!$O$12)^('B. PoF Summary Stats & Params'!$M$12-1)), "Choose Model")) -> 0.01585599456
A31: 27 | B31: 1 | C31: =IF('B. PoF Summary Stats & Params'!$C$12="C", B31*'B. PoF Summary Stats & Params'!$I$8*'B. PoF Summary Stats & Params'!$I$10*A31^('B. PoF Summary Stats & Params'!$I$10-1), IF('B. PoF Summary Stats & Params'!$C$12="W", B31*(('B. PoF Summary Stats & Params'!$M$14/'B. PoF Summary Stats & Params'!$O$14)*((A31)/'B. PoF Summary Stats & Params'!$O$14)^('B. PoF Summary Stats & Params'!$M$14-1)), "Choose Model")) -> 0.03014465171 | D31: =IF('B. PoF Summary Stats & Params'!$C$12="C", B31*'B. PoF Summary Stats & Params'!$I$8*'B. PoF Summary Stats & Params'!$I$6*A31^('B. PoF Summary Stats & Params'!$I$6-1), IF('B. PoF Summary Stats & Params'!$C$12="W", B31*(('B. PoF Summary Stats & Params'!$M$6/'B. PoF Summary Stats & Params'!$M$8)*((A31)/'B. PoF Summary Stats & Params'!$M$8)^('B. PoF Summary Stats & Params'!$M$6-1)), "Choose Model")) -> 0.02218103221 | E31: =IF('B. PoF Summary Stats & Params'!$C$12="C", B31*'B. PoF Summary Stats & Params'!$I$8*'B. PoF Summary Stats & Params'!$I$12*A31^('B. PoF Summary Stats & Params'!$I$12-1), IF('B. PoF Summary Stats & Params'!$C$12="W", B31*(('B. PoF Summary Stats & Params'!$M$12/'B. PoF Summary Stats & Params'!$O$12)*((A31)/'B. PoF Summary Stats & Params'!$O$12)^('B. PoF Summary Stats & Params'!$M$12-1)), "Choose Model")) -> 0.01628876096
A32: 28 | B32: 1 | C32: =IF('B. PoF Summary Stats & Params'!$C$12="C", B32*'B. PoF Summary Stats & Params'!$I$8*'B. PoF Summary Stats & Params'!$I$10*A32^('B. PoF Summary Stats & Params'!$I$10-1), IF('B. PoF Summary Stats & Params'!$C$12="W", B32*(('B. PoF Summary Stats & Params'!$M$14/'B. PoF Summary Stats & Params'!$O$14)*((A32)/'B. PoF Summary Stats & Params'!$O$14)^('B. PoF Summary Stats & Params'!$M$14-1)), "Choose Model")) -> 0.03111729409 | D32: =IF('B. PoF Summary Stats & Params'!$C$12="C", B32*'B. PoF Summary Stats & Params'!$I$8*'B. PoF Summary Stats & Params'!$I$6*A32^('B. PoF Summary Stats & Params'!$I$6-1), IF('B. PoF Summary Stats & Params'!$C$12="W", B32*(('B. PoF Summary Stats & Params'!$M$6/'B. PoF Summary Stats & Params'!$M$8)*((A32)/'B. PoF Summary Stats & Params'!$M$8)^('B. PoF Summary Stats & Params'!$M$6-1)), "Choose Model")) -> 0.02283028561 | E32: =IF('B. PoF Summary Stats & Params'!$C$12="C", B32*'B. PoF Summary Stats & Params'!$I$8*'B. PoF Summary Stats & Params'!$I$12*A32^('B. PoF Summary Stats & Params'!$I$12-1), IF('B. PoF Summary Stats & Params'!$C$12="W", B32*(('B. PoF Summary Stats & Params'!$M$12/'B. PoF Summary Stats & Params'!$O$12)*((A32)/'B. PoF Summary Stats & Params'!$O$12)^('B. PoF Summary Stats & Params'!$M$12-1)), "Choose Model")) -> 0.01671695832
A33: 29 | B33: 1 | C33: =IF('B. PoF Summary Stats & Params'!$C$12="C", B33*'B. PoF Summary Stats & Params'!$I$8*'B. PoF Summary Stats & Params'!$I$10*A33^('B. PoF Summary Stats & Params'!$I$10-1), IF('B. PoF Summary Stats & Params'!$C$12="W", B33*(('B. PoF Summary Stats & Params'!$M$14/'B. PoF Summary Stats & Params'!$O$14)*((A33)/'B. PoF Summary Stats & Params'!$O$14)^('B. PoF Summary Stats & Params'!$M$14-1)), "Choose Model")) -> 0.03208554077 | D33: =IF('B. PoF Summary Stats & Params'!$C$12="C", B33*'B. PoF Summary Stats & Params'!$I$8*'B. PoF Summary Stats & Params'!$I$6*A33^('B. PoF Summary Stats & Params'!$I$6-1), IF('B. PoF Summary Stats & Params'!$C$12="W", B33*(('B. PoF Summary Stats & Params'!$M$6/'B. PoF Summary Stats & Params'!$M$8)*((A33)/'B. PoF Summary Stats & Params'!$M$8)^('B. PoF Summary Stats & Params'!$M$6-1)), "Choose Model")) -> 0.02347476266 | E33: =IF('B. PoF Summary Stats & Params'!$C$12="C", B33*'B. PoF Summary Stats & Params'!$I$8*'B. PoF Summary Stats & Params'!$I$12*A33^('B. PoF Summary Stats & Params'!$I$12-1), IF('B. PoF Summary Stats & Params'!$C$12="W", B33*(('B. PoF Summary Stats & Params'!$M$12/'B. PoF Summary Stats & Params'!$O$12)*((A33)/'B. PoF Summary Stats & Params'!$O$12)^('B. PoF Summary Stats & Params'!$M$12-1)), "Choose Model")) -> 0.01714079559
A34: 30 | B34: 1 | C34: =IF('B. PoF Summary Stats & Params'!$C$12="C", B34*'B. PoF Summary Stats & Params'!$I$8*'B. PoF Summary Stats & Params'!$I$10*A34^('B. PoF Summary Stats & Params'!$I$10-1), IF('B. PoF Summary Stats & Params'!$C$12="W", B34*(('B. PoF Summary Stats & Params'!$M$14/'B. PoF Summary Stats & Params'!$O$14)*((A34)/'B. PoF Summary Stats & Params'!$O$14)^('B. PoF Summary Stats & Params'!$M$14-1)), "Choose Model")) -> 0.03304956222 | D34: =IF('B. PoF Summary Stats & Params'!$C$12="C", B34*'B. PoF Summary Stats & Params'!$I$8*'B. PoF Summary Stats & Params'!$I$6*A34^('B. PoF Summary Stats & Params'!$I$6-1), IF('B. PoF Summary Stats & Params'!$C$12="W", B34*(('B. PoF Summary Stats & Params'!$M$6/'B. PoF Summary Stats & Params'!$M$8)*((A34)/'B. PoF Summary Stats & Params'!$M$8)^('B. PoF Summary Stats & Params'!$M$6-1)), "Choose Model")) -> 0.02411466148 | E34: =IF('B. PoF Summary Stats & Params'!$C$12="C", B34*'B. PoF Summary Stats & Params'!$I$8*'B. PoF Summary Stats & Params'!$I$12*A34^('B. PoF Summary Stats & Params'!$I$12-1), IF('B. PoF Summary Stats & Params'!$C$12="W", B34*(('B. PoF Summary Stats & Params'!$M$12/'B. PoF Summary Stats & Params'!$O$12)*((A34)/'B. PoF Summary Stats & Params'!$O$12)^('B. PoF Summary Stats & Params'!$M$12-1)), "Choose Model")) -> 0.01756046531
A35: 31 | B35: 1 | C35: =IF('B. PoF Summary Stats & Params'!$C$12="C", B35*'B. PoF Summary Stats & Params'!$I$8*'B. PoF Summary Stats & Params'!$I$10*A35^('B. PoF Summary Stats & Params'!$I$10-1), IF('B. PoF Summary Stats & Params'!$C$12="W", B35*(('B. PoF Summary Stats & Params'!$M$14/'B. PoF Summary Stats & Params'!$O$14)*((A35)/'B. PoF Summary Stats & Params'!$O$14)^('B. PoF Summary Stats & Params'!$M$14-1)), "Choose Model")) -> 0.03400951687 | D35: =IF('B. PoF Summary Stats & Params'!$C$12="C", B35*'B. PoF Summary Stats & Params'!$I$8*'B. PoF Summary Stats & Params'!$I$6*A35^('B. PoF Summary Stats & Params'!$I$6-1), IF('B. PoF Summary Stats & Params'!$C$12="W", B35*(('B. PoF Summary Stats & Params'!$M$6/'B. PoF Summary Stats & Params'!$M$8)*((A35)/'B. PoF Summary Stats & Params'!$M$8)^('B. PoF Summary Stats & Params'!$M$6-1)), "Choose Model")) -> 0.02475016566 | E35: =IF('B. PoF Summary Stats & Params'!$C$12="C", B35*'B. PoF Summary Stats & Params'!$I$8*'B. PoF Summary Stats & Params'!$I$12*A35^('B. PoF Summary Stats & Params'!$I$12-1), IF('B. PoF Summary Stats & Params'!$C$12="W", B35*(('B. PoF Summary Stats & Params'!$M$12/'B. PoF Summary Stats & Params'!$O$12)*((A35)/'B. PoF Summary Stats & Params'!$O$12)^('B. PoF Summary Stats & Params'!$M$12-1)), "Choose Model")) -> 0.01797614543
A36: 32 | B36: 1 | C36: =IF('B. PoF Summary Stats & Params'!$C$12="C", B36*'B. PoF Summary Stats & Params'!$I$8*'B. PoF Summary Stats & Params'!$I$10*A36^('B. PoF Summary Stats & Params'!$I$10-1), IF('B. PoF Summary Stats & Params'!$C$12="W", B36*(('B. PoF Summary Stats & Params'!$M$14/'B. PoF Summary Stats & Params'!$O$14)*((A36)/'B. PoF Summary Stats & Params'!$O$14)^('B. PoF Summary Stats & Params'!$M$14-1)), "Choose Model")) -> 0.0349655523 | D36: =IF('B. PoF Summary Stats & Params'!$C$12="C", B36*'B. PoF Summary Stats & Params'!$I$8*'B. PoF Summary Stats & Params'!$I$6*A36^('B. PoF Summary Stats & Params'!$I$6-1), IF('B. PoF Summary Stats & Params'!$C$12="W", B36*(('B. PoF Summary Stats & Params'!$M$6/'B. PoF Summary Stats & Params'!$M$8)*((A36)/'B. PoF Summary Stats & Params'!$M$8)^('B. PoF Summary Stats & Params'!$M$6-1)), "Choose Model")) -> 0.02538144574 | E36: =IF('B. PoF Summary Stats & Params'!$C$12="C", B36*'B. PoF Summary Stats & Params'!$I$8*'B. PoF Summary Stats & Params'!$I$12*A36^('B. PoF Summary Stats & Params'!$I$12-1), IF('B. PoF Summary Stats & Params'!$C$12="W", B36*(('B. PoF Summary Stats & Params'!$M$12/'B. PoF Summary Stats & Params'!$O$12)*((A36)/'B. PoF Summary Stats & Params'!$O$12)^('B. PoF Summary Stats & Params'!$M$12-1)), "Choose Model")) -> 0.0183880008
A37: 33 | B37: 1 | C37: =IF('B. PoF Summary Stats & Params'!$C$12="C", B37*'B. PoF Summary Stats & Params'!$I$8*'B. PoF Summary Stats & Params'!$I$10*A37^('B. PoF Summary Stats & Params'!$I$10-1), IF('B. PoF Summary Stats & Params'!$C$12="W", B37*(('B. PoF Summary Stats & Params'!$M$14/'B. PoF Summary Stats & Params'!$O$14)*((A37)/'B. PoF Summary Stats & Params'!$O$14)^('B. PoF Summary Stats & Params'!$M$14-1)), "Choose Model")) -> 0.03591780628 | D37: =IF('B. PoF Summary Stats & Params'!$C$12="C", B37*'B. PoF Summary Stats & Params'!$I$8*'B. PoF Summary Stats & Params'!$I$6*A37^('B. PoF Summary Stats & Params'!$I$6-1), IF('B. PoF Summary Stats & Params'!$C$12="W", B37*(('B. PoF Summary Stats & Params'!$M$6/'B. PoF Summary Stats & Params'!$M$8)*((A37)/'B. PoF Summary Stats & Params'!$M$8)^('B. PoF Summary Stats & Params'!$M$6-1)), "Choose Model")) -> 0.02600866057 | E37: =IF('B. PoF Summary Stats & Params'!$C$12="C", B37*'B. PoF Summary Stats & Params'!$I$8*'B. PoF Summary Stats & Params'!$I$12*A37^('B. PoF Summary Stats & Params'!$I$12-1), IF('B. PoF Summary Stats & Params'!$C$12="W", B37*(('B. PoF Summary Stats & Params'!$M$12/'B. PoF Summary Stats & Params'!$O$12)*((A37)/'B. PoF Summary Stats & Params'!$O$12)^('B. PoF Summary Stats & Params'!$M$12-1)), "Choose Model")) -> 0.01879618455
A38: 34 | B38: 1 | C38: =IF('B. PoF Summary Stats & Params'!$C$12="C", B38*'B. PoF Summary Stats & Params'!$I$8*'B. PoF Summary Stats & Params'!$I$10*A38^('B. PoF Summary Stats & Params'!$I$10-1), IF('B. PoF Summary Stats & Params'!$C$12="W", B38*(('B. PoF Summary Stats & Params'!$M$14/'B. PoF Summary Stats & Params'!$O$14)*((A38)/'B. PoF Summary Stats & Params'!$O$14)^('B. PoF Summary Stats & Params'!$M$14-1)), "Choose Model")) -> 0.03686640772 | D38: =IF('B. PoF Summary Stats & Params'!$C$12="C", B38*'B. PoF Summary Stats & Params'!$I$8*'B. PoF Summary Stats & Params'!$I$6*A38^('B. PoF Summary Stats & Params'!$I$6-1), IF('B. PoF Summary Stats & Params'!$C$12="W", B38*(('B. PoF Summary Stats & Params'!$M$6/'B. PoF Summary Stats & Params'!$M$8)*((A38)/'B. PoF Summary Stats & Params'!$M$8)^('B. PoF Summary Stats & Params'!$M$6-1)), "Choose Model")) -> 0.02663195837 | E38: =IF('B. PoF Summary Stats & Params'!$C$12="C", B38*'B. PoF Summary Stats & Params'!$I$8*'B. PoF Summary Stats & Params'!$I$12*A38^('B. PoF Summary Stats & Params'!$I$12-1), IF('B. PoF Summary Stats & Params'!$C$12="W", B38*(('B. PoF Summary Stats & Params'!$M$12/'B. PoF Summary Stats & Params'!$O$12)*((A38)/'B. PoF Summary Stats & Params'!$O$12)^('B. PoF Summary Stats & Params'!$M$12-1)), "Choose Model")) -> 0.01920083925
A39: 35 | B39: 1 | C39: =IF('B. PoF Summary Stats & Params'!$C$12="C", B39*'B. PoF Summary Stats & Params'!$I$8*'B. PoF Summary Stats & Params'!$I$10*A39^('B. PoF Summary Stats & Params'!$I$10-1), IF('B. PoF Summary Stats & Params'!$C$12="W", B39*(('B. PoF Summary Stats & Params'!$M$14/'B. PoF Summary Stats & Params'!$O$14)*((A39)/'B. PoF Summary Stats & Params'!$O$14)^('B. PoF Summary Stats & Params'!$M$14-1)), "Choose Model")) -> 0.03781147749 | D39: =IF('B. PoF Summary Stats & Params'!$C$12="C", B39*'B. PoF Summary Stats & Params'!$I$8*'B. PoF Summary Stats & Params'!$I$6*A39^('B. PoF Summary Stats & Params'!$I$6-1), IF('B. PoF Summary Stats & Params'!$C$12="W", B39*(('B. PoF Summary Stats & Params'!$M$6/'B. PoF Summary Stats & Params'!$M$8)*((A39)/'B. PoF Summary Stats & Params'!$M$8)^('B. PoF Summary Stats & Params'!$M$6-1)), "Choose Model")) -> 0.02725147778 | E39: =IF('B. PoF Summary Stats & Params'!$C$12="C", B39*'B. PoF Summary Stats & Params'!$I$8*'B. PoF Summary Stats & Params'!$I$12*A39^('B. PoF Summary Stats & Params'!$I$12-1), IF('B. PoF Summary Stats & Params'!$C$12="W", B39*(('B. PoF Summary Stats & Params'!$M$12/'B. PoF Summary Stats & Params'!$O$12)*((A39)/'B. PoF Summary Stats & Params'!$O$12)^('B. PoF Summary Stats & Params'!$M$12-1)), "Choose Model")) -> 0.0196020979
A40: 36 | B40: 1 | C40: =IF('B. PoF Summary Stats & Params'!$C$12="C", B40*'B. PoF Summary Stats & Params'!$I$8*'B. PoF Summary Stats & Params'!$I$10*A40^('B. PoF Summary Stats & Params'!$I$10-1), IF('B. PoF Summary Stats & Params'!$C$12="W", B40*(('B. PoF Summary Stats & Params'!$M$14/'B. PoF Summary Stats & Params'!$O$14)*((A40)/'B. PoF Summary Stats & Params'!$O$14)^('B. PoF Summary Stats & Params'!$M$14-1)), "Choose Model")) -> 0.0387531291 | D40: =IF('B. PoF Summary Stats & Params'!$C$12="C", B40*'B. PoF Summary Stats & Params'!$I$8*'B. PoF Summary Stats & Params'!$I$6*A40^('B. PoF Summary Stats & Params'!$I$6-1), IF('B. PoF Summary Stats & Params'!$C$12="W", B40*(('B. PoF Summary Stats & Params'!$M$6/'B. PoF Summary Stats & Params'!$M$8)*((A40)/'B. PoF Summary Stats & Params'!$M$8)^('B. PoF Summary Stats & Params'!$M$6-1)), "Choose Model")) -> 0.02786734872 | E40: =IF('B. PoF Summary Stats & Params'!$C$12="C", B40*'B. PoF Summary Stats & Params'!$I$8*'B. PoF Summary Stats & Params'!$I$12*A40^('B. PoF Summary Stats & Params'!$I$12-1), IF('B. PoF Summary Stats & Params'!$C$12="W", B40*(('B. PoF Summary Stats & Params'!$M$12/'B. PoF Summary Stats & Params'!$O$12)*((A40)/'B. PoF Summary Stats & Params'!$O$12)^('B. PoF Summary Stats & Params'!$M$12-1)), "Choose Model")) -> 0.02000008487
A41: 37 | B41: 1 | C41: =IF('B. PoF Summary Stats & Params'!$C$12="C", B41*'B. PoF Summary Stats & Params'!$I$8*'B. PoF Summary Stats & Params'!$I$10*A41^('B. PoF Summary Stats & Params'!$I$10-1), IF('B. PoF Summary Stats & Params'!$C$12="W", B41*(('B. PoF Summary Stats & Params'!$M$14/'B. PoF Summary Stats & Params'!$O$14)*((A41)/'B. PoF Summary Stats & Params'!$O$14)^('B. PoF Summary Stats & Params'!$M$14-1)), "Choose Model")) -> 0.03969146939 | D41: =IF('B. PoF Summary Stats & Params'!$C$12="C", B41*'B. PoF Summary Stats & Params'!$I$8*'B. PoF Summary Stats & Params'!$I$6*A41^('B. PoF Summary Stats & Params'!$I$6-1), IF('B. PoF Summary Stats & Params'!$C$12="W", B41*(('B. PoF Summary Stats & Params'!$M$6/'B. PoF Summary Stats & Params'!$M$8)*((A41)/'B. PoF Summary Stats & Params'!$M$8)^('B. PoF Summary Stats & Params'!$M$6-1)), "Choose Model")) -> 0.02847969317 | E41: =IF('B. PoF Summary Stats & Params'!$C$12="C", B41*'B. PoF Summary Stats & Params'!$I$8*'B. PoF Summary Stats & Params'!$I$12*A41^('B. PoF Summary Stats & Params'!$I$12-1), IF('B. PoF Summary Stats & Params'!$C$12="W", B41*(('B. PoF Summary Stats & Params'!$M$12/'B. PoF Summary Stats & Params'!$O$12)*((A41)/'B. PoF Summary Stats & Params'!$O$12)^('B. PoF Summary Stats & Params'!$M$12-1)), "Choose Model")) -> 0.02039491664
A42: 38 | B42: 1 | C42: =IF('B. PoF Summary Stats & Params'!$C$12="C", B42*'B. PoF Summary Stats & Params'!$I$8*'B. PoF Summary Stats & Params'!$I$10*A42^('B. PoF Summary Stats & Params'!$I$10-1), IF('B. PoF Summary Stats & Params'!$C$12="W", B42*(('B. PoF Summary Stats & Params'!$M$14/'B. PoF Summary Stats & Params'!$O$14)*((A42)/'B. PoF Summary Stats & Params'!$O$14)^('B. PoF Summary Stats & Params'!$M$14-1)), "Choose Model")) -> 0.04062659905 | D42: =IF('B. PoF Summary Stats & Params'!$C$12="C", B42*'B. PoF Summary Stats & Params'!$I$8*'B. PoF Summary Stats & Params'!$I$6*A42^('B. PoF Summary Stats & Params'!$I$6-1), IF('B. PoF Summary Stats & Params'!$C$12="W", B42*(('B. PoF Summary Stats & Params'!$M$6/'B. PoF Summary Stats & Params'!$M$8)*((A42)/'B. PoF Summary Stats & Params'!$M$8)^('B. PoF Summary Stats & Params'!$M$6-1)), "Choose Model")) -> 0.02908862584 | E42: =IF('B. PoF Summary Stats & Params'!$C$12="C", B42*'B. PoF Summary Stats & Params'!$I$8*'B. PoF Summary Stats & Params'!$I$12*A42^('B. PoF Summary Stats & Params'!$I$12-1), IF('B. PoF Summary Stats & Params'!$C$12="W", B42*(('B. PoF Summary Stats & Params'!$M$12/'B. PoF Summary Stats & Params'!$O$12)*((A42)/'B. PoF Summary Stats & Params'!$O$12)^('B. PoF Summary Stats & Params'!$M$12-1)), "Choose Model")) -> 0.0207867025
A43: 39 | B43: 1 | C43: =IF('B. PoF Summary Stats & Params'!$C$12="C", B43*'B. PoF Summary Stats & Params'!$I$8*'B. PoF Summary Stats & Params'!$I$10*A43^('B. PoF Summary Stats & Params'!$I$10-1), IF('B. PoF Summary Stats & Params'!$C$12="W", B43*(('B. PoF Summary Stats & Params'!$M$14/'B. PoF Summary Stats & Params'!$O$14)*((A43)/'B. PoF Summary Stats & Params'!$O$14)^('B. PoF Summary Stats & Params'!$M$14-1)), "Choose Model")) -> 0.04155861315 | D43: =IF('B. PoF Summary Stats & Params'!$C$12="C", B43*'B. PoF Summary Stats & Params'!$I$8*'B. PoF Summary Stats & Params'!$I$6*A43^('B. PoF Summary Stats & Params'!$I$6-1), IF('B. PoF Summary Stats & Params'!$C$12="W", B43*(('B. PoF Summary Stats & Params'!$M$6/'B. PoF Summary Stats & Params'!$M$8)*((A43)/'B. PoF Summary Stats & Params'!$M$8)^('B. PoF Summary Stats & Params'!$M$6-1)), "Choose Model")) -> 0.02969425482 | E43: =IF('B. PoF Summary Stats & Params'!$C$12="C", B43*'B. PoF Summary Stats & Params'!$I$8*'B. PoF Summary Stats & Params'!$I$12*A43^('B. PoF Summary Stats & Params'!$I$12-1), IF('B. PoF Summary Stats & Params'!$C$12="W", B43*(('B. PoF Summary Stats & Params'!$M$12/'B. PoF Summary Stats & Params'!$O$12)*((A43)/'B. PoF Summary Stats & Params'!$O$12)^('B. PoF Summary Stats & Params'!$M$12-1)), "Choose Model")) -> 0.02117554523
A44: 40 | B44: 1 | C44: =IF('B. PoF Summary Stats & Params'!$C$12="C", B44*'B. PoF Summary Stats & Params'!$I$8*'B. PoF Summary Stats & Params'!$I$10*A44^('B. PoF Summary Stats & Params'!$I$10-1), IF('B. PoF Summary Stats & Params'!$C$12="W", B44*(('B. PoF Summary Stats & Params'!$M$14/'B. PoF Summary Stats & Params'!$O$14)*((A44)/'B. PoF Summary Stats & Params'!$O$14)^('B. PoF Summary Stats & Params'!$M$14-1)), "Choose Model")) -> 0.04248760158 | D44: =IF('B. PoF Summary Stats & Params'!$C$12="C", B44*'B. PoF Summary Stats & Params'!$I$8*'B. PoF Summary Stats & Params'!$I$6*A44^('B. PoF Summary Stats & Params'!$I$6-1), IF('B. PoF Summary Stats & Params'!$C$12="W", B44*(('B. PoF Summary Stats & Params'!$M$6/'B. PoF Summary Stats & Params'!$M$8)*((A44)/'B. PoF Summary Stats & Params'!$M$8)^('B. PoF Summary Stats & Params'!$M$6-1)), "Choose Model")) -> 0.03029668207 | E44: =IF('B. PoF Summary Stats & Params'!$C$12="C", B44*'B. PoF Summary Stats & Params'!$I$8*'B. PoF Summary Stats & Params'!$I$12*A44^('B. PoF Summary Stats & Params'!$I$12-1), IF('B. PoF Summary Stats & Params'!$C$12="W", B44*(('B. PoF Summary Stats & Params'!$M$12/'B. PoF Summary Stats & Params'!$O$12)*((A44)/'B. PoF Summary Stats & Params'!$O$12)^('B. PoF Summary Stats & Params'!$M$12-1)), "Choose Model")) -> 0.02156154157
A45: 41 | B45: 1 | C45: =IF('B. PoF Summary Stats & Params'!$C$12="C", B45*'B. PoF Summary Stats & Params'!$I$8*'B. PoF Summary Stats & Params'!$I$10*A45^('B. PoF Summary Stats & Params'!$I$10-1), IF('B. PoF Summary Stats & Params'!$C$12="W", B45*(('B. PoF Summary Stats & Params'!$M$14/'B. PoF Summary Stats & Params'!$O$14)*((A45)/'B. PoF Summary Stats & Params'!$O$14)^('B. PoF Summary Stats & Params'!$M$14-1)), "Choose Model")) -> 0.04341364945 | D45: =IF('B. PoF Summary Stats & Params'!$C$12="C", B45*'B. PoF Summary Stats & Params'!$I$8*'B. PoF Summary Stats & Params'!$I$6*A45^('B. PoF Summary Stats & Params'!$I$6-1), IF('B. PoF Summary Stats & Params'!$C$12="W", B45*(('B. PoF Summary Stats & Params'!$M$6/'B. PoF Summary Stats & Params'!$M$8)*((A45)/'B. PoF Summary Stats & Params'!$M$8)^('B. PoF Summary Stats & Params'!$M$6-1)), "Choose Model")) -> 0.03089600394 | E45: =IF('B. PoF Summary Stats & Params'!$C$12="C", B45*'B. PoF Summary Stats & Params'!$I$8*'B. PoF Summary Stats & Params'!$I$12*A45^('B. PoF Summary Stats & Params'!$I$12-1), IF('B. PoF Summary Stats & Params'!$C$12="W", B45*(('B. PoF Summary Stats & Params'!$M$12/'B. PoF Summary Stats & Params'!$O$12)*((A45)/'B. PoF Summary Stats & Params'!$O$12)^('B. PoF Summary Stats & Params'!$M$12-1)), "Choose Model")) -> 0.02194478277
A46: 42 | B46: 1 | C46: =IF('B. PoF Summary Stats & Params'!$C$12="C", B46*'B. PoF Summary Stats & Params'!$I$8*'B. PoF Summary Stats & Params'!$I$10*A46^('B. PoF Summary Stats & Params'!$I$10-1), IF('B. PoF Summary Stats & Params'!$C$12="W", B46*(('B. PoF Summary Stats & Params'!$M$14/'B. PoF Summary Stats & Params'!$O$14)*((A46)/'B. PoF Summary Stats & Params'!$O$14)^('B. PoF Summary Stats & Params'!$M$14-1)), "Choose Model")) -> 0.04433683747 | D46: =IF('B. PoF Summary Stats & Params'!$C$12="C", B46*'B. PoF Summary Stats & Params'!$I$8*'B. PoF Summary Stats & Params'!$I$6*A46^('B. PoF Summary Stats & Params'!$I$6-1), IF('B. PoF Summary Stats & Params'!$C$12="W", B46*(('B. PoF Summary Stats & Params'!$M$6/'B. PoF Summary Stats & Params'!$M$8)*((A46)/'B. PoF Summary Stats & Params'!$M$8)^('B. PoF Summary Stats & Params'!$M$6-1)), "Choose Model")) -> 0.03149231164 | E46: =IF('B. PoF Summary Stats & Params'!$C$12="C", B46*'B. PoF Summary Stats & Params'!$I$8*'B. PoF Summary Stats & Params'!$I$12*A46^('B. PoF Summary Stats & Params'!$I$12-1), IF('B. PoF Summary Stats & Params'!$C$12="W", B46*(('B. PoF Summary Stats & Params'!$M$12/'B. PoF Summary Stats & Params'!$O$12)*((A46)/'B. PoF Summary Stats & Params'!$O$12)^('B. PoF Summary Stats & Params'!$M$12-1)), "Choose Model")) -> 0.02232535498
A47: 43 | B47: 1 | C47: =IF('B. PoF Summary Stats & Params'!$C$12="C", B47*'B. PoF Summary Stats & Params'!$I$8*'B. PoF Summary Stats & Params'!$I$10*A47^('B. PoF Summary Stats & Params'!$I$10-1), IF('B. PoF Summary Stats & Params'!$C$12="W", B47*(('B. PoF Summary Stats & Params'!$M$14/'B. PoF Summary Stats & Params'!$O$14)*((A47)/'B. PoF Summary Stats & Params'!$O$14)^('B. PoF Summary Stats & Params'!$M$14-1)), "Choose Model")) -> 0.04525724227 | D47: =IF('B. PoF Summary Stats & Params'!$C$12="C", B47*'B. PoF Summary Stats & Params'!$I$8*'B. PoF Summary Stats & Params'!$I$6*A47^('B. PoF Summary Stats & Params'!$I$6-1), IF('B. PoF Summary Stats & Params'!$C$12="W", B47*(('B. PoF Summary Stats & Params'!$M$6/'B. PoF Summary Stats & Params'!$M$8)*((A47)/'B. PoF Summary Stats & Params'!$M$8)^('B. PoF Summary Stats & Params'!$M$6-1)), "Choose Model")) -> 0.03208569155 | E47: =IF('B. PoF Summary Stats & Params'!$C$12="C", B47*'B. PoF Summary Stats & Params'!$I$8*'B. PoF Summary Stats & Params'!$I$12*A47^('B. PoF Summary Stats & Params'!$I$12-1), IF('B. PoF Summary Stats & Params'!$C$12="W", B47*(('B. PoF Summary Stats & Params'!$M$12/'B. PoF Summary Stats & Params'!$O$12)*((A47)/'B. PoF Summary Stats & Params'!$O$12)^('B. PoF Summary Stats & Params'!$M$12-1)), "Choose Model")) -> 0.0227033397
A48: 44 | B48: 1 | C48: =IF('B. PoF Summary Stats & Params'!$C$12="C", B48*'B. PoF Summary Stats & Params'!$I$8*'B. PoF Summary Stats & Params'!$I$10*A48^('B. PoF Summary Stats & Params'!$I$10-1), IF('B. PoF Summary Stats & Params'!$C$12="W", B48*(('B. PoF Summary Stats & Params'!$M$14/'B. PoF Summary Stats & Params'!$O$14)*((A48)/'B. PoF Summary Stats & Params'!$O$14)^('B. PoF Summary Stats & Params'!$M$14-1)), "Choose Model")) -> 0.04617493668 | D48: =IF('B. PoF Summary Stats & Params'!$C$12="C", B48*'B. PoF Summary Stats & Params'!$I$8*'B. PoF Summary Stats & Params'!$I$6*A48^('B. PoF Summary Stats & Params'!$I$6-1), IF('B. PoF Summary Stats & Params'!$C$12="W", B48*(('B. PoF Summary Stats & Params'!$M$6/'B. PoF Summary Stats & Params'!$M$8)*((A48)/'B. PoF Summary Stats & Params'!$M$8)^('B. PoF Summary Stats & Params'!$M$6-1)), "Choose Model")) -> 0.03267622566 | E48: =IF('B. PoF Summary Stats & Params'!$C$12="C", B48*'B. PoF Summary Stats & Params'!$I$8*'B. PoF Summary Stats & Params'!$I$12*A48^('B. PoF Summary Stats & Params'!$I$12-1), IF('B. PoF Summary Stats & Params'!$C$12="W", B48*(('B. PoF Summary Stats & Params'!$M$12/'B. PoF Summary Stats & Params'!$O$12)*((A48)/'B. PoF Summary Stats & Params'!$O$12)^('B. PoF Summary Stats & Params'!$M$12-1)), "Choose Model")) -> 0.02307881411
A49: 45 | B49: 1 | C49: =IF('B. PoF Summary Stats & Params'!$C$12="C", B49*'B. PoF Summary Stats & Params'!$I$8*'B. PoF Summary Stats & Params'!$I$10*A49^('B. PoF Summary Stats & Params'!$I$10-1), IF('B. PoF Summary Stats & Params'!$C$12="W", B49*(('B. PoF Summary Stats & Params'!$M$14/'B. PoF Summary Stats & Params'!$O$14)*((A49)/'B. PoF Summary Stats & Params'!$O$14)^('B. PoF Summary Stats & Params'!$M$14-1)), "Choose Model")) -> 0.04708999003 | D49: =IF('B. PoF Summary Stats & Params'!$C$12="C", B49*'B. PoF Summary Stats & Params'!$I$8*'B. PoF Summary Stats & Params'!$I$6*A49^('B. PoF Summary Stats & Params'!$I$6-1), IF('B. PoF Summary Stats & Params'!$C$12="W", B49*(('B. PoF Summary Stats & Params'!$M$6/'B. PoF Summary Stats & Params'!$M$8)*((A49)/'B. PoF Summary Stats & Params'!$M$8)^('B. PoF Summary Stats & Params'!$M$6-1)), "Choose Model")) -> 0.03326399184 | E49: =IF('B. PoF Summary Stats & Params'!$C$12="C", B49*'B. PoF Summary Stats & Params'!$I$8*'B. PoF Summary Stats & Params'!$I$12*A49^('B. PoF Summary Stats & Params'!$I$12-1), IF('B. PoF Summary Stats & Params'!$C$12="W", B49*(('B. PoF Summary Stats & Params'!$M$12/'B. PoF Summary Stats & Params'!$O$12)*((A49)/'B. PoF Summary Stats & Params'!$O$12)^('B. PoF Summary Stats & Params'!$M$12-1)), "Choose Model")) -> 0.02345185136
A50: 46 | B50: 1 | C50: =IF('B. PoF Summary Stats & Params'!$C$12="C", B50*'B. PoF Summary Stats & Params'!$I$8*'B. PoF Summary Stats & Params'!$I$10*A50^('B. PoF Summary Stats & Params'!$I$10-1), IF('B. PoF Summary Stats & Params'!$C$12="W", B50*(('B. PoF Summary Stats & Params'!$M$14/'B. PoF Summary Stats & Params'!$O$14)*((A50)/'B. PoF Summary Stats & Params'!$O$14)^('B. PoF Summary Stats & Params'!$M$14-1)), "Choose Model")) -> 0.04800246837 | D50: =IF('B. PoF Summary Stats & Params'!$C$12="C", B50*'B. PoF Summary Stats & Params'!$I$8*'B. PoF Summary Stats & Params'!$I$6*A50^('B. PoF Summary Stats & Params'!$I$6-1), IF('B. PoF Summary Stats & Params'!$C$12="W", B50*(('B. PoF Summary Stats & Params'!$M$6/'B. PoF Summary Stats & Params'!$M$8)*((A50)/'B. PoF Summary Stats & Params'!$M$8)^('B. PoF Summary Stats & Params'!$M$6-1)), "Choose Model")) -> 0.03384906417 | E50: =IF('B. PoF Summary Stats & Params'!$C$12="C", B50*'B. PoF Summary Stats & Params'!$I$8*'B. PoF Summary Stats & Params'!$I$12*A50^('B. PoF Summary Stats & Params'!$I$12-1), IF('B. PoF Summary Stats & Params'!$C$12="W", B50*(('B. PoF Summary Stats & Params'!$M$12/'B. PoF Summary Stats & Params'!$O$12)*((A50)/'B. PoF Summary Stats & Params'!$O$12)^('B. PoF Summary Stats & Params'!$M$12-1)), "Choose Model")) -> 0.02382252093
A51: 47 | B51: 1 | C51: =IF('B. PoF Summary Stats & Params'!$C$12="C", B51*'B. PoF Summary Stats & Params'!$I$8*'B. PoF Summary Stats & Params'!$I$10*A51^('B. PoF Summary Stats & Params'!$I$10-1), IF('B. PoF Summary Stats & Params'!$C$12="W", B51*(('B. PoF Summary Stats & Params'!$M$14/'B. PoF Summary Stats & Params'!$O$14)*((A51)/'B. PoF Summary Stats & Params'!$O$14)^('B. PoF Summary Stats & Params'!$M$14-1)), "Choose Model")) -> 0.04891243469 | D51: =IF('B. PoF Summary Stats & Params'!$C$12="C", B51*'B. PoF Summary Stats & Params'!$I$8*'B. PoF Summary Stats & Params'!$I$6*A51^('B. PoF Summary Stats & Params'!$I$6-1), IF('B. PoF Summary Stats & Params'!$C$12="W", B51*(('B. PoF Summary Stats & Params'!$M$6/'B. PoF Summary Stats & Params'!$M$8)*((A51)/'B. PoF Summary Stats & Params'!$M$8)^('B. PoF Summary Stats & Params'!$M$6-1)), "Choose Model")) -> 0.03443151316 | E51: =IF('B. PoF Summary Stats & Params'!$C$12="C", B51*'B. PoF Summary Stats & Params'!$I$8*'B. PoF Summary Stats & Params'!$I$12*A51^('B. PoF Summary Stats & Params'!$I$12-1), IF('B. PoF Summary Stats & Params'!$C$12="W", B51*(('B. PoF Summary Stats & Params'!$M$12/'B. PoF Summary Stats & Params'!$O$12)*((A51)/'B. PoF Summary Stats & Params'!$O$12)^('B. PoF Summary Stats & Params'!$M$12-1)), "Choose Model")) -> 0.02419088885
A52: 48 | B52: 1 | C52: =IF('B. PoF Summary Stats & Params'!$C$12="C", B52*'B. PoF Summary Stats & Params'!$I$8*'B. PoF Summary Stats & Params'!$I$10*A52^('B. PoF Summary Stats & Params'!$I$10-1), IF('B. PoF Summary Stats & Params'!$C$12="W", B52*(('B. PoF Summary Stats & Params'!$M$14/'B. PoF Summary Stats & Params'!$O$14)*((A52)/'B. PoF Summary Stats & Params'!$O$14)^('B. PoF Summary Stats & Params'!$M$14-1)), "Choose Model")) -> 0.04981994915 | D52: =IF('B. PoF Summary Stats & Params'!$C$12="C", B52*'B. PoF Summary Stats & Params'!$I$8*'B. PoF Summary Stats & Params'!$I$6*A52^('B. PoF Summary Stats & Params'!$I$6-1), IF('B. PoF Summary Stats & Params'!$C$12="W", B52*(('B. PoF Summary Stats & Params'!$M$6/'B. PoF Summary Stats & Params'!$M$8)*((A52)/'B. PoF Summary Stats & Params'!$M$8)^('B. PoF Summary Stats & Params'!$M$6-1)), "Choose Model")) -> 0.03501140602 | E52: =IF('B. PoF Summary Stats & Params'!$C$12="C", B52*'B. PoF Summary Stats & Params'!$I$8*'B. PoF Summary Stats & Params'!$I$12*A52^('B. PoF Summary Stats & Params'!$I$12-1), IF('B. PoF Summary Stats & Params'!$C$12="W", B52*(('B. PoF Summary Stats & Params'!$M$12/'B. PoF Summary Stats & Params'!$O$12)*((A52)/'B. PoF Summary Stats & Params'!$O$12)^('B. PoF Summary Stats & Params'!$M$12-1)), "Choose Model")) -> 0.02455701792
A53: 49 | B53: 1 | C53: =IF('B. PoF Summary Stats & Params'!$C$12="C", B53*'B. PoF Summary Stats & Params'!$I$8*'B. PoF Summary Stats & Params'!$I$10*A53^('B. PoF Summary Stats & Params'!$I$10-1), IF('B. PoF Summary Stats & Params'!$C$12="W", B53*(('B. PoF Summary Stats & Params'!$M$14/'B. PoF Summary Stats & Params'!$O$14)*((A53)/'B. PoF Summary Stats & Params'!$O$14)^('B. PoF Summary Stats & Params'!$M$14-1)), "Choose Model")) -> 0.05072506924 | D53: =IF('B. PoF Summary Stats & Params'!$C$12="C", B53*'B. PoF Summary Stats & Params'!$I$8*'B. PoF Summary Stats & Params'!$I$6*A53^('B. PoF Summary Stats & Params'!$I$6-1), IF('B. PoF Summary Stats & Params'!$C$12="W", B53*(('B. PoF Summary Stats & Params'!$M$6/'B. PoF Summary Stats & Params'!$M$8)*((A53)/'B. PoF Summary Stats & Params'!$M$8)^('B. PoF Summary Stats & Params'!$M$6-1)), "Choose Model")) -> 0.03558880689 | E53: =IF('B. PoF Summary Stats & Params'!$C$12="C", B53*'B. PoF Summary Stats & Params'!$I$8*'B. PoF Summary Stats & Params'!$I$12*A53^('B. PoF Summary Stats & Params'!$I$12-1), IF('B. PoF Summary Stats & Params'!$C$12="W", B53*(('B. PoF Summary Stats & Params'!$M$12/'B. PoF Summary Stats & Params'!$O$12)*((A53)/'B. PoF Summary Stats & Params'!$O$12)^('B. PoF Summary Stats & Params'!$M$12-1)), "Choose Model")) -> 0.024920968
A54: 50 | B54: 1 | C54: =IF('B. PoF Summary Stats & Params'!$C$12="C", B54*'B. PoF Summary Stats & Params'!$I$8*'B. PoF Summary Stats & Params'!$I$10*A54^('B. PoF Summary Stats & Params'!$I$10-1), IF('B. PoF Summary Stats & Params'!$C$12="W", B54*(('B. PoF Summary Stats & Params'!$M$14/'B. PoF Summary Stats & Params'!$O$14)*((A54)/'B. PoF Summary Stats & Params'!$O$14)^('B. PoF Summary Stats & Params'!$M$14-1)), "Choose Model")) -> 0.05162784996 | D54: =IF('B. PoF Summary Stats & Params'!$C$12="C", B54*'B. PoF Summary Stats & Params'!$I$8*'B. PoF Summary Stats & Params'!$I$6*A54^('B. PoF Summary Stats & Params'!$I$6-1), IF('B. PoF Summary Stats & Params'!$C$12="W", B54*(('B. PoF Summary Stats & Params'!$M$6/'B. PoF Summary Stats & Params'!$M$8)*((A54)/'B. PoF Summary Stats & Params'!$M$8)^('B. PoF Summary Stats & Params'!$M$6-1)), "Choose Model")) -> 0.03616377702 | E54: =IF('B. PoF Summary Stats & Params'!$C$12="C", B54*'B. PoF Summary Stats & Params'!$I$8*'B. PoF Summary Stats & Params'!$I$12*A54^('B. PoF Summary Stats & Params'!$I$12-1), IF('B. PoF Summary Stats & Params'!$C$12="W", B54*(('B. PoF Summary Stats & Params'!$M$12/'B. PoF Summary Stats & Params'!$O$12)*((A54)/'B. PoF Summary Stats & Params'!$O$12)^('B. PoF Summary Stats & Params'!$M$12-1)), "Choose Model")) -> 0.02528279611
A55: 51 | B55: 1 | C55: =IF('B. PoF Summary Stats & Params'!$C$12="C", B55*'B. PoF Summary Stats & Params'!$I$8*'B. PoF Summary Stats & Params'!$I$10*A55^('B. PoF Summary Stats & Params'!$I$10-1), IF('B. PoF Summary Stats & Params'!$C$12="W", B55*(('B. PoF Summary Stats & Params'!$M$14/'B. PoF Summary Stats & Params'!$O$14)*((A55)/'B. PoF Summary Stats & Params'!$O$14)^('B. PoF Summary Stats & Params'!$M$14-1)), "Choose Model")) -> 0.05252834397 | D55: =IF('B. PoF Summary Stats & Params'!$C$12="C", B55*'B. PoF Summary Stats & Params'!$I$8*'B. PoF Summary Stats & Params'!$I$6*A55^('B. PoF Summary Stats & Params'!$I$6-1), IF('B. PoF Summary Stats & Params'!$C$12="W", B55*(('B. PoF Summary Stats & Params'!$M$6/'B. PoF Summary Stats & Params'!$M$8)*((A55)/'B. PoF Summary Stats & Params'!$M$8)^('B. PoF Summary Stats & Params'!$M$6-1)), "Choose Model")) -> 0.03673637495 | E55: =IF('B. PoF Summary Stats & Params'!$C$12="C", B55*'B. PoF Summary Stats & Params'!$I$8*'B. PoF Summary Stats & Params'!$I$12*A55^('B. PoF Summary Stats & Params'!$I$12-1), IF('B. PoF Summary Stats & Params'!$C$12="W", B55*(('B. PoF Summary Stats & Params'!$M$12/'B. PoF Summary Stats & Params'!$O$12)*((A55)/'B. PoF Summary Stats & Params'!$O$12)^('B. PoF Summary Stats & Params'!$M$12-1)), "Choose Model")) -> 0.02564255673
A56: 52 | B56: 1 | C56: =IF('B. PoF Summary Stats & Params'!$C$12="C", B56*'B. PoF Summary Stats & Params'!$I$8*'B. PoF Summary Stats & Params'!$I$10*A56^('B. PoF Summary Stats & Params'!$I$10-1), IF('B. PoF Summary Stats & Params'!$C$12="W", B56*(('B. PoF Summary Stats & Params'!$M$14/'B. PoF Summary Stats & Params'!$O$14)*((A56)/'B. PoF Summary Stats & Params'!$O$14)^('B. PoF Summary Stats & Params'!$M$14-1)), "Choose Model")) -> 0.05342660172 | D56: =IF('B. PoF Summary Stats & Params'!$C$12="C", B56*'B. PoF Summary Stats & Params'!$I$8*'B. PoF Summary Stats & Params'!$I$6*A56^('B. PoF Summary Stats & Params'!$I$6-1), IF('B. PoF Summary Stats & Params'!$C$12="W", B56*(('B. PoF Summary Stats & Params'!$M$6/'B. PoF Summary Stats & Params'!$M$8)*((A56)/'B. PoF Summary Stats & Params'!$M$8)^('B. PoF Summary Stats & Params'!$M$6-1)), "Choose Model")) -> 0.03730665671 | E56: =IF('B. PoF Summary Stats & Params'!$C$12="C", B56*'B. PoF Summary Stats & Params'!$I$8*'B. PoF Summary Stats & Params'!$I$12*A56^('B. PoF Summary Stats & Params'!$I$12-1), IF('B. PoF Summary Stats & Params'!$C$12="W", B56*(('B. PoF Summary Stats & Params'!$M$12/'B. PoF Summary Stats & Params'!$O$12)*((A56)/'B. PoF Summary Stats & Params'!$O$12)^('B. PoF Summary Stats & Params'!$M$12-1)), "Choose Model")) -> 0.02600030186
A57: 53 | B57: 1 | C57: =IF('B. PoF Summary Stats & Params'!$C$12="C", B57*'B. PoF Summary Stats & Params'!$I$8*'B. PoF Summary Stats & Params'!$I$10*A57^('B. PoF Summary Stats & Params'!$I$10-1), IF('B. PoF Summary Stats & Params'!$C$12="W", B57*(('B. PoF Summary Stats & Params'!$M$14/'B. PoF Summary Stats & Params'!$O$14)*((A57)/'B. PoF Summary Stats & Params'!$O$14)^('B. PoF Summary Stats & Params'!$M$14-1)), "Choose Model")) -> 0.05432267164 | D57: =IF('B. PoF Summary Stats & Params'!$C$12="C", B57*'B. PoF Summary Stats & Params'!$I$8*'B. PoF Summary Stats & Params'!$I$6*A57^('B. PoF Summary Stats & Params'!$I$6-1), IF('B. PoF Summary Stats & Params'!$C$12="W", B57*(('B. PoF Summary Stats & Params'!$M$6/'B. PoF Summary Stats & Params'!$M$8)*((A57)/'B. PoF Summary Stats & Params'!$M$8)^('B. PoF Summary Stats & Params'!$M$6-1)), "Choose Model")) -> 0.03787467594 | E57: =IF('B. PoF Summary Stats & Params'!$C$12="C", B57*'B. PoF Summary Stats & Params'!$I$8*'B. PoF Summary Stats & Params'!$I$12*A57^('B. PoF Summary Stats & Params'!$I$12-1), IF('B. PoF Summary Stats & Params'!$C$12="W", B57*(('B. PoF Summary Stats & Params'!$M$12/'B. PoF Summary Stats & Params'!$O$12)*((A57)/'B. PoF Summary Stats & Params'!$O$12)^('B. PoF Summary Stats & Params'!$M$12-1)), "Choose Model")) -> 0.02635608123
A58: 54 | B58: 1 | C58: =IF('B. PoF Summary Stats & Params'!$C$12="C", B58*'B. PoF Summary Stats & Params'!$I$8*'B. PoF Summary Stats & Params'!$I$10*A58^('B. PoF Summary Stats & Params'!$I$10-1), IF('B. PoF Summary Stats & Params'!$C$12="W", B58*(('B. PoF Summary Stats & Params'!$M$14/'B. PoF Summary Stats & Params'!$O$14)*((A58)/'B. PoF Summary Stats & Params'!$O$14)^('B. PoF Summary Stats & Params'!$M$14-1)), "Choose Model")) -> 0.05521660018 | D58: =IF('B. PoF Summary Stats & Params'!$C$12="C", B58*'B. PoF Summary Stats & Params'!$I$8*'B. PoF Summary Stats & Params'!$I$6*A58^('B. PoF Summary Stats & Params'!$I$6-1), IF('B. PoF Summary Stats & Params'!$C$12="W", B58*(('B. PoF Summary Stats & Params'!$M$6/'B. PoF Summary Stats & Params'!$M$8)*((A58)/'B. PoF Summary Stats & Params'!$M$8)^('B. PoF Summary Stats & Params'!$M$6-1)), "Choose Model")) -> 0.03844048407 | E58: =IF('B. PoF Summary Stats & Params'!$C$12="C", B58*'B. PoF Summary Stats & Params'!$I$8*'B. PoF Summary Stats & Params'!$I$12*A58^('B. PoF Summary Stats & Params'!$I$12-1), IF('B. PoF Summary Stats & Params'!$C$12="W", B58*(('B. PoF Summary Stats & Params'!$M$12/'B. PoF Summary Stats & Params'!$O$12)*((A58)/'B. PoF Summary Stats & Params'!$O$12)^('B. PoF Summary Stats & Params'!$M$12-1)), "Choose Model")) -> 0.02670994243
A59: 55 | B59: 1 | C59: =IF('B. PoF Summary Stats & Params'!$C$12="C", B59*'B. PoF Summary Stats & Params'!$I$8*'B. PoF Summary Stats & Params'!$I$10*A59^('B. PoF Summary Stats & Params'!$I$10-1), IF('B. PoF Summary Stats & Params'!$C$12="W", B59*(('B. PoF Summary Stats & Params'!$M$14/'B. PoF Summary Stats & Params'!$O$14)*((A59)/'B. PoF Summary Stats & Params'!$O$14)^('B. PoF Summary Stats & Params'!$M$14-1)), "Choose Model")) -> 0.05610843198 | D59: =IF('B. PoF Summary Stats & Params'!$C$12="C", B59*'B. PoF Summary Stats & Params'!$I$8*'B. PoF Summary Stats & Params'!$I$6*A59^('B. PoF Summary Stats & Params'!$I$6-1), IF('B. PoF Summary Stats & Params'!$C$12="W", B59*(('B. PoF Summary Stats & Params'!$M$6/'B. PoF Summary Stats & Params'!$M$8)*((A59)/'B. PoF Summary Stats & Params'!$M$8)^('B. PoF Summary Stats & Params'!$M$6-1)), "Choose Model")) -> 0.03900413042 | E59: =IF('B. PoF Summary Stats & Params'!$C$12="C", B59*'B. PoF Summary Stats & Params'!$I$8*'B. PoF Summary Stats & Params'!$I$12*A59^('B. PoF Summary Stats & Params'!$I$12-1), IF('B. PoF Summary Stats & Params'!$C$12="W", B59*(('B. PoF Summary Stats & Params'!$M$12/'B. PoF Summary Stats & Params'!$O$12)*((A59)/'B. PoF Summary Stats & Params'!$O$12)^('B. PoF Summary Stats & Params'!$M$12-1)), "Choose Model")) -> 0.02706193106
A60: 56 | B60: 1 | C60: =IF('B. PoF Summary Stats & Params'!$C$12="C", B60*'B. PoF Summary Stats & Params'!$I$8*'B. PoF Summary Stats & Params'!$I$10*A60^('B. PoF Summary Stats & Params'!$I$10-1), IF('B. PoF Summary Stats & Params'!$C$12="W", B60*(('B. PoF Summary Stats & Params'!$M$14/'B. PoF Summary Stats & Params'!$O$14)*((A60)/'B. PoF Summary Stats & Params'!$O$14)^('B. PoF Summary Stats & Params'!$M$14-1)), "Choose Model")) -> 0.05699820994 | D60: =IF('B. PoF Summary Stats & Params'!$C$12="C", B60*'B. PoF Summary Stats & Params'!$I$8*'B. PoF Summary Stats & Params'!$I$6*A60^('B. PoF Summary Stats & Params'!$I$6-1), IF('B. PoF Summary Stats & Params'!$C$12="W", B60*(('B. PoF Summary Stats & Params'!$M$6/'B. PoF Summary Stats & Params'!$M$8)*((A60)/'B. PoF Summary Stats & Params'!$M$8)^('B. PoF Summary Stats & Params'!$M$6-1)), "Choose Model")) -> 0.03956566232 | E60: =IF('B. PoF Summary Stats & Params'!$C$12="C", B60*'B. PoF Summary Stats & Params'!$I$8*'B. PoF Summary Stats & Params'!$I$12*A60^('B. PoF Summary Stats & Params'!$I$12-1), IF('B. PoF Summary Stats & Params'!$C$12="W", B60*(('B. PoF Summary Stats & Params'!$M$12/'B. PoF Summary Stats & Params'!$O$12)*((A60)/'B. PoF Summary Stats & Params'!$O$12)^('B. PoF Summary Stats & Params'!$M$12-1)), "Choose Model")) -> 0.02741209079
A61: 57 | B61: 1 | C61: =IF('B. PoF Summary Stats & Params'!$C$12="C", B61*'B. PoF Summary Stats & Params'!$I$8*'B. PoF Summary Stats & Params'!$I$10*A61^('B. PoF Summary Stats & Params'!$I$10-1), IF('B. PoF Summary Stats & Params'!$C$12="W", B61*(('B. PoF Summary Stats & Params'!$M$14/'B. PoF Summary Stats & Params'!$O$14)*((A61)/'B. PoF Summary Stats & Params'!$O$14)^('B. PoF Summary Stats & Params'!$M$14-1)), "Choose Model")) -> 0.05788597537 | D61: =IF('B. PoF Summary Stats & Params'!$C$12="C", B61*'B. PoF Summary Stats & Params'!$I$8*'B. PoF Summary Stats & Params'!$I$6*A61^('B. PoF Summary Stats & Params'!$I$6-1), IF('B. PoF Summary Stats & Params'!$C$12="W", B61*(('B. PoF Summary Stats & Params'!$M$6/'B. PoF Summary Stats & Params'!$M$8)*((A61)/'B. PoF Summary Stats & Params'!$M$8)^('B. PoF Summary Stats & Params'!$M$6-1)), "Choose Model")) -> 0.04012512528 | E61: =IF('B. PoF Summary Stats & Params'!$C$12="C", B61*'B. PoF Summary Stats & Params'!$I$8*'B. PoF Summary Stats & Params'!$I$12*A61^('B. PoF Summary Stats & Params'!$I$12-1), IF('B. PoF Summary Stats & Params'!$C$12="W", B61*(('B. PoF Summary Stats & Params'!$M$12/'B. PoF Summary Stats & Params'!$O$12)*((A61)/'B. PoF Summary Stats & Params'!$O$12)^('B. PoF Summary Stats & Params'!$M$12-1)), "Choose Model")) -> 0.02776046356
A62: 58 | B62: 1 | C62: =IF('B. PoF Summary Stats & Params'!$C$12="C", B62*'B. PoF Summary Stats & Params'!$I$8*'B. PoF Summary Stats & Params'!$I$10*A62^('B. PoF Summary Stats & Params'!$I$10-1), IF('B. PoF Summary Stats & Params'!$C$12="W", B62*(('B. PoF Summary Stats & Params'!$M$14/'B. PoF Summary Stats & Params'!$O$14)*((A62)/'B. PoF Summary Stats & Params'!$O$14)^('B. PoF Summary Stats & Params'!$M$14-1)), "Choose Model")) -> 0.05877176799 | D62: =IF('B. PoF Summary Stats & Params'!$C$12="C", B62*'B. PoF Summary Stats & Params'!$I$8*'B. PoF Summary Stats & Params'!$I$6*A62^('B. PoF Summary Stats & Params'!$I$6-1), IF('B. PoF Summary Stats & Params'!$C$12="W", B62*(('B. PoF Summary Stats & Params'!$M$6/'B. PoF Summary Stats & Params'!$M$8)*((A62)/'B. PoF Summary Stats & Params'!$M$8)^('B. PoF Summary Stats & Params'!$M$6-1)), "Choose Model")) -> 0.040682563 | E62: =IF('B. PoF Summary Stats & Params'!$C$12="C", B62*'B. PoF Summary Stats & Params'!$I$8*'B. PoF Summary Stats & Params'!$I$12*A62^('B. PoF Summary Stats & Params'!$I$12-1), IF('B. PoF Summary Stats & Params'!$C$12="W", B62*(('B. PoF Summary Stats & Params'!$M$12/'B. PoF Summary Stats & Params'!$O$12)*((A62)/'B. PoF Summary Stats & Params'!$O$12)^('B. PoF Summary Stats & Params'!$M$12-1)), "Choose Model")) -> 0.02810708958
A63: 59 | B63: 1 | C63: =IF('B. PoF Summary Stats & Params'!$C$12="C", B63*'B. PoF Summary Stats & Params'!$I$8*'B. PoF Summary Stats & Params'!$I$10*A63^('B. PoF Summary Stats & Params'!$I$10-1), IF('B. PoF Summary Stats & Params'!$C$12="W", B63*(('B. PoF Summary Stats & Params'!$M$14/'B. PoF Summary Stats & Params'!$O$14)*((A63)/'B. PoF Summary Stats & Params'!$O$14)^('B. PoF Summary Stats & Params'!$M$14-1)), "Choose Model")) -> 0.05965562609 | D63: =IF('B. PoF Summary Stats & Params'!$C$12="C", B63*'B. PoF Summary Stats & Params'!$I$8*'B. PoF Summary Stats & Params'!$I$6*A63^('B. PoF Summary Stats & Params'!$I$6-1), IF('B. PoF Summary Stats & Params'!$C$12="W", B63*(('B. PoF Summary Stats & Params'!$M$6/'B. PoF Summary Stats & Params'!$M$8)*((A63)/'B. PoF Summary Stats & Params'!$M$8)^('B. PoF Summary Stats & Params'!$M$6-1)), "Choose Model")) -> 0.04123801756 | E63: =IF('B. PoF Summary Stats & Params'!$C$12="C", B63*'B. PoF Summary Stats & Params'!$I$8*'B. PoF Summary Stats & Params'!$I$12*A63^('B. PoF Summary Stats & Params'!$I$12-1), IF('B. PoF Summary Stats & Params'!$C$12="W", B63*(('B. PoF Summary Stats & Params'!$M$12/'B. PoF Summary Stats & Params'!$O$12)*((A63)/'B. PoF Summary Stats & Params'!$O$12)^('B. PoF Summary Stats & Params'!$M$12-1)), "Choose Model")) -> 0.02845200751
A64: 60 | B64: 1 | C64: =IF('B. PoF Summary Stats & Params'!$C$12="C", B64*'B. PoF Summary Stats & Params'!$I$8*'B. PoF Summary Stats & Params'!$I$10*A64^('B. PoF Summary Stats & Params'!$I$10-1), IF('B. PoF Summary Stats & Params'!$C$12="W", B64*(('B. PoF Summary Stats & Params'!$M$14/'B. PoF Summary Stats & Params'!$O$14)*((A64)/'B. PoF Summary Stats & Params'!$O$14)^('B. PoF Summary Stats & Params'!$M$14-1)), "Choose Model")) -> 0.0605375866 | D64: =IF('B. PoF Summary Stats & Params'!$C$12="C", B64*'B. PoF Summary Stats & Params'!$I$8*'B. PoF Summary Stats & Params'!$I$6*A64^('B. PoF Summary Stats & Params'!$I$6-1), IF('B. PoF Summary Stats & Params'!$C$12="W", B64*(('B. PoF Summary Stats & Params'!$M$6/'B. PoF Summary Stats & Params'!$M$8)*((A64)/'B. PoF Summary Stats & Params'!$M$8)^('B. PoF Summary Stats & Params'!$M$6-1)), "Choose Model")) -> 0.04179152944 | E64: =IF('B. PoF Summary Stats & Params'!$C$12="C", B64*'B. PoF Summary Stats & Params'!$I$8*'B. PoF Summary Stats & Params'!$I$12*A64^('B. PoF Summary Stats & Params'!$I$12-1), IF('B. PoF Summary Stats & Params'!$C$12="W", B64*(('B. PoF Summary Stats & Params'!$M$12/'B. PoF Summary Stats & Params'!$O$12)*((A64)/'B. PoF Summary Stats & Params'!$O$12)^('B. PoF Summary Stats & Params'!$M$12-1)), "Choose Model")) -> 0.02879525451
A65: 61 | B65: 1 | C65: =IF('B. PoF Summary Stats & Params'!$C$12="C", B65*'B. PoF Summary Stats & Params'!$I$8*'B. PoF Summary Stats & Params'!$I$10*A65^('B. PoF Summary Stats & Params'!$I$10-1), IF('B. PoF Summary Stats & Params'!$C$12="W", B65*(('B. PoF Summary Stats & Params'!$M$14/'B. PoF Summary Stats & Params'!$O$14)*((A65)/'B. PoF Summary Stats & Params'!$O$14)^('B. PoF Summary Stats & Params'!$M$14-1)), "Choose Model")) -> 0.0614176851 | D65: =IF('B. PoF Summary Stats & Params'!$C$12="C", B65*'B. PoF Summary Stats & Params'!$I$8*'B. PoF Summary Stats & Params'!$I$6*A65^('B. PoF Summary Stats & Params'!$I$6-1), IF('B. PoF Summary Stats & Params'!$C$12="W", B65*(('B. PoF Summary Stats & Params'!$M$6/'B. PoF Summary Stats & Params'!$M$8)*((A65)/'B. PoF Summary Stats & Params'!$M$8)^('B. PoF Summary Stats & Params'!$M$6-1)), "Choose Model")) -> 0.04234313766 | E65: =IF('B. PoF Summary Stats & Params'!$C$12="C", B65*'B. PoF Summary Stats & Params'!$I$8*'B. PoF Summary Stats & Params'!$I$12*A65^('B. PoF Summary Stats & Params'!$I$12-1), IF('B. PoF Summary Stats & Params'!$C$12="W", B65*(('B. PoF Summary Stats & Params'!$M$12/'B. PoF Summary Stats & Params'!$O$12)*((A65)/'B. PoF Summary Stats & Params'!$O$12)^('B. PoF Summary Stats & Params'!$M$12-1)), "Choose Model")) -> 0.02913686633
A66: 62 | B66: 1 | C66: =IF('B. PoF Summary Stats & Params'!$C$12="C", B66*'B. PoF Summary Stats & Params'!$I$8*'B. PoF Summary Stats & Params'!$I$10*A66^('B. PoF Summary Stats & Params'!$I$10-1), IF('B. PoF Summary Stats & Params'!$C$12="W", B66*(('B. PoF Summary Stats & Params'!$M$14/'B. PoF Summary Stats & Params'!$O$14)*((A66)/'B. PoF Summary Stats & Params'!$O$14)^('B. PoF Summary Stats & Params'!$M$14-1)), "Choose Model")) -> 0.06229595597 | D66: =IF('B. PoF Summary Stats & Params'!$C$12="C", B66*'B. PoF Summary Stats & Params'!$I$8*'B. PoF Summary Stats & Params'!$I$6*A66^('B. PoF Summary Stats & Params'!$I$6-1), IF('B. PoF Summary Stats & Params'!$C$12="W", B66*(('B. PoF Summary Stats & Params'!$M$6/'B. PoF Summary Stats & Params'!$M$8)*((A66)/'B. PoF Summary Stats & Params'!$M$8)^('B. PoF Summary Stats & Params'!$M$6-1)), "Choose Model")) -> 0.04289287981 | E66: =IF('B. PoF Summary Stats & Params'!$C$12="C", B66*'B. PoF Summary Stats & Params'!$I$8*'B. PoF Summary Stats & Params'!$I$12*A66^('B. PoF Summary Stats & Params'!$I$12-1), IF('B. PoF Summary Stats & Params'!$C$12="W", B66*(('B. PoF Summary Stats & Params'!$M$12/'B. PoF Summary Stats & Params'!$O$12)*((A66)/'B. PoF Summary Stats & Params'!$O$12)^('B. PoF Summary Stats & Params'!$M$12-1)), "Choose Model")) -> 0.02947687738
A67: 63 | B67: 1 | C67: =IF('B. PoF Summary Stats & Params'!$C$12="C", B67*'B. PoF Summary Stats & Params'!$I$8*'B. PoF Summary Stats & Params'!$I$10*A67^('B. PoF Summary Stats & Params'!$I$10-1), IF('B. PoF Summary Stats & Params'!$C$12="W", B67*(('B. PoF Summary Stats & Params'!$M$14/'B. PoF Summary Stats & Params'!$O$14)*((A67)/'B. PoF Summary Stats & Params'!$O$14)^('B. PoF Summary Stats & Params'!$M$14-1)), "Choose Model")) -> 0.06317243239 | D67: =IF('B. PoF Summary Stats & Params'!$C$12="C", B67*'B. PoF Summary Stats & Params'!$I$8*'B. PoF Summary Stats & Params'!$I$6*A67^('B. PoF Summary Stats & Params'!$I$6-1), IF('B. PoF Summary Stats & Params'!$C$12="W", B67*(('B. PoF Summary Stats & Params'!$M$6/'B. PoF Summary Stats & Params'!$M$8)*((A67)/'B. PoF Summary Stats & Params'!$M$8)^('B. PoF Summary Stats & Params'!$M$6-1)), "Choose Model")) -> 0.04344079216 | E67: =IF('B. PoF Summary Stats & Params'!$C$12="C", B67*'B. PoF Summary Stats & Params'!$I$8*'B. PoF Summary Stats & Params'!$I$12*A67^('B. PoF Summary Stats & Params'!$I$12-1), IF('B. PoF Summary Stats & Params'!$C$12="W", B67*(('B. PoF Summary Stats & Params'!$M$12/'B. PoF Summary Stats & Params'!$O$12)*((A67)/'B. PoF Summary Stats & Params'!$O$12)^('B. PoF Summary Stats & Params'!$M$12-1)), "Choose Model")) -> 0.02981532079
A68: 64 | B68: 1 | C68: =IF('B. PoF Summary Stats & Params'!$C$12="C", B68*'B. PoF Summary Stats & Params'!$I$8*'B. PoF Summary Stats & Params'!$I$10*A68^('B. PoF Summary Stats & Params'!$I$10-1), IF('B. PoF Summary Stats & Params'!$C$12="W", B68*(('B. PoF Summary Stats & Params'!$M$14/'B. PoF Summary Stats & Params'!$O$14)*((A68)/'B. PoF Summary Stats & Params'!$O$14)^('B. PoF Summary Stats & Params'!$M$14-1)), "Choose Model")) -> 0.06404714642 | D68: =IF('B. PoF Summary Stats & Params'!$C$12="C", B68*'B. PoF Summary Stats & Params'!$I$8*'B. PoF Summary Stats & Params'!$I$6*A68^('B. PoF Summary Stats & Params'!$I$6-1), IF('B. PoF Summary Stats & Params'!$C$12="W", B68*(('B. PoF Summary Stats & Params'!$M$6/'B. PoF Summary Stats & Params'!$M$8)*((A68)/'B. PoF Summary Stats & Params'!$M$8)^('B. PoF Summary Stats & Params'!$M$6-1)), "Choose Model")) -> 0.0439869097 | E68: =IF('B. PoF Summary Stats & Params'!$C$12="C", B68*'B. PoF Summary Stats & Params'!$I$8*'B. PoF Summary Stats & Params'!$I$12*A68^('B. PoF Summary Stats & Params'!$I$12-1), IF('B. PoF Summary Stats & Params'!$C$12="W", B68*(('B. PoF Summary Stats & Params'!$M$12/'B. PoF Summary Stats & Params'!$O$12)*((A68)/'B. PoF Summary Stats & Params'!$O$12)^('B. PoF Summary Stats & Params'!$M$12-1)), "Choose Model")) -> 0.03015222851
A69: 65 | B69: 1 | C69: =IF('B. PoF Summary Stats & Params'!$C$12="C", B69*'B. PoF Summary Stats & Params'!$I$8*'B. PoF Summary Stats & Params'!$I$10*A69^('B. PoF Summary Stats & Params'!$I$10-1), IF('B. PoF Summary Stats & Params'!$C$12="W", B69*(('B. PoF Summary Stats & Params'!$M$14/'B. PoF Summary Stats & Params'!$O$14)*((A69)/'B. PoF Summary Stats & Params'!$O$14)^('B. PoF Summary Stats & Params'!$M$14-1)), "Choose Model")) -> 0.06492012906 | D69: =IF('B. PoF Summary Stats & Params'!$C$12="C", B69*'B. PoF Summary Stats & Params'!$I$8*'B. PoF Summary Stats & Params'!$I$6*A69^('B. PoF Summary Stats & Params'!$I$6-1), IF('B. PoF Summary Stats & Params'!$C$12="W", B69*(('B. PoF Summary Stats & Params'!$M$6/'B. PoF Summary Stats & Params'!$M$8)*((A69)/'B. PoF Summary Stats & Params'!$M$8)^('B. PoF Summary Stats & Params'!$M$6-1)), "Choose Model")) -> 0.04453126621 | E69: =IF('B. PoF Summary Stats & Params'!$C$12="C", B69*'B. PoF Summary Stats & Params'!$I$8*'B. PoF Summary Stats & Params'!$I$12*A69^('B. PoF Summary Stats & Params'!$I$12-1), IF('B. PoF Summary Stats & Params'!$C$12="W", B69*(('B. PoF Summary Stats & Params'!$M$12/'B. PoF Summary Stats & Params'!$O$12)*((A69)/'B. PoF Summary Stats & Params'!$O$12)^('B. PoF Summary Stats & Params'!$M$12-1)), "Choose Model")) -> 0.03048763134
A70: 66 | B70: 1 | C70: =IF('B. PoF Summary Stats & Params'!$C$12="C", B70*'B. PoF Summary Stats & Params'!$I$8*'B. PoF Summary Stats & Params'!$I$10*A70^('B. PoF Summary Stats & Params'!$I$10-1), IF('B. PoF Summary Stats & Params'!$C$12="W", B70*(('B. PoF Summary Stats & Params'!$M$14/'B. PoF Summary Stats & Params'!$O$14)*((A70)/'B. PoF Summary Stats & Params'!$O$14)^('B. PoF Summary Stats & Params'!$M$14-1)), "Choose Model")) -> 0.0657914103 | D70: =IF('B. PoF Summary Stats & Params'!$C$12="C", B70*'B. PoF Summary Stats & Params'!$I$8*'B. PoF Summary Stats & Params'!$I$6*A70^('B. PoF Summary Stats & Params'!$I$6-1), IF('B. PoF Summary Stats & Params'!$C$12="W", B70*(('B. PoF Summary Stats & Params'!$M$6/'B. PoF Summary Stats & Params'!$M$8)*((A70)/'B. PoF Summary Stats & Params'!$M$8)^('B. PoF Summary Stats & Params'!$M$6-1)), "Choose Model")) -> 0.04507389435 | E70: =IF('B. PoF Summary Stats & Params'!$C$12="C", B70*'B. PoF Summary Stats & Params'!$I$8*'B. PoF Summary Stats & Params'!$I$12*A70^('B. PoF Summary Stats & Params'!$I$12-1), IF('B. PoF Summary Stats & Params'!$C$12="W", B70*(('B. PoF Summary Stats & Params'!$M$12/'B. PoF Summary Stats & Params'!$O$12)*((A70)/'B. PoF Summary Stats & Params'!$O$12)^('B. PoF Summary Stats & Params'!$M$12-1)), "Choose Model")) -> 0.03082155901
A71: 67 | B71: 1 | C71: =IF('B. PoF Summary Stats & Params'!$C$12="C", B71*'B. PoF Summary Stats & Params'!$I$8*'B. PoF Summary Stats & Params'!$I$10*A71^('B. PoF Summary Stats & Params'!$I$10-1), IF('B. PoF Summary Stats & Params'!$C$12="W", B71*(('B. PoF Summary Stats & Params'!$M$14/'B. PoF Summary Stats & Params'!$O$14)*((A71)/'B. PoF Summary Stats & Params'!$O$14)^('B. PoF Summary Stats & Params'!$M$14-1)), "Choose Model")) -> 0.06666101916 | D71: =IF('B. PoF Summary Stats & Params'!$C$12="C", B71*'B. PoF Summary Stats & Params'!$I$8*'B. PoF Summary Stats & Params'!$I$6*A71^('B. PoF Summary Stats & Params'!$I$6-1), IF('B. PoF Summary Stats & Params'!$C$12="W", B71*(('B. PoF Summary Stats & Params'!$M$6/'B. PoF Summary Stats & Params'!$M$8)*((A71)/'B. PoF Summary Stats & Params'!$M$8)^('B. PoF Summary Stats & Params'!$M$6-1)), "Choose Model")) -> 0.04561482566 | E71: =IF('B. PoF Summary Stats & Params'!$C$12="C", B71*'B. PoF Summary Stats & Params'!$I$8*'B. PoF Summary Stats & Params'!$I$12*A71^('B. PoF Summary Stats & Params'!$I$12-1), IF('B. PoF Summary Stats & Params'!$C$12="W", B71*(('B. PoF Summary Stats & Params'!$M$12/'B. PoF Summary Stats & Params'!$O$12)*((A71)/'B. PoF Summary Stats & Params'!$O$12)^('B. PoF Summary Stats & Params'!$M$12-1)), "Choose Model")) -> 0.03115404021
A72: 68 | B72: 1 | C72: =IF('B. PoF Summary Stats & Params'!$C$12="C", B72*'B. PoF Summary Stats & Params'!$I$8*'B. PoF Summary Stats & Params'!$I$10*A72^('B. PoF Summary Stats & Params'!$I$10-1), IF('B. PoF Summary Stats & Params'!$C$12="W", B72*(('B. PoF Summary Stats & Params'!$M$14/'B. PoF Summary Stats & Params'!$O$14)*((A72)/'B. PoF Summary Stats & Params'!$O$14)^('B. PoF Summary Stats & Params'!$M$14-1)), "Choose Model")) -> 0.06752898375 | D72: =IF('B. PoF Summary Stats & Params'!$C$12="C", B72*'B. PoF Summary Stats & Params'!$I$8*'B. PoF Summary Stats & Params'!$I$6*A72^('B. PoF Summary Stats & Params'!$I$6-1), IF('B. PoF Summary Stats & Params'!$C$12="W", B72*(('B. PoF Summary Stats & Params'!$M$6/'B. PoF Summary Stats & Params'!$M$8)*((A72)/'B. PoF Summary Stats & Params'!$M$8)^('B. PoF Summary Stats & Params'!$M$6-1)), "Choose Model")) -> 0.04615409066 | E72: =IF('B. PoF Summary Stats & Params'!$C$12="C", B72*'B. PoF Summary Stats & Params'!$I$8*'B. PoF Summary Stats & Params'!$I$12*A72^('B. PoF Summary Stats & Params'!$I$12-1), IF('B. PoF Summary Stats & Params'!$C$12="W", B72*(('B. PoF Summary Stats & Params'!$M$12/'B. PoF Summary Stats & Params'!$O$12)*((A72)/'B. PoF Summary Stats & Params'!$O$12)^('B. PoF Summary Stats & Params'!$M$12-1)), "Choose Model")) -> 0.03148510265
A73: 69 | B73: 1 | C73: =IF('B. PoF Summary Stats & Params'!$C$12="C", B73*'B. PoF Summary Stats & Params'!$I$8*'B. PoF Summary Stats & Params'!$I$10*A73^('B. PoF Summary Stats & Params'!$I$10-1), IF('B. PoF Summary Stats & Params'!$C$12="W", B73*(('B. PoF Summary Stats & Params'!$M$14/'B. PoF Summary Stats & Params'!$O$14)*((A73)/'B. PoF Summary Stats & Params'!$O$14)^('B. PoF Summary Stats & Params'!$M$14-1)), "Choose Model")) -> 0.06839533129 | D73: =IF('B. PoF Summary Stats & Params'!$C$12="C", B73*'B. PoF Summary Stats & Params'!$I$8*'B. PoF Summary Stats & Params'!$I$6*A73^('B. PoF Summary Stats & Params'!$I$6-1), IF('B. PoF Summary Stats & Params'!$C$12="W", B73*(('B. PoF Summary Stats & Params'!$M$6/'B. PoF Summary Stats & Params'!$M$8)*((A73)/'B. PoF Summary Stats & Params'!$M$8)^('B. PoF Summary Stats & Params'!$M$6-1)), "Choose Model")) -> 0.04669171887 | E73: =IF('B. PoF Summary Stats & Params'!$C$12="C", B73*'B. PoF Summary Stats & Params'!$I$8*'B. PoF Summary Stats & Params'!$I$12*A73^('B. PoF Summary Stats & Params'!$I$12-1), IF('B. PoF Summary Stats & Params'!$C$12="W", B73*(('B. PoF Summary Stats & Params'!$M$12/'B. PoF Summary Stats & Params'!$O$12)*((A73)/'B. PoF Summary Stats & Params'!$O$12)^('B. PoF Summary Stats & Params'!$M$12-1)), "Choose Model")) -> 0.03181477313
A74: 70 | B74: 1 | C74: =IF('B. PoF Summary Stats & Params'!$C$12="C", B74*'B. PoF Summary Stats & Params'!$I$8*'B. PoF Summary Stats & Params'!$I$10*A74^('B. PoF Summary Stats & Params'!$I$10-1), IF('B. PoF Summary Stats & Params'!$C$12="W", B74*(('B. PoF Summary Stats & Params'!$M$14/'B. PoF Summary Stats & Params'!$O$14)*((A74)/'B. PoF Summary Stats & Params'!$O$14)^('B. PoF Summary Stats & Params'!$M$14-1)), "Choose Model")) -> 0.06926008816 | D74: =IF('B. PoF Summary Stats & Params'!$C$12="C", B74*'B. PoF Summary Stats & Params'!$I$8*'B. PoF Summary Stats & Params'!$I$6*A74^('B. PoF Summary Stats & Params'!$I$6-1), IF('B. PoF Summary Stats & Params'!$C$12="W", B74*(('B. PoF Summary Stats & Params'!$M$6/'B. PoF Summary Stats & Params'!$M$8)*((A74)/'B. PoF Summary Stats & Params'!$M$8)^('B. PoF Summary Stats & Params'!$M$6-1)), "Choose Model")) -> 0.04722773889 | E74: =IF('B. PoF Summary Stats & Params'!$C$12="C", B74*'B. PoF Summary Stats & Params'!$I$8*'B. PoF Summary Stats & Params'!$I$12*A74^('B. PoF Summary Stats & Params'!$I$12-1), IF('B. PoF Summary Stats & Params'!$C$12="W", B74*(('B. PoF Summary Stats & Params'!$M$12/'B. PoF Summary Stats & Params'!$O$12)*((A74)/'B. PoF Summary Stats & Params'!$O$12)^('B. PoF Summary Stats & Params'!$M$12-1)), "Choose Model")) -> 0.03214307754
A75: 71 | B75: 1 | C75: =IF('B. PoF Summary Stats & Params'!$C$12="C", B75*'B. PoF Summary Stats & Params'!$I$8*'B. PoF Summary Stats & Params'!$I$10*A75^('B. PoF Summary Stats & Params'!$I$10-1), IF('B. PoF Summary Stats & Params'!$C$12="W", B75*(('B. PoF Summary Stats & Params'!$M$14/'B. PoF Summary Stats & Params'!$O$14)*((A75)/'B. PoF Summary Stats & Params'!$O$14)^('B. PoF Summary Stats & Params'!$M$14-1)), "Choose Model")) -> 0.07012327995 | D75: =IF('B. PoF Summary Stats & Params'!$C$12="C", B75*'B. PoF Summary Stats & Params'!$I$8*'B. PoF Summary Stats & Params'!$I$6*A75^('B. PoF Summary Stats & Params'!$I$6-1), IF('B. PoF Summary Stats & Params'!$C$12="W", B75*(('B. PoF Summary Stats & Params'!$M$6/'B. PoF Summary Stats & Params'!$M$8)*((A75)/'B. PoF Summary Stats & Params'!$M$8)^('B. PoF Summary Stats & Params'!$M$6-1)), "Choose Model")) -> 0.04776217839 | E75: =IF('B. PoF Summary Stats & Params'!$C$12="C", B75*'B. PoF Summary Stats & Params'!$I$8*'B. PoF Summary Stats & Params'!$I$12*A75^('B. PoF Summary Stats & Params'!$I$12-1), IF('B. PoF Summary Stats & Params'!$C$12="W", B75*(('B. PoF Summary Stats & Params'!$M$12/'B. PoF Summary Stats & Params'!$O$12)*((A75)/'B. PoF Summary Stats & Params'!$O$12)^('B. PoF Summary Stats & Params'!$M$12-1)), "Choose Model")) -> 0.03247004094
A76: 72 | B76: 1 | C76: =IF('B. PoF Summary Stats & Params'!$C$12="C", B76*'B. PoF Summary Stats & Params'!$I$8*'B. PoF Summary Stats & Params'!$I$10*A76^('B. PoF Summary Stats & Params'!$I$10-1), IF('B. PoF Summary Stats & Params'!$C$12="W", B76*(('B. PoF Summary Stats & Params'!$M$14/'B. PoF Summary Stats & Params'!$O$14)*((A76)/'B. PoF Summary Stats & Params'!$O$14)^('B. PoF Summary Stats & Params'!$M$14-1)), "Choose Model")) -> 0.07098493146 | D76: =IF('B. PoF Summary Stats & Params'!$C$12="C", B76*'B. PoF Summary Stats & Params'!$I$8*'B. PoF Summary Stats & Params'!$I$6*A76^('B. PoF Summary Stats & Params'!$I$6-1), IF('B. PoF Summary Stats & Params'!$C$12="W", B76*(('B. PoF Summary Stats & Params'!$M$6/'B. PoF Summary Stats & Params'!$M$8)*((A76)/'B. PoF Summary Stats & Params'!$M$8)^('B. PoF Summary Stats & Params'!$M$6-1)), "Choose Model")) -> 0.0482950642 | E76: =IF('B. PoF Summary Stats & Params'!$C$12="C", B76*'B. PoF Summary Stats & Params'!$I$8*'B. PoF Summary Stats & Params'!$I$12*A76^('B. PoF Summary Stats & Params'!$I$12-1), IF('B. PoF Summary Stats & Params'!$C$12="W", B76*(('B. PoF Summary Stats & Params'!$M$12/'B. PoF Summary Stats & Params'!$O$12)*((A76)/'B. PoF Summary Stats & Params'!$O$12)^('B. PoF Summary Stats & Params'!$M$12-1)), "Choose Model")) -> 0.03279568758
A77: 73 | B77: 1 | C77: =IF('B. PoF Summary Stats & Params'!$C$12="C", B77*'B. PoF Summary Stats & Params'!$I$8*'B. PoF Summary Stats & Params'!$I$10*A77^('B. PoF Summary Stats & Params'!$I$10-1), IF('B. PoF Summary Stats & Params'!$C$12="W", B77*(('B. PoF Summary Stats & Params'!$M$14/'B. PoF Summary Stats & Params'!$O$14)*((A77)/'B. PoF Summary Stats & Params'!$O$14)^('B. PoF Summary Stats & Params'!$M$14-1)), "Choose Model")) -> 0.0718450668 | D77: =IF('B. PoF Summary Stats & Params'!$C$12="C", B77*'B. PoF Summary Stats & Params'!$I$8*'B. PoF Summary Stats & Params'!$I$6*A77^('B. PoF Summary Stats & Params'!$I$6-1), IF('B. PoF Summary Stats & Params'!$C$12="W", B77*(('B. PoF Summary Stats & Params'!$M$6/'B. PoF Summary Stats & Params'!$M$8)*((A77)/'B. PoF Summary Stats & Params'!$M$8)^('B. PoF Summary Stats & Params'!$M$6-1)), "Choose Model")) -> 0.04882642233 | E77: =IF('B. PoF Summary Stats & Params'!$C$12="C", B77*'B. PoF Summary Stats & Params'!$I$8*'B. PoF Summary Stats & Params'!$I$12*A77^('B. PoF Summary Stats & Params'!$I$12-1), IF('B. PoF Summary Stats & Params'!$C$12="W", B77*(('B. PoF Summary Stats & Params'!$M$12/'B. PoF Summary Stats & Params'!$O$12)*((A77)/'B. PoF Summary Stats & Params'!$O$12)^('B. PoF Summary Stats & Params'!$M$12-1)), "Choose Model")) -> 0.03312004095
A78: 74 | B78: 1 | C78: =IF('B. PoF Summary Stats & Params'!$C$12="C", B78*'B. PoF Summary Stats & Params'!$I$8*'B. PoF Summary Stats & Params'!$I$10*A78^('B. PoF Summary Stats & Params'!$I$10-1), IF('B. PoF Summary Stats & Params'!$C$12="W", B78*(('B. PoF Summary Stats & Params'!$M$14/'B. PoF Summary Stats & Params'!$O$14)*((A78)/'B. PoF Summary Stats & Params'!$O$14)^('B. PoF Summary Stats & Params'!$M$14-1)), "Choose Model")) -> 0.07270370935 | D78: =IF('B. PoF Summary Stats & Params'!$C$12="C", B78*'B. PoF Summary Stats & Params'!$I$8*'B. PoF Summary Stats & Params'!$I$6*A78^('B. PoF Summary Stats & Params'!$I$6-1), IF('B. PoF Summary Stats & Params'!$C$12="W", B78*(('B. PoF Summary Stats & Params'!$M$6/'B. PoF Summary Stats & Params'!$M$8)*((A78)/'B. PoF Summary Stats & Params'!$M$8)^('B. PoF Summary Stats & Params'!$M$6-1)), "Choose Model")) -> 0.04935627798 | E78: =IF('B. PoF Summary Stats & Params'!$C$12="C", B78*'B. PoF Summary Stats & Params'!$I$8*'B. PoF Summary Stats & Params'!$I$12*A78^('B. PoF Summary Stats & Params'!$I$12-1), IF('B. PoF Summary Stats & Params'!$C$12="W", B78*(('B. PoF Summary Stats & Params'!$M$12/'B. PoF Summary Stats & Params'!$O$12)*((A78)/'B. PoF Summary Stats & Params'!$O$12)^('B. PoF Summary Stats & Params'!$M$12-1)), "Choose Model")) -> 0.03344312379
A79: 75 | B79: 1 | C79: =IF('B. PoF Summary Stats & Params'!$C$12="C", B79*'B. PoF Summary Stats & Params'!$I$8*'B. PoF Summary Stats & Params'!$I$10*A79^('B. PoF Summary Stats & Params'!$I$10-1), IF('B. PoF Summary Stats & Params'!$C$12="W", B79*(('B. PoF Summary Stats & Params'!$M$14/'B. PoF Summary Stats & Params'!$O$14)*((A79)/'B. PoF Summary Stats & Params'!$O$14)^('B. PoF Summary Stats & Params'!$M$14-1)), "Choose Model")) -> 0.07356088181 | D79: =IF('B. PoF Summary Stats & Params'!$C$12="C", B79*'B. PoF Summary Stats & Params'!$I$8*'B. PoF Summary Stats & Params'!$I$6*A79^('B. PoF Summary Stats & Params'!$I$6-1), IF('B. PoF Summary Stats & Params'!$C$12="W", B79*(('B. PoF Summary Stats & Params'!$M$6/'B. PoF Summary Stats & Params'!$M$8)*((A79)/'B. PoF Summary Stats & Params'!$M$8)^('B. PoF Summary Stats & Params'!$M$6-1)), "Choose Model")) -> 0.04988465564 | E79: =IF('B. PoF Summary Stats & Params'!$C$12="C", B79*'B. PoF Summary Stats & Params'!$I$8*'B. PoF Summary Stats & Params'!$I$12*A79^('B. PoF Summary Stats & Params'!$I$12-1), IF('B. PoF Summary Stats & Params'!$C$12="W", B79*(('B. PoF Summary Stats & Params'!$M$12/'B. PoF Summary Stats & Params'!$O$12)*((A79)/'B. PoF Summary Stats & Params'!$O$12)^('B. PoF Summary Stats & Params'!$M$12-1)), "Choose Model")) -> 0.03376495815
A80: 76 | B80: 1 | C80: =IF('B. PoF Summary Stats & Params'!$C$12="C", B80*'B. PoF Summary Stats & Params'!$I$8*'B. PoF Summary Stats & Params'!$I$10*A80^('B. PoF Summary Stats & Params'!$I$10-1), IF('B. PoF Summary Stats & Params'!$C$12="W", B80*(('B. PoF Summary Stats & Params'!$M$14/'B. PoF Summary Stats & Params'!$O$14)*((A80)/'B. PoF Summary Stats & Params'!$O$14)^('B. PoF Summary Stats & Params'!$M$14-1)), "Choose Model")) -> 0.07441660625 | D80: =IF('B. PoF Summary Stats & Params'!$C$12="C", B80*'B. PoF Summary Stats & Params'!$I$8*'B. PoF Summary Stats & Params'!$I$6*A80^('B. PoF Summary Stats & Params'!$I$6-1), IF('B. PoF Summary Stats & Params'!$C$12="W", B80*(('B. PoF Summary Stats & Params'!$M$6/'B. PoF Summary Stats & Params'!$M$8)*((A80)/'B. PoF Summary Stats & Params'!$M$8)^('B. PoF Summary Stats & Params'!$M$6-1)), "Choose Model")) -> 0.05041157905 | E80: =IF('B. PoF Summary Stats & Params'!$C$12="C", B80*'B. PoF Summary Stats & Params'!$I$8*'B. PoF Summary Stats & Params'!$I$12*A80^('B. PoF Summary Stats & Params'!$I$12-1), IF('B. PoF Summary Stats & Params'!$C$12="W", B80*(('B. PoF Summary Stats & Params'!$M$12/'B. PoF Summary Stats & Params'!$O$12)*((A80)/'B. PoF Summary Stats & Params'!$O$12)^('B. PoF Summary Stats & Params'!$M$12-1)), "Choose Model")) -> 0.03408556541
A81: 77 | B81: 1 | C81: =IF('B. PoF Summary Stats & Params'!$C$12="C", B81*'B. PoF Summary Stats & Params'!$I$8*'B. PoF Summary Stats & Params'!$I$10*A81^('B. PoF Summary Stats & Params'!$I$10-1), IF('B. PoF Summary Stats & Params'!$C$12="W", B81*(('B. PoF Summary Stats & Params'!$M$14/'B. PoF Summary Stats & Params'!$O$14)*((A81)/'B. PoF Summary Stats & Params'!$O$14)^('B. PoF Summary Stats & Params'!$M$14-1)), "Choose Model")) -> 0.07527090414 | D81: =IF('B. PoF Summary Stats & Params'!$C$12="C", B81*'B. PoF Summary Stats & Params'!$I$8*'B. PoF Summary Stats & Params'!$I$6*A81^('B. PoF Summary Stats & Params'!$I$6-1), IF('B. PoF Summary Stats & Params'!$C$12="W", B81*(('B. PoF Summary Stats & Params'!$M$6/'B. PoF Summary Stats & Params'!$M$8)*((A81)/'B. PoF Summary Stats & Params'!$M$8)^('B. PoF Summary Stats & Params'!$M$6-1)), "Choose Model")) -> 0.05093707126 | E81: =IF('B. PoF Summary Stats & Params'!$C$12="C", B81*'B. PoF Summary Stats & Params'!$I$8*'B. PoF Summary Stats & Params'!$I$12*A81^('B. PoF Summary Stats & Params'!$I$12-1), IF('B. PoF Summary Stats & Params'!$C$12="W", B81*(('B. PoF Summary Stats & Params'!$M$12/'B. PoF Summary Stats & Params'!$O$12)*((A81)/'B. PoF Summary Stats & Params'!$O$12)^('B. PoF Summary Stats & Params'!$M$12-1)), "Choose Model")) -> 0.0344049663
A82: 78 | B82: 1 | C82: =IF('B. PoF Summary Stats & Params'!$C$12="C", B82*'B. PoF Summary Stats & Params'!$I$8*'B. PoF Summary Stats & Params'!$I$10*A82^('B. PoF Summary Stats & Params'!$I$10-1), IF('B. PoF Summary Stats & Params'!$C$12="W", B82*(('B. PoF Summary Stats & Params'!$M$14/'B. PoF Summary Stats & Params'!$O$14)*((A82)/'B. PoF Summary Stats & Params'!$O$14)^('B. PoF Summary Stats & Params'!$M$14-1)), "Choose Model")) -> 0.07612379632 | D82: =IF('B. PoF Summary Stats & Params'!$C$12="C", B82*'B. PoF Summary Stats & Params'!$I$8*'B. PoF Summary Stats & Params'!$I$6*A82^('B. PoF Summary Stats & Params'!$I$6-1), IF('B. PoF Summary Stats & Params'!$C$12="W", B82*(('B. PoF Summary Stats & Params'!$M$6/'B. PoF Summary Stats & Params'!$M$8)*((A82)/'B. PoF Summary Stats & Params'!$M$8)^('B. PoF Summary Stats & Params'!$M$6-1)), "Choose Model")) -> 0.05146115468 | E82: =IF('B. PoF Summary Stats & Params'!$C$12="C", B82*'B. PoF Summary Stats & Params'!$I$8*'B. PoF Summary Stats & Params'!$I$12*A82^('B. PoF Summary Stats & Params'!$I$12-1), IF('B. PoF Summary Stats & Params'!$C$12="W", B82*(('B. PoF Summary Stats & Params'!$M$12/'B. PoF Summary Stats & Params'!$O$12)*((A82)/'B. PoF Summary Stats & Params'!$O$12)^('B. PoF Summary Stats & Params'!$M$12-1)), "Choose Model")) -> 0.03472318094
A83: 79 | B83: 1 | C83: =IF('B. PoF Summary Stats & Params'!$C$12="C", B83*'B. PoF Summary Stats & Params'!$I$8*'B. PoF Summary Stats & Params'!$I$10*A83^('B. PoF Summary Stats & Params'!$I$10-1), IF('B. PoF Summary Stats & Params'!$C$12="W", B83*(('B. PoF Summary Stats & Params'!$M$14/'B. PoF Summary Stats & Params'!$O$14)*((A83)/'B. PoF Summary Stats & Params'!$O$14)^('B. PoF Summary Stats & Params'!$M$14-1)), "Choose Model")) -> 0.07697530309 | D83: =IF('B. PoF Summary Stats & Params'!$C$12="C", B83*'B. PoF Summary Stats & Params'!$I$8*'B. PoF Summary Stats & Params'!$I$6*A83^('B. PoF Summary Stats & Params'!$I$6-1), IF('B. PoF Summary Stats & Params'!$C$12="W", B83*(('B. PoF Summary Stats & Params'!$M$6/'B. PoF Summary Stats & Params'!$M$8)*((A83)/'B. PoF Summary Stats & Params'!$M$8)^('B. PoF Summary Stats & Params'!$M$6-1)), "Choose Model")) -> 0.05198385108 | E83: =IF('B. PoF Summary Stats & Params'!$C$12="C", B83*'B. PoF Summary Stats & Params'!$I$8*'B. PoF Summary Stats & Params'!$I$12*A83^('B. PoF Summary Stats & Params'!$I$12-1), IF('B. PoF Summary Stats & Params'!$C$12="W", B83*(('B. PoF Summary Stats & Params'!$M$12/'B. PoF Summary Stats & Params'!$O$12)*((A83)/'B. PoF Summary Stats & Params'!$O$12)^('B. PoF Summary Stats & Params'!$M$12-1)), "Choose Model")) -> 0.03504022886
A84: 80 | B84: 1 | C84: =IF('B. PoF Summary Stats & Params'!$C$12="C", B84*'B. PoF Summary Stats & Params'!$I$8*'B. PoF Summary Stats & Params'!$I$10*A84^('B. PoF Summary Stats & Params'!$I$10-1), IF('B. PoF Summary Stats & Params'!$C$12="W", B84*(('B. PoF Summary Stats & Params'!$M$14/'B. PoF Summary Stats & Params'!$O$14)*((A84)/'B. PoF Summary Stats & Params'!$O$14)^('B. PoF Summary Stats & Params'!$M$14-1)), "Choose Model")) -> 0.07782544419 | D84: =IF('B. PoF Summary Stats & Params'!$C$12="C", B84*'B. PoF Summary Stats & Params'!$I$8*'B. PoF Summary Stats & Params'!$I$6*A84^('B. PoF Summary Stats & Params'!$I$6-1), IF('B. PoF Summary Stats & Params'!$C$12="W", B84*(('B. PoF Summary Stats & Params'!$M$6/'B. PoF Summary Stats & Params'!$M$8)*((A84)/'B. PoF Summary Stats & Params'!$M$8)^('B. PoF Summary Stats & Params'!$M$6-1)), "Choose Model")) -> 0.05250518161 | E84: =IF('B. PoF Summary Stats & Params'!$C$12="C", B84*'B. PoF Summary Stats & Params'!$I$8*'B. PoF Summary Stats & Params'!$I$12*A84^('B. PoF Summary Stats & Params'!$I$12-1), IF('B. PoF Summary Stats & Params'!$C$12="W", B84*(('B. PoF Summary Stats & Params'!$M$12/'B. PoF Summary Stats & Params'!$O$12)*((A84)/'B. PoF Summary Stats & Params'!$O$12)^('B. PoF Summary Stats & Params'!$M$12-1)), "Choose Model")) -> 0.03535612902
A85: 81 | B85: 1 | C85: =IF('B. PoF Summary Stats & Params'!$C$12="C", B85*'B. PoF Summary Stats & Params'!$I$8*'B. PoF Summary Stats & Params'!$I$10*A85^('B. PoF Summary Stats & Params'!$I$10-1), IF('B. PoF Summary Stats & Params'!$C$12="W", B85*(('B. PoF Summary Stats & Params'!$M$14/'B. PoF Summary Stats & Params'!$O$14)*((A85)/'B. PoF Summary Stats & Params'!$O$14)^('B. PoF Summary Stats & Params'!$M$14-1)), "Choose Model")) -> 0.07867423886 | D85: =IF('B. PoF Summary Stats & Params'!$C$12="C", B85*'B. PoF Summary Stats & Params'!$I$8*'B. PoF Summary Stats & Params'!$I$6*A85^('B. PoF Summary Stats & Params'!$I$6-1), IF('B. PoF Summary Stats & Params'!$C$12="W", B85*(('B. PoF Summary Stats & Params'!$M$6/'B. PoF Summary Stats & Params'!$M$8)*((A85)/'B. PoF Summary Stats & Params'!$M$8)^('B. PoF Summary Stats & Params'!$M$6-1)), "Choose Model")) -> 0.05302516686 | E85: =IF('B. PoF Summary Stats & Params'!$C$12="C", B85*'B. PoF Summary Stats & Params'!$I$8*'B. PoF Summary Stats & Params'!$I$12*A85^('B. PoF Summary Stats & Params'!$I$12-1), IF('B. PoF Summary Stats & Params'!$C$12="W", B85*(('B. PoF Summary Stats & Params'!$M$12/'B. PoF Summary Stats & Params'!$O$12)*((A85)/'B. PoF Summary Stats & Params'!$O$12)^('B. PoF Summary Stats & Params'!$M$12-1)), "Choose Model")) -> 0.03567089986
A86: 82 | B86: 1 | C86: =IF('B. PoF Summary Stats & Params'!$C$12="C", B86*'B. PoF Summary Stats & Params'!$I$8*'B. PoF Summary Stats & Params'!$I$10*A86^('B. PoF Summary Stats & Params'!$I$10-1), IF('B. PoF Summary Stats & Params'!$C$12="W", B86*(('B. PoF Summary Stats & Params'!$M$14/'B. PoF Summary Stats & Params'!$O$14)*((A86)/'B. PoF Summary Stats & Params'!$O$14)^('B. PoF Summary Stats & Params'!$M$14-1)), "Choose Model")) -> 0.07952170579 | D86: =IF('B. PoF Summary Stats & Params'!$C$12="C", B86*'B. PoF Summary Stats & Params'!$I$8*'B. PoF Summary Stats & Params'!$I$6*A86^('B. PoF Summary Stats & Params'!$I$6-1), IF('B. PoF Summary Stats & Params'!$C$12="W", B86*(('B. PoF Summary Stats & Params'!$M$6/'B. PoF Summary Stats & Params'!$M$8)*((A86)/'B. PoF Summary Stats & Params'!$M$8)^('B. PoF Summary Stats & Params'!$M$6-1)), "Choose Model")) -> 0.05354382683 | E86: =IF('B. PoF Summary Stats & Params'!$C$12="C", B86*'B. PoF Summary Stats & Params'!$I$8*'B. PoF Summary Stats & Params'!$I$12*A86^('B. PoF Summary Stats & Params'!$I$12-1), IF('B. PoF Summary Stats & Params'!$C$12="W", B86*(('B. PoF Summary Stats & Params'!$M$12/'B. PoF Summary Stats & Params'!$O$12)*((A86)/'B. PoF Summary Stats & Params'!$O$12)^('B. PoF Summary Stats & Params'!$M$12-1)), "Choose Model")) -> 0.03598455928
A87: 83 | B87: 1 | C87: =IF('B. PoF Summary Stats & Params'!$C$12="C", B87*'B. PoF Summary Stats & Params'!$I$8*'B. PoF Summary Stats & Params'!$I$10*A87^('B. PoF Summary Stats & Params'!$I$10-1), IF('B. PoF Summary Stats & Params'!$C$12="W", B87*(('B. PoF Summary Stats & Params'!$M$14/'B. PoF Summary Stats & Params'!$O$14)*((A87)/'B. PoF Summary Stats & Params'!$O$14)^('B. PoF Summary Stats & Params'!$M$14-1)), "Choose Model")) -> 0.08036786323 | D87: =IF('B. PoF Summary Stats & Params'!$C$12="C", B87*'B. PoF Summary Stats & Params'!$I$8*'B. PoF Summary Stats & Params'!$I$6*A87^('B. PoF Summary Stats & Params'!$I$6-1), IF('B. PoF Summary Stats & Params'!$C$12="W", B87*(('B. PoF Summary Stats & Params'!$M$6/'B. PoF Summary Stats & Params'!$M$8)*((A87)/'B. PoF Summary Stats & Params'!$M$8)^('B. PoF Summary Stats & Params'!$M$6-1)), "Choose Model")) -> 0.05406118102 | E87: =IF('B. PoF Summary Stats & Params'!$C$12="C", B87*'B. PoF Summary Stats & Params'!$I$8*'B. PoF Summary Stats & Params'!$I$12*A87^('B. PoF Summary Stats & Params'!$I$12-1), IF('B. PoF Summary Stats & Params'!$C$12="W", B87*(('B. PoF Summary Stats & Params'!$M$12/'B. PoF Summary Stats & Params'!$O$12)*((A87)/'B. PoF Summary Stats & Params'!$O$12)^('B. PoF Summary Stats & Params'!$M$12-1)), "Choose Model")) -> 0.03629712468
A88: 84 | B88: 1 | C88: =IF('B. PoF Summary Stats & Params'!$C$12="C", B88*'B. PoF Summary Stats & Params'!$I$8*'B. PoF Summary Stats & Params'!$I$10*A88^('B. PoF Summary Stats & Params'!$I$10-1), IF('B. PoF Summary Stats & Params'!$C$12="W", B88*(('B. PoF Summary Stats & Params'!$M$14/'B. PoF Summary Stats & Params'!$O$14)*((A88)/'B. PoF Summary Stats & Params'!$O$14)^('B. PoF Summary Stats & Params'!$M$14-1)), "Choose Model")) -> 0.08121272894 | D88: =IF('B. PoF Summary Stats & Params'!$C$12="C", B88*'B. PoF Summary Stats & Params'!$I$8*'B. PoF Summary Stats & Params'!$I$6*A88^('B. PoF Summary Stats & Params'!$I$6-1), IF('B. PoF Summary Stats & Params'!$C$12="W", B88*(('B. PoF Summary Stats & Params'!$M$6/'B. PoF Summary Stats & Params'!$M$8)*((A88)/'B. PoF Summary Stats & Params'!$M$8)^('B. PoF Summary Stats & Params'!$M$6-1)), "Choose Model")) -> 0.05457724837 | E88: =IF('B. PoF Summary Stats & Params'!$C$12="C", B88*'B. PoF Summary Stats & Params'!$I$8*'B. PoF Summary Stats & Params'!$I$12*A88^('B. PoF Summary Stats & Params'!$I$12-1), IF('B. PoF Summary Stats & Params'!$C$12="W", B88*(('B. PoF Summary Stats & Params'!$M$12/'B. PoF Summary Stats & Params'!$O$12)*((A88)/'B. PoF Summary Stats & Params'!$O$12)^('B. PoF Summary Stats & Params'!$M$12-1)), "Choose Model")) -> 0.036608613
A89: 85 | B89: 1 | C89: =IF('B. PoF Summary Stats & Params'!$C$12="C", B89*'B. PoF Summary Stats & Params'!$I$8*'B. PoF Summary Stats & Params'!$I$10*A89^('B. PoF Summary Stats & Params'!$I$10-1), IF('B. PoF Summary Stats & Params'!$C$12="W", B89*(('B. PoF Summary Stats & Params'!$M$14/'B. PoF Summary Stats & Params'!$O$14)*((A89)/'B. PoF Summary Stats & Params'!$O$14)^('B. PoF Summary Stats & Params'!$M$14-1)), "Choose Model")) -> 0.08205632024 | D89: =IF('B. PoF Summary Stats & Params'!$C$12="C", B89*'B. PoF Summary Stats & Params'!$I$8*'B. PoF Summary Stats & Params'!$I$6*A89^('B. PoF Summary Stats & Params'!$I$6-1), IF('B. PoF Summary Stats & Params'!$C$12="W", B89*(('B. PoF Summary Stats & Params'!$M$6/'B. PoF Summary Stats & Params'!$M$8)*((A89)/'B. PoF Summary Stats & Params'!$M$8)^('B. PoF Summary Stats & Params'!$M$6-1)), "Choose Model")) -> 0.05509204735 | E89: =IF('B. PoF Summary Stats & Params'!$C$12="C", B89*'B. PoF Summary Stats & Params'!$I$8*'B. PoF Summary Stats & Params'!$I$12*A89^('B. PoF Summary Stats & Params'!$I$12-1), IF('B. PoF Summary Stats & Params'!$C$12="W", B89*(('B. PoF Summary Stats & Params'!$M$12/'B. PoF Summary Stats & Params'!$O$12)*((A89)/'B. PoF Summary Stats & Params'!$O$12)^('B. PoF Summary Stats & Params'!$M$12-1)), "Choose Model")) -> 0.0369190407
A90: 86 | B90: 1 | C90: =IF('B. PoF Summary Stats & Params'!$C$12="C", B90*'B. PoF Summary Stats & Params'!$I$8*'B. PoF Summary Stats & Params'!$I$10*A90^('B. PoF Summary Stats & Params'!$I$10-1), IF('B. PoF Summary Stats & Params'!$C$12="W", B90*(('B. PoF Summary Stats & Params'!$M$14/'B. PoF Summary Stats & Params'!$O$14)*((A90)/'B. PoF Summary Stats & Params'!$O$14)^('B. PoF Summary Stats & Params'!$M$14-1)), "Choose Model")) -> 0.082898654 | D90: =IF('B. PoF Summary Stats & Params'!$C$12="C", B90*'B. PoF Summary Stats & Params'!$I$8*'B. PoF Summary Stats & Params'!$I$6*A90^('B. PoF Summary Stats & Params'!$I$6-1), IF('B. PoF Summary Stats & Params'!$C$12="W", B90*(('B. PoF Summary Stats & Params'!$M$6/'B. PoF Summary Stats & Params'!$M$8)*((A90)/'B. PoF Summary Stats & Params'!$M$8)^('B. PoF Summary Stats & Params'!$M$6-1)), "Choose Model")) -> 0.05560559596 | E90: =IF('B. PoF Summary Stats & Params'!$C$12="C", B90*'B. PoF Summary Stats & Params'!$I$8*'B. PoF Summary Stats & Params'!$I$12*A90^('B. PoF Summary Stats & Params'!$I$12-1), IF('B. PoF Summary Stats & Params'!$C$12="W", B90*(('B. PoF Summary Stats & Params'!$M$12/'B. PoF Summary Stats & Params'!$O$12)*((A90)/'B. PoF Summary Stats & Params'!$O$12)^('B. PoF Summary Stats & Params'!$M$12-1)), "Choose Model")) -> 0.03722842381
A91: 87 | B91: 1 | C91: =IF('B. PoF Summary Stats & Params'!$C$12="C", B91*'B. PoF Summary Stats & Params'!$I$8*'B. PoF Summary Stats & Params'!$I$10*A91^('B. PoF Summary Stats & Params'!$I$10-1), IF('B. PoF Summary Stats & Params'!$C$12="W", B91*(('B. PoF Summary Stats & Params'!$M$14/'B. PoF Summary Stats & Params'!$O$14)*((A91)/'B. PoF Summary Stats & Params'!$O$14)^('B. PoF Summary Stats & Params'!$M$14-1)), "Choose Model")) -> 0.0837397467 | D91: =IF('B. PoF Summary Stats & Params'!$C$12="C", B91*'B. PoF Summary Stats & Params'!$I$8*'B. PoF Summary Stats & Params'!$I$6*A91^('B. PoF Summary Stats & Params'!$I$6-1), IF('B. PoF Summary Stats & Params'!$C$12="W", B91*(('B. PoF Summary Stats & Params'!$M$6/'B. PoF Summary Stats & Params'!$M$8)*((A91)/'B. PoF Summary Stats & Params'!$M$8)^('B. PoF Summary Stats & Params'!$M$6-1)), "Choose Model")) -> 0.05611791171 | E91: =IF('B. PoF Summary Stats & Params'!$C$12="C", B91*'B. PoF Summary Stats & Params'!$I$8*'B. PoF Summary Stats & Params'!$I$12*A91^('B. PoF Summary Stats & Params'!$I$12-1), IF('B. PoF Summary Stats & Params'!$C$12="W", B91*(('B. PoF Summary Stats & Params'!$M$12/'B. PoF Summary Stats & Params'!$O$12)*((A91)/'B. PoF Summary Stats & Params'!$O$12)^('B. PoF Summary Stats & Params'!$M$12-1)), "Choose Model")) -> 0.03753677793
A92: 88 | B92: 1 | C92: =IF('B. PoF Summary Stats & Params'!$C$12="C", B92*'B. PoF Summary Stats & Params'!$I$8*'B. PoF Summary Stats & Params'!$I$10*A92^('B. PoF Summary Stats & Params'!$I$10-1), IF('B. PoF Summary Stats & Params'!$C$12="W", B92*(('B. PoF Summary Stats & Params'!$M$14/'B. PoF Summary Stats & Params'!$O$14)*((A92)/'B. PoF Summary Stats & Params'!$O$14)^('B. PoF Summary Stats & Params'!$M$14-1)), "Choose Model")) -> 0.08457961439 | D92: =IF('B. PoF Summary Stats & Params'!$C$12="C", B92*'B. PoF Summary Stats & Params'!$I$8*'B. PoF Summary Stats & Params'!$I$6*A92^('B. PoF Summary Stats & Params'!$I$6-1), IF('B. PoF Summary Stats & Params'!$C$12="W", B92*(('B. PoF Summary Stats & Params'!$M$6/'B. PoF Summary Stats & Params'!$M$8)*((A92)/'B. PoF Summary Stats & Params'!$M$8)^('B. PoF Summary Stats & Params'!$M$6-1)), "Choose Model")) -> 0.05662901168 | E92: =IF('B. PoF Summary Stats & Params'!$C$12="C", B92*'B. PoF Summary Stats & Params'!$I$8*'B. PoF Summary Stats & Params'!$I$12*A92^('B. PoF Summary Stats & Params'!$I$12-1), IF('B. PoF Summary Stats & Params'!$C$12="W", B92*(('B. PoF Summary Stats & Params'!$M$12/'B. PoF Summary Stats & Params'!$O$12)*((A92)/'B. PoF Summary Stats & Params'!$O$12)^('B. PoF Summary Stats & Params'!$M$12-1)), "Choose Model")) -> 0.03784411826
A93: 89 | B93: 1 | C93: =IF('B. PoF Summary Stats & Params'!$C$12="C", B93*'B. PoF Summary Stats & Params'!$I$8*'B. PoF Summary Stats & Params'!$I$10*A93^('B. PoF Summary Stats & Params'!$I$10-1), IF('B. PoF Summary Stats & Params'!$C$12="W", B93*(('B. PoF Summary Stats & Params'!$M$14/'B. PoF Summary Stats & Params'!$O$14)*((A93)/'B. PoF Summary Stats & Params'!$O$14)^('B. PoF Summary Stats & Params'!$M$14-1)), "Choose Model")) -> 0.08541827275 | D93: =IF('B. PoF Summary Stats & Params'!$C$12="C", B93*'B. PoF Summary Stats & Params'!$I$8*'B. PoF Summary Stats & Params'!$I$6*A93^('B. PoF Summary Stats & Params'!$I$6-1), IF('B. PoF Summary Stats & Params'!$C$12="W", B93*(('B. PoF Summary Stats & Params'!$M$6/'B. PoF Summary Stats & Params'!$M$8)*((A93)/'B. PoF Summary Stats & Params'!$M$8)^('B. PoF Summary Stats & Params'!$M$6-1)), "Choose Model")) -> 0.05713891253 | E93: =IF('B. PoF Summary Stats & Params'!$C$12="C", B93*'B. PoF Summary Stats & Params'!$I$8*'B. PoF Summary Stats & Params'!$I$12*A93^('B. PoF Summary Stats & Params'!$I$12-1), IF('B. PoF Summary Stats & Params'!$C$12="W", B93*(('B. PoF Summary Stats & Params'!$M$12/'B. PoF Summary Stats & Params'!$O$12)*((A93)/'B. PoF Summary Stats & Params'!$O$12)^('B. PoF Summary Stats & Params'!$M$12-1)), "Choose Model")) -> 0.03815045958
A94: 90 | B94: 1 | C94: =IF('B. PoF Summary Stats & Params'!$C$12="C", B94*'B. PoF Summary Stats & Params'!$I$8*'B. PoF Summary Stats & Params'!$I$10*A94^('B. PoF Summary Stats & Params'!$I$10-1), IF('B. PoF Summary Stats & Params'!$C$12="W", B94*(('B. PoF Summary Stats & Params'!$M$14/'B. PoF Summary Stats & Params'!$O$14)*((A94)/'B. PoF Summary Stats & Params'!$O$14)^('B. PoF Summary Stats & Params'!$M$14-1)), "Choose Model")) -> 0.08625573709 | D94: =IF('B. PoF Summary Stats & Params'!$C$12="C", B94*'B. PoF Summary Stats & Params'!$I$8*'B. PoF Summary Stats & Params'!$I$6*A94^('B. PoF Summary Stats & Params'!$I$6-1), IF('B. PoF Summary Stats & Params'!$C$12="W", B94*(('B. PoF Summary Stats & Params'!$M$6/'B. PoF Summary Stats & Params'!$M$8)*((A94)/'B. PoF Summary Stats & Params'!$M$8)^('B. PoF Summary Stats & Params'!$M$6-1)), "Choose Model")) -> 0.05764763049 | E94: =IF('B. PoF Summary Stats & Params'!$C$12="C", B94*'B. PoF Summary Stats & Params'!$I$8*'B. PoF Summary Stats & Params'!$I$12*A94^('B. PoF Summary Stats & Params'!$I$12-1), IF('B. PoF Summary Stats & Params'!$C$12="W", B94*(('B. PoF Summary Stats & Params'!$M$12/'B. PoF Summary Stats & Params'!$O$12)*((A94)/'B. PoF Summary Stats & Params'!$O$12)^('B. PoF Summary Stats & Params'!$M$12-1)), "Choose Model")) -> 0.03845581633
A95: 91 | B95: 1 | C95: =IF('B. PoF Summary Stats & Params'!$C$12="C", B95*'B. PoF Summary Stats & Params'!$I$8*'B. PoF Summary Stats & Params'!$I$10*A95^('B. PoF Summary Stats & Params'!$I$10-1), IF('B. PoF Summary Stats & Params'!$C$12="W", B95*(('B. PoF Summary Stats & Params'!$M$14/'B. PoF Summary Stats & Params'!$O$14)*((A95)/'B. PoF Summary Stats & Params'!$O$14)^('B. PoF Summary Stats & Params'!$M$14-1)), "Choose Model")) -> 0.08709202233 | D95: =IF('B. PoF Summary Stats & Params'!$C$12="C", B95*'B. PoF Summary Stats & Params'!$I$8*'B. PoF Summary Stats & Params'!$I$6*A95^('B. PoF Summary Stats & Params'!$I$6-1), IF('B. PoF Summary Stats & Params'!$C$12="W", B95*(('B. PoF Summary Stats & Params'!$M$6/'B. PoF Summary Stats & Params'!$M$8)*((A95)/'B. PoF Summary Stats & Params'!$M$8)^('B. PoF Summary Stats & Params'!$M$6-1)), "Choose Model")) -> 0.05815518142 | E95: =IF('B. PoF Summary Stats & Params'!$C$12="C", B95*'B. PoF Summary Stats & Params'!$I$8*'B. PoF Summary Stats & Params'!$I$12*A95^('B. PoF Summary Stats & Params'!$I$12-1), IF('B. PoF Summary Stats & Params'!$C$12="W", B95*(('B. PoF Summary Stats & Params'!$M$12/'B. PoF Summary Stats & Params'!$O$12)*((A95)/'B. PoF Summary Stats & Params'!$O$12)^('B. PoF Summary Stats & Params'!$M$12-1)), "Choose Model")) -> 0.03876020254
A96: 92 | B96: 1 | C96: =IF('B. PoF Summary Stats & Params'!$C$12="C", B96*'B. PoF Summary Stats & Params'!$I$8*'B. PoF Summary Stats & Params'!$I$10*A96^('B. PoF Summary Stats & Params'!$I$10-1), IF('B. PoF Summary Stats & Params'!$C$12="W", B96*(('B. PoF Summary Stats & Params'!$M$14/'B. PoF Summary Stats & Params'!$O$14)*((A96)/'B. PoF Summary Stats & Params'!$O$14)^('B. PoF Summary Stats & Params'!$M$14-1)), "Choose Model")) -> 0.08792714308 | D96: =IF('B. PoF Summary Stats & Params'!$C$12="C", B96*'B. PoF Summary Stats & Params'!$I$8*'B. PoF Summary Stats & Params'!$I$6*A96^('B. PoF Summary Stats & Params'!$I$6-1), IF('B. PoF Summary Stats & Params'!$C$12="W", B96*(('B. PoF Summary Stats & Params'!$M$6/'B. PoF Summary Stats & Params'!$M$8)*((A96)/'B. PoF Summary Stats & Params'!$M$8)^('B. PoF Summary Stats & Params'!$M$6-1)), "Choose Model")) -> 0.05866158076 | E96: =IF('B. PoF Summary Stats & Params'!$C$12="C", B96*'B. PoF Summary Stats & Params'!$I$8*'B. PoF Summary Stats & Params'!$I$12*A96^('B. PoF Summary Stats & Params'!$I$12-1), IF('B. PoF Summary Stats & Params'!$C$12="W", B96*(('B. PoF Summary Stats & Params'!$M$12/'B. PoF Summary Stats & Params'!$O$12)*((A96)/'B. PoF Summary Stats & Params'!$O$12)^('B. PoF Summary Stats & Params'!$M$12-1)), "Choose Model")) -> 0.03906363192
A97: 93 | B97: 1 | C97: =IF('B. PoF Summary Stats & Params'!$C$12="C", B97*'B. PoF Summary Stats & Params'!$I$8*'B. PoF Summary Stats & Params'!$I$10*A97^('B. PoF Summary Stats & Params'!$I$10-1), IF('B. PoF Summary Stats & Params'!$C$12="W", B97*(('B. PoF Summary Stats & Params'!$M$14/'B. PoF Summary Stats & Params'!$O$14)*((A97)/'B. PoF Summary Stats & Params'!$O$14)^('B. PoF Summary Stats & Params'!$M$14-1)), "Choose Model")) -> 0.08876111358 | D97: =IF('B. PoF Summary Stats & Params'!$C$12="C", B97*'B. PoF Summary Stats & Params'!$I$8*'B. PoF Summary Stats & Params'!$I$6*A97^('B. PoF Summary Stats & Params'!$I$6-1), IF('B. PoF Summary Stats & Params'!$C$12="W", B97*(('B. PoF Summary Stats & Params'!$M$6/'B. PoF Summary Stats & Params'!$M$8)*((A97)/'B. PoF Summary Stats & Params'!$M$8)^('B. PoF Summary Stats & Params'!$M$6-1)), "Choose Model")) -> 0.0591668436 | E97: =IF('B. PoF Summary Stats & Params'!$C$12="C", B97*'B. PoF Summary Stats & Params'!$I$8*'B. PoF Summary Stats & Params'!$I$12*A97^('B. PoF Summary Stats & Params'!$I$12-1), IF('B. PoF Summary Stats & Params'!$C$12="W", B97*(('B. PoF Summary Stats & Params'!$M$12/'B. PoF Summary Stats & Params'!$O$12)*((A97)/'B. PoF Summary Stats & Params'!$O$12)^('B. PoF Summary Stats & Params'!$M$12-1)), "Choose Model")) -> 0.03936611784
A98: 94 | B98: 1 | C98: =IF('B. PoF Summary Stats & Params'!$C$12="C", B98*'B. PoF Summary Stats & Params'!$I$8*'B. PoF Summary Stats & Params'!$I$10*A98^('B. PoF Summary Stats & Params'!$I$10-1), IF('B. PoF Summary Stats & Params'!$C$12="W", B98*(('B. PoF Summary Stats & Params'!$M$14/'B. PoF Summary Stats & Params'!$O$14)*((A98)/'B. PoF Summary Stats & Params'!$O$14)^('B. PoF Summary Stats & Params'!$M$14-1)), "Choose Model")) -> 0.08959394776 | D98: =IF('B. PoF Summary Stats & Params'!$C$12="C", B98*'B. PoF Summary Stats & Params'!$I$8*'B. PoF Summary Stats & Params'!$I$6*A98^('B. PoF Summary Stats & Params'!$I$6-1), IF('B. PoF Summary Stats & Params'!$C$12="W", B98*(('B. PoF Summary Stats & Params'!$M$6/'B. PoF Summary Stats & Params'!$M$8)*((A98)/'B. PoF Summary Stats & Params'!$M$8)^('B. PoF Summary Stats & Params'!$M$6-1)), "Choose Model")) -> 0.05967098469 | E98: =IF('B. PoF Summary Stats & Params'!$C$12="C", B98*'B. PoF Summary Stats & Params'!$I$8*'B. PoF Summary Stats & Params'!$I$12*A98^('B. PoF Summary Stats & Params'!$I$12-1), IF('B. PoF Summary Stats & Params'!$C$12="W", B98*(('B. PoF Summary Stats & Params'!$M$12/'B. PoF Summary Stats & Params'!$O$12)*((A98)/'B. PoF Summary Stats & Params'!$O$12)^('B. PoF Summary Stats & Params'!$M$12-1)), "Choose Model")) -> 0.03966767331
A99: 95 | B99: 1 | C99: =IF('B. PoF Summary Stats & Params'!$C$12="C", B99*'B. PoF Summary Stats & Params'!$I$8*'B. PoF Summary Stats & Params'!$I$10*A99^('B. PoF Summary Stats & Params'!$I$10-1), IF('B. PoF Summary Stats & Params'!$C$12="W", B99*(('B. PoF Summary Stats & Params'!$M$14/'B. PoF Summary Stats & Params'!$O$14)*((A99)/'B. PoF Summary Stats & Params'!$O$14)^('B. PoF Summary Stats & Params'!$M$14-1)), "Choose Model")) -> 0.09042565924 | D99: =IF('B. PoF Summary Stats & Params'!$C$12="C", B99*'B. PoF Summary Stats & Params'!$I$8*'B. PoF Summary Stats & Params'!$I$6*A99^('B. PoF Summary Stats & Params'!$I$6-1), IF('B. PoF Summary Stats & Params'!$C$12="W", B99*(('B. PoF Summary Stats & Params'!$M$6/'B. PoF Summary Stats & Params'!$M$8)*((A99)/'B. PoF Summary Stats & Params'!$M$8)^('B. PoF Summary Stats & Params'!$M$6-1)), "Choose Model")) -> 0.06017401839 | E99: =IF('B. PoF Summary Stats & Params'!$C$12="C", B99*'B. PoF Summary Stats & Params'!$I$8*'B. PoF Summary Stats & Params'!$I$12*A99^('B. PoF Summary Stats & Params'!$I$12-1), IF('B. PoF Summary Stats & Params'!$C$12="W", B99*(('B. PoF Summary Stats & Params'!$M$12/'B. PoF Summary Stats & Params'!$O$12)*((A99)/'B. PoF Summary Stats & Params'!$O$12)^('B. PoF Summary Stats & Params'!$M$12-1)), "Choose Model")) -> 0.03996831106
A100: 96 | B100: 1 | C100: =IF('B. PoF Summary Stats & Params'!$C$12="C", B100*'B. PoF Summary Stats & Params'!$I$8*'B. PoF Summary Stats & Params'!$I$10*A100^('B. PoF Summary Stats & Params'!$I$10-1), IF('B. PoF Summary Stats & Params'!$C$12="W", B100*(('B. PoF Summary Stats & Params'!$M$14/'B. PoF Summary Stats & Params'!$O$14)*((A100)/'B. PoF Summary Stats & Params'!$O$14)^('B. PoF Summary Stats & Params'!$M$14-1)), "Choose Model")) -> 0.09125626132 | D100: =IF('B. PoF Summary Stats & Params'!$C$12="C", B100*'B. PoF Summary Stats & Params'!$I$8*'B. PoF Summary Stats & Params'!$I$6*A100^('B. PoF Summary Stats & Params'!$I$6-1), IF('B. PoF Summary Stats & Params'!$C$12="W", B100*(('B. PoF Summary Stats & Params'!$M$6/'B. PoF Summary Stats & Params'!$M$8)*((A100)/'B. PoF Summary Stats & Params'!$M$8)^('B. PoF Summary Stats & Params'!$M$6-1)), "Choose Model")) -> 0.06067595876 | E100: =IF('B. PoF Summary Stats & Params'!$C$12="C", B100*'B. PoF Summary Stats & Params'!$I$8*'B. PoF Summary Stats & Params'!$I$12*A100^('B. PoF Summary Stats & Params'!$I$12-1), IF('B. PoF Summary Stats & Params'!$C$12="W", B100*(('B. PoF Summary Stats & Params'!$M$12/'B. PoF Summary Stats & Params'!$O$12)*((A100)/'B. PoF Summary Stats & Params'!$O$12)^('B. PoF Summary Stats & Params'!$M$12-1)), "Choose Model")) -> 0.0402680435
A101: 97 | B101: 1 | C101: =IF('B. PoF Summary Stats & Params'!$C$12="C", B101*'B. PoF Summary Stats & Params'!$I$8*'B. PoF Summary Stats & Params'!$I$10*A101^('B. PoF Summary Stats & Params'!$I$10-1), IF('B. PoF Summary Stats & Params'!$C$12="W", B101*(('B. PoF Summary Stats & Params'!$M$14/'B. PoF Summary Stats & Params'!$O$14)*((A101)/'B. PoF Summary Stats & Params'!$O$14)^('B. PoF Summary Stats & Params'!$M$14-1)), "Choose Model")) -> 0.09208576701 | D101: =IF('B. PoF Summary Stats & Params'!$C$12="C", B101*'B. PoF Summary Stats & Params'!$I$8*'B. PoF Summary Stats & Params'!$I$6*A101^('B. PoF Summary Stats & Params'!$I$6-1), IF('B. PoF Summary Stats & Params'!$C$12="W", B101*(('B. PoF Summary Stats & Params'!$M$6/'B. PoF Summary Stats & Params'!$M$8)*((A101)/'B. PoF Summary Stats & Params'!$M$8)^('B. PoF Summary Stats & Params'!$M$6-1)), "Choose Model")) -> 0.06117681954 | E101: =IF('B. PoF Summary Stats & Params'!$C$12="C", B101*'B. PoF Summary Stats & Params'!$I$8*'B. PoF Summary Stats & Params'!$I$12*A101^('B. PoF Summary Stats & Params'!$I$12-1), IF('B. PoF Summary Stats & Params'!$C$12="W", B101*(('B. PoF Summary Stats & Params'!$M$12/'B. PoF Summary Stats & Params'!$O$12)*((A101)/'B. PoF Summary Stats & Params'!$O$12)^('B. PoF Summary Stats & Params'!$M$12-1)), "Choose Model")) -> 0.04056688274
A102: 98 | B102: 1 | C102: =IF('B. PoF Summary Stats & Params'!$C$12="C", B102*'B. PoF Summary Stats & Params'!$I$8*'B. PoF Summary Stats & Params'!$I$10*A102^('B. PoF Summary Stats & Params'!$I$10-1), IF('B. PoF Summary Stats & Params'!$C$12="W", B102*(('B. PoF Summary Stats & Params'!$M$14/'B. PoF Summary Stats & Params'!$O$14)*((A102)/'B. PoF Summary Stats & Params'!$O$14)^('B. PoF Summary Stats & Params'!$M$14-1)), "Choose Model")) -> 0.09291418906 | D102: =IF('B. PoF Summary Stats & Params'!$C$12="C", B102*'B. PoF Summary Stats & Params'!$I$8*'B. PoF Summary Stats & Params'!$I$6*A102^('B. PoF Summary Stats & Params'!$I$6-1), IF('B. PoF Summary Stats & Params'!$C$12="W", B102*(('B. PoF Summary Stats & Params'!$M$6/'B. PoF Summary Stats & Params'!$M$8)*((A102)/'B. PoF Summary Stats & Params'!$M$8)^('B. PoF Summary Stats & Params'!$M$6-1)), "Choose Model")) -> 0.06167661413 | E102: =IF('B. PoF Summary Stats & Params'!$C$12="C", B102*'B. PoF Summary Stats & Params'!$I$8*'B. PoF Summary Stats & Params'!$I$12*A102^('B. PoF Summary Stats & Params'!$I$12-1), IF('B. PoF Summary Stats & Params'!$C$12="W", B102*(('B. PoF Summary Stats & Params'!$M$12/'B. PoF Summary Stats & Params'!$O$12)*((A102)/'B. PoF Summary Stats & Params'!$O$12)^('B. PoF Summary Stats & Params'!$M$12-1)), "Choose Model")) -> 0.04086484061
A103: 99 | B103: 1 | C103: =IF('B. PoF Summary Stats & Params'!$C$12="C", B103*'B. PoF Summary Stats & Params'!$I$8*'B. PoF Summary Stats & Params'!$I$10*A103^('B. PoF Summary Stats & Params'!$I$10-1), IF('B. PoF Summary Stats & Params'!$C$12="W", B103*(('B. PoF Summary Stats & Params'!$M$14/'B. PoF Summary Stats & Params'!$O$14)*((A103)/'B. PoF Summary Stats & Params'!$O$14)^('B. PoF Summary Stats & Params'!$M$14-1)), "Choose Model")) -> 0.09374153989 | D103: =IF('B. PoF Summary Stats & Params'!$C$12="C", B103*'B. PoF Summary Stats & Params'!$I$8*'B. PoF Summary Stats & Params'!$I$6*A103^('B. PoF Summary Stats & Params'!$I$6-1), IF('B. PoF Summary Stats & Params'!$C$12="W", B103*(('B. PoF Summary Stats & Params'!$M$6/'B. PoF Summary Stats & Params'!$M$8)*((A103)/'B. PoF Summary Stats & Params'!$M$8)^('B. PoF Summary Stats & Params'!$M$6-1)), "Choose Model")) -> 0.06217535566 | E103: =IF('B. PoF Summary Stats & Params'!$C$12="C", B103*'B. PoF Summary Stats & Params'!$I$8*'B. PoF Summary Stats & Params'!$I$12*A103^('B. PoF Summary Stats & Params'!$I$12-1), IF('B. PoF Summary Stats & Params'!$C$12="W", B103*(('B. PoF Summary Stats & Params'!$M$12/'B. PoF Summary Stats & Params'!$O$12)*((A103)/'B. PoF Summary Stats & Params'!$O$12)^('B. PoF Summary Stats & Params'!$M$12-1)), "Choose Model")) -> 0.04116192867
A104: 100 | B104: 1 | C104: =IF('B. PoF Summary Stats & Params'!$C$12="C", B104*'B. PoF Summary Stats & Params'!$I$8*'B. PoF Summary Stats & Params'!$I$10*A104^('B. PoF Summary Stats & Params'!$I$10-1), IF('B. PoF Summary Stats & Params'!$C$12="W", B104*(('B. PoF Summary Stats & Params'!$M$14/'B. PoF Summary Stats & Params'!$O$14)*((A104)/'B. PoF Summary Stats & Params'!$O$14)^('B. PoF Summary Stats & Params'!$M$14-1)), "Choose Model")) -> 0.09456783171 | D104: =IF('B. PoF Summary Stats & Params'!$C$12="C", B104*'B. PoF Summary Stats & Params'!$I$8*'B. PoF Summary Stats & Params'!$I$6*A104^('B. PoF Summary Stats & Params'!$I$6-1), IF('B. PoF Summary Stats & Params'!$C$12="W", B104*(('B. PoF Summary Stats & Params'!$M$6/'B. PoF Summary Stats & Params'!$M$8)*((A104)/'B. PoF Summary Stats & Params'!$M$8)^('B. PoF Summary Stats & Params'!$M$6-1)), "Choose Model")) -> 0.06267305694 | E104: =IF('B. PoF Summary Stats & Params'!$C$12="C", B104*'B. PoF Summary Stats & Params'!$I$8*'B. PoF Summary Stats & Params'!$I$12*A104^('B. PoF Summary Stats & Params'!$I$12-1), IF('B. PoF Summary Stats & Params'!$C$12="W", B104*(('B. PoF Summary Stats & Params'!$M$12/'B. PoF Summary Stats & Params'!$O$12)*((A104)/'B. PoF Summary Stats & Params'!$O$12)^('B. PoF Summary Stats & Params'!$M$12-1)), "Choose Model")) -> 0.04145815819

Sheet B. PoF Summary Stats & Params
C1: PoF Summary Statistics and Parameters
B3: Summary Statisitics | E3: Failure Model Parameters | H3: Crow-AMSAA Parameters | L3: Weibull Parameters | R3: Health Index Parameters
B5: Number of PoF Adjustment Factors | C5: =COUNTIF('B. Population PoF Scores'!$O$5:$S$5,">"&0) -> 1
B6: Min Score | C6: =C5*1 -> 1 | E6: βavg | F6: =IF($C$12="C", I6, IF($C$12="W", M6, "Choose Model")) -> 1.7933 | H6: βavg | L6: βavg | M6: 1.7933 | S6: Earliest Age Asset Considered (Years) | V6: 0.5 | X6: Min PoF | Y6: =IF($C$12="C", I8*I12*V6^(I12-1), IF($C$12="W", (($M12/$O12)*((V6)/$O12)^(M12-1)), "Choose Model")) -> 0.0009458561728
B7: Max Score | C7: =C5*5 -> 5 | E7: 95%CI Adj (β) | F7: =(F6-F14)/F6 -> 0.04449896838 | S7: Asset RAB Life (Years) | V7: 46.84 | X7: Max PoF | Y7: =IF($C$12="C", I8*I10*V9^(I10-1), IF($C$12="W", (($M14/$O14)*((V9)/$O14)^(M14-1)), "Choose Model")) -> 0.05342660172
B8: No. of Z-Scores | C8: =5^C5 -> 5 | F8: =F6*F7 -> 0.0798 | H8: λavg | L8: havg | M8: 49.77 | S8: Asset RAB Life Addition (%) | V8: 0.1 | X8: HI Categories | Y8: 10
E9: Std. Dev | F9: =SQRT(_xlfn.STDEV.P(({1;2;3;4;5}*'B. Population PoF Scores'!O5))^2+_xlfn.STDEV.P(({1;2;3;4;5}*'B. Population PoF Scores'!P5))^2+_xlfn.STDEV.P(({1;2;3;4;5}*'B. Population PoF Scores'!Q5))^2+_xlfn.STDEV.P(({1;2;3;4;5}*'B. Population PoF Scores'!R5))^2+_xlfn.STDEV.P(({1;2;3;4;5}*'B. Population PoF Scores'!S5))^2) -> 1.414213562 | S9: Asset RAB Life + Addition (%) | V9: =ROUND(V7*(1+V8), 0) -> 52 | X9: Delta per Cat. | Y9: =(Y7-Y6)/Y8 -> 0.005248074555
B10: Reference Date | C10: 2018 | E10: Max Std. Dev | F10: =(SUM('B. Population PoF Scores'!O5:S5)-F11)/F9*-1 -> 1.414213562 | H10: βpoor | L10: b | M10: -7.0072
E11: Average PoF Factor Score | F11: =SUM('B. Population PoF Scores'!O5:S5)*3 -> 3
B12: Crow-AMSAA or Weibull Failure Model | C12: W | E12: β ZCF Scalar | F12: =F8/F10 -> 0.05642712114 | H12: βgood | L12: βgood | M12: 1.7135 | N12: hgood | O12: 59.7114 | S12: HEALTH INDEX | T12: PoF Range
S13: 1 | T13: 0 | U13: =$Y$6+S13*$Y$9 -> 0.006193930728
B14: Replacement Type | C14: Like-for-like | E14: βgood | F14: =IF($C$12="C", I12, IF($C$12="W", M12, "Choose Model")) -> 1.7135 | L14: βpoor | M14: 1.8732 | N14: hpoor | O14: 42.1329 | S14: 2 | T14: =U13 -> 0.006193930728 | U14: 0.01144200528
E15: βpoor | F15: =IF($C$12="C", I10, IF($C$12="W", M14, "Choose Model")) -> 1.8732 | S15: 3 | T15: 0.01144200528 | U15: 0.01669007984
E16: λpopulation | F16: =IF($C$12="C", I8, "Not Applicable") -> Not Applicable | S16: 4 | T16: 0.01669007984 | U16: 0.02193815439
S17: 5 | T17: 0.02193815439 | U17: 0.02718622895
E18: havg | F18: =IF($C$12="C", "Not Applicable", M8) -> 49.77 | S18: 6 | T18: 0.02718622895 | U18: 0.0324343035
E19: Intercept (b) | F19: =IF($C$12="C", "Not Applicable", M10) -> -7.0072 | S19: 7 | T19: 0.0324343035 | U19: 0.03768237806
E20: hgood | F20: =IF($C$12="C", "Not Applicable", O12) -> 59.7114 | S20: 8 | T20: 0.03768237806 | U20: 0.04293045261
E21: 95%CI Adj (hgood) | F21: =IF($C$12="C", "Not Applicable", (F20-M8)/M8) -> 0.1997468354 | S21: 9 | T21: 0.04293045261 | U21: 0.04817852717
S22: 10 | T22: 0.04817852717 | U22: 0.05342660172
E23: hpoor | F23: =IF($C$12="C", "Not Applicable", O14) -> 42.1329
E24: 95%CI Adj (hpoor) | F24: =IF($C$12="C", "Not Applicable", (F23-M8)/M8) -> -0.1534478602
E26: Replacement Asset PoF | F26: =IF($C$14="Like-for-like",IF($C$12="C",I8*I6*V6^(I12-1),IF($C$12="W",(($M6/$M8)*((V6)/$M8)^(M6-1)),"Choose Model")),IF($C$14="New model",IF($C$12="C", I8*I12*V6^(I12-1), IF($C$12="W", (($M12/$O12)*((V6)/$O12)^(M12-1)), "Choose Model")))) -> 0.0009368580283

Sheet B. PoF Adj Factor Scoring
C1: PoF Adjustment Factors and Scores
B3: PoF Affect | C3: PoF Score | E3: ='B. Population PoF Scores'!B4 -> Model | G3: ='B. Population PoF Scores'!C4 -> 0 | I3: ='B. Population PoF Scores'!D4 -> 0 | K3: ='B. Population PoF Scores'!E4 -> 0 | M3: ='B. Population PoF Scores'!F4 -> 0
E4: Factor Value | F4: PoF Score | G4: Factor Value | H4: PoF Score | I4: Factor Value | J4: PoF Score | K4: Factor Value | L4: PoF Score | M4: Factor Value | N4: PoF Score
E5: Esantee | F5: 3 | G5: 0 | H5: 1
B6: Insignificant | C6: 1 | E6: N/A | F6: 1
B7: Minor | C7: 2 | E7: Rocker | F7: 2
B8: Moderate | C8: 3
B9: Major | C9: 4
B10: Severe | C10: 5

Sheet B. Population PoF Scores
C1: Population PoF Scores
A3: Asset Identifier | B3: POF ADJUSTMENT FACTORS | G3: POF SCORES
B4: ='A. Population Info'!G5 -> Model | C4: ='A. Population Info'!H5 -> 0 | D4: ='A. Population Info'!I5 -> 0 | E4: ='A. Population Info'!J5 -> 0 | F4: ='A. Population Info'!K5 -> 0 | G4: =B4 -> Model | H4: =C4 -> 0 | I4: =D4 -> 0 | J4: =E4 -> 0 | K4: =F4 -> 0 | O4: =B4 -> Model | P4: =C4 -> 0 | Q4: =D4 -> 0 | R4: =E4 -> 0 | S4: =F4 -> 0
G5: =O5 -> 1 | H5: =P5 -> 0 | I5: =Q5 -> 0 | J5: =R5 -> 0 | K5: =S5 -> 0 | N5: Weighting 1 | O5: 1 | P5: 0 | Q5: 0 | R5: 0 | S5: 0
A6: ='A. Population Info'!A6 -> 1000000927 | B6: ='A. Population Info'!G6 -> N/A | C6: ='A. Population Info'!H6 -> 0 | D6: ='A. Population Info'!I6 -> 0 | E6: ='A. Population Info'!J6 -> 0 | F6: ='A. Population Info'!K6 -> 0 | G6: =VLOOKUP(B:B,OFFSET('B. PoF Adj Factor Scoring'!$E$5:$F$282,,MATCH(G$4,'B. PoF Adj Factor Scoring'!$E$3:$N$3,0)-1),2,TRUE) -> 1 | H6: =VLOOKUP(C:C,OFFSET('B. PoF Adj Factor Scoring'!$E$5:$F$282,,MATCH(H$4,'B. PoF Adj Factor Scoring'!$E$3:$N$3,0)-1),2,TRUE) -> 1 | I6: =VLOOKUP(D:D,OFFSET('B. PoF Adj Factor Scoring'!$E$5:$F$282,,MATCH(I$4,'B. PoF Adj Factor Scoring'!$E$3:$N$3,0)-1),2,TRUE) -> 1 | J6: =VLOOKUP(E:E,OFFSET('B. PoF Adj Factor Scoring'!$E$5:$F$282,,MATCH(J$4,'B. PoF Adj Factor Scoring'!$E$3:$N$3,0)-1),2,TRUE) -> 1 | K6: =VLOOKUP(F:F,OFFSET('B. PoF Adj Factor Scoring'!$E$5:$F$282,,MATCH(K$4,'B. PoF Adj Factor Scoring'!$E$3:$N$3,0)-1),2,TRUE) -> 1
A7: ='A. Population Info'!A7 -> 1000000930 | B7: ='A. Population Info'!G7 -> N/A | C7: ='A. Population Info'!H7 -> 0 | D7: ='A. Population Info'!I7 -> 0 | E7: ='A. Population Info'!J7 -> 0 | F7: ='A. Population Info'!K7 -> 0 | G7: =VLOOKUP(B:B,OFFSET('B. PoF Adj Factor Scoring'!$E$5:$F$282,,MATCH(G$4,'B. PoF Adj Factor Scoring'!$E$3:$N$3,0)-1),2,TRUE) -> 1 | H7: =VLOOKUP(C:C,OFFSET('B. PoF Adj Factor Scoring'!$E$5:$F$282,,MATCH(H$4,'B. PoF Adj Factor Scoring'!$E$3:$N$3,0)-1),2,TRUE) -> 1 | I7: =VLOOKUP(D:D,OFFSET('B. PoF Adj Factor Scoring'!$E$5:$F$282,,MATCH(I$4,'B. PoF Adj Factor Scoring'!$E$3:$N$3,0)-1),2,TRUE) -> 1 | J7: =VLOOKUP(E:E,OFFSET('B. PoF Adj Factor Scoring'!$E$5:$F$282,,MATCH(J$4,'B. PoF Adj Factor Scoring'!$E$3:$N$3,0)-1),2,TRUE) -> 1 | K7: =VLOOKUP(F:F,OFFSET('B. PoF Adj Factor Scoring'!$E$5:$F$282,,MATCH(K$4,'B. PoF Adj Factor Scoring'!$E$3:$N$3,0)-1),2,TRUE) -> 1
A8: ='A. Population Info'!A8 -> 1000003430 | B8: ='A. Population Info'!G8 -> N/A | C8: ='A. Population Info'!H8 -> 0 | D8: ='A. Population Info'!I8 -> 0 | E8: ='A. Population Info'!J8 -> 0 | F8: ='A. Population Info'!K8 -> 0 | G8: =VLOOKUP(B:B,OFFSET('B. PoF Adj Factor Scoring'!$E$5:$F$282,,MATCH(G$4,'B. PoF Adj Factor Scoring'!$E$3:$N$3,0)-1),2,TRUE) -> 1 | H8: =VLOOKUP(C:C,OFFSET('B. PoF Adj Factor Scoring'!$E$5:$F$282,,MATCH(H$4,'B. PoF Adj Factor Scoring'!$E$3:$N$3,0)-1),2,TRUE) -> 1 | I8: =VLOOKUP(D:D,OFFSET('B. PoF Adj Factor Scoring'!$E$5:$F$282,,MATCH(I$4,'B. PoF Adj Factor Scoring'!$E$3:$N$3,0)-1),2,TRUE) -> 1 | J8: =VLOOKUP(E:E,OFFSET('B. PoF Adj Factor Scoring'!$E$5:$F$282,,MATCH(J$4,'B. PoF Adj Factor Scoring'!$E$3:$N$3,0)-1),2,TRUE) -> 1 | K8: =VLOOKUP(F:F,OFFSET('B. PoF Adj Factor Scoring'!$E$5:$F$282,,MATCH(K$4,'B. PoF Adj Factor Scoring'!$E$3:$N$3,0)-1),2,TRUE) -> 1
A9: ='A. Population Info'!A9 -> 1000003471 | B9: ='A. Population Info'!G9 -> N/A | C9: ='A. Population Info'!H9 -> 0 | D9: ='A. Population Info'!I9 -> 0 | E9: ='A. Population Info'!J9 -> 0 | F9: ='A. Population Info'!K9 -> 0 | G9: =VLOOKUP(B:B,OFFSET('B. PoF Adj Factor Scoring'!$E$5:$F$282,,MATCH(G$4,'B. PoF Adj Factor Scoring'!$E$3:$N$3,0)-1),2,TRUE) -> 1 | H9: =VLOOKUP(C:C,OFFSET('B. PoF Adj Factor Scoring'!$E$5:$F$282,,MATCH(H$4,'B. PoF Adj Factor Scoring'!$E$3:$N$3,0)-1),2,TRUE) -> 1 | I9: =VLOOKUP(D:D,OFFSET('B. PoF Adj Factor Scoring'!$E$5:$F$282,,MATCH(I$4,'B. PoF Adj Factor Scoring'!$E$3:$N$3,0)-1),2,TRUE) -> 1 | J9: =VLOOKUP(E:E,OFFSET('B. PoF Adj Factor Scoring'!$E$5:$F$282,,MATCH(J$4,'B. PoF Adj Factor Scoring'!$E$3:$N$3,0)-1),2,TRUE) -> 1 | K9: =VLOOKUP(F:F,OFFSET('B. PoF Adj Factor Scoring'!$E$5:$F$282,,MATCH(K$4,'B. PoF Adj Factor Scoring'!$E$3:$N$3,0)-1),2,TRUE) -> 1
A10: ='A. Population Info'!A10 -> 1000003482 | B10: ='A. Population Info'!G10 -> N/A | C10: ='A. Population Info'!H10 -> 0 | D10: ='A. Population Info'!I10 -> 0 | E10: ='A. Population Info'!J10 -> 0 | F10: ='A. Population Info'!K10 -> 0 | G10: =VLOOKUP(B:B,OFFSET('B. PoF Adj Factor Scoring'!$E$5:$F$282,,MATCH(G$4,'B. PoF Adj Factor Scoring'!$E$3:$N$3,0)-1),2,TRUE) -> 1 | H10: =VLOOKUP(C:C,OFFSET('B. PoF Adj Factor Scoring'!$E$5:$F$282,,MATCH(H$4,'B. PoF Adj Factor Scoring'!$E$3:$N$3,0)-1),2,TRUE) -> 1 | I10: =VLOOKUP(D:D,OFFSET('B. PoF Adj Factor Scoring'!$E$5:$F$282,,MATCH(I$4,'B. PoF Adj Factor Scoring'!$E$3:$N$3,0)-1),2,TRUE) -> 1 | J10: =VLOOKUP(E:E,OFFSET('B. PoF Adj Factor Scoring'!$E$5:$F$282,,MATCH(J$4,'B. PoF Adj Factor Scoring'!$E$3:$N$3,0)-1),2,TRUE) -> 1 | K10: =VLOOKUP(F:F,OFFSET('B. PoF Adj Factor Scoring'!$E$5:$F$282,,MATCH(K$4,'B. PoF Adj Factor Scoring'!$E$3:$N$3,0)-1),2,TRUE) -> 1
A11: ='A. Population Info'!A11 -> 1000003517 | B11: ='A. Population Info'!G11 -> N/A | C11: ='A. Population Info'!H11 -> 0 | D11: ='A. Population Info'!I11 -> 0 | E11: ='A. Population Info'!J11 -> 0 | F11: ='A. Population Info'!K11 -> 0 | G11: =VLOOKUP(B:B,OFFSET('B. PoF Adj Factor Scoring'!$E$5:$F$282,,MATCH(G$4,'B. PoF Adj Factor Scoring'!$E$3:$N$3,0)-1),2,TRUE) -> 1 | H11: =VLOOKUP(C:C,OFFSET('B. PoF Adj Factor Scoring'!$E$5:$F$282,,MATCH(H$4,'B. PoF Adj Factor Scoring'!$E$3:$N$3,0)-1),2,TRUE) -> 1 | I11: =VLOOKUP(D:D,OFFSET('B. PoF Adj Factor Scoring'!$E$5:$F$282,,MATCH(I$4,'B. PoF Adj Factor Scoring'!$E$3:$N$3,0)-1),2,TRUE) -> 1 | J11: =VLOOKUP(E:E,OFFSET('B. PoF Adj Factor Scoring'!$E$5:$F$282,,MATCH(J$4,'B. PoF Adj Factor Scoring'!$E$3:$N$3,0)-1),2,TRUE) -> 1 | K11: =VLOOKUP(F:F,OFFSET('B. PoF Adj Factor Scoring'!$E$5:$F$282,,MATCH(K$4,'B. PoF Adj Factor Scoring'!$E$3:$N$3,0)-1),2,TRUE) -> 1
A12: ='A. Population Info'!A12 -> 1000003529 | B12: ='A. Population Info'!G12 -> N/A | C12: ='A. Population Info'!H12 -> 0 | D12: ='A. Population Info'!I12 -> 0 | E12: ='A. Population Info'!J12 -> 0 | F12: ='A. Population Info'!K12 -> 0 | G12: =VLOOKUP(B:B,OFFSET('B. PoF Adj Factor Scoring'!$E$5:$F$282,,MATCH(G$4,'B. PoF Adj Factor Scoring'!$E$3:$N$3,0)-1),2,TRUE) -> 1 | H12: =VLOOKUP(C:C,OFFSET('B. PoF Adj Factor Scoring'!$E$5:$F$282,,MATCH(H$4,'B. PoF Adj Factor Scoring'!$E$3:$N$3,0)-1),2,TRUE) -> 1 | I12: =VLOOKUP(D:D,OFFSET('B. PoF Adj Factor Scoring'!$E$5:$F$282,,MATCH(I$4,'B. PoF Adj Factor Scoring'!$E$3:$N$3,0)-1),2,TRUE) -> 1 | J12: =VLOOKUP(E:E,OFFSET('B. PoF Adj Factor Scoring'!$E$5:$F$282,,MATCH(J$4,'B. PoF Adj Factor Scoring'!$E$3:$N$3,0)-1),2,TRUE) -> 1 | K12: =VLOOKUP(F:F,OFFSET('B. PoF Adj Factor Scoring'!$E$5:$F$282,,MATCH(K$4,'B. PoF Adj Factor Scoring'!$E$3:$N$3,0)-1),2,TRUE) -> 1
A13: ='A. Population Info'!A13 -> 1000003572 | B13: ='A. Population Info'!G13 -> N/A | C13: ='A. Population Info'!H13 -> 0 | D13: ='A. Population Info'!I13 -> 0 | E13: ='A. Population Info'!J13 -> 0 | F13: ='A. Population Info'!K13 -> 0 | G13: =VLOOKUP(B:B,OFFSET('B. PoF Adj Factor Scoring'!$E$5:$F$282,,MATCH(G$4,'B. PoF Adj Factor Scoring'!$E$3:$N$3,0)-1),2,TRUE) -> 1 | H13: =VLOOKUP(C:C,OFFSET('B. PoF Adj Factor Scoring'!$E$5:$F$282,,MATCH(H$4,'B. PoF Adj Factor Scoring'!$E$3:$N$3,0)-1),2,TRUE) -> 1 | I13: =VLOOKUP(D:D,OFFSET('B. PoF Adj Factor Scoring'!$E$5:$F$282,,MATCH(I$4,'B. PoF Adj Factor Scoring'!$E$3:$N$3,0)-1),2,TRUE) -> 1 | J13: =VLOOKUP(E:E,OFFSET('B. PoF Adj Factor Scoring'!$E$5:$F$282,,MATCH(J$4,'B. PoF Adj Factor Scoring'!$E$3:$N$3,0)-1),2,TRUE) -> 1 | K13: =VLOOKUP(F:F,OFFSET('B. PoF Adj Factor Scoring'!$E$5:$F$282,,MATCH(K$4,'B. PoF Adj Factor Scoring'!$E$3:$N$3,0)-1),2,TRUE) -> 1
A14: ='A. Population Info'!A14 -> 1000003585 | B14: ='A. Population Info'!G14 -> N/A | C14: ='A. Population Info'!H14 -> 0 | D14: ='A. Population Info'!I14 -> 0 | E14: ='A. Population Info'!J14 -> 0 | F14: ='A. Population Info'!K14 -> 0 | G14: =VLOOKUP(B:B,OFFSET('B. PoF Adj Factor Scoring'!$E$5:$F$282,,MATCH(G$4,'B. PoF Adj Factor Scoring'!$E$3:$N$3,0)-1),2,TRUE) -> 1 | H14: =VLOOKUP(C:C,OFFSET('B. PoF Adj Factor Scoring'!$E$5:$F$282,,MATCH(H$4,'B. PoF Adj Factor Scoring'!$E$3:$N$3,0)-1),2,TRUE) -> 1 | I14: =VLOOKUP(D:D,OFFSET('B. PoF Adj Factor Scoring'!$E$5:$F$282,,MATCH(I$4,'B. PoF Adj Factor Scoring'!$E$3:$N$3,0)-1),2,TRUE) -> 1 | J14: =VLOOKUP(E:E,OFFSET('B. PoF Adj Factor Scoring'!$E$5:$F$282,,MATCH(J$4,'B. PoF Adj Factor Scoring'!$E$3:$N$3,0)-1),2,TRUE) -> 1 | K14: =VLOOKUP(F:F,OFFSET('B. PoF Adj Factor Scoring'!$E$5:$F$282,,MATCH(K$4,'B. PoF Adj Factor Scoring'!$E$3:$N$3,0)-1),2,TRUE) -> 1
A15: ='A. Population Info'!A15 -> 1000003641 | B15: ='A. Population Info'!G15 -> N/A | C15: ='A. Population Info'!H15 -> 0 | D15: ='A. Population Info'!I15 -> 0 | E15: ='A. Population Info'!J15 -> 0 | F15: ='A. Population Info'!K15 -> 0 | G15: =VLOOKUP(B:B,OFFSET('B. PoF Adj Factor Scoring'!$E$5:$F$282,,MATCH(G$4,'B. PoF Adj Factor Scoring'!$E$3:$N$3,0)-1),2,TRUE) -> 1 | H15: =VLOOKUP(C:C,OFFSET('B. PoF Adj Factor Scoring'!$E$5:$F$282,,MATCH(H$4,'B. PoF Adj Factor Scoring'!$E$3:$N$3,0)-1),2,TRUE) -> 1 | I15: =VLOOKUP(D:D,OFFSET('B. PoF Adj Factor Scoring'!$E$5:$F$282,,MATCH(I$4,'B. PoF Adj Factor Scoring'!$E$3:$N$3,0)-1),2,TRUE) -> 1 | J15: =VLOOKUP(E:E,OFFSET('B. PoF Adj Factor Scoring'!$E$5:$F$282,,MATCH(J$4,'B. PoF Adj Factor Scoring'!$E$3:$N$3,0)-1),2,TRUE) -> 1 | K15: =VLOOKUP(F:F,OFFSET('B. PoF Adj Factor Scoring'!$E$5:$F$282,,MATCH(K$4,'B. PoF Adj Factor Scoring'!$E$3:$N$3,0)-1),2,TRUE) -> 1
A16: ='A. Population Info'!A16 -> 1000003662 | B16: ='A. Population Info'!G16 -> N/A | C16: ='A. Population Info'!H16 -> 0 | D16: ='A. Population Info'!I16 -> 0 | E16: ='A. Population Info'!J16 -> 0 | F16: ='A. Population Info'!K16 -> 0 | G16: =VLOOKUP(B:B,OFFSET('B. PoF Adj Factor Scoring'!$E$5:$F$282,,MATCH(G$4,'B. PoF Adj Factor Scoring'!$E$3:$N$3,0)-1),2,TRUE) -> 1 | H16: =VLOOKUP(C:C,OFFSET('B. PoF Adj Factor Scoring'!$E$5:$F$282,,MATCH(H$4,'B. PoF Adj Factor Scoring'!$E$3:$N$3,0)-1),2,TRUE) -> 1 | I16: =VLOOKUP(D:D,OFFSET('B. PoF Adj Factor Scoring'!$E$5:$F$282,,MATCH(I$4,'B. PoF Adj Factor Scoring'!$E$3:$N$3,0)-1),2,TRUE) -> 1 | J16: =VLOOKUP(E:E,OFFSET('B. PoF Adj Factor Scoring'!$E$5:$F$282,,MATCH(J$4,'B. PoF Adj Factor Scoring'!$E$3:$N$3,0)-1),2,TRUE) -> 1 | K16: =VLOOKUP(F:F,OFFSET('B. PoF Adj Factor Scoring'!$E$5:$F$282,,MATCH(K$4,'B. PoF Adj Factor Scoring'!$E$3:$N$3,0)-1),2,TRUE) -> 1
A17: ='A. Population Info'!A17 -> 1000003720 | B17: ='A. Population Info'!G17 -> N/A | C17: ='A. Population Info'!H17 -> 0 | D17: ='A. Population Info'!I17 -> 0 | E17: ='A. Population Info'!J17 -> 0 | F17: ='A. Population Info'!K17 -> 0 | G17: =VLOOKUP(B:B,OFFSET('B. PoF Adj Factor Scoring'!$E$5:$F$282,,MATCH(G$4,'B. PoF Adj Factor Scoring'!$E$3:$N$3,0)-1),2,TRUE) -> 1 | H17: =VLOOKUP(C:C,OFFSET('B. PoF Adj Factor Scoring'!$E$5:$F$282,,MATCH(H$4,'B. PoF Adj Factor Scoring'!$E$3:$N$3,0)-1),2,TRUE) -> 1 | I17: =VLOOKUP(D:D,OFFSET('B. PoF Adj Factor Scoring'!$E$5:$F$282,,MATCH(I$4,'B. PoF Adj Factor Scoring'!$E$3:$N$3,0)-1),2,TRUE) -> 1 | J17: =VLOOKUP(E:E,OFFSET('B. PoF Adj Factor Scoring'!$E$5:$F$282,,MATCH(J$4,'B. PoF Adj Factor Scoring'!$E$3:$N$3,0)-1),2,TRUE) -> 1 | K17: =VLOOKUP(F:F,OFFSET('B. PoF Adj Factor Scoring'!$E$5:$F$282,,MATCH(K$4,'B. PoF Adj Factor Scoring'!$E$3:$N$3,0)-1),2,TRUE) -> 1
A18: ='A. Population Info'!A18 -> 1000003744 | B18: ='A. Population Info'!G18 -> N/A | C18: ='A. Population Info'!H18 -> 0 | D18: ='A. Population Info'!I18 -> 0 | E18: ='A. Population Info'!J18 -> 0 | F18: ='A. Population Info'!K18 -> 0 | G18: =VLOOKUP(B:B,OFFSET('B. PoF Adj Factor Scoring'!$E$5:$F$282,,MATCH(G$4,'B. PoF Adj Factor Scoring'!$E$3:$N$3,0)-1),2,TRUE) -> 1 | H18: =VLOOKUP(C:C,OFFSET('B. PoF Adj Factor Scoring'!$E$5:$F$282,,MATCH(H$4,'B. PoF Adj Factor Scoring'!$E$3:$N$3,0)-1),2,TRUE) -> 1 | I18: =VLOOKUP(D:D,OFFSET('B. PoF Adj Factor Scoring'!$E$5:$F$282,,MATCH(I$4,'B. PoF Adj Factor Scoring'!$E$3:$N$3,0)-1),2,TRUE) -> 1 | J18: =VLOOKUP(E:E,OFFSET('B. PoF Adj Factor Scoring'!$E$5:$F$282,,MATCH(J$4,'B. PoF Adj Factor Scoring'!$E$3:$N$3,0)-1),2,TRUE) -> 1 | K18: =VLOOKUP(F:F,OFFSET('B. PoF Adj Factor Scoring'!$E$5:$F$282,,MATCH(K$4,'B. PoF Adj Factor Scoring'!$E$3:$N$3,0)-1),2,TRUE) -> 1
A19: ='A. Population Info'!A19 -> 1000003785 | B19: ='A. Population Info'!G19 -> N/A | C19: ='A. Population Info'!H19 -> 0 | D19: ='A. Population Info'!I19 -> 0 | E19: ='A. Population Info'!J19 -> 0 | F19: ='A. Population Info'!K19 -> 0 | G19: =VLOOKUP(B:B,OFFSET('B. PoF Adj Factor Scoring'!$E$5:$F$282,,MATCH(G$4,'B. PoF Adj Factor Scoring'!$E$3:$N$3,0)-1),2,TRUE) -> 1 | H19: =VLOOKUP(C:C,OFFSET('B. PoF Adj Factor Scoring'!$E$5:$F$282,,MATCH(H$4,'B. PoF Adj Factor Scoring'!$E$3:$N$3,0)-1),2,TRUE) -> 1 | I19: =VLOOKUP(D:D,OFFSET('B. PoF Adj Factor Scoring'!$E$5:$F$282,,MATCH(I$4,'B. PoF Adj Factor Scoring'!$E$3:$N$3,0)-1),2,TRUE) -> 1 | J19: =VLOOKUP(E:E,OFFSET('B. PoF Adj Factor Scoring'!$E$5:$F$282,,MATCH(J$4,'B. PoF Adj Factor Scoring'!$E$3:$N$3,0)-1),2,TRUE) -> 1 | K19: =VLOOKUP(F:F,OFFSET('B. PoF Adj Factor Scoring'!$E$5:$F$282,,MATCH(K$4,'B. PoF Adj Factor Scoring'!$E$3:$N$3,0)-1),2,TRUE) -> 1
A20: ='A. Population Info'!A20 -> 1000003873 | B20: ='A. Population Info'!G20 -> N/A | C20: ='A. Population Info'!H20 -> 0 | D20: ='A. Population Info'!I20 -> 0 | E20: ='A. Population Info'!J20 -> 0 | F20: ='A. Population Info'!K20 -> 0 | G20: =VLOOKUP(B:B,OFFSET('B. PoF Adj Factor Scoring'!$E$5:$F$282,,MATCH(G$4,'B. PoF Adj Factor Scoring'!$E$3:$N$3,0)-1),2,TRUE) -> 1 | H20: =VLOOKUP(C:C,OFFSET('B. PoF Adj Factor Scoring'!$E$5:$F$282,,MATCH(H$4,'B. PoF Adj Factor Scoring'!$E$3:$N$3,0)-1),2,TRUE) -> 1 | I20: =VLOOKUP(D:D,OFFSET('B. PoF Adj Factor Scoring'!$E$5:$F$282,,MATCH(I$4,'B. PoF Adj Factor Scoring'!$E$3:$N$3,0)-1),2,TRUE) -> 1 | J20: =VLOOKUP(E:E,OFFSET('B. PoF Adj Factor Scoring'!$E$5:$F$282,,MATCH(J$4,'B. PoF Adj Factor Scoring'!$E$3:$N$3,0)-1),2,TRUE) -> 1 | K20: =VLOOKUP(F:F,OFFSET('B. PoF Adj Factor Scoring'!$E$5:$F$282,,MATCH(K$4,'B. PoF Adj Factor Scoring'!$E$3:$N$3,0)-1),2,TRUE) -> 1
A21: ='A. Population Info'!A21 -> 1000005002 | B21: ='A. Population Info'!G21 -> Rocker | C21: ='A. Population Info'!H21 -> 0 | D21: ='A. Population Info'!I21 -> 0 | E21: ='A. Population Info'!J21 -> 0 | F21: ='A. Population Info'!K21 -> 0 | G21: =VLOOKUP(B:B,OFFSET('B. PoF Adj Factor Scoring'!$E$5:$F$282,,MATCH(G$4,'B. PoF Adj Factor Scoring'!$E$3:$N$3,0)-1),2,TRUE) -> 2 | H21: =VLOOKUP(C:C,OFFSET('B. PoF Adj Factor Scoring'!$E$5:$F$282,,MATCH(H$4,'B. PoF Adj Factor Scoring'!$E$3:$N$3,0)-1),2,TRUE) -> 1 | I21: =VLOOKUP(D:D,OFFSET('B. PoF Adj Factor Scoring'!$E$5:$F$282,,MATCH(I$4,'B. PoF Adj Factor Scoring'!$E$3:$N$3,0)-1),2,TRUE) -> 1 | J21: =VLOOKUP(E:E,OFFSET('B. PoF Adj Factor Scoring'!$E$5:$F$282,,MATCH(J$4,'B. PoF Adj Factor Scoring'!$E$3:$N$3,0)-1),2,TRUE) -> 1 | K21: =VLOOKUP(F:F,OFFSET('B. PoF Adj Factor Scoring'!$E$5:$F$282,,MATCH(K$4,'B. PoF Adj Factor Scoring'!$E$3:$N$3,0)-1),2,TRUE) -> 1
A22: ='A. Population Info'!A22 -> 1000007209 | B22: ='A. Population Info'!G22 -> N/A | C22: ='A. Population Info'!H22 -> 0 | D22: ='A. Population Info'!I22 -> 0 | E22: ='A. Population Info'!J22 -> 0 | F22: ='A. Population Info'!K22 -> 0 | G22: =VLOOKUP(B:B,OFFSET('B. PoF Adj Factor Scoring'!$E$5:$F$282,,MATCH(G$4,'B. PoF Adj Factor Scoring'!$E$3:$N$3,0)-1),2,TRUE) -> 1 | H22: =VLOOKUP(C:C,OFFSET('B. PoF Adj Factor Scoring'!$E$5:$F$282,,MATCH(H$4,'B. PoF Adj Factor Scoring'!$E$3:$N$3,0)-1),2,TRUE) -> 1 | I22: =VLOOKUP(D:D,OFFSET('B. PoF Adj Factor Scoring'!$E$5:$F$282,,MATCH(I$4,'B. PoF Adj Factor Scoring'!$E$3:$N$3,0)-1),2,TRUE) -> 1 | J22: =VLOOKUP(E:E,OFFSET('B. PoF Adj Factor Scoring'!$E$5:$F$282,,MATCH(J$4,'B. PoF Adj Factor Scoring'!$E$3:$N$3,0)-1),2,TRUE) -> 1 | K22: =VLOOKUP(F:F,OFFSET('B. PoF Adj Factor Scoring'!$E$5:$F$282,,MATCH(K$4,'B. PoF Adj Factor Scoring'!$E$3:$N$3,0)-1),2,TRUE) -> 1
A23: ='A. Population Info'!A23 -> 1000007243 | B23: ='A. Population Info'!G23 -> N/A | C23: ='A. Population Info'!H23 -> 0 | D23: ='A. Population Info'!I23 -> 0 | E23: ='A. Population Info'!J23 -> 0 | F23: ='A. Population Info'!K23 -> 0 | G23: =VLOOKUP(B:B,OFFSET('B. PoF Adj Factor Scoring'!$E$5:$F$282,,MATCH(G$4,'B. PoF Adj Factor Scoring'!$E$3:$N$3,0)-1),2,TRUE) -> 1 | H23: =VLOOKUP(C:C,OFFSET('B. PoF Adj Factor Scoring'!$E$5:$F$282,,MATCH(H$4,'B. PoF Adj Factor Scoring'!$E$3:$N$3,0)-1),2,TRUE) -> 1 | I23: =VLOOKUP(D:D,OFFSET('B. PoF Adj Factor Scoring'!$E$5:$F$282,,MATCH(I$4,'B. PoF Adj Factor Scoring'!$E$3:$N$3,0)-1),2,TRUE) -> 1 | J23: =VLOOKUP(E:E,OFFSET('B. PoF Adj Factor Scoring'!$E$5:$F$282,,MATCH(J$4,'B. PoF Adj Factor Scoring'!$E$3:$N$3,0)-1),2,TRUE) -> 1 | K23: =VLOOKUP(F:F,OFFSET('B. PoF Adj Factor Scoring'!$E$5:$F$282,,MATCH(K$4,'B. PoF Adj Factor Scoring'!$E$3:$N$3,0)-1),2,TRUE) -> 1
A24: ='A. Population Info'!A24 -> 1000014701 | B24: ='A. Population Info'!G24 -> N/A | C24: ='A. Population Info'!H24 -> 0 | D24: ='A. Population Info'!I24 -> 0 | E24: ='A. Population Info'!J24 -> 0 | F24: ='A. Population Info'!K24 -> 0 | G24: =VLOOKUP(B:B,OFFSET('B. PoF Adj Factor Scoring'!$E$5:$F$282,,MATCH(G$4,'B. PoF Adj Factor Scoring'!$E$3:$N$3,0)-1),2,TRUE) -> 1 | H24: =VLOOKUP(C:C,OFFSET('B. PoF Adj Factor Scoring'!$E$5:$F$282,,MATCH(H$4,'B. PoF Adj Factor Scoring'!$E$3:$N$3,0)-1),2,TRUE) -> 1 | I24: =VLOOKUP(D:D,OFFSET('B. PoF Adj Factor Scoring'!$E$5:$F$282,,MATCH(I$4,'B. PoF Adj Factor Scoring'!$E$3:$N$3,0)-1),2,TRUE) -> 1 | J24: =VLOOKUP(E:E,OFFSET('B. PoF Adj Factor Scoring'!$E$5:$F$282,,MATCH(J$4,'B. PoF Adj Factor Scoring'!$E$3:$N$3,0)-1),2,TRUE) -> 1 | K24: =VLOOKUP(F:F,OFFSET('B. PoF Adj Factor Scoring'!$E$5:$F$282,,MATCH(K$4,'B. PoF Adj Factor Scoring'!$E$3:$N$3,0)-1),2,TRUE) -> 1
A25: ='A. Population Info'!A25 -> 1000014736 | B25: ='A. Population Info'!G25 -> N/A | C25: ='A. Population Info'!H25 -> 0 | D25: ='A. Population Info'!I25 -> 0 | E25: ='A. Population Info'!J25 -> 0 | F25: ='A. Population Info'!K25 -> 0 | G25: =VLOOKUP(B:B,OFFSET('B. PoF Adj Factor Scoring'!$E$5:$F$282,,MATCH(G$4,'B. PoF Adj Factor Scoring'!$E$3:$N$3,0)-1),2,TRUE) -> 1 | H25: =VLOOKUP(C:C,OFFSET('B. PoF Adj Factor Scoring'!$E$5:$F$282,,MATCH(H$4,'B. PoF Adj Factor Scoring'!$E$3:$N$3,0)-1),2,TRUE) -> 1 | I25: =VLOOKUP(D:D,OFFSET('B. PoF Adj Factor Scoring'!$E$5:$F$282,,MATCH(I$4,'B. PoF Adj Factor Scoring'!$E$3:$N$3,0)-1),2,TRUE) -> 1 | J25: =VLOOKUP(E:E,OFFSET('B. PoF Adj Factor Scoring'!$E$5:$F$282,,MATCH(J$4,'B. PoF Adj Factor Scoring'!$E$3:$N$3,0)-1),2,TRUE) -> 1 | K25: =VLOOKUP(F:F,OFFSET('B. PoF Adj Factor Scoring'!$E$5:$F$282,,MATCH(K$4,'B. PoF Adj Factor Scoring'!$E$3:$N$3,0)-1),2,TRUE) -> 1
A26: ='A. Population Info'!A26 -> 1000015080 | B26: ='A. Population Info'!G26 -> N/A | C26: ='A. Population Info'!H26 -> 0 | D26: ='A. Population Info'!I26 -> 0 | E26: ='A. Population Info'!J26 -> 0 | F26: ='A. Population Info'!K26 -> 0 | G26: =VLOOKUP(B:B,OFFSET('B. PoF Adj Factor Scoring'!$E$5:$F$282,,MATCH(G$4,'B. PoF Adj Factor Scoring'!$E$3:$N$3,0)-1),2,TRUE) -> 1 | H26: =VLOOKUP(C:C,OFFSET('B. PoF Adj Factor Scoring'!$E$5:$F$282,,MATCH(H$4,'B. PoF Adj Factor Scoring'!$E$3:$N$3,0)-1),2,TRUE) -> 1 | I26: =VLOOKUP(D:D,OFFSET('B. PoF Adj Factor Scoring'!$E$5:$F$282,,MATCH(I$4,'B. PoF Adj Factor Scoring'!$E$3:$N$3,0)-1),2,TRUE) -> 1 | J26: =VLOOKUP(E:E,OFFSET('B. PoF Adj Factor Scoring'!$E$5:$F$282,,MATCH(J$4,'B. PoF Adj Factor Scoring'!$E$3:$N$3,0)-1),2,TRUE) -> 1 | K26: =VLOOKUP(F:F,OFFSET('B. PoF Adj Factor Scoring'!$E$5:$F$282,,MATCH(K$4,'B. PoF Adj Factor Scoring'!$E$3:$N$3,0)-1),2,TRUE) -> 1
A27: ='A. Population Info'!A27 -> 1000015930 | B27: ='A. Population Info'!G27 -> N/A | C27: ='A. Population Info'!H27 -> 0 | D27: ='A. Population Info'!I27 -> 0 | E27: ='A. Population Info'!J27 -> 0 | F27: ='A. Population Info'!K27 -> 0 | G27: =VLOOKUP(B:B,OFFSET('B. PoF Adj Factor Scoring'!$E$5:$F$282,,MATCH(G$4,'B. PoF Adj Factor Scoring'!$E$3:$N$3,0)-1),2,TRUE) -> 1 | H27: =VLOOKUP(C:C,OFFSET('B. PoF Adj Factor Scoring'!$E$5:$F$282,,MATCH(H$4,'B. PoF Adj Factor Scoring'!$E$3:$N$3,0)-1),2,TRUE) -> 1 | I27: =VLOOKUP(D:D,OFFSET('B. PoF Adj Factor Scoring'!$E$5:$F$282,,MATCH(I$4,'B. PoF Adj Factor Scoring'!$E$3:$N$3,0)-1),2,TRUE) -> 1 | J27: =VLOOKUP(E:E,OFFSET('B. PoF Adj Factor Scoring'!$E$5:$F$282,,MATCH(J$4,'B. PoF Adj Factor Scoring'!$E$3:$N$3,0)-1),2,TRUE) -> 1 | K27: =VLOOKUP(F:F,OFFSET('B. PoF Adj Factor Scoring'!$E$5:$F$282,,MATCH(K$4,'B. PoF Adj Factor Scoring'!$E$3:$N$3,0)-1),2,TRUE) -> 1
A28: ='A. Population Info'!A28 -> 1000023037 | B28: ='A. Population Info'!G28 -> N/A | C28: ='A. Population Info'!H28 -> 0 | D28: ='A. Population Info'!I28 -> 0 | E28: ='A. Population Info'!J28 -> 0 | F28: ='A. Population Info'!K28 -> 0 | G28: =VLOOKUP(B:B,OFFSET('B. PoF Adj Factor Scoring'!$E$5:$F$282,,MATCH(G$4,'B. PoF Adj Factor Scoring'!$E$3:$N$3,0)-1),2,TRUE) -> 1 | H28: =VLOOKUP(C:C,OFFSET('B. PoF Adj Factor Scoring'!$E$5:$F$282,,MATCH(H$4,'B. PoF Adj Factor Scoring'!$E$3:$N$3,0)-1),2,TRUE) -> 1 | I28: =VLOOKUP(D:D,OFFSET('B. PoF Adj Factor Scoring'!$E$5:$F$282,,MATCH(I$4,'B. PoF Adj Factor Scoring'!$E$3:$N$3,0)-1),2,TRUE) -> 1 | J28: =VLOOKUP(E:E,OFFSET('B. PoF Adj Factor Scoring'!$E$5:$F$282,,MATCH(J$4,'B. PoF Adj Factor Scoring'!$E$3:$N$3,0)-1),2,TRUE) -> 1 | K28: =VLOOKUP(F:F,OFFSET('B. PoF Adj Factor Scoring'!$E$5:$F$282,,MATCH(K$4,'B. PoF Adj Factor Scoring'!$E$3:$N$3,0)-1),2,TRUE) -> 1
A29: ='A. Population Info'!A29 -> 1000023357 | B29: ='A. Population Info'!G29 -> N/A | C29: ='A. Population Info'!H29 -> 0 | D29: ='A. Population Info'!I29 -> 0 | E29: ='A. Population Info'!J29 -> 0 | F29: ='A. Population Info'!K29 -> 0 | G29: =VLOOKUP(B:B,OFFSET('B. PoF Adj Factor Scoring'!$E$5:$F$282,,MATCH(G$4,'B. PoF Adj Factor Scoring'!$E$3:$N$3,0)-1),2,TRUE) -> 1 | H29: =VLOOKUP(C:C,OFFSET('B. PoF Adj Factor Scoring'!$E$5:$F$282,,MATCH(H$4,'B. PoF Adj Factor Scoring'!$E$3:$N$3,0)-1),2,TRUE) -> 1 | I29: =VLOOKUP(D:D,OFFSET('B. PoF Adj Factor Scoring'!$E$5:$F$282,,MATCH(I$4,'B. PoF Adj Factor Scoring'!$E$3:$N$3,0)-1),2,TRUE) -> 1 | J29: =VLOOKUP(E:E,OFFSET('B. PoF Adj Factor Scoring'!$E$5:$F$282,,MATCH(J$4,'B. PoF Adj Factor Scoring'!$E$3:$N$3,0)-1),2,TRUE) -> 1 | K29: =VLOOKUP(F:F,OFFSET('B. PoF Adj Factor Scoring'!$E$5:$F$282,,MATCH(K$4,'B. PoF Adj Factor Scoring'!$E$3:$N$3,0)-1),2,TRUE) -> 1
A30: ='A. Population Info'!A30 -> 1000023929 | B30: ='A. Population Info'!G30 -> N/A | C30: ='A. Population Info'!H30 -> 0 | D30: ='A. Population Info'!I30 -> 0 | E30: ='A. Population Info'!J30 -> 0 | F30: ='A. Population Info'!K30 -> 0 | G30: =VLOOKUP(B:B,OFFSET('B. PoF Adj Factor Scoring'!$E$5:$F$282,,MATCH(G$4,'B. PoF Adj Factor Scoring'!$E$3:$N$3,0)-1),2,TRUE) -> 1 | H30: =VLOOKUP(C:C,OFFSET('B. PoF Adj Factor Scoring'!$E$5:$F$282,,MATCH(H$4,'B. PoF Adj Factor Scoring'!$E$3:$N$3,0)-1),2,TRUE) -> 1 | I30: =VLOOKUP(D:D,OFFSET('B. PoF Adj Factor Scoring'!$E$5:$F$282,,MATCH(I$4,'B. PoF Adj Factor Scoring'!$E$3:$N$3,0)-1),2,TRUE) -> 1 | J30: =VLOOKUP(E:E,OFFSET('B. PoF Adj Factor Scoring'!$E$5:$F$282,,MATCH(J$4,'B. PoF Adj Factor Scoring'!$E$3:$N$3,0)-1),2,TRUE) -> 1 | K30: =VLOOKUP(F:F,OFFSET('B. PoF Adj Factor Scoring'!$E$5:$F$282,,MATCH(K$4,'B. PoF Adj Factor Scoring'!$E$3:$N$3,0)-1),2,TRUE) -> 1
A31: ='A. Population Info'!A31 -> 1000023962 | B31: ='A. Population Info'!G31 -> N/A | C31: ='A. Population Info'!H31 -> 0 | D31: ='A. Population Info'!I31 -> 0 | E31: ='A. Population Info'!J31 -> 0 | F31: ='A. Population Info'!K31 -> 0 | G31: =VLOOKUP(B:B,OFFSET('B. PoF Adj Factor Scoring'!$E$5:$F$282,,MATCH(G$4,'B. PoF Adj Factor Scoring'!$E$3:$N$3,0)-1),2,TRUE) -> 1 | H31: =VLOOKUP(C:C,OFFSET('B. PoF Adj Factor Scoring'!$E$5:$F$282,,MATCH(H$4,'B. PoF Adj Factor Scoring'!$E$3:$N$3,0)-1),2,TRUE) -> 1 | I31: =VLOOKUP(D:D,OFFSET('B. PoF Adj Factor Scoring'!$E$5:$F$282,,MATCH(I$4,'B. PoF Adj Factor Scoring'!$E$3:$N$3,0)-1),2,TRUE) -> 1 | J31: =VLOOKUP(E:E,OFFSET('B. PoF Adj Factor Scoring'!$E$5:$F$282,,MATCH(J$4,'B. PoF Adj Factor Scoring'!$E$3:$N$3,0)-1),2,TRUE) -> 1 | K31: =VLOOKUP(F:F,OFFSET('B. PoF Adj Factor Scoring'!$E$5:$F$282,,MATCH(K$4,'B. PoF Adj Factor Scoring'!$E$3:$N$3,0)-1),2,TRUE) -> 1
A32: ='A. Population Info'!A32 -> 1000024065 | B32: ='A. Population Info'!G32 -> N/A | C32: ='A. Population Info'!H32 -> 0 | D32: ='A. Population Info'!I32 -> 0 | E32: ='A. Population Info'!J32 -> 0 | F32: ='A. Population Info'!K32 -> 0 | G32: =VLOOKUP(B:B,OFFSET('B. PoF Adj Factor Scoring'!$E$5:$F$282,,MATCH(G$4,'B. PoF Adj Factor Scoring'!$E$3:$N$3,0)-1),2,TRUE) -> 1 | H32: =VLOOKUP(C:C,OFFSET('B. PoF Adj Factor Scoring'!$E$5:$F$282,,MATCH(H$4,'B. PoF Adj Factor Scoring'!$E$3:$N$3,0)-1),2,TRUE) -> 1 | I32: =VLOOKUP(D:D,OFFSET('B. PoF Adj Factor Scoring'!$E$5:$F$282,,MATCH(I$4,'B. PoF Adj Factor Scoring'!$E$3:$N$3,0)-1),2,TRUE) -> 1 | J32: =VLOOKUP(E:E,OFFSET('B. PoF Adj Factor Scoring'!$E$5:$F$282,,MATCH(J$4,'B. PoF Adj Factor Scoring'!$E$3:$N$3,0)-1),2,TRUE) -> 1 | K32: =VLOOKUP(F:F,OFFSET('B. PoF Adj Factor Scoring'!$E$5:$F$282,,MATCH(K$4,'B. PoF Adj Factor Scoring'!$E$3:$N$3,0)-1),2,TRUE) -> 1
A33: ='A. Population Info'!A33 -> 1000025001 | B33: ='A. Population Info'!G33 -> N/A | C33: ='A. Population Info'!H33 -> 0 | D33: ='A. Population Info'!I33 -> 0 | E33: ='A. Population Info'!J33 -> 0 | F33: ='A. Population Info'!K33 -> 0 | G33: =VLOOKUP(B:B,OFFSET('B. PoF Adj Factor Scoring'!$E$5:$F$282,,MATCH(G$4,'B. PoF Adj Factor Scoring'!$E$3:$N$3,0)-1),2,TRUE) -> 1 | H33: =VLOOKUP(C:C,OFFSET('B. PoF Adj Factor Scoring'!$E$5:$F$282,,MATCH(H$4,'B. PoF Adj Factor Scoring'!$E$3:$N$3,0)-1),2,TRUE) -> 1 | I33: =VLOOKUP(D:D,OFFSET('B. PoF Adj Factor Scoring'!$E$5:$F$282,,MATCH(I$4,'B. PoF Adj Factor Scoring'!$E$3:$N$3,0)-1),2,TRUE) -> 1 | J33: =VLOOKUP(E:E,OFFSET('B. PoF Adj Factor Scoring'!$E$5:$F$282,,MATCH(J$4,'B. PoF Adj Factor Scoring'!$E$3:$N$3,0)-1),2,TRUE) -> 1 | K33: =VLOOKUP(F:F,OFFSET('B. PoF Adj Factor Scoring'!$E$5:$F$282,,MATCH(K$4,'B. PoF Adj Factor Scoring'!$E$3:$N$3,0)-1),2,TRUE) -> 1
A34: ='A. Population Info'!A34 -> 1000025018 | B34: ='A. Population Info'!G34 -> N/A | C34: ='A. Population Info'!H34 -> 0 | D34: ='A. Population Info'!I34 -> 0 | E34: ='A. Population Info'!J34 -> 0 | F34: ='A. Population Info'!K34 -> 0 | G34: =VLOOKUP(B:B,OFFSET('B. PoF Adj Factor Scoring'!$E$5:$F$282,,MATCH(G$4,'B. PoF Adj Factor Scoring'!$E$3:$N$3,0)-1),2,TRUE) -> 1 | H34: =VLOOKUP(C:C,OFFSET('B. PoF Adj Factor Scoring'!$E$5:$F$282,,MATCH(H$4,'B. PoF Adj Factor Scoring'!$E$3:$N$3,0)-1),2,TRUE) -> 1 | I34: =VLOOKUP(D:D,OFFSET('B. PoF Adj Factor Scoring'!$E$5:$F$282,,MATCH(I$4,'B. PoF Adj Factor Scoring'!$E$3:$N$3,0)-1),2,TRUE) -> 1 | J34: =VLOOKUP(E:E,OFFSET('B. PoF Adj Factor Scoring'!$E$5:$F$282,,MATCH(J$4,'B. PoF Adj Factor Scoring'!$E$3:$N$3,0)-1),2,TRUE) -> 1 | K34: =VLOOKUP(F:F,OFFSET('B. PoF Adj Factor Scoring'!$E$5:$F$282,,MATCH(K$4,'B. PoF Adj Factor Scoring'!$E$3:$N$3,0)-1),2,TRUE) -> 1
A35: ='A. Population Info'!A35 -> 1000025054 | B35: ='A. Population Info'!G35 -> N/A | C35: ='A. Population Info'!H35 -> 0 | D35: ='A. Population Info'!I35 -> 0 | E35: ='A. Population Info'!J35 -> 0 | F35: ='A. Population Info'!K35 -> 0 | G35: =VLOOKUP(B:B,OFFSET('B. PoF Adj Factor Scoring'!$E$5:$F$282,,MATCH(G$4,'B. PoF Adj Factor Scoring'!$E$3:$N$3,0)-1),2,TRUE) -> 1 | H35: =VLOOKUP(C:C,OFFSET('B. PoF Adj Factor Scoring'!$E$5:$F$282,,MATCH(H$4,'B. PoF Adj Factor Scoring'!$E$3:$N$3,0)-1),2,TRUE) -> 1 | I35: =VLOOKUP(D:D,OFFSET('B. PoF Adj Factor Scoring'!$E$5:$F$282,,MATCH(I$4,'B. PoF Adj Factor Scoring'!$E$3:$N$3,0)-1),2,TRUE) -> 1 | J35: =VLOOKUP(E:E,OFFSET('B. PoF Adj Factor Scoring'!$E$5:$F$282,,MATCH(J$4,'B. PoF Adj Factor Scoring'!$E$3:$N$3,0)-1),2,TRUE) -> 1 | K35: =VLOOKUP(F:F,OFFSET('B. PoF Adj Factor Scoring'!$E$5:$F$282,,MATCH(K$4,'B. PoF Adj Factor Scoring'!$E$3:$N$3,0)-1),2,TRUE) -> 1
A36: ='A. Population Info'!A36 -> 1000025058 | B36: ='A. Population Info'!G36 -> N/A | C36: ='A. Population Info'!H36 -> 0 | D36: ='A. Population Info'!I36 -> 0 | E36: ='A. Population Info'!J36 -> 0 | F36: ='A. Population Info'!K36 -> 0 | G36: =VLOOKUP(B:B,OFFSET('B. PoF Adj Factor Scoring'!$E$5:$F$282,,MATCH(G$4,'B. PoF Adj Factor Scoring'!$E$3:$N$3,0)-1),2,TRUE) -> 1 | H36: =VLOOKUP(C:C,OFFSET('B. PoF Adj Factor Scoring'!$E$5:$F$282,,MATCH(H$4,'B. PoF Adj Factor Scoring'!$E$3:$N$3,0)-1),2,TRUE) -> 1 | I36: =VLOOKUP(D:D,OFFSET('B. PoF Adj Factor Scoring'!$E$5:$F$282,,MATCH(I$4,'B. PoF Adj Factor Scoring'!$E$3:$N$3,0)-1),2,TRUE) -> 1 | J36: =VLOOKUP(E:E,OFFSET('B. PoF Adj Factor Scoring'!$E$5:$F$282,,MATCH(J$4,'B. PoF Adj Factor Scoring'!$E$3:$N$3,0)-1),2,TRUE) -> 1 | K36: =VLOOKUP(F:F,OFFSET('B. PoF Adj Factor Scoring'!$E$5:$F$282,,MATCH(K$4,'B. PoF Adj Factor Scoring'!$E$3:$N$3,0)-1),2,TRUE) -> 1
A37: ='A. Population Info'!A37 -> 1000025064 | B37: ='A. Population Info'!G37 -> N/A | C37: ='A. Population Info'!H37 -> 0 | D37: ='A. Population Info'!I37 -> 0 | E37: ='A. Population Info'!J37 -> 0 | F37: ='A. Population Info'!K37 -> 0 | G37: =VLOOKUP(B:B,OFFSET('B. PoF Adj Factor Scoring'!$E$5:$F$282,,MATCH(G$4,'B. PoF Adj Factor Scoring'!$E$3:$N$3,0)-1),2,TRUE) -> 1 | H37: =VLOOKUP(C:C,OFFSET('B. PoF Adj Factor Scoring'!$E$5:$F$282,,MATCH(H$4,'B. PoF Adj Factor Scoring'!$E$3:$N$3,0)-1),2,TRUE) -> 1 | I37: =VLOOKUP(D:D,OFFSET('B. PoF Adj Factor Scoring'!$E$5:$F$282,,MATCH(I$4,'B. PoF Adj Factor Scoring'!$E$3:$N$3,0)-1),2,TRUE) -> 1 | J37: =VLOOKUP(E:E,OFFSET('B. PoF Adj Factor Scoring'!$E$5:$F$282,,MATCH(J$4,'B. PoF Adj Factor Scoring'!$E$3:$N$3,0)-1),2,TRUE) -> 1 | K37: =VLOOKUP(F:F,OFFSET('B. PoF Adj Factor Scoring'!$E$5:$F$282,,MATCH(K$4,'B. PoF Adj Factor Scoring'!$E$3:$N$3,0)-1),2,TRUE) -> 1
A38: ='A. Population Info'!A38 -> 1000025070 | B38: ='A. Population Info'!G38 -> N/A | C38: ='A. Population Info'!H38 -> 0 | D38: ='A. Population Info'!I38 -> 0 | E38: ='A. Population Info'!J38 -> 0 | F38: ='A. Population Info'!K38 -> 0 | G38: =VLOOKUP(B:B,OFFSET('B. PoF Adj Factor Scoring'!$E$5:$F$282,,MATCH(G$4,'B. PoF Adj Factor Scoring'!$E$3:$N$3,0)-1),2,TRUE) -> 1 | H38: =VLOOKUP(C:C,OFFSET('B. PoF Adj Factor Scoring'!$E$5:$F$282,,MATCH(H$4,'B. PoF Adj Factor Scoring'!$E$3:$N$3,0)-1),2,TRUE) -> 1 | I38: =VLOOKUP(D:D,OFFSET('B. PoF Adj Factor Scoring'!$E$5:$F$282,,MATCH(I$4,'B. PoF Adj Factor Scoring'!$E$3:$N$3,0)-1),2,TRUE) -> 1 | J38: =VLOOKUP(E:E,OFFSET('B. PoF Adj Factor Scoring'!$E$5:$F$282,,MATCH(J$4,'B. PoF Adj Factor Scoring'!$E$3:$N$3,0)-1),2,TRUE) -> 1 | K38: =VLOOKUP(F:F,OFFSET('B. PoF Adj Factor Scoring'!$E$5:$F$282,,MATCH(K$4,'B. PoF Adj Factor Scoring'!$E$3:$N$3,0)-1),2,TRUE) -> 1
A39: ='A. Population Info'!A39 -> 1000025074 | B39: ='A. Population Info'!G39 -> N/A | C39: ='A. Population Info'!H39 -> 0 | D39: ='A. Population Info'!I39 -> 0 | E39: ='A. Population Info'!J39 -> 0 | F39: ='A. Population Info'!K39 -> 0 | G39: =VLOOKUP(B:B,OFFSET('B. PoF Adj Factor Scoring'!$E$5:$F$282,,MATCH(G$4,'B. PoF Adj Factor Scoring'!$E$3:$N$3,0)-1),2,TRUE) -> 1 | H39: =VLOOKUP(C:C,OFFSET('B. PoF Adj Factor Scoring'!$E$5:$F$282,,MATCH(H$4,'B. PoF Adj Factor Scoring'!$E$3:$N$3,0)-1),2,TRUE) -> 1 | I39: =VLOOKUP(D:D,OFFSET('B. PoF Adj Factor Scoring'!$E$5:$F$282,,MATCH(I$4,'B. PoF Adj Factor Scoring'!$E$3:$N$3,0)-1),2,TRUE) -> 1 | J39: =VLOOKUP(E:E,OFFSET('B. PoF Adj Factor Scoring'!$E$5:$F$282,,MATCH(J$4,'B. PoF Adj Factor Scoring'!$E$3:$N$3,0)-1),2,TRUE) -> 1 | K39: =VLOOKUP(F:F,OFFSET('B. PoF Adj Factor Scoring'!$E$5:$F$282,,MATCH(K$4,'B. PoF Adj Factor Scoring'!$E$3:$N$3,0)-1),2,TRUE) -> 1
A40: ='A. Population Info'!A40 -> 1000025080 | B40: ='A. Population Info'!G40 -> N/A | C40: ='A. Population Info'!H40 -> 0 | D40: ='A. Population Info'!I40 -> 0 | E40: ='A. Population Info'!J40 -> 0 | F40: ='A. Population Info'!K40 -> 0 | G40: =VLOOKUP(B:B,OFFSET('B. PoF Adj Factor Scoring'!$E$5:$F$282,,MATCH(G$4,'B. PoF Adj Factor Scoring'!$E$3:$N$3,0)-1),2,TRUE) -> 1 | H40: =VLOOKUP(C:C,OFFSET('B. PoF Adj Factor Scoring'!$E$5:$F$282,,MATCH(H$4,'B. PoF Adj Factor Scoring'!$E$3:$N$3,0)-1),2,TRUE) -> 1 | I40: =VLOOKUP(D:D,OFFSET('B. PoF Adj Factor Scoring'!$E$5:$F$282,,MATCH(I$4,'B. PoF Adj Factor Scoring'!$E$3:$N$3,0)-1),2,TRUE) -> 1 | J40: =VLOOKUP(E:E,OFFSET('B. PoF Adj Factor Scoring'!$E$5:$F$282,,MATCH(J$4,'B. PoF Adj Factor Scoring'!$E$3:$N$3,0)-1),2,TRUE) -> 1 | K40: =VLOOKUP(F:F,OFFSET('B. PoF Adj Factor Scoring'!$E$5:$F$282,,MATCH(K$4,'B. PoF Adj Factor Scoring'!$E$3:$N$3,0)-1),2,TRUE) -> 1
A41: ='A. Population Info'!A41 -> 1000025086 | B41: ='A. Population Info'!G41 -> N/A | C41: ='A. Population Info'!H41 -> 0 | D41: ='A. Population Info'!I41 -> 0 | E41: ='A. Population Info'!J41 -> 0 | F41: ='A. Population Info'!K41 -> 0 | G41: =VLOOKUP(B:B,OFFSET('B. PoF Adj Factor Scoring'!$E$5:$F$282,,MATCH(G$4,'B. PoF Adj Factor Scoring'!$E$3:$N$3,0)-1),2,TRUE) -> 1 | H41: =VLOOKUP(C:C,OFFSET('B. PoF Adj Factor Scoring'!$E$5:$F$282,,MATCH(H$4,'B. PoF Adj Factor Scoring'!$E$3:$N$3,0)-1),2,TRUE) -> 1 | I41: =VLOOKUP(D:D,OFFSET('B. PoF Adj Factor Scoring'!$E$5:$F$282,,MATCH(I$4,'B. PoF Adj Factor Scoring'!$E$3:$N$3,0)-1),2,TRUE) -> 1 | J41: =VLOOKUP(E:E,OFFSET('B. PoF Adj Factor Scoring'!$E$5:$F$282,,MATCH(J$4,'B. PoF Adj Factor Scoring'!$E$3:$N$3,0)-1),2,TRUE) -> 1 | K41: =VLOOKUP(F:F,OFFSET('B. PoF Adj Factor Scoring'!$E$5:$F$282,,MATCH(K$4,'B. PoF Adj Factor Scoring'!$E$3:$N$3,0)-1),2,TRUE) -> 1
A42: ='A. Population Info'!A42 -> 1000025092 | B42: ='A. Population Info'!G42 -> N/A | C42: ='A. Population Info'!H42 -> 0 | D42: ='A. Population Info'!I42 -> 0 | E42: ='A. Population Info'!J42 -> 0 | F42: ='A. Population Info'!K42 -> 0 | G42: =VLOOKUP(B:B,OFFSET('B. PoF Adj Factor Scoring'!$E$5:$F$282,,MATCH(G$4,'B. PoF Adj Factor Scoring'!$E$3:$N$3,0)-1),2,TRUE) -> 1 | H42: =VLOOKUP(C:C,OFFSET('B. PoF Adj Factor Scoring'!$E$5:$F$282,,MATCH(H$4,'B. PoF Adj Factor Scoring'!$E$3:$N$3,0)-1),2,TRUE) -> 1 | I42: =VLOOKUP(D:D,OFFSET('B. PoF Adj Factor Scoring'!$E$5:$F$282,,MATCH(I$4,'B. PoF Adj Factor Scoring'!$E$3:$N$3,0)-1),2,TRUE) -> 1 | J42: =VLOOKUP(E:E,OFFSET('B. PoF Adj Factor Scoring'!$E$5:$F$282,,MATCH(J$4,'B. PoF Adj Factor Scoring'!$E$3:$N$3,0)-1),2,TRUE) -> 1 | K42: =VLOOKUP(F:F,OFFSET('B. PoF Adj Factor Scoring'!$E$5:$F$282,,MATCH(K$4,'B. PoF Adj Factor Scoring'!$E$3:$N$3,0)-1),2,TRUE) -> 1
A43: ='A. Population Info'!A43 -> 1000025100 | B43: ='A. Population Info'!G43 -> N/A | C43: ='A. Population Info'!H43 -> 0 | D43: ='A. Population Info'!I43 -> 0 | E43: ='A. Population Info'!J43 -> 0 | F43: ='A. Population Info'!K43 -> 0 | G43: =VLOOKUP(B:B,OFFSET('B. PoF Adj Factor Scoring'!$E$5:$F$282,,MATCH(G$4,'B. PoF Adj Factor Scoring'!$E$3:$N$3,0)-1),2,TRUE) -> 1 | H43: =VLOOKUP(C:C,OFFSET('B. PoF Adj Factor Scoring'!$E$5:$F$282,,MATCH(H$4,'B. PoF Adj Factor Scoring'!$E$3:$N$3,0)-1),2,TRUE) -> 1 | I43: =VLOOKUP(D:D,OFFSET('B. PoF Adj Factor Scoring'!$E$5:$F$282,,MATCH(I$4,'B. PoF Adj Factor Scoring'!$E$3:$N$3,0)-1),2,TRUE) -> 1 | J43: =VLOOKUP(E:E,OFFSET('B. PoF Adj Factor Scoring'!$E$5:$F$282,,MATCH(J$4,'B. PoF Adj Factor Scoring'!$E$3:$N$3,0)-1),2,TRUE) -> 1 | K43: =VLOOKUP(F:F,OFFSET('B. PoF Adj Factor Scoring'!$E$5:$F$282,,MATCH(K$4,'B. PoF Adj Factor Scoring'!$E$3:$N$3,0)-1),2,TRUE) -> 1
A44: ='A. Population Info'!A44 -> 1000025161 | B44: ='A. Population Info'!G44 -> N/A | C44: ='A. Population Info'!H44 -> 0 | D44: ='A. Population Info'!I44 -> 0 | E44: ='A. Population Info'!J44 -> 0 | F44: ='A. Population Info'!K44 -> 0 | G44: =VLOOKUP(B:B,OFFSET('B. PoF Adj Factor Scoring'!$E$5:$F$282,,MATCH(G$4,'B. PoF Adj Factor Scoring'!$E$3:$N$3,0)-1),2,TRUE) -> 1 | H44: =VLOOKUP(C:C,OFFSET('B. PoF Adj Factor Scoring'!$E$5:$F$282,,MATCH(H$4,'B. PoF Adj Factor Scoring'!$E$3:$N$3,0)-1),2,TRUE) -> 1 | I44: =VLOOKUP(D:D,OFFSET('B. PoF Adj Factor Scoring'!$E$5:$F$282,,MATCH(I$4,'B. PoF Adj Factor Scoring'!$E$3:$N$3,0)-1),2,TRUE) -> 1 | J44: =VLOOKUP(E:E,OFFSET('B. PoF Adj Factor Scoring'!$E$5:$F$282,,MATCH(J$4,'B. PoF Adj Factor Scoring'!$E$3:$N$3,0)-1),2,TRUE) -> 1 | K44: =VLOOKUP(F:F,OFFSET('B. PoF Adj Factor Scoring'!$E$5:$F$282,,MATCH(K$4,'B. PoF Adj Factor Scoring'!$E$3:$N$3,0)-1),2,TRUE) -> 1
A45: ='A. Population Info'!A45 -> 1000025441 | B45: ='A. Population Info'!G45 -> N/A | C45: ='A. Population Info'!H45 -> 0 | D45: ='A. Population Info'!I45 -> 0 | E45: ='A. Population Info'!J45 -> 0 | F45: ='A. Population Info'!K45 -> 0 | G45: =VLOOKUP(B:B,OFFSET('B. PoF Adj Factor Scoring'!$E$5:$F$282,,MATCH(G$4,'B. PoF Adj Factor Scoring'!$E$3:$N$3,0)-1),2,TRUE) -> 1 | H45: =VLOOKUP(C:C,OFFSET('B. PoF Adj Factor Scoring'!$E$5:$F$282,,MATCH(H$4,'B. PoF Adj Factor Scoring'!$E$3:$N$3,0)-1),2,TRUE) -> 1 | I45: =VLOOKUP(D:D,OFFSET('B. PoF Adj Factor Scoring'!$E$5:$F$282,,MATCH(I$4,'B. PoF Adj Factor Scoring'!$E$3:$N$3,0)-1),2,TRUE) -> 1 | J45: =VLOOKUP(E:E,OFFSET('B. PoF Adj Factor Scoring'!$E$5:$F$282,,MATCH(J$4,'B. PoF Adj Factor Scoring'!$E$3:$N$3,0)-1),2,TRUE) -> 1 | K45: =VLOOKUP(F:F,OFFSET('B. PoF Adj Factor Scoring'!$E$5:$F$282,,MATCH(K$4,'B. PoF Adj Factor Scoring'!$E$3:$N$3,0)-1),2,TRUE) -> 1
A46: ='A. Population Info'!A46 -> 1000025447 | B46: ='A. Population Info'!G46 -> N/A | C46: ='A. Population Info'!H46 -> 0 | D46: ='A. Population Info'!I46 -> 0 | E46: ='A. Population Info'!J46 -> 0 | F46: ='A. Population Info'!K46 -> 0 | G46: =VLOOKUP(B:B,OFFSET('B. PoF Adj Factor Scoring'!$E$5:$F$282,,MATCH(G$4,'B. PoF Adj Factor Scoring'!$E$3:$N$3,0)-1),2,TRUE) -> 1 | H46: =VLOOKUP(C:C,OFFSET('B. PoF Adj Factor Scoring'!$E$5:$F$282,,MATCH(H$4,'B. PoF Adj Factor Scoring'!$E$3:$N$3,0)-1),2,TRUE) -> 1 | I46: =VLOOKUP(D:D,OFFSET('B. PoF Adj Factor Scoring'!$E$5:$F$282,,MATCH(I$4,'B. PoF Adj Factor Scoring'!$E$3:$N$3,0)-1),2,TRUE) -> 1 | J46: =VLOOKUP(E:E,OFFSET('B. PoF Adj Factor Scoring'!$E$5:$F$282,,MATCH(J$4,'B. PoF Adj Factor Scoring'!$E$3:$N$3,0)-1),2,TRUE) -> 1 | K46: =VLOOKUP(F:F,OFFSET('B. PoF Adj Factor Scoring'!$E$5:$F$282,,MATCH(K$4,'B. PoF Adj Factor Scoring'!$E$3:$N$3,0)-1),2,TRUE) -> 1
A47: ='A. Population Info'!A47 -> 1000025459 | B47: ='A. Population Info'!G47 -> N/A | C47: ='A. Population Info'!H47 -> 0 | D47: ='A. Population Info'!I47 -> 0 | E47: ='A. Population Info'!J47 -> 0 | F47: ='A. Population Info'!K47 -> 0 | G47: =VLOOKUP(B:B,OFFSET('B. PoF Adj Factor Scoring'!$E$5:$F$282,,MATCH(G$4,'B. PoF Adj Factor Scoring'!$E$3:$N$3,0)-1),2,TRUE) -> 1 | H47: =VLOOKUP(C:C,OFFSET('B. PoF Adj Factor Scoring'!$E$5:$F$282,,MATCH(H$4,'B. PoF Adj Factor Scoring'!$E$3:$N$3,0)-1),2,TRUE) -> 1 | I47: =VLOOKUP(D:D,OFFSET('B. PoF Adj Factor Scoring'!$E$5:$F$282,,MATCH(I$4,'B. PoF Adj Factor Scoring'!$E$3:$N$3,0)-1),2,TRUE) -> 1 | J47: =VLOOKUP(E:E,OFFSET('B. PoF Adj Factor Scoring'!$E$5:$F$282,,MATCH(J$4,'B. PoF Adj Factor Scoring'!$E$3:$N$3,0)-1),2,TRUE) -> 1 | K47: =VLOOKUP(F:F,OFFSET('B. PoF Adj Factor Scoring'!$E$5:$F$282,,MATCH(K$4,'B. PoF Adj Factor Scoring'!$E$3:$N$3,0)-1),2,TRUE) -> 1
A48: ='A. Population Info'!A48 -> 1000025462 | B48: ='A. Population Info'!G48 -> N/A | C48: ='A. Population Info'!H48 -> 0 | D48: ='A. Population Info'!I48 -> 0 | E48: ='A. Population Info'!J48 -> 0 | F48: ='A. Population Info'!K48 -> 0 | G48: =VLOOKUP(B:B,OFFSET('B. PoF Adj Factor Scoring'!$E$5:$F$282,,MATCH(G$4,'B. PoF Adj Factor Scoring'!$E$3:$N$3,0)-1),2,TRUE) -> 1 | H48: =VLOOKUP(C:C,OFFSET('B. PoF Adj Factor Scoring'!$E$5:$F$282,,MATCH(H$4,'B. PoF Adj Factor Scoring'!$E$3:$N$3,0)-1),2,TRUE) -> 1 | I48: =VLOOKUP(D:D,OFFSET('B. PoF Adj Factor Scoring'!$E$5:$F$282,,MATCH(I$4,'B. PoF Adj Factor Scoring'!$E$3:$N$3,0)-1),2,TRUE) -> 1 | J48: =VLOOKUP(E:E,OFFSET('B. PoF Adj Factor Scoring'!$E$5:$F$282,,MATCH(J$4,'B. PoF Adj Factor Scoring'!$E$3:$N$3,0)-1),2,TRUE) -> 1 | K48: =VLOOKUP(F:F,OFFSET('B. PoF Adj Factor Scoring'!$E$5:$F$282,,MATCH(K$4,'B. PoF Adj Factor Scoring'!$E$3:$N$3,0)-1),2,TRUE) -> 1
A49: ='A. Population Info'!A49 -> 1000025465 | B49: ='A. Population Info'!G49 -> N/A | C49: ='A. Population Info'!H49 -> 0 | D49: ='A. Population Info'!I49 -> 0 | E49: ='A. Population Info'!J49 -> 0 | F49: ='A. Population Info'!K49 -> 0 | G49: =VLOOKUP(B:B,OFFSET('B. PoF Adj Factor Scoring'!$E$5:$F$282,,MATCH(G$4,'B. PoF Adj Factor Scoring'!$E$3:$N$3,0)-1),2,TRUE) -> 1 | H49: =VLOOKUP(C:C,OFFSET('B. PoF Adj Factor Scoring'!$E$5:$F$282,,MATCH(H$4,'B. PoF Adj Factor Scoring'!$E$3:$N$3,0)-1),2,TRUE) -> 1 | I49: =VLOOKUP(D:D,OFFSET('B. PoF Adj Factor Scoring'!$E$5:$F$282,,MATCH(I$4,'B. PoF Adj Factor Scoring'!$E$3:$N$3,0)-1),2,TRUE) -> 1 | J49: =VLOOKUP(E:E,OFFSET('B. PoF Adj Factor Scoring'!$E$5:$F$282,,MATCH(J$4,'B. PoF Adj Factor Scoring'!$E$3:$N$3,0)-1),2,TRUE) -> 1 | K49: =VLOOKUP(F:F,OFFSET('B. PoF Adj Factor Scoring'!$E$5:$F$282,,MATCH(K$4,'B. PoF Adj Factor Scoring'!$E$3:$N$3,0)-1),2,TRUE) -> 1
A50: ='A. Population Info'!A50 -> 1000025471 | B50: ='A. Population Info'!G50 -> N/A | C50: ='A. Population Info'!H50 -> 0 | D50: ='A. Population Info'!I50 -> 0 | E50: ='A. Population Info'!J50 -> 0 | F50: ='A. Population Info'!K50 -> 0 | G50: =VLOOKUP(B:B,OFFSET('B. PoF Adj Factor Scoring'!$E$5:$F$282,,MATCH(G$4,'B. PoF Adj Factor Scoring'!$E$3:$N$3,0)-1),2,TRUE) -> 1 | H50: =VLOOKUP(C:C,OFFSET('B. PoF Adj Factor Scoring'!$E$5:$F$282,,MATCH(H$4,'B. PoF Adj Factor Scoring'!$E$3:$N$3,0)-1),2,TRUE) -> 1 | I50: =VLOOKUP(D:D,OFFSET('B. PoF Adj Factor Scoring'!$E$5:$F$282,,MATCH(I$4,'B. PoF Adj Factor Scoring'!$E$3:$N$3,0)-1),2,TRUE) -> 1 | J50: =VLOOKUP(E:E,OFFSET('B. PoF Adj Factor Scoring'!$E$5:$F$282,,MATCH(J$4,'B. PoF Adj Factor Scoring'!$E$3:$N$3,0)-1),2,TRUE) -> 1 | K50: =VLOOKUP(F:F,OFFSET('B. PoF Adj Factor Scoring'!$E$5:$F$282,,MATCH(K$4,'B. PoF Adj Factor Scoring'!$E$3:$N$3,0)-1),2,TRUE) -> 1
A51: ='A. Population Info'!A51 -> 1000025474 | B51: ='A. Population Info'!G51 -> N/A | C51: ='A. Population Info'!H51 -> 0 | D51: ='A. Population Info'!I51 -> 0 | E51: ='A. Population Info'!J51 -> 0 | F51: ='A. Population Info'!K51 -> 0 | G51: =VLOOKUP(B:B,OFFSET('B. PoF Adj Factor Scoring'!$E$5:$F$282,,MATCH(G$4,'B. PoF Adj Factor Scoring'!$E$3:$N$3,0)-1),2,TRUE) -> 1 | H51: =VLOOKUP(C:C,OFFSET('B. PoF Adj Factor Scoring'!$E$5:$F$282,,MATCH(H$4,'B. PoF Adj Factor Scoring'!$E$3:$N$3,0)-1),2,TRUE) -> 1 | I51: =VLOOKUP(D:D,OFFSET('B. PoF Adj Factor Scoring'!$E$5:$F$282,,MATCH(I$4,'B. PoF Adj Factor Scoring'!$E$3:$N$3,0)-1),2,TRUE) -> 1 | J51: =VLOOKUP(E:E,OFFSET('B. PoF Adj Factor Scoring'!$E$5:$F$282,,MATCH(J$4,'B. PoF Adj Factor Scoring'!$E$3:$N$3,0)-1),2,TRUE) -> 1 | K51: =VLOOKUP(F:F,OFFSET('B. PoF Adj Factor Scoring'!$E$5:$F$282,,MATCH(K$4,'B. PoF Adj Factor Scoring'!$E$3:$N$3,0)-1),2,TRUE) -> 1
A52: ='A. Population Info'!A52 -> 1000025476 | B52: ='A. Population Info'!G52 -> N/A | C52: ='A. Population Info'!H52 -> 0 | D52: ='A. Population Info'!I52 -> 0 | E52: ='A. Population Info'!J52 -> 0 | F52: ='A. Population Info'!K52 -> 0 | G52: =VLOOKUP(B:B,OFFSET('B. PoF Adj Factor Scoring'!$E$5:$F$282,,MATCH(G$4,'B. PoF Adj Factor Scoring'!$E$3:$N$3,0)-1),2,TRUE) -> 1 | H52: =VLOOKUP(C:C,OFFSET('B. PoF Adj Factor Scoring'!$E$5:$F$282,,MATCH(H$4,'B. PoF Adj Factor Scoring'!$E$3:$N$3,0)-1),2,TRUE) -> 1 | I52: =VLOOKUP(D:D,OFFSET('B. PoF Adj Factor Scoring'!$E$5:$F$282,,MATCH(I$4,'B. PoF Adj Factor Scoring'!$E$3:$N$3,0)-1),2,TRUE) -> 1 | J52: =VLOOKUP(E:E,OFFSET('B. PoF Adj Factor Scoring'!$E$5:$F$282,,MATCH(J$4,'B. PoF Adj Factor Scoring'!$E$3:$N$3,0)-1),2,TRUE) -> 1 | K52: =VLOOKUP(F:F,OFFSET('B. PoF Adj Factor Scoring'!$E$5:$F$282,,MATCH(K$4,'B. PoF Adj Factor Scoring'!$E$3:$N$3,0)-1),2,TRUE) -> 1
A53: ='A. Population Info'!A53 -> 1000029974 | B53: ='A. Population Info'!G53 -> Rocker | C53: ='A. Population Info'!H53 -> 0 | D53: ='A. Population Info'!I53 -> 0 | E53: ='A. Population Info'!J53 -> 0 | F53: ='A. Population Info'!K53 -> 0 | G53: =VLOOKUP(B:B,OFFSET('B. PoF Adj Factor Scoring'!$E$5:$F$282,,MATCH(G$4,'B. PoF Adj Factor Scoring'!$E$3:$N$3,0)-1),2,TRUE) -> 2 | H53: =VLOOKUP(C:C,OFFSET('B. PoF Adj Factor Scoring'!$E$5:$F$282,,MATCH(H$4,'B. PoF Adj Factor Scoring'!$E$3:$N$3,0)-1),2,TRUE) -> 1 | I53: =VLOOKUP(D:D,OFFSET('B. PoF Adj Factor Scoring'!$E$5:$F$282,,MATCH(I$4,'B. PoF Adj Factor Scoring'!$E$3:$N$3,0)-1),2,TRUE) -> 1 | J53: =VLOOKUP(E:E,OFFSET('B. PoF Adj Factor Scoring'!$E$5:$F$282,,MATCH(J$4,'B. PoF Adj Factor Scoring'!$E$3:$N$3,0)-1),2,TRUE) -> 1 | K53: =VLOOKUP(F:F,OFFSET('B. PoF Adj Factor Scoring'!$E$5:$F$282,,MATCH(K$4,'B. PoF Adj Factor Scoring'!$E$3:$N$3,0)-1),2,TRUE) -> 1
A54: ='A. Population Info'!A54 -> 1000029995 | B54: ='A. Population Info'!G54 -> Rocker | C54: ='A. Population Info'!H54 -> 0 | D54: ='A. Population Info'!I54 -> 0 | E54: ='A. Population Info'!J54 -> 0 | F54: ='A. Population Info'!K54 -> 0 | G54: =VLOOKUP(B:B,OFFSET('B. PoF Adj Factor Scoring'!$E$5:$F$282,,MATCH(G$4,'B. PoF Adj Factor Scoring'!$E$3:$N$3,0)-1),2,TRUE) -> 2 | H54: =VLOOKUP(C:C,OFFSET('B. PoF Adj Factor Scoring'!$E$5:$F$282,,MATCH(H$4,'B. PoF Adj Factor Scoring'!$E$3:$N$3,0)-1),2,TRUE) -> 1 | I54: =VLOOKUP(D:D,OFFSET('B. PoF Adj Factor Scoring'!$E$5:$F$282,,MATCH(I$4,'B. PoF Adj Factor Scoring'!$E$3:$N$3,0)-1),2,TRUE) -> 1 | J54: =VLOOKUP(E:E,OFFSET('B. PoF Adj Factor Scoring'!$E$5:$F$282,,MATCH(J$4,'B. PoF Adj Factor Scoring'!$E$3:$N$3,0)-1),2,TRUE) -> 1 | K54: =VLOOKUP(F:F,OFFSET('B. PoF Adj Factor Scoring'!$E$5:$F$282,,MATCH(K$4,'B. PoF Adj Factor Scoring'!$E$3:$N$3,0)-1),2,TRUE) -> 1
A55: ='A. Population Info'!A55 -> 1000030807 | B55: ='A. Population Info'!G55 -> N/A | C55: ='A. Population Info'!H55 -> 0 | D55: ='A. Population Info'!I55 -> 0 | E55: ='A. Population Info'!J55 -> 0 | F55: ='A. Population Info'!K55 -> 0 | G55: =VLOOKUP(B:B,OFFSET('B. PoF Adj Factor Scoring'!$E$5:$F$282,,MATCH(G$4,'B. PoF Adj Factor Scoring'!$E$3:$N$3,0)-1),2,TRUE) -> 1 | H55: =VLOOKUP(C:C,OFFSET('B. PoF Adj Factor Scoring'!$E$5:$F$282,,MATCH(H$4,'B. PoF Adj Factor Scoring'!$E$3:$N$3,0)-1),2,TRUE) -> 1 | I55: =VLOOKUP(D:D,OFFSET('B. PoF Adj Factor Scoring'!$E$5:$F$282,,MATCH(I$4,'B. PoF Adj Factor Scoring'!$E$3:$N$3,0)-1),2,TRUE) -> 1 | J55: =VLOOKUP(E:E,OFFSET('B. PoF Adj Factor Scoring'!$E$5:$F$282,,MATCH(J$4,'B. PoF Adj Factor Scoring'!$E$3:$N$3,0)-1),2,TRUE) -> 1 | K55: =VLOOKUP(F:F,OFFSET('B. PoF Adj Factor Scoring'!$E$5:$F$282,,MATCH(K$4,'B. PoF Adj Factor Scoring'!$E$3:$N$3,0)-1),2,TRUE) -> 1
A56: ='A. Population Info'!A56 -> 1000030860 | B56: ='A. Population Info'!G56 -> N/A | C56: ='A. Population Info'!H56 -> 0 | D56: ='A. Population Info'!I56 -> 0 | E56: ='A. Population Info'!J56 -> 0 | F56: ='A. Population Info'!K56 -> 0 | G56: =VLOOKUP(B:B,OFFSET('B. PoF Adj Factor Scoring'!$E$5:$F$282,,MATCH(G$4,'B. PoF Adj Factor Scoring'!$E$3:$N$3,0)-1),2,TRUE) -> 1 | H56: =VLOOKUP(C:C,OFFSET('B. PoF Adj Factor Scoring'!$E$5:$F$282,,MATCH(H$4,'B. PoF Adj Factor Scoring'!$E$3:$N$3,0)-1),2,TRUE) -> 1 | I56: =VLOOKUP(D:D,OFFSET('B. PoF Adj Factor Scoring'!$E$5:$F$282,,MATCH(I$4,'B. PoF Adj Factor Scoring'!$E$3:$N$3,0)-1),2,TRUE) -> 1 | J56: =VLOOKUP(E:E,OFFSET('B. PoF Adj Factor Scoring'!$E$5:$F$282,,MATCH(J$4,'B. PoF Adj Factor Scoring'!$E$3:$N$3,0)-1),2,TRUE) -> 1 | K56: =VLOOKUP(F:F,OFFSET('B. PoF Adj Factor Scoring'!$E$5:$F$282,,MATCH(K$4,'B. PoF Adj Factor Scoring'!$E$3:$N$3,0)-1),2,TRUE) -> 1
A57: ='A. Population Info'!A57 -> 1000030913 | B57: ='A. Population Info'!G57 -> N/A | C57: ='A. Population Info'!H57 -> 0 | D57: ='A. Population Info'!I57 -> 0 | E57: ='A. Population Info'!J57 -> 0 | F57: ='A. Population Info'!K57 -> 0 | G57: =VLOOKUP(B:B,OFFSET('B. PoF Adj Factor Scoring'!$E$5:$F$282,,MATCH(G$4,'B. PoF Adj Factor Scoring'!$E$3:$N$3,0)-1),2,TRUE) -> 1 | H57: =VLOOKUP(C:C,OFFSET('B. PoF Adj Factor Scoring'!$E$5:$F$282,,MATCH(H$4,'B. PoF Adj Factor Scoring'!$E$3:$N$3,0)-1),2,TRUE) -> 1 | I57: =VLOOKUP(D:D,OFFSET('B. PoF Adj Factor Scoring'!$E$5:$F$282,,MATCH(I$4,'B. PoF Adj Factor Scoring'!$E$3:$N$3,0)-1),2,TRUE) -> 1 | J57: =VLOOKUP(E:E,OFFSET('B. PoF Adj Factor Scoring'!$E$5:$F$282,,MATCH(J$4,'B. PoF Adj Factor Scoring'!$E$3:$N$3,0)-1),2,TRUE) -> 1 | K57: =VLOOKUP(F:F,OFFSET('B. PoF Adj Factor Scoring'!$E$5:$F$282,,MATCH(K$4,'B. PoF Adj Factor Scoring'!$E$3:$N$3,0)-1),2,TRUE) -> 1
A58: ='A. Population Info'!A58 -> 1000030923 | B58: ='A. Population Info'!G58 -> N/A | C58: ='A. Population Info'!H58 -> 0 | D58: ='A. Population Info'!I58 -> 0 | E58: ='A. Population Info'!J58 -> 0 | F58: ='A. Population Info'!K58 -> 0 | G58: =VLOOKUP(B:B,OFFSET('B. PoF Adj Factor Scoring'!$E$5:$F$282,,MATCH(G$4,'B. PoF Adj Factor Scoring'!$E$3:$N$3,0)-1),2,TRUE) -> 1 | H58: =VLOOKUP(C:C,OFFSET('B. PoF Adj Factor Scoring'!$E$5:$F$282,,MATCH(H$4,'B. PoF Adj Factor Scoring'!$E$3:$N$3,0)-1),2,TRUE) -> 1 | I58: =VLOOKUP(D:D,OFFSET('B. PoF Adj Factor Scoring'!$E$5:$F$282,,MATCH(I$4,'B. PoF Adj Factor Scoring'!$E$3:$N$3,0)-1),2,TRUE) -> 1 | J58: =VLOOKUP(E:E,OFFSET('B. PoF Adj Factor Scoring'!$E$5:$F$282,,MATCH(J$4,'B. PoF Adj Factor Scoring'!$E$3:$N$3,0)-1),2,TRUE) -> 1 | K58: =VLOOKUP(F:F,OFFSET('B. PoF Adj Factor Scoring'!$E$5:$F$282,,MATCH(K$4,'B. PoF Adj Factor Scoring'!$E$3:$N$3,0)-1),2,TRUE) -> 1
A59: ='A. Population Info'!A59 -> 1000035052 | B59: ='A. Population Info'!G59 -> N/A | C59: ='A. Population Info'!H59 -> 0 | D59: ='A. Population Info'!I59 -> 0 | E59: ='A. Population Info'!J59 -> 0 | F59: ='A. Population Info'!K59 -> 0 | G59: =VLOOKUP(B:B,OFFSET('B. PoF Adj Factor Scoring'!$E$5:$F$282,,MATCH(G$4,'B. PoF Adj Factor Scoring'!$E$3:$N$3,0)-1),2,TRUE) -> 1 | H59: =VLOOKUP(C:C,OFFSET('B. PoF Adj Factor Scoring'!$E$5:$F$282,,MATCH(H$4,'B. PoF Adj Factor Scoring'!$E$3:$N$3,0)-1),2,TRUE) -> 1 | I59: =VLOOKUP(D:D,OFFSET('B. PoF Adj Factor Scoring'!$E$5:$F$282,,MATCH(I$4,'B. PoF Adj Factor Scoring'!$E$3:$N$3,0)-1),2,TRUE) -> 1 | J59: =VLOOKUP(E:E,OFFSET('B. PoF Adj Factor Scoring'!$E$5:$F$282,,MATCH(J$4,'B. PoF Adj Factor Scoring'!$E$3:$N$3,0)-1),2,TRUE) -> 1 | K59: =VLOOKUP(F:F,OFFSET('B. PoF Adj Factor Scoring'!$E$5:$F$282,,MATCH(K$4,'B. PoF Adj Factor Scoring'!$E$3:$N$3,0)-1),2,TRUE) -> 1
A60: ='A. Population Info'!A60 -> 1000035682 | B60: ='A. Population Info'!G60 -> N/A | C60: ='A. Population Info'!H60 -> 0 | D60: ='A. Population Info'!I60 -> 0 | E60: ='A. Population Info'!J60 -> 0 | F60: ='A. Population Info'!K60 -> 0 | G60: =VLOOKUP(B:B,OFFSET('B. PoF Adj Factor Scoring'!$E$5:$F$282,,MATCH(G$4,'B. PoF Adj Factor Scoring'!$E$3:$N$3,0)-1),2,TRUE) -> 1 | H60: =VLOOKUP(C:C,OFFSET('B. PoF Adj Factor Scoring'!$E$5:$F$282,,MATCH(H$4,'B. PoF Adj Factor Scoring'!$E$3:$N$3,0)-1),2,TRUE) -> 1 | I60: =VLOOKUP(D:D,OFFSET('B. PoF Adj Factor Scoring'!$E$5:$F$282,,MATCH(I$4,'B. PoF Adj Factor Scoring'!$E$3:$N$3,0)-1),2,TRUE) -> 1 | J60: =VLOOKUP(E:E,OFFSET('B. PoF Adj Factor Scoring'!$E$5:$F$282,,MATCH(J$4,'B. PoF Adj Factor Scoring'!$E$3:$N$3,0)-1),2,TRUE) -> 1 | K60: =VLOOKUP(F:F,OFFSET('B. PoF Adj Factor Scoring'!$E$5:$F$282,,MATCH(K$4,'B. PoF Adj Factor Scoring'!$E$3:$N$3,0)-1),2,TRUE) -> 1
A61: ='A. Population Info'!A61 -> 1000037393 | B61: ='A. Population Info'!G61 -> N/A | C61: ='A. Population Info'!H61 -> 0 | D61: ='A. Population Info'!I61 -> 0 | E61: ='A. Population Info'!J61 -> 0 | F61: ='A. Population Info'!K61 -> 0 | G61: =VLOOKUP(B:B,OFFSET('B. PoF Adj Factor Scoring'!$E$5:$F$282,,MATCH(G$4,'B. PoF Adj Factor Scoring'!$E$3:$N$3,0)-1),2,TRUE) -> 1 | H61: =VLOOKUP(C:C,OFFSET('B. PoF Adj Factor Scoring'!$E$5:$F$282,,MATCH(H$4,'B. PoF Adj Factor Scoring'!$E$3:$N$3,0)-1),2,TRUE) -> 1 | I61: =VLOOKUP(D:D,OFFSET('B. PoF Adj Factor Scoring'!$E$5:$F$282,,MATCH(I$4,'B. PoF Adj Factor Scoring'!$E$3:$N$3,0)-1),2,TRUE) -> 1 | J61: =VLOOKUP(E:E,OFFSET('B. PoF Adj Factor Scoring'!$E$5:$F$282,,MATCH(J$4,'B. PoF Adj Factor Scoring'!$E$3:$N$3,0)-1),2,TRUE) -> 1 | K61: =VLOOKUP(F:F,OFFSET('B. PoF Adj Factor Scoring'!$E$5:$F$282,,MATCH(K$4,'B. PoF Adj Factor Scoring'!$E$3:$N$3,0)-1),2,TRUE) -> 1
A62: ='A. Population Info'!A62 -> 1000037698 | B62: ='A. Population Info'!G62 -> N/A | C62: ='A. Population Info'!H62 -> 0 | D62: ='A. Population Info'!I62 -> 0 | E62: ='A. Population Info'!J62 -> 0 | F62: ='A. Population Info'!K62 -> 0 | G62: =VLOOKUP(B:B,OFFSET('B. PoF Adj Factor Scoring'!$E$5:$F$282,,MATCH(G$4,'B. PoF Adj Factor Scoring'!$E$3:$N$3,0)-1),2,TRUE) -> 1 | H62: =VLOOKUP(C:C,OFFSET('B. PoF Adj Factor Scoring'!$E$5:$F$282,,MATCH(H$4,'B. PoF Adj Factor Scoring'!$E$3:$N$3,0)-1),2,TRUE) -> 1 | I62: =VLOOKUP(D:D,OFFSET('B. PoF Adj Factor Scoring'!$E$5:$F$282,,MATCH(I$4,'B. PoF Adj Factor Scoring'!$E$3:$N$3,0)-1),2,TRUE) -> 1 | J62: =VLOOKUP(E:E,OFFSET('B. PoF Adj Factor Scoring'!$E$5:$F$282,,MATCH(J$4,'B. PoF Adj Factor Scoring'!$E$3:$N$3,0)-1),2,TRUE) -> 1 | K62: =VLOOKUP(F:F,OFFSET('B. PoF Adj Factor Scoring'!$E$5:$F$282,,MATCH(K$4,'B. PoF Adj Factor Scoring'!$E$3:$N$3,0)-1),2,TRUE) -> 1
A63: ='A. Population Info'!A63 -> 1000038444 | B63: ='A. Population Info'!G63 -> N/A | C63: ='A. Population Info'!H63 -> 0 | D63: ='A. Population Info'!I63 -> 0 | E63: ='A. Population Info'!J63 -> 0 | F63: ='A. Population Info'!K63 -> 0 | G63: =VLOOKUP(B:B,OFFSET('B. PoF Adj Factor Scoring'!$E$5:$F$282,,MATCH(G$4,'B. PoF Adj Factor Scoring'!$E$3:$N$3,0)-1),2,TRUE) -> 1 | H63: =VLOOKUP(C:C,OFFSET('B. PoF Adj Factor Scoring'!$E$5:$F$282,,MATCH(H$4,'B. PoF Adj Factor Scoring'!$E$3:$N$3,0)-1),2,TRUE) -> 1 | I63: =VLOOKUP(D:D,OFFSET('B. PoF Adj Factor Scoring'!$E$5:$F$282,,MATCH(I$4,'B. PoF Adj Factor Scoring'!$E$3:$N$3,0)-1),2,TRUE) -> 1 | J63: =VLOOKUP(E:E,OFFSET('B. PoF Adj Factor Scoring'!$E$5:$F$282,,MATCH(J$4,'B. PoF Adj Factor Scoring'!$E$3:$N$3,0)-1),2,TRUE) -> 1 | K63: =VLOOKUP(F:F,OFFSET('B. PoF Adj Factor Scoring'!$E$5:$F$282,,MATCH(K$4,'B. PoF Adj Factor Scoring'!$E$3:$N$3,0)-1),2,TRUE) -> 1
A64: ='A. Population Info'!A64 -> 1000038470 | B64: ='A. Population Info'!G64 -> Rocker | C64: ='A. Population Info'!H64 -> 0 | D64: ='A. Population Info'!I64 -> 0 | E64: ='A. Population Info'!J64 -> 0 | F64: ='A. Population Info'!K64 -> 0 | G64: =VLOOKUP(B:B,OFFSET('B. PoF Adj Factor Scoring'!$E$5:$F$282,,MATCH(G$4,'B. PoF Adj Factor Scoring'!$E$3:$N$3,0)-1),2,TRUE) -> 2 | H64: =VLOOKUP(C:C,OFFSET('B. PoF Adj Factor Scoring'!$E$5:$F$282,,MATCH(H$4,'B. PoF Adj Factor Scoring'!$E$3:$N$3,0)-1),2,TRUE) -> 1 | I64: =VLOOKUP(D:D,OFFSET('B. PoF Adj Factor Scoring'!$E$5:$F$282,,MATCH(I$4,'B. PoF Adj Factor Scoring'!$E$3:$N$3,0)-1),2,TRUE) -> 1 | J64: =VLOOKUP(E:E,OFFSET('B. PoF Adj Factor Scoring'!$E$5:$F$282,,MATCH(J$4,'B. PoF Adj Factor Scoring'!$E$3:$N$3,0)-1),2,TRUE) -> 1 | K64: =VLOOKUP(F:F,OFFSET('B. PoF Adj Factor Scoring'!$E$5:$F$282,,MATCH(K$4,'B. PoF Adj Factor Scoring'!$E$3:$N$3,0)-1),2,TRUE) -> 1
A65: ='A. Population Info'!A65 -> 1000041246 | B65: ='A. Population Info'!G65 -> N/A | C65: ='A. Population Info'!H65 -> 0 | D65: ='A. Population Info'!I65 -> 0 | E65: ='A. Population Info'!J65 -> 0 | F65: ='A. Population Info'!K65 -> 0 | G65: =VLOOKUP(B:B,OFFSET('B. PoF Adj Factor Scoring'!$E$5:$F$282,,MATCH(G$4,'B. PoF Adj Factor Scoring'!$E$3:$N$3,0)-1),2,TRUE) -> 1 | H65: =VLOOKUP(C:C,OFFSET('B. PoF Adj Factor Scoring'!$E$5:$F$282,,MATCH(H$4,'B. PoF Adj Factor Scoring'!$E$3:$N$3,0)-1),2,TRUE) -> 1 | I65: =VLOOKUP(D:D,OFFSET('B. PoF Adj Factor Scoring'!$E$5:$F$282,,MATCH(I$4,'B. PoF Adj Factor Scoring'!$E$3:$N$3,0)-1),2,TRUE) -> 1 | J65: =VLOOKUP(E:E,OFFSET('B. PoF Adj Factor Scoring'!$E$5:$F$282,,MATCH(J$4,'B. PoF Adj Factor Scoring'!$E$3:$N$3,0)-1),2,TRUE) -> 1 | K65: =VLOOKUP(F:F,OFFSET('B. PoF Adj Factor Scoring'!$E$5:$F$282,,MATCH(K$4,'B. PoF Adj Factor Scoring'!$E$3:$N$3,0)-1),2,TRUE) -> 1
A66: ='A. Population Info'!A66 -> 1000043039 | B66: ='A. Population Info'!G66 -> N/A | C66: ='A. Population Info'!H66 -> 0 | D66: ='A. Population Info'!I66 -> 0 | E66: ='A. Population Info'!J66 -> 0 | F66: ='A. Population Info'!K66 -> 0 | G66: =VLOOKUP(B:B,OFFSET('B. PoF Adj Factor Scoring'!$E$5:$F$282,,MATCH(G$4,'B. PoF Adj Factor Scoring'!$E$3:$N$3,0)-1),2,TRUE) -> 1 | H66: =VLOOKUP(C:C,OFFSET('B. PoF Adj Factor Scoring'!$E$5:$F$282,,MATCH(H$4,'B. PoF Adj Factor Scoring'!$E$3:$N$3,0)-1),2,TRUE) -> 1 | I66: =VLOOKUP(D:D,OFFSET('B. PoF Adj Factor Scoring'!$E$5:$F$282,,MATCH(I$4,'B. PoF Adj Factor Scoring'!$E$3:$N$3,0)-1),2,TRUE) -> 1 | J66: =VLOOKUP(E:E,OFFSET('B. PoF Adj Factor Scoring'!$E$5:$F$282,,MATCH(J$4,'B. PoF Adj Factor Scoring'!$E$3:$N$3,0)-1),2,TRUE) -> 1 | K66: =VLOOKUP(F:F,OFFSET('B. PoF Adj Factor Scoring'!$E$5:$F$282,,MATCH(K$4,'B. PoF Adj Factor Scoring'!$E$3:$N$3,0)-1),2,TRUE) -> 1
A67: ='A. Population Info'!A67 -> 1000043074 | B67: ='A. Population Info'!G67 -> N/A | C67: ='A. Population Info'!H67 -> 0 | D67: ='A. Population Info'!I67 -> 0 | E67: ='A. Population Info'!J67 -> 0 | F67: ='A. Population Info'!K67 -> 0 | G67: =VLOOKUP(B:B,OFFSET('B. PoF Adj Factor Scoring'!$E$5:$F$282,,MATCH(G$4,'B. PoF Adj Factor Scoring'!$E$3:$N$3,0)-1),2,TRUE) -> 1 | H67: =VLOOKUP(C:C,OFFSET('B. PoF Adj Factor Scoring'!$E$5:$F$282,,MATCH(H$4,'B. PoF Adj Factor Scoring'!$E$3:$N$3,0)-1),2,TRUE) -> 1 | I67: =VLOOKUP(D:D,OFFSET('B. PoF Adj Factor Scoring'!$E$5:$F$282,,MATCH(I$4,'B. PoF Adj Factor Scoring'!$E$3:$N$3,0)-1),2,TRUE) -> 1 | J67: =VLOOKUP(E:E,OFFSET('B. PoF Adj Factor Scoring'!$E$5:$F$282,,MATCH(J$4,'B. PoF Adj Factor Scoring'!$E$3:$N$3,0)-1),2,TRUE) -> 1 | K67: =VLOOKUP(F:F,OFFSET('B. PoF Adj Factor Scoring'!$E$5:$F$282,,MATCH(K$4,'B. PoF Adj Factor Scoring'!$E$3:$N$3,0)-1),2,TRUE) -> 1
A68: ='A. Population Info'!A68 -> 1000043140 | B68: ='A. Population Info'!G68 -> N/A | C68: ='A. Population Info'!H68 -> 0 | D68: ='A. Population Info'!I68 -> 0 | E68: ='A. Population Info'!J68 -> 0 | F68: ='A. Population Info'!K68 -> 0 | G68: =VLOOKUP(B:B,OFFSET('B. PoF Adj Factor Scoring'!$E$5:$F$282,,MATCH(G$4,'B. PoF Adj Factor Scoring'!$E$3:$N$3,0)-1),2,TRUE) -> 1 | H68: =VLOOKUP(C:C,OFFSET('B. PoF Adj Factor Scoring'!$E$5:$F$282,,MATCH(H$4,'B. PoF Adj Factor Scoring'!$E$3:$N$3,0)-1),2,TRUE) -> 1 | I68: =VLOOKUP(D:D,OFFSET('B. PoF Adj Factor Scoring'!$E$5:$F$282,,MATCH(I$4,'B. PoF Adj Factor Scoring'!$E$3:$N$3,0)-1),2,TRUE) -> 1 | J68: =VLOOKUP(E:E,OFFSET('B. PoF Adj Factor Scoring'!$E$5:$F$282,,MATCH(J$4,'B. PoF Adj Factor Scoring'!$E$3:$N$3,0)-1),2,TRUE) -> 1 | K68: =VLOOKUP(F:F,OFFSET('B. PoF Adj Factor Scoring'!$E$5:$F$282,,MATCH(K$4,'B. PoF Adj Factor Scoring'!$E$3:$N$3,0)-1),2,TRUE) -> 1
A69: ='A. Population Info'!A69 -> 1000043362 | B69: ='A. Population Info'!G69 -> N/A | C69: ='A. Population Info'!H69 -> 0 | D69: ='A. Population Info'!I69 -> 0 | E69: ='A. Population Info'!J69 -> 0 | F69: ='A. Population Info'!K69 -> 0 | G69: =VLOOKUP(B:B,OFFSET('B. PoF Adj Factor Scoring'!$E$5:$F$282,,MATCH(G$4,'B. PoF Adj Factor Scoring'!$E$3:$N$3,0)-1),2,TRUE) -> 1 | H69: =VLOOKUP(C:C,OFFSET('B. PoF Adj Factor Scoring'!$E$5:$F$282,,MATCH(H$4,'B. PoF Adj Factor Scoring'!$E$3:$N$3,0)-1),2,TRUE) -> 1 | I69: =VLOOKUP(D:D,OFFSET('B. PoF Adj Factor Scoring'!$E$5:$F$282,,MATCH(I$4,'B. PoF Adj Factor Scoring'!$E$3:$N$3,0)-1),2,TRUE) -> 1 | J69: =VLOOKUP(E:E,OFFSET('B. PoF Adj Factor Scoring'!$E$5:$F$282,,MATCH(J$4,'B. PoF Adj Factor Scoring'!$E$3:$N$3,0)-1),2,TRUE) -> 1 | K69: =VLOOKUP(F:F,OFFSET('B. PoF Adj Factor Scoring'!$E$5:$F$282,,MATCH(K$4,'B. PoF Adj Factor Scoring'!$E$3:$N$3,0)-1),2,TRUE) -> 1
A70: ='A. Population Info'!A70 -> 1000043364 | B70: ='A. Population Info'!G70 -> N/A | C70: ='A. Population Info'!H70 -> 0 | D70: ='A. Population Info'!I70 -> 0 | E70: ='A. Population Info'!J70 -> 0 | F70: ='A. Population Info'!K70 -> 0 | G70: =VLOOKUP(B:B,OFFSET('B. PoF Adj Factor Scoring'!$E$5:$F$282,,MATCH(G$4,'B. PoF Adj Factor Scoring'!$E$3:$N$3,0)-1),2,TRUE) -> 1 | H70: =VLOOKUP(C:C,OFFSET('B. PoF Adj Factor Scoring'!$E$5:$F$282,,MATCH(H$4,'B. PoF Adj Factor Scoring'!$E$3:$N$3,0)-1),2,TRUE) -> 1 | I70: =VLOOKUP(D:D,OFFSET('B. PoF Adj Factor Scoring'!$E$5:$F$282,,MATCH(I$4,'B. PoF Adj Factor Scoring'!$E$3:$N$3,0)-1),2,TRUE) -> 1 | J70: =VLOOKUP(E:E,OFFSET('B. PoF Adj Factor Scoring'!$E$5:$F$282,,MATCH(J$4,'B. PoF Adj Factor Scoring'!$E$3:$N$3,0)-1),2,TRUE) -> 1 | K70: =VLOOKUP(F:F,OFFSET('B. PoF Adj Factor Scoring'!$E$5:$F$282,,MATCH(K$4,'B. PoF Adj Factor Scoring'!$E$3:$N$3,0)-1),2,TRUE) -> 1
A71: ='A. Population Info'!A71 -> 1000043377 | B71: ='A. Population Info'!G71 -> N/A | C71: ='A. Population Info'!H71 -> 0 | D71: ='A. Population Info'!I71 -> 0 | E71: ='A. Population Info'!J71 -> 0 | F71: ='A. Population Info'!K71 -> 0 | G71: =VLOOKUP(B:B,OFFSET('B. PoF Adj Factor Scoring'!$E$5:$F$282,,MATCH(G$4,'B. PoF Adj Factor Scoring'!$E$3:$N$3,0)-1),2,TRUE) -> 1 | H71: =VLOOKUP(C:C,OFFSET('B. PoF Adj Factor Scoring'!$E$5:$F$282,,MATCH(H$4,'B. PoF Adj Factor Scoring'!$E$3:$N$3,0)-1),2,TRUE) -> 1 | I71: =VLOOKUP(D:D,OFFSET('B. PoF Adj Factor Scoring'!$E$5:$F$282,,MATCH(I$4,'B. PoF Adj Factor Scoring'!$E$3:$N$3,0)-1),2,TRUE) -> 1 | J71: =VLOOKUP(E:E,OFFSET('B. PoF Adj Factor Scoring'!$E$5:$F$282,,MATCH(J$4,'B. PoF Adj Factor Scoring'!$E$3:$N$3,0)-1),2,TRUE) -> 1 | K71: =VLOOKUP(F:F,OFFSET('B. PoF Adj Factor Scoring'!$E$5:$F$282,,MATCH(K$4,'B. PoF Adj Factor Scoring'!$E$3:$N$3,0)-1),2,TRUE) -> 1
A72: ='A. Population Info'!A72 -> 1000043383 | B72: ='A. Population Info'!G72 -> N/A | C72: ='A. Population Info'!H72 -> 0 | D72: ='A. Population Info'!I72 -> 0 | E72: ='A. Population Info'!J72 -> 0 | F72: ='A. Population Info'!K72 -> 0 | G72: =VLOOKUP(B:B,OFFSET('B. PoF Adj Factor Scoring'!$E$5:$F$282,,MATCH(G$4,'B. PoF Adj Factor Scoring'!$E$3:$N$3,0)-1),2,TRUE) -> 1 | H72: =VLOOKUP(C:C,OFFSET('B. PoF Adj Factor Scoring'!$E$5:$F$282,,MATCH(H$4,'B. PoF Adj Factor Scoring'!$E$3:$N$3,0)-1),2,TRUE) -> 1 | I72: =VLOOKUP(D:D,OFFSET('B. PoF Adj Factor Scoring'!$E$5:$F$282,,MATCH(I$4,'B. PoF Adj Factor Scoring'!$E$3:$N$3,0)-1),2,TRUE) -> 1 | J72: =VLOOKUP(E:E,OFFSET('B. PoF Adj Factor Scoring'!$E$5:$F$282,,MATCH(J$4,'B. PoF Adj Factor Scoring'!$E$3:$N$3,0)-1),2,TRUE) -> 1 | K72: =VLOOKUP(F:F,OFFSET('B. PoF Adj Factor Scoring'!$E$5:$F$282,,MATCH(K$4,'B. PoF Adj Factor Scoring'!$E$3:$N$3,0)-1),2,TRUE) -> 1
A73: ='A. Population Info'!A73 -> 1000043386 | B73: ='A. Population Info'!G73 -> N/A | C73: ='A. Population Info'!H73 -> 0 | D73: ='A. Population Info'!I73 -> 0 | E73: ='A. Population Info'!J73 -> 0 | F73: ='A. Population Info'!K73 -> 0 | G73: =VLOOKUP(B:B,OFFSET('B. PoF Adj Factor Scoring'!$E$5:$F$282,,MATCH(G$4,'B. PoF Adj Factor Scoring'!$E$3:$N$3,0)-1),2,TRUE) -> 1 | H73: =VLOOKUP(C:C,OFFSET('B. PoF Adj Factor Scoring'!$E$5:$F$282,,MATCH(H$4,'B. PoF Adj Factor Scoring'!$E$3:$N$3,0)-1),2,TRUE) -> 1 | I73: =VLOOKUP(D:D,OFFSET('B. PoF Adj Factor Scoring'!$E$5:$F$282,,MATCH(I$4,'B. PoF Adj Factor Scoring'!$E$3:$N$3,0)-1),2,TRUE) -> 1 | J73: =VLOOKUP(E:E,OFFSET('B. PoF Adj Factor Scoring'!$E$5:$F$282,,MATCH(J$4,'B. PoF Adj Factor Scoring'!$E$3:$N$3,0)-1),2,TRUE) -> 1 | K73: =VLOOKUP(F:F,OFFSET('B. PoF Adj Factor Scoring'!$E$5:$F$282,,MATCH(K$4,'B. PoF Adj Factor Scoring'!$E$3:$N$3,0)-1),2,TRUE) -> 1
A74: ='A. Population Info'!A74 -> 1000043389 | B74: ='A. Population Info'!G74 -> N/A | C74: ='A. Population Info'!H74 -> 0 | D74: ='A. Population Info'!I74 -> 0 | E74: ='A. Population Info'!J74 -> 0 | F74: ='A. Population Info'!K74 -> 0 | G74: =VLOOKUP(B:B,OFFSET('B. PoF Adj Factor Scoring'!$E$5:$F$282,,MATCH(G$4,'B. PoF Adj Factor Scoring'!$E$3:$N$3,0)-1),2,TRUE) -> 1 | H74: =VLOOKUP(C:C,OFFSET('B. PoF Adj Factor Scoring'!$E$5:$F$282,,MATCH(H$4,'B. PoF Adj Factor Scoring'!$E$3:$N$3,0)-1),2,TRUE) -> 1 | I74: =VLOOKUP(D:D,OFFSET('B. PoF Adj Factor Scoring'!$E$5:$F$282,,MATCH(I$4,'B. PoF Adj Factor Scoring'!$E$3:$N$3,0)-1),2,TRUE) -> 1 | J74: =VLOOKUP(E:E,OFFSET('B. PoF Adj Factor Scoring'!$E$5:$F$282,,MATCH(J$4,'B. PoF Adj Factor Scoring'!$E$3:$N$3,0)-1),2,TRUE) -> 1 | K74: =VLOOKUP(F:F,OFFSET('B. PoF Adj Factor Scoring'!$E$5:$F$282,,MATCH(K$4,'B. PoF Adj Factor Scoring'!$E$3:$N$3,0)-1),2,TRUE) -> 1
A75: ='A. Population Info'!A75 -> 1000043392 | B75: ='A. Population Info'!G75 -> N/A | C75: ='A. Population Info'!H75 -> 0 | D75: ='A. Population Info'!I75 -> 0 | E75: ='A. Population Info'!J75 -> 0 | F75: ='A. Population Info'!K75 -> 0 | G75: =VLOOKUP(B:B,OFFSET('B. PoF Adj Factor Scoring'!$E$5:$F$282,,MATCH(G$4,'B. PoF Adj Factor Scoring'!$E$3:$N$3,0)-1),2,TRUE) -> 1 | H75: =VLOOKUP(C:C,OFFSET('B. PoF Adj Factor Scoring'!$E$5:$F$282,,MATCH(H$4,'B. PoF Adj Factor Scoring'!$E$3:$N$3,0)-1),2,TRUE) -> 1 | I75: =VLOOKUP(D:D,OFFSET('B. PoF Adj Factor Scoring'!$E$5:$F$282,,MATCH(I$4,'B. PoF Adj Factor Scoring'!$E$3:$N$3,0)-1),2,TRUE) -> 1 | J75: =VLOOKUP(E:E,OFFSET('B. PoF Adj Factor Scoring'!$E$5:$F$282,,MATCH(J$4,'B. PoF Adj Factor Scoring'!$E$3:$N$3,0)-1),2,TRUE) -> 1 | K75: =VLOOKUP(F:F,OFFSET('B. PoF Adj Factor Scoring'!$E$5:$F$282,,MATCH(K$4,'B. PoF Adj Factor Scoring'!$E$3:$N$3,0)-1),2,TRUE) -> 1
A76: ='A. Population Info'!A76 -> 1000043396 | B76: ='A. Population Info'!G76 -> N/A | C76: ='A. Population Info'!H76 -> 0 | D76: ='A. Population Info'!I76 -> 0 | E76: ='A. Population Info'!J76 -> 0 | F76: ='A. Population Info'!K76 -> 0 | G76: =VLOOKUP(B:B,OFFSET('B. PoF Adj Factor Scoring'!$E$5:$F$282,,MATCH(G$4,'B. PoF Adj Factor Scoring'!$E$3:$N$3,0)-1),2,TRUE) -> 1 | H76: =VLOOKUP(C:C,OFFSET('B. PoF Adj Factor Scoring'!$E$5:$F$282,,MATCH(H$4,'B. PoF Adj Factor Scoring'!$E$3:$N$3,0)-1),2,TRUE) -> 1 | I76: =VLOOKUP(D:D,OFFSET('B. PoF Adj Factor Scoring'!$E$5:$F$282,,MATCH(I$4,'B. PoF Adj Factor Scoring'!$E$3:$N$3,0)-1),2,TRUE) -> 1 | J76: =VLOOKUP(E:E,OFFSET('B. PoF Adj Factor Scoring'!$E$5:$F$282,,MATCH(J$4,'B. PoF Adj Factor Scoring'!$E$3:$N$3,0)-1),2,TRUE) -> 1 | K76: =VLOOKUP(F:F,OFFSET('B. PoF Adj Factor Scoring'!$E$5:$F$282,,MATCH(K$4,'B. PoF Adj Factor Scoring'!$E$3:$N$3,0)-1),2,TRUE) -> 1
A77: ='A. Population Info'!A77 -> 1000043400 | B77: ='A. Population Info'!G77 -> N/A | C77: ='A. Population Info'!H77 -> 0 | D77: ='A. Population Info'!I77 -> 0 | E77: ='A. Population Info'!J77 -> 0 | F77: ='A. Population Info'!K77 -> 0 | G77: =VLOOKUP(B:B,OFFSET('B. PoF Adj Factor Scoring'!$E$5:$F$282,,MATCH(G$4,'B. PoF Adj Factor Scoring'!$E$3:$N$3,0)-1),2,TRUE) -> 1 | H77: =VLOOKUP(C:C,OFFSET('B. PoF Adj Factor Scoring'!$E$5:$F$282,,MATCH(H$4,'B. PoF Adj Factor Scoring'!$E$3:$N$3,0)-1),2,TRUE) -> 1 | I77: =VLOOKUP(D:D,OFFSET('B. PoF Adj Factor Scoring'!$E$5:$F$282,,MATCH(I$4,'B. PoF Adj Factor Scoring'!$E$3:$N$3,0)-1),2,TRUE) -> 1 | J77: =VLOOKUP(E:E,OFFSET('B. PoF Adj Factor Scoring'!$E$5:$F$282,,MATCH(J$4,'B. PoF Adj Factor Scoring'!$E$3:$N$3,0)-1),2,TRUE) -> 1 | K77: =VLOOKUP(F:F,OFFSET('B. PoF Adj Factor Scoring'!$E$5:$F$282,,MATCH(K$4,'B. PoF Adj Factor Scoring'!$E$3:$N$3,0)-1),2,TRUE) -> 1
A78: ='A. Population Info'!A78 -> 1000043403 | B78: ='A. Population Info'!G78 -> N/A | C78: ='A. Population Info'!H78 -> 0 | D78: ='A. Population Info'!I78 -> 0 | E78: ='A. Population Info'!J78 -> 0 | F78: ='A. Population Info'!K78 -> 0 | G78: =VLOOKUP(B:B,OFFSET('B. PoF Adj Factor Scoring'!$E$5:$F$282,,MATCH(G$4,'B. PoF Adj Factor Scoring'!$E$3:$N$3,0)-1),2,TRUE) -> 1 | H78: =VLOOKUP(C:C,OFFSET('B. PoF Adj Factor Scoring'!$E$5:$F$282,,MATCH(H$4,'B. PoF Adj Factor Scoring'!$E$3:$N$3,0)-1),2,TRUE) -> 1 | I78: =VLOOKUP(D:D,OFFSET('B. PoF Adj Factor Scoring'!$E$5:$F$282,,MATCH(I$4,'B. PoF Adj Factor Scoring'!$E$3:$N$3,0)-1),2,TRUE) -> 1 | J78: =VLOOKUP(E:E,OFFSET('B. PoF Adj Factor Scoring'!$E$5:$F$282,,MATCH(J$4,'B. PoF Adj Factor Scoring'!$E$3:$N$3,0)-1),2,TRUE) -> 1 | K78: =VLOOKUP(F:F,OFFSET('B. PoF Adj Factor Scoring'!$E$5:$F$282,,MATCH(K$4,'B. PoF Adj Factor Scoring'!$E$3:$N$3,0)-1),2,TRUE) -> 1
A79: ='A. Population Info'!A79 -> 1000043558 | B79: ='A. Population Info'!G79 -> N/A | C79: ='A. Population Info'!H79 -> 0 | D79: ='A. Population Info'!I79 -> 0 | E79: ='A. Population Info'!J79 -> 0 | F79: ='A. Population Info'!K79 -> 0 | G79: =VLOOKUP(B:B,OFFSET('B. PoF Adj Factor Scoring'!$E$5:$F$282,,MATCH(G$4,'B. PoF Adj Factor Scoring'!$E$3:$N$3,0)-1),2,TRUE) -> 1 | H79: =VLOOKUP(C:C,OFFSET('B. PoF Adj Factor Scoring'!$E$5:$F$282,,MATCH(H$4,'B. PoF Adj Factor Scoring'!$E$3:$N$3,0)-1),2,TRUE) -> 1 | I79: =VLOOKUP(D:D,OFFSET('B. PoF Adj Factor Scoring'!$E$5:$F$282,,MATCH(I$4,'B. PoF Adj Factor Scoring'!$E$3:$N$3,0)-1),2,TRUE) -> 1 | J79: =VLOOKUP(E:E,OFFSET('B. PoF Adj Factor Scoring'!$E$5:$F$282,,MATCH(J$4,'B. PoF Adj Factor Scoring'!$E$3:$N$3,0)-1),2,TRUE) -> 1 | K79: =VLOOKUP(F:F,OFFSET('B. PoF Adj Factor Scoring'!$E$5:$F$282,,MATCH(K$4,'B. PoF Adj Factor Scoring'!$E$3:$N$3,0)-1),2,TRUE) -> 1
A80: ='A. Population Info'!A80 -> 1000043887 | B80: ='A. Population Info'!G80 -> N/A | C80: ='A. Population Info'!H80 -> 0 | D80: ='A. Population Info'!I80 -> 0 | E80: ='A. Population Info'!J80 -> 0 | F80: ='A. Population Info'!K80 -> 0 | G80: =VLOOKUP(B:B,OFFSET('B. PoF Adj Factor Scoring'!$E$5:$F$282,,MATCH(G$4,'B. PoF Adj Factor Scoring'!$E$3:$N$3,0)-1),2,TRUE) -> 1 | H80: =VLOOKUP(C:C,OFFSET('B. PoF Adj Factor Scoring'!$E$5:$F$282,,MATCH(H$4,'B. PoF Adj Factor Scoring'!$E$3:$N$3,0)-1),2,TRUE) -> 1 | I80: =VLOOKUP(D:D,OFFSET('B. PoF Adj Factor Scoring'!$E$5:$F$282,,MATCH(I$4,'B. PoF Adj Factor Scoring'!$E$3:$N$3,0)-1),2,TRUE) -> 1 | J80: =VLOOKUP(E:E,OFFSET('B. PoF Adj Factor Scoring'!$E$5:$F$282,,MATCH(J$4,'B. PoF Adj Factor Scoring'!$E$3:$N$3,0)-1),2,TRUE) -> 1 | K80: =VLOOKUP(F:F,OFFSET('B. PoF Adj Factor Scoring'!$E$5:$F$282,,MATCH(K$4,'B. PoF Adj Factor Scoring'!$E$3:$N$3,0)-1),2,TRUE) -> 1
A81: ='A. Population Info'!A81 -> 1000047291 | B81: ='A. Population Info'!G81 -> N/A | C81: ='A. Population Info'!H81 -> 0 | D81: ='A. Population Info'!I81 -> 0 | E81: ='A. Population Info'!J81 -> 0 | F81: ='A. Population Info'!K81 -> 0 | G81: =VLOOKUP(B:B,OFFSET('B. PoF Adj Factor Scoring'!$E$5:$F$282,,MATCH(G$4,'B. PoF Adj Factor Scoring'!$E$3:$N$3,0)-1),2,TRUE) -> 1 | H81: =VLOOKUP(C:C,OFFSET('B. PoF Adj Factor Scoring'!$E$5:$F$282,,MATCH(H$4,'B. PoF Adj Factor Scoring'!$E$3:$N$3,0)-1),2,TRUE) -> 1 | I81: =VLOOKUP(D:D,OFFSET('B. PoF Adj Factor Scoring'!$E$5:$F$282,,MATCH(I$4,'B. PoF Adj Factor Scoring'!$E$3:$N$3,0)-1),2,TRUE) -> 1 | J81: =VLOOKUP(E:E,OFFSET('B. PoF Adj Factor Scoring'!$E$5:$F$282,,MATCH(J$4,'B. PoF Adj Factor Scoring'!$E$3:$N$3,0)-1),2,TRUE) -> 1 | K81: =VLOOKUP(F:F,OFFSET('B. PoF Adj Factor Scoring'!$E$5:$F$282,,MATCH(K$4,'B. PoF Adj Factor Scoring'!$E$3:$N$3,0)-1),2,TRUE) -> 1
A82: ='A. Population Info'!A82 -> 1000047348 | B82: ='A. Population Info'!G82 -> N/A | C82: ='A. Population Info'!H82 -> 0 | D82: ='A. Population Info'!I82 -> 0 | E82: ='A. Population Info'!J82 -> 0 | F82: ='A. Population Info'!K82 -> 0 | G82: =VLOOKUP(B:B,OFFSET('B. PoF Adj Factor Scoring'!$E$5:$F$282,,MATCH(G$4,'B. PoF Adj Factor Scoring'!$E$3:$N$3,0)-1),2,TRUE) -> 1 | H82: =VLOOKUP(C:C,OFFSET('B. PoF Adj Factor Scoring'!$E$5:$F$282,,MATCH(H$4,'B. PoF Adj Factor Scoring'!$E$3:$N$3,0)-1),2,TRUE) -> 1 | I82: =VLOOKUP(D:D,OFFSET('B. PoF Adj Factor Scoring'!$E$5:$F$282,,MATCH(I$4,'B. PoF Adj Factor Scoring'!$E$3:$N$3,0)-1),2,TRUE) -> 1 | J82: =VLOOKUP(E:E,OFFSET('B. PoF Adj Factor Scoring'!$E$5:$F$282,,MATCH(J$4,'B. PoF Adj Factor Scoring'!$E$3:$N$3,0)-1),2,TRUE) -> 1 | K82: =VLOOKUP(F:F,OFFSET('B. PoF Adj Factor Scoring'!$E$5:$F$282,,MATCH(K$4,'B. PoF Adj Factor Scoring'!$E$3:$N$3,0)-1),2,TRUE) -> 1
A83: ='A. Population Info'!A83 -> 1000048505 | B83: ='A. Population Info'!G83 -> N/A | C83: ='A. Population Info'!H83 -> 0 | D83: ='A. Population Info'!I83 -> 0 | E83: ='A. Population Info'!J83 -> 0 | F83: ='A. Population Info'!K83 -> 0 | G83: =VLOOKUP(B:B,OFFSET('B. PoF Adj Factor Scoring'!$E$5:$F$282,,MATCH(G$4,'B. PoF Adj Factor Scoring'!$E$3:$N$3,0)-1),2,TRUE) -> 1 | H83: =VLOOKUP(C:C,OFFSET('B. PoF Adj Factor Scoring'!$E$5:$F$282,,MATCH(H$4,'B. PoF Adj Factor Scoring'!$E$3:$N$3,0)-1),2,TRUE) -> 1 | I83: =VLOOKUP(D:D,OFFSET('B. PoF Adj Factor Scoring'!$E$5:$F$282,,MATCH(I$4,'B. PoF Adj Factor Scoring'!$E$3:$N$3,0)-1),2,TRUE) -> 1 | J83: =VLOOKUP(E:E,OFFSET('B. PoF Adj Factor Scoring'!$E$5:$F$282,,MATCH(J$4,'B. PoF Adj Factor Scoring'!$E$3:$N$3,0)-1),2,TRUE) -> 1 | K83: =VLOOKUP(F:F,OFFSET('B. PoF Adj Factor Scoring'!$E$5:$F$282,,MATCH(K$4,'B. PoF Adj Factor Scoring'!$E$3:$N$3,0)-1),2,TRUE) -> 1
A84: ='A. Population Info'!A84 -> 1000048517 | B84: ='A. Population Info'!G84 -> N/A | C84: ='A. Population Info'!H84 -> 0 | D84: ='A. Population Info'!I84 -> 0 | E84: ='A. Population Info'!J84 -> 0 | F84: ='A. Population Info'!K84 -> 0 | G84: =VLOOKUP(B:B,OFFSET('B. PoF Adj Factor Scoring'!$E$5:$F$282,,MATCH(G$4,'B. PoF Adj Factor Scoring'!$E$3:$N$3,0)-1),2,TRUE) -> 1 | H84: =VLOOKUP(C:C,OFFSET('B. PoF Adj Factor Scoring'!$E$5:$F$282,,MATCH(H$4,'B. PoF Adj Factor Scoring'!$E$3:$N$3,0)-1),2,TRUE) -> 1 | I84: =VLOOKUP(D:D,OFFSET('B. PoF Adj Factor Scoring'!$E$5:$F$282,,MATCH(I$4,'B. PoF Adj Factor Scoring'!$E$3:$N$3,0)-1),2,TRUE) -> 1 | J84: =VLOOKUP(E:E,OFFSET('B. PoF Adj Factor Scoring'!$E$5:$F$282,,MATCH(J$4,'B. PoF Adj Factor Scoring'!$E$3:$N$3,0)-1),2,TRUE) -> 1 | K84: =VLOOKUP(F:F,OFFSET('B. PoF Adj Factor Scoring'!$E$5:$F$282,,MATCH(K$4,'B. PoF Adj Factor Scoring'!$E$3:$N$3,0)-1),2,TRUE) -> 1
A85: ='A. Population Info'!A85 -> 1000048540 | B85: ='A. Population Info'!G85 -> N/A | C85: ='A. Population Info'!H85 -> 0 | D85: ='A. Population Info'!I85 -> 0 | E85: ='A. Population Info'!J85 -> 0 | F85: ='A. Population Info'!K85 -> 0 | G85: =VLOOKUP(B:B,OFFSET('B. PoF Adj Factor Scoring'!$E$5:$F$282,,MATCH(G$4,'B. PoF Adj Factor Scoring'!$E$3:$N$3,0)-1),2,TRUE) -> 1 | H85: =VLOOKUP(C:C,OFFSET('B. PoF Adj Factor Scoring'!$E$5:$F$282,,MATCH(H$4,'B. PoF Adj Factor Scoring'!$E$3:$N$3,0)-1),2,TRUE) -> 1 | I85: =VLOOKUP(D:D,OFFSET('B. PoF Adj Factor Scoring'!$E$5:$F$282,,MATCH(I$4,'B. PoF Adj Factor Scoring'!$E$3:$N$3,0)-1),2,TRUE) -> 1 | J85: =VLOOKUP(E:E,OFFSET('B. PoF Adj Factor Scoring'!$E$5:$F$282,,MATCH(J$4,'B. PoF Adj Factor Scoring'!$E$3:$N$3,0)-1),2,TRUE) -> 1 | K85: =VLOOKUP(F:F,OFFSET('B. PoF Adj Factor Scoring'!$E$5:$F$282,,MATCH(K$4,'B. PoF Adj Factor Scoring'!$E$3:$N$3,0)-1),2,TRUE) -> 1
A86: ='A. Population Info'!A86 -> 1000048551 | B86: ='A. Population Info'!G86 -> N/A | C86: ='A. Population Info'!H86 -> 0 | D86: ='A. Population Info'!I86 -> 0 | E86: ='A. Population Info'!J86 -> 0 | F86: ='A. Population Info'!K86 -> 0 | G86: =VLOOKUP(B:B,OFFSET('B. PoF Adj Factor Scoring'!$E$5:$F$282,,MATCH(G$4,'B. PoF Adj Factor Scoring'!$E$3:$N$3,0)-1),2,TRUE) -> 1 | H86: =VLOOKUP(C:C,OFFSET('B. PoF Adj Factor Scoring'!$E$5:$F$282,,MATCH(H$4,'B. PoF Adj Factor Scoring'!$E$3:$N$3,0)-1),2,TRUE) -> 1 | I86: =VLOOKUP(D:D,OFFSET('B. PoF Adj Factor Scoring'!$E$5:$F$282,,MATCH(I$4,'B. PoF Adj Factor Scoring'!$E$3:$N$3,0)-1),2,TRUE) -> 1 | J86: =VLOOKUP(E:E,OFFSET('B. PoF Adj Factor Scoring'!$E$5:$F$282,,MATCH(J$4,'B. PoF Adj Factor Scoring'!$E$3:$N$3,0)-1),2,TRUE) -> 1 | K86: =VLOOKUP(F:F,OFFSET('B. PoF Adj Factor Scoring'!$E$5:$F$282,,MATCH(K$4,'B. PoF Adj Factor Scoring'!$E$3:$N$3,0)-1),2,TRUE) -> 1
A87: ='A. Population Info'!A87 -> 1000048601 | B87: ='A. Population Info'!G87 -> N/A | C87: ='A. Population Info'!H87 -> 0 | D87: ='A. Population Info'!I87 -> 0 | E87: ='A. Population Info'!J87 -> 0 | F87: ='A. Population Info'!K87 -> 0 | G87: =VLOOKUP(B:B,OFFSET('B. PoF Adj Factor Scoring'!$E$5:$F$282,,MATCH(G$4,'B. PoF Adj Factor Scoring'!$E$3:$N$3,0)-1),2,TRUE) -> 1 | H87: =VLOOKUP(C:C,OFFSET('B. PoF Adj Factor Scoring'!$E$5:$F$282,,MATCH(H$4,'B. PoF Adj Factor Scoring'!$E$3:$N$3,0)-1),2,TRUE) -> 1 | I87: =VLOOKUP(D:D,OFFSET('B. PoF Adj Factor Scoring'!$E$5:$F$282,,MATCH(I$4,'B. PoF Adj Factor Scoring'!$E$3:$N$3,0)-1),2,TRUE) -> 1 | J87: =VLOOKUP(E:E,OFFSET('B. PoF Adj Factor Scoring'!$E$5:$F$282,,MATCH(J$4,'B. PoF Adj Factor Scoring'!$E$3:$N$3,0)-1),2,TRUE) -> 1 | K87: =VLOOKUP(F:F,OFFSET('B. PoF Adj Factor Scoring'!$E$5:$F$282,,MATCH(K$4,'B. PoF Adj Factor Scoring'!$E$3:$N$3,0)-1),2,TRUE) -> 1
A88: ='A. Population Info'!A88 -> 1000048613 | B88: ='A. Population Info'!G88 -> N/A | C88: ='A. Population Info'!H88 -> 0 | D88: ='A. Population Info'!I88 -> 0 | E88: ='A. Population Info'!J88 -> 0 | F88: ='A. Population Info'!K88 -> 0 | G88: =VLOOKUP(B:B,OFFSET('B. PoF Adj Factor Scoring'!$E$5:$F$282,,MATCH(G$4,'B. PoF Adj Factor Scoring'!$E$3:$N$3,0)-1),2,TRUE) -> 1 | H88: =VLOOKUP(C:C,OFFSET('B. PoF Adj Factor Scoring'!$E$5:$F$282,,MATCH(H$4,'B. PoF Adj Factor Scoring'!$E$3:$N$3,0)-1),2,TRUE) -> 1 | I88: =VLOOKUP(D:D,OFFSET('B. PoF Adj Factor Scoring'!$E$5:$F$282,,MATCH(I$4,'B. PoF Adj Factor Scoring'!$E$3:$N$3,0)-1),2,TRUE) -> 1 | J88: =VLOOKUP(E:E,OFFSET('B. PoF Adj Factor Scoring'!$E$5:$F$282,,MATCH(J$4,'B. PoF Adj Factor Scoring'!$E$3:$N$3,0)-1),2,TRUE) -> 1 | K88: =VLOOKUP(F:F,OFFSET('B. PoF Adj Factor Scoring'!$E$5:$F$282,,MATCH(K$4,'B. PoF Adj Factor Scoring'!$E$3:$N$3,0)-1),2,TRUE) -> 1
A89: ='A. Population Info'!A89 -> 1000048674 | B89: ='A. Population Info'!G89 -> N/A | C89: ='A. Population Info'!H89 -> 0 | D89: ='A. Population Info'!I89 -> 0 | E89: ='A. Population Info'!J89 -> 0 | F89: ='A. Population Info'!K89 -> 0 | G89: =VLOOKUP(B:B,OFFSET('B. PoF Adj Factor Scoring'!$E$5:$F$282,,MATCH(G$4,'B. PoF Adj Factor Scoring'!$E$3:$N$3,0)-1),2,TRUE) -> 1 | H89: =VLOOKUP(C:C,OFFSET('B. PoF Adj Factor Scoring'!$E$5:$F$282,,MATCH(H$4,'B. PoF Adj Factor Scoring'!$E$3:$N$3,0)-1),2,TRUE) -> 1 | I89: =VLOOKUP(D:D,OFFSET('B. PoF Adj Factor Scoring'!$E$5:$F$282,,MATCH(I$4,'B. PoF Adj Factor Scoring'!$E$3:$N$3,0)-1),2,TRUE) -> 1 | J89: =VLOOKUP(E:E,OFFSET('B. PoF Adj Factor Scoring'!$E$5:$F$282,,MATCH(J$4,'B. PoF Adj Factor Scoring'!$E$3:$N$3,0)-1),2,TRUE) -> 1 | K89: =VLOOKUP(F:F,OFFSET('B. PoF Adj Factor Scoring'!$E$5:$F$282,,MATCH(K$4,'B. PoF Adj Factor Scoring'!$E$3:$N$3,0)-1),2,TRUE) -> 1
A90: ='A. Population Info'!A90 -> 1000048684 | B90: ='A. Population Info'!G90 -> N/A | C90: ='A. Population Info'!H90 -> 0 | D90: ='A. Population Info'!I90 -> 0 | E90: ='A. Population Info'!J90 -> 0 | F90: ='A. Population Info'!K90 -> 0 | G90: =VLOOKUP(B:B,OFFSET('B. PoF Adj Factor Scoring'!$E$5:$F$282,,MATCH(G$4,'B. PoF Adj Factor Scoring'!$E$3:$N$3,0)-1),2,TRUE) -> 1 | H90: =VLOOKUP(C:C,OFFSET('B. PoF Adj Factor Scoring'!$E$5:$F$282,,MATCH(H$4,'B. PoF Adj Factor Scoring'!$E$3:$N$3,0)-1),2,TRUE) -> 1 | I90: =VLOOKUP(D:D,OFFSET('B. PoF Adj Factor Scoring'!$E$5:$F$282,,MATCH(I$4,'B. PoF Adj Factor Scoring'!$E$3:$N$3,0)-1),2,TRUE) -> 1 | J90: =VLOOKUP(E:E,OFFSET('B. PoF Adj Factor Scoring'!$E$5:$F$282,,MATCH(J$4,'B. PoF Adj Factor Scoring'!$E$3:$N$3,0)-1),2,TRUE) -> 1 | K90: =VLOOKUP(F:F,OFFSET('B. PoF Adj Factor Scoring'!$E$5:$F$282,,MATCH(K$4,'B. PoF Adj Factor Scoring'!$E$3:$N$3,0)-1),2,TRUE) -> 1
A91: ='A. Population Info'!A91 -> 1000054362 | B91: ='A. Population Info'!G91 -> N/A | C91: ='A. Population Info'!H91 -> 0 | D91: ='A. Population Info'!I91 -> 0 | E91: ='A. Population Info'!J91 -> 0 | F91: ='A. Population Info'!K91 -> 0 | G91: =VLOOKUP(B:B,OFFSET('B. PoF Adj Factor Scoring'!$E$5:$F$282,,MATCH(G$4,'B. PoF Adj Factor Scoring'!$E$3:$N$3,0)-1),2,TRUE) -> 1 | H91: =VLOOKUP(C:C,OFFSET('B. PoF Adj Factor Scoring'!$E$5:$F$282,,MATCH(H$4,'B. PoF Adj Factor Scoring'!$E$3:$N$3,0)-1),2,TRUE) -> 1 | I91: =VLOOKUP(D:D,OFFSET('B. PoF Adj Factor Scoring'!$E$5:$F$282,,MATCH(I$4,'B. PoF Adj Factor Scoring'!$E$3:$N$3,0)-1),2,TRUE) -> 1 | J91: =VLOOKUP(E:E,OFFSET('B. PoF Adj Factor Scoring'!$E$5:$F$282,,MATCH(J$4,'B. PoF Adj Factor Scoring'!$E$3:$N$3,0)-1),2,TRUE) -> 1 | K91: =VLOOKUP(F:F,OFFSET('B. PoF Adj Factor Scoring'!$E$5:$F$282,,MATCH(K$4,'B. PoF Adj Factor Scoring'!$E$3:$N$3,0)-1),2,TRUE) -> 1
A92: ='A. Population Info'!A92 -> 1000054371 | B92: ='A. Population Info'!G92 -> N/A | C92: ='A. Population Info'!H92 -> 0 | D92: ='A. Population Info'!I92 -> 0 | E92: ='A. Population Info'!J92 -> 0 | F92: ='A. Population Info'!K92 -> 0 | G92: =VLOOKUP(B:B,OFFSET('B. PoF Adj Factor Scoring'!$E$5:$F$282,,MATCH(G$4,'B. PoF Adj Factor Scoring'!$E$3:$N$3,0)-1),2,TRUE) -> 1 | H92: =VLOOKUP(C:C,OFFSET('B. PoF Adj Factor Scoring'!$E$5:$F$282,,MATCH(H$4,'B. PoF Adj Factor Scoring'!$E$3:$N$3,0)-1),2,TRUE) -> 1 | I92: =VLOOKUP(D:D,OFFSET('B. PoF Adj Factor Scoring'!$E$5:$F$282,,MATCH(I$4,'B. PoF Adj Factor Scoring'!$E$3:$N$3,0)-1),2,TRUE) -> 1 | J92: =VLOOKUP(E:E,OFFSET('B. PoF Adj Factor Scoring'!$E$5:$F$282,,MATCH(J$4,'B. PoF Adj Factor Scoring'!$E$3:$N$3,0)-1),2,TRUE) -> 1 | K92: =VLOOKUP(F:F,OFFSET('B. PoF Adj Factor Scoring'!$E$5:$F$282,,MATCH(K$4,'B. PoF Adj Factor Scoring'!$E$3:$N$3,0)-1),2,TRUE) -> 1
A93: ='A. Population Info'!A93 -> 1000054392 | B93: ='A. Population Info'!G93 -> N/A | C93: ='A. Population Info'!H93 -> 0 | D93: ='A. Population Info'!I93 -> 0 | E93: ='A. Population Info'!J93 -> 0 | F93: ='A. Population Info'!K93 -> 0 | G93: =VLOOKUP(B:B,OFFSET('B. PoF Adj Factor Scoring'!$E$5:$F$282,,MATCH(G$4,'B. PoF Adj Factor Scoring'!$E$3:$N$3,0)-1),2,TRUE) -> 1 | H93: =VLOOKUP(C:C,OFFSET('B. PoF Adj Factor Scoring'!$E$5:$F$282,,MATCH(H$4,'B. PoF Adj Factor Scoring'!$E$3:$N$3,0)-1),2,TRUE) -> 1 | I93: =VLOOKUP(D:D,OFFSET('B. PoF Adj Factor Scoring'!$E$5:$F$282,,MATCH(I$4,'B. PoF Adj Factor Scoring'!$E$3:$N$3,0)-1),2,TRUE) -> 1 | J93: =VLOOKUP(E:E,OFFSET('B. PoF Adj Factor Scoring'!$E$5:$F$282,,MATCH(J$4,'B. PoF Adj Factor Scoring'!$E$3:$N$3,0)-1),2,TRUE) -> 1 | K93: =VLOOKUP(F:F,OFFSET('B. PoF Adj Factor Scoring'!$E$5:$F$282,,MATCH(K$4,'B. PoF Adj Factor Scoring'!$E$3:$N$3,0)-1),2,TRUE) -> 1
A94: ='A. Population Info'!A94 -> 1000054412 | B94: ='A. Population Info'!G94 -> N/A | C94: ='A. Population Info'!H94 -> 0 | D94: ='A. Population Info'!I94 -> 0 | E94: ='A. Population Info'!J94 -> 0 | F94: ='A. Population Info'!K94 -> 0 | G94: =VLOOKUP(B:B,OFFSET('B. PoF Adj Factor Scoring'!$E$5:$F$282,,MATCH(G$4,'B. PoF Adj Factor Scoring'!$E$3:$N$3,0)-1),2,TRUE) -> 1 | H94: =VLOOKUP(C:C,OFFSET('B. PoF Adj Factor Scoring'!$E$5:$F$282,,MATCH(H$4,'B. PoF Adj Factor Scoring'!$E$3:$N$3,0)-1),2,TRUE) -> 1 | I94: =VLOOKUP(D:D,OFFSET('B. PoF Adj Factor Scoring'!$E$5:$F$282,,MATCH(I$4,'B. PoF Adj Factor Scoring'!$E$3:$N$3,0)-1),2,TRUE) -> 1 | J94: =VLOOKUP(E:E,OFFSET('B. PoF Adj Factor Scoring'!$E$5:$F$282,,MATCH(J$4,'B. PoF Adj Factor Scoring'!$E$3:$N$3,0)-1),2,TRUE) -> 1 | K94: =VLOOKUP(F:F,OFFSET('B. PoF Adj Factor Scoring'!$E$5:$F$282,,MATCH(K$4,'B. PoF Adj Factor Scoring'!$E$3:$N$3,0)-1),2,TRUE) -> 1
A95: ='A. Population Info'!A95 -> 1000054433 | B95: ='A. Population Info'!G95 -> N/A | C95: ='A. Population Info'!H95 -> 0 | D95: ='A. Population Info'!I95 -> 0 | E95: ='A. Population Info'!J95 -> 0 | F95: ='A. Population Info'!K95 -> 0 | G95: =VLOOKUP(B:B,OFFSET('B. PoF Adj Factor Scoring'!$E$5:$F$282,,MATCH(G$4,'B. PoF Adj Factor Scoring'!$E$3:$N$3,0)-1),2,TRUE) -> 1 | H95: =VLOOKUP(C:C,OFFSET('B. PoF Adj Factor Scoring'!$E$5:$F$282,,MATCH(H$4,'B. PoF Adj Factor Scoring'!$E$3:$N$3,0)-1),2,TRUE) -> 1 | I95: =VLOOKUP(D:D,OFFSET('B. PoF Adj Factor Scoring'!$E$5:$F$282,,MATCH(I$4,'B. PoF Adj Factor Scoring'!$E$3:$N$3,0)-1),2,TRUE) -> 1 | J95: =VLOOKUP(E:E,OFFSET('B. PoF Adj Factor Scoring'!$E$5:$F$282,,MATCH(J$4,'B. PoF Adj Factor Scoring'!$E$3:$N$3,0)-1),2,TRUE) -> 1 | K95: =VLOOKUP(F:F,OFFSET('B. PoF Adj Factor Scoring'!$E$5:$F$282,,MATCH(K$4,'B. PoF Adj Factor Scoring'!$E$3:$N$3,0)-1),2,TRUE) -> 1
A96: ='A. Population Info'!A96 -> 1000054448 | B96: ='A. Population Info'!G96 -> N/A | C96: ='A. Population Info'!H96 -> 0 | D96: ='A. Population Info'!I96 -> 0 | E96: ='A. Population Info'!J96 -> 0 | F96: ='A. Population Info'!K96 -> 0 | G96: =VLOOKUP(B:B,OFFSET('B. PoF Adj Factor Scoring'!$E$5:$F$282,,MATCH(G$4,'B. PoF Adj Factor Scoring'!$E$3:$N$3,0)-1),2,TRUE) -> 1 | H96: =VLOOKUP(C:C,OFFSET('B. PoF Adj Factor Scoring'!$E$5:$F$282,,MATCH(H$4,'B. PoF Adj Factor Scoring'!$E$3:$N$3,0)-1),2,TRUE) -> 1 | I96: =VLOOKUP(D:D,OFFSET('B. PoF Adj Factor Scoring'!$E$5:$F$282,,MATCH(I$4,'B. PoF Adj Factor Scoring'!$E$3:$N$3,0)-1),2,TRUE) -> 1 | J96: =VLOOKUP(E:E,OFFSET('B. PoF Adj Factor Scoring'!$E$5:$F$282,,MATCH(J$4,'B. PoF Adj Factor Scoring'!$E$3:$N$3,0)-1),2,TRUE) -> 1 | K96: =VLOOKUP(F:F,OFFSET('B. PoF Adj Factor Scoring'!$E$5:$F$282,,MATCH(K$4,'B. PoF Adj Factor Scoring'!$E$3:$N$3,0)-1),2,TRUE) -> 1
A97: ='A. Population Info'!A97 -> 1000054453 | B97: ='A. Population Info'!G97 -> N/A | C97: ='A. Population Info'!H97 -> 0 | D97: ='A. Population Info'!I97 -> 0 | E97: ='A. Population Info'!J97 -> 0 | F97: ='A. Population Info'!K97 -> 0 | G97: =VLOOKUP(B:B,OFFSET('B. PoF Adj Factor Scoring'!$E$5:$F$282,,MATCH(G$4,'B. PoF Adj Factor Scoring'!$E$3:$N$3,0)-1),2,TRUE) -> 1 | H97: =VLOOKUP(C:C,OFFSET('B. PoF Adj Factor Scoring'!$E$5:$F$282,,MATCH(H$4,'B. PoF Adj Factor Scoring'!$E$3:$N$3,0)-1),2,TRUE) -> 1 | I97: =VLOOKUP(D:D,OFFSET('B. PoF Adj Factor Scoring'!$E$5:$F$282,,MATCH(I$4,'B. PoF Adj Factor Scoring'!$E$3:$N$3,0)-1),2,TRUE) -> 1 | J97: =VLOOKUP(E:E,OFFSET('B. PoF Adj Factor Scoring'!$E$5:$F$282,,MATCH(J$4,'B. PoF Adj Factor Scoring'!$E$3:$N$3,0)-1),2,TRUE) -> 1 | K97: =VLOOKUP(F:F,OFFSET('B. PoF Adj Factor Scoring'!$E$5:$F$282,,MATCH(K$4,'B. PoF Adj Factor Scoring'!$E$3:$N$3,0)-1),2,TRUE) -> 1
A98: ='A. Population Info'!A98 -> 1000054493 | B98: ='A. Population Info'!G98 -> N/A | C98: ='A. Population Info'!H98 -> 0 | D98: ='A. Population Info'!I98 -> 0 | E98: ='A. Population Info'!J98 -> 0 | F98: ='A. Population Info'!K98 -> 0 | G98: =VLOOKUP(B:B,OFFSET('B. PoF Adj Factor Scoring'!$E$5:$F$282,,MATCH(G$4,'B. PoF Adj Factor Scoring'!$E$3:$N$3,0)-1),2,TRUE) -> 1 | H98: =VLOOKUP(C:C,OFFSET('B. PoF Adj Factor Scoring'!$E$5:$F$282,,MATCH(H$4,'B. PoF Adj Factor Scoring'!$E$3:$N$3,0)-1),2,TRUE) -> 1 | I98: =VLOOKUP(D:D,OFFSET('B. PoF Adj Factor Scoring'!$E$5:$F$282,,MATCH(I$4,'B. PoF Adj Factor Scoring'!$E$3:$N$3,0)-1),2,TRUE) -> 1 | J98: =VLOOKUP(E:E,OFFSET('B. PoF Adj Factor Scoring'!$E$5:$F$282,,MATCH(J$4,'B. PoF Adj Factor Scoring'!$E$3:$N$3,0)-1),2,TRUE) -> 1 | K98: =VLOOKUP(F:F,OFFSET('B. PoF Adj Factor Scoring'!$E$5:$F$282,,MATCH(K$4,'B. PoF Adj Factor Scoring'!$E$3:$N$3,0)-1),2,TRUE) -> 1
A99: ='A. Population Info'!A99 -> 1000054501 | B99: ='A. Population Info'!G99 -> N/A | C99: ='A. Population Info'!H99 -> 0 | D99: ='A. Population Info'!I99 -> 0 | E99: ='A. Population Info'!J99 -> 0 | F99: ='A. Population Info'!K99 -> 0 | G99: =VLOOKUP(B:B,OFFSET('B. PoF Adj Factor Scoring'!$E$5:$F$282,,MATCH(G$4,'B. PoF Adj Factor Scoring'!$E$3:$N$3,0)-1),2,TRUE) -> 1 | H99: =VLOOKUP(C:C,OFFSET('B. PoF Adj Factor Scoring'!$E$5:$F$282,,MATCH(H$4,'B. PoF Adj Factor Scoring'!$E$3:$N$3,0)-1),2,TRUE) -> 1 | I99: =VLOOKUP(D:D,OFFSET('B. PoF Adj Factor Scoring'!$E$5:$F$282,,MATCH(I$4,'B. PoF Adj Factor Scoring'!$E$3:$N$3,0)-1),2,TRUE) -> 1 | J99: =VLOOKUP(E:E,OFFSET('B. PoF Adj Factor Scoring'!$E$5:$F$282,,MATCH(J$4,'B. PoF Adj Factor Scoring'!$E$3:$N$3,0)-1),2,TRUE) -> 1 | K99: =VLOOKUP(F:F,OFFSET('B. PoF Adj Factor Scoring'!$E$5:$F$282,,MATCH(K$4,'B. PoF Adj Factor Scoring'!$E$3:$N$3,0)-1),2,TRUE) -> 1
A100: ='A. Population Info'!A100 -> 1000054544 | B100: ='A. Population Info'!G100 -> N/A | C100: ='A. Population Info'!H100 -> 0 | D100: ='A. Population Info'!I100 -> 0 | E100: ='A. Population Info'!J100 -> 0 | F100: ='A. Population Info'!K100 -> 0 | G100: =VLOOKUP(B:B,OFFSET('B. PoF Adj Factor Scoring'!$E$5:$F$282,,MATCH(G$4,'B. PoF Adj Factor Scoring'!$E$3:$N$3,0)-1),2,TRUE) -> 1 | H100: =VLOOKUP(C:C,OFFSET('B. PoF Adj Factor Scoring'!$E$5:$F$282,,MATCH(H$4,'B. PoF Adj Factor Scoring'!$E$3:$N$3,0)-1),2,TRUE) -> 1 | I100: =VLOOKUP(D:D,OFFSET('B. PoF Adj Factor Scoring'!$E$5:$F$282,,MATCH(I$4,'B. PoF Adj Factor Scoring'!$E$3:$N$3,0)-1),2,TRUE) -> 1 | J100: =VLOOKUP(E:E,OFFSET('B. PoF Adj Factor Scoring'!$E$5:$F$282,,MATCH(J$4,'B. PoF Adj Factor Scoring'!$E$3:$N$3,0)-1),2,TRUE) -> 1 | K100: =VLOOKUP(F:F,OFFSET('B. PoF Adj Factor Scoring'!$E$5:$F$282,,MATCH(K$4,'B. PoF Adj Factor Scoring'!$E$3:$N$3,0)-1),2,TRUE) -> 1
A101: ='A. Population Info'!A101 -> 1000054554 | B101: ='A. Population Info'!G101 -> N/A | C101: ='A. Population Info'!H101 -> 0 | D101: ='A. Population Info'!I101 -> 0 | E101: ='A. Population Info'!J101 -> 0 | F101: ='A. Population Info'!K101 -> 0 | G101: =VLOOKUP(B:B,OFFSET('B. PoF Adj Factor Scoring'!$E$5:$F$282,,MATCH(G$4,'B. PoF Adj Factor Scoring'!$E$3:$N$3,0)-1),2,TRUE) -> 1 | H101: =VLOOKUP(C:C,OFFSET('B. PoF Adj Factor Scoring'!$E$5:$F$282,,MATCH(H$4,'B. PoF Adj Factor Scoring'!$E$3:$N$3,0)-1),2,TRUE) -> 1 | I101: =VLOOKUP(D:D,OFFSET('B. PoF Adj Factor Scoring'!$E$5:$F$282,,MATCH(I$4,'B. PoF Adj Factor Scoring'!$E$3:$N$3,0)-1),2,TRUE) -> 1 | J101: =VLOOKUP(E:E,OFFSET('B. PoF Adj Factor Scoring'!$E$5:$F$282,,MATCH(J$4,'B. PoF Adj Factor Scoring'!$E$3:$N$3,0)-1),2,TRUE) -> 1 | K101: =VLOOKUP(F:F,OFFSET('B. PoF Adj Factor Scoring'!$E$5:$F$282,,MATCH(K$4,'B. PoF Adj Factor Scoring'!$E$3:$N$3,0)-1),2,TRUE) -> 1
A102: ='A. Population Info'!A102 -> 1000054562 | B102: ='A. Population Info'!G102 -> N/A | C102: ='A. Population Info'!H102 -> 0 | D102: ='A. Population Info'!I102 -> 0 | E102: ='A. Population Info'!J102 -> 0 | F102: ='A. Population Info'!K102 -> 0 | G102: =VLOOKUP(B:B,OFFSET('B. PoF Adj Factor Scoring'!$E$5:$F$282,,MATCH(G$4,'B. PoF Adj Factor Scoring'!$E$3:$N$3,0)-1),2,TRUE) -> 1 | H102: =VLOOKUP(C:C,OFFSET('B. PoF Adj Factor Scoring'!$E$5:$F$282,,MATCH(H$4,'B. PoF Adj Factor Scoring'!$E$3:$N$3,0)-1),2,TRUE) -> 1 | I102: =VLOOKUP(D:D,OFFSET('B. PoF Adj Factor Scoring'!$E$5:$F$282,,MATCH(I$4,'B. PoF Adj Factor Scoring'!$E$3:$N$3,0)-1),2,TRUE) -> 1 | J102: =VLOOKUP(E:E,OFFSET('B. PoF Adj Factor Scoring'!$E$5:$F$282,,MATCH(J$4,'B. PoF Adj Factor Scoring'!$E$3:$N$3,0)-1),2,TRUE) -> 1 | K102: =VLOOKUP(F:F,OFFSET('B. PoF Adj Factor Scoring'!$E$5:$F$282,,MATCH(K$4,'B. PoF Adj Factor Scoring'!$E$3:$N$3,0)-1),2,TRUE) -> 1
A103: ='A. Population Info'!A103 -> 1000054575 | B103: ='A. Population Info'!G103 -> N/A | C103: ='A. Population Info'!H103 -> 0 | D103: ='A. Population Info'!I103 -> 0 | E103: ='A. Population Info'!J103 -> 0 | F103: ='A. Population Info'!K103 -> 0 | G103: =VLOOKUP(B:B,OFFSET('B. PoF Adj Factor Scoring'!$E$5:$F$282,,MATCH(G$4,'B. PoF Adj Factor Scoring'!$E$3:$N$3,0)-1),2,TRUE) -> 1 | H103: =VLOOKUP(C:C,OFFSET('B. PoF Adj Factor Scoring'!$E$5:$F$282,,MATCH(H$4,'B. PoF Adj Factor Scoring'!$E$3:$N$3,0)-1),2,TRUE) -> 1 | I103: =VLOOKUP(D:D,OFFSET('B. PoF Adj Factor Scoring'!$E$5:$F$282,,MATCH(I$4,'B. PoF Adj Factor Scoring'!$E$3:$N$3,0)-1),2,TRUE) -> 1 | J103: =VLOOKUP(E:E,OFFSET('B. PoF Adj Factor Scoring'!$E$5:$F$282,,MATCH(J$4,'B. PoF Adj Factor Scoring'!$E$3:$N$3,0)-1),2,TRUE) -> 1 | K103: =VLOOKUP(F:F,OFFSET('B. PoF Adj Factor Scoring'!$E$5:$F$282,,MATCH(K$4,'B. PoF Adj Factor Scoring'!$E$3:$N$3,0)-1),2,TRUE) -> 1
A104: ='A. Population Info'!A104 -> 1000062322 | B104: ='A. Population Info'!G104 -> N/A | C104: ='A. Population Info'!H104 -> 0 | D104: ='A. Population Info'!I104 -> 0 | E104: ='A. Population Info'!J104 -> 0 | F104: ='A. Population Info'!K104 -> 0 | G104: =VLOOKUP(B:B,OFFSET('B. PoF Adj Factor Scoring'!$E$5:$F$282,,MATCH(G$4,'B. PoF Adj Factor Scoring'!$E$3:$N$3,0)-1),2,TRUE) -> 1 | H104: =VLOOKUP(C:C,OFFSET('B. PoF Adj Factor Scoring'!$E$5:$F$282,,MATCH(H$4,'B. PoF Adj Factor Scoring'!$E$3:$N$3,0)-1),2,TRUE) -> 1 | I104: =VLOOKUP(D:D,OFFSET('B. PoF Adj Factor Scoring'!$E$5:$F$282,,MATCH(I$4,'B. PoF Adj Factor Scoring'!$E$3:$N$3,0)-1),2,TRUE) -> 1 | J104: =VLOOKUP(E:E,OFFSET('B. PoF Adj Factor Scoring'!$E$5:$F$282,,MATCH(J$4,'B. PoF Adj Factor Scoring'!$E$3:$N$3,0)-1),2,TRUE) -> 1 | K104: =VLOOKUP(F:F,OFFSET('B. PoF Adj Factor Scoring'!$E$5:$F$282,,MATCH(K$4,'B. PoF Adj Factor Scoring'!$E$3:$N$3,0)-1),2,TRUE) -> 1
A105: ='A. Population Info'!A105 -> 1000062328 | B105: ='A. Population Info'!G105 -> N/A | C105: ='A. Population Info'!H105 -> 0 | D105: ='A. Population Info'!I105 -> 0 | E105: ='A. Population Info'!J105 -> 0 | F105: ='A. Population Info'!K105 -> 0 | G105: =VLOOKUP(B:B,OFFSET('B. PoF Adj Factor Scoring'!$E$5:$F$282,,MATCH(G$4,'B. PoF Adj Factor Scoring'!$E$3:$N$3,0)-1),2,TRUE) -> 1 | H105: =VLOOKUP(C:C,OFFSET('B. PoF Adj Factor Scoring'!$E$5:$F$282,,MATCH(H$4,'B. PoF Adj Factor Scoring'!$E$3:$N$3,0)-1),2,TRUE) -> 1 | I105: =VLOOKUP(D:D,OFFSET('B. PoF Adj Factor Scoring'!$E$5:$F$282,,MATCH(I$4,'B. PoF Adj Factor Scoring'!$E$3:$N$3,0)-1),2,TRUE) -> 1 | J105: =VLOOKUP(E:E,OFFSET('B. PoF Adj Factor Scoring'!$E$5:$F$282,,MATCH(J$4,'B. PoF Adj Factor Scoring'!$E$3:$N$3,0)-1),2,TRUE) -> 1 | K105: =VLOOKUP(F:F,OFFSET('B. PoF Adj Factor Scoring'!$E$5:$F$282,,MATCH(K$4,'B. PoF Adj Factor Scoring'!$E$3:$N$3,0)-1),2,TRUE) -> 1
A106: ='A. Population Info'!A106 -> 1000062334 | B106: ='A. Population Info'!G106 -> N/A | C106: ='A. Population Info'!H106 -> 0 | D106: ='A. Population Info'!I106 -> 0 | E106: ='A. Population Info'!J106 -> 0 | F106: ='A. Population Info'!K106 -> 0 | G106: =VLOOKUP(B:B,OFFSET('B. PoF Adj Factor Scoring'!$E$5:$F$282,,MATCH(G$4,'B. PoF Adj Factor Scoring'!$E$3:$N$3,0)-1),2,TRUE) -> 1 | H106: =VLOOKUP(C:C,OFFSET('B. PoF Adj Factor Scoring'!$E$5:$F$282,,MATCH(H$4,'B. PoF Adj Factor Scoring'!$E$3:$N$3,0)-1),2,TRUE) -> 1 | I106: =VLOOKUP(D:D,OFFSET('B. PoF Adj Factor Scoring'!$E$5:$F$282,,MATCH(I$4,'B. PoF Adj Factor Scoring'!$E$3:$N$3,0)-1),2,TRUE) -> 1 | J106: =VLOOKUP(E:E,OFFSET('B. PoF Adj Factor Scoring'!$E$5:$F$282,,MATCH(J$4,'B. PoF Adj Factor Scoring'!$E$3:$N$3,0)-1),2,TRUE) -> 1 | K106: =VLOOKUP(F:F,OFFSET('B. PoF Adj Factor Scoring'!$E$5:$F$282,,MATCH(K$4,'B. PoF Adj Factor Scoring'!$E$3:$N$3,0)-1),2,TRUE) -> 1
A107: ='A. Population Info'!A107 -> 1000062347 | B107: ='A. Population Info'!G107 -> N/A | C107: ='A. Population Info'!H107 -> 0 | D107: ='A. Population Info'!I107 -> 0 | E107: ='A. Population Info'!J107 -> 0 | F107: ='A. Population Info'!K107 -> 0 | G107: =VLOOKUP(B:B,OFFSET('B. PoF Adj Factor Scoring'!$E$5:$F$282,,MATCH(G$4,'B. PoF Adj Factor Scoring'!$E$3:$N$3,0)-1),2,TRUE) -> 1 | H107: =VLOOKUP(C:C,OFFSET('B. PoF Adj Factor Scoring'!$E$5:$F$282,,MATCH(H$4,'B. PoF Adj Factor Scoring'!$E$3:$N$3,0)-1),2,TRUE) -> 1 | I107: =VLOOKUP(D:D,OFFSET('B. PoF Adj Factor Scoring'!$E$5:$F$282,,MATCH(I$4,'B. PoF Adj Factor Scoring'!$E$3:$N$3,0)-1),2,TRUE) -> 1 | J107: =VLOOKUP(E:E,OFFSET('B. PoF Adj Factor Scoring'!$E$5:$F$282,,MATCH(J$4,'B. PoF Adj Factor Scoring'!$E$3:$N$3,0)-1),2,TRUE) -> 1 | K107: =VLOOKUP(F:F,OFFSET('B. PoF Adj Factor Scoring'!$E$5:$F$282,,MATCH(K$4,'B. PoF Adj Factor Scoring'!$E$3:$N$3,0)-1),2,TRUE) -> 1
A108: ='A. Population Info'!A108 -> 1000062353 | B108: ='A. Population Info'!G108 -> N/A | C108: ='A. Population Info'!H108 -> 0 | D108: ='A. Population Info'!I108 -> 0 | E108: ='A. Population Info'!J108 -> 0 | F108: ='A. Population Info'!K108 -> 0 | G108: =VLOOKUP(B:B,OFFSET('B. PoF Adj Factor Scoring'!$E$5:$F$282,,MATCH(G$4,'B. PoF Adj Factor Scoring'!$E$3:$N$3,0)-1),2,TRUE) -> 1 | H108: =VLOOKUP(C:C,OFFSET('B. PoF Adj Factor Scoring'!$E$5:$F$282,,MATCH(H$4,'B. PoF Adj Factor Scoring'!$E$3:$N$3,0)-1),2,TRUE) -> 1 | I108: =VLOOKUP(D:D,OFFSET('B. PoF Adj Factor Scoring'!$E$5:$F$282,,MATCH(I$4,'B. PoF Adj Factor Scoring'!$E$3:$N$3,0)-1),2,TRUE) -> 1 | J108: =VLOOKUP(E:E,OFFSET('B. PoF Adj Factor Scoring'!$E$5:$F$282,,MATCH(J$4,'B. PoF Adj Factor Scoring'!$E$3:$N$3,0)-1),2,TRUE) -> 1 | K108: =VLOOKUP(F:F,OFFSET('B. PoF Adj Factor Scoring'!$E$5:$F$282,,MATCH(K$4,'B. PoF Adj Factor Scoring'!$E$3:$N$3,0)-1),2,TRUE) -> 1
A109: ='A. Population Info'!A109 -> 1000062359 | B109: ='A. Population Info'!G109 -> N/A | C109: ='A. Population Info'!H109 -> 0 | D109: ='A. Population Info'!I109 -> 0 | E109: ='A. Population Info'!J109 -> 0 | F109: ='A. Population Info'!K109 -> 0 | G109: =VLOOKUP(B:B,OFFSET('B. PoF Adj Factor Scoring'!$E$5:$F$282,,MATCH(G$4,'B. PoF Adj Factor Scoring'!$E$3:$N$3,0)-1),2,TRUE) -> 1 | H109: =VLOOKUP(C:C,OFFSET('B. PoF Adj Factor Scoring'!$E$5:$F$282,,MATCH(H$4,'B. PoF Adj Factor Scoring'!$E$3:$N$3,0)-1),2,TRUE) -> 1 | I109: =VLOOKUP(D:D,OFFSET('B. PoF Adj Factor Scoring'!$E$5:$F$282,,MATCH(I$4,'B. PoF Adj Factor Scoring'!$E$3:$N$3,0)-1),2,TRUE) -> 1 | J109: =VLOOKUP(E:E,OFFSET('B. PoF Adj Factor Scoring'!$E$5:$F$282,,MATCH(J$4,'B. PoF Adj Factor Scoring'!$E$3:$N$3,0)-1),2,TRUE) -> 1 | K109: =VLOOKUP(F:F,OFFSET('B. PoF Adj Factor Scoring'!$E$5:$F$282,,MATCH(K$4,'B. PoF Adj Factor Scoring'!$E$3:$N$3,0)-1),2,TRUE) -> 1
A110: ='A. Population Info'!A110 -> 1000062366 | B110: ='A. Population Info'!G110 -> N/A | C110: ='A. Population Info'!H110 -> 0 | D110: ='A. Population Info'!I110 -> 0 | E110: ='A. Population Info'!J110 -> 0 | F110: ='A. Population Info'!K110 -> 0 | G110: =VLOOKUP(B:B,OFFSET('B. PoF Adj Factor Scoring'!$E$5:$F$282,,MATCH(G$4,'B. PoF Adj Factor Scoring'!$E$3:$N$3,0)-1),2,TRUE) -> 1 | H110: =VLOOKUP(C:C,OFFSET('B. PoF Adj Factor Scoring'!$E$5:$F$282,,MATCH(H$4,'B. PoF Adj Factor Scoring'!$E$3:$N$3,0)-1),2,TRUE) -> 1 | I110: =VLOOKUP(D:D,OFFSET('B. PoF Adj Factor Scoring'!$E$5:$F$282,,MATCH(I$4,'B. PoF Adj Factor Scoring'!$E$3:$N$3,0)-1),2,TRUE) -> 1 | J110: =VLOOKUP(E:E,OFFSET('B. PoF Adj Factor Scoring'!$E$5:$F$282,,MATCH(J$4,'B. PoF Adj Factor Scoring'!$E$3:$N$3,0)-1),2,TRUE) -> 1 | K110: =VLOOKUP(F:F,OFFSET('B. PoF Adj Factor Scoring'!$E$5:$F$282,,MATCH(K$4,'B. PoF Adj Factor Scoring'!$E$3:$N$3,0)-1),2,TRUE) -> 1
A111: ='A. Population Info'!A111 -> 1000062385 | B111: ='A. Population Info'!G111 -> N/A | C111: ='A. Population Info'!H111 -> 0 | D111: ='A. Population Info'!I111 -> 0 | E111: ='A. Population Info'!J111 -> 0 | F111: ='A. Population Info'!K111 -> 0 | G111: =VLOOKUP(B:B,OFFSET('B. PoF Adj Factor Scoring'!$E$5:$F$282,,MATCH(G$4,'B. PoF Adj Factor Scoring'!$E$3:$N$3,0)-1),2,TRUE) -> 1 | H111: =VLOOKUP(C:C,OFFSET('B. PoF Adj Factor Scoring'!$E$5:$F$282,,MATCH(H$4,'B. PoF Adj Factor Scoring'!$E$3:$N$3,0)-1),2,TRUE) -> 1 | I111: =VLOOKUP(D:D,OFFSET('B. PoF Adj Factor Scoring'!$E$5:$F$282,,MATCH(I$4,'B. PoF Adj Factor Scoring'!$E$3:$N$3,0)-1),2,TRUE) -> 1 | J111: =VLOOKUP(E:E,OFFSET('B. PoF Adj Factor Scoring'!$E$5:$F$282,,MATCH(J$4,'B. PoF Adj Factor Scoring'!$E$3:$N$3,0)-1),2,TRUE) -> 1 | K111: =VLOOKUP(F:F,OFFSET('B. PoF Adj Factor Scoring'!$E$5:$F$282,,MATCH(K$4,'B. PoF Adj Factor Scoring'!$E$3:$N$3,0)-1),2,TRUE) -> 1
A112: ='A. Population Info'!A112 -> 1000062391 | B112: ='A. Population Info'!G112 -> N/A | C112: ='A. Population Info'!H112 -> 0 | D112: ='A. Population Info'!I112 -> 0 | E112: ='A. Population Info'!J112 -> 0 | F112: ='A. Population Info'!K112 -> 0 | G112: =VLOOKUP(B:B,OFFSET('B. PoF Adj Factor Scoring'!$E$5:$F$282,,MATCH(G$4,'B. PoF Adj Factor Scoring'!$E$3:$N$3,0)-1),2,TRUE) -> 1 | H112: =VLOOKUP(C:C,OFFSET('B. PoF Adj Factor Scoring'!$E$5:$F$282,,MATCH(H$4,'B. PoF Adj Factor Scoring'!$E$3:$N$3,0)-1),2,TRUE) -> 1 | I112: =VLOOKUP(D:D,OFFSET('B. PoF Adj Factor Scoring'!$E$5:$F$282,,MATCH(I$4,'B. PoF Adj Factor Scoring'!$E$3:$N$3,0)-1),2,TRUE) -> 1 | J112: =VLOOKUP(E:E,OFFSET('B. PoF Adj Factor Scoring'!$E$5:$F$282,,MATCH(J$4,'B. PoF Adj Factor Scoring'!$E$3:$N$3,0)-1),2,TRUE) -> 1 | K112: =VLOOKUP(F:F,OFFSET('B. PoF Adj Factor Scoring'!$E$5:$F$282,,MATCH(K$4,'B. PoF Adj Factor Scoring'!$E$3:$N$3,0)-1),2,TRUE) -> 1
A113: ='A. Population Info'!A113 -> 1000062398 | B113: ='A. Population Info'!G113 -> N/A | C113: ='A. Population Info'!H113 -> 0 | D113: ='A. Population Info'!I113 -> 0 | E113: ='A. Population Info'!J113 -> 0 | F113: ='A. Population Info'!K113 -> 0 | G113: =VLOOKUP(B:B,OFFSET('B. PoF Adj Factor Scoring'!$E$5:$F$282,,MATCH(G$4,'B. PoF Adj Factor Scoring'!$E$3:$N$3,0)-1),2,TRUE) -> 1 | H113: =VLOOKUP(C:C,OFFSET('B. PoF Adj Factor Scoring'!$E$5:$F$282,,MATCH(H$4,'B. PoF Adj Factor Scoring'!$E$3:$N$3,0)-1),2,TRUE) -> 1 | I113: =VLOOKUP(D:D,OFFSET('B. PoF Adj Factor Scoring'!$E$5:$F$282,,MATCH(I$4,'B. PoF Adj Factor Scoring'!$E$3:$N$3,0)-1),2,TRUE) -> 1 | J113: =VLOOKUP(E:E,OFFSET('B. PoF Adj Factor Scoring'!$E$5:$F$282,,MATCH(J$4,'B. PoF Adj Factor Scoring'!$E$3:$N$3,0)-1),2,TRUE) -> 1 | K113: =VLOOKUP(F:F,OFFSET('B. PoF Adj Factor Scoring'!$E$5:$F$282,,MATCH(K$4,'B. PoF Adj Factor Scoring'!$E$3:$N$3,0)-1),2,TRUE) -> 1
A114: ='A. Population Info'!A114 -> 1000062403 | B114: ='A. Population Info'!G114 -> N/A | C114: ='A. Population Info'!H114 -> 0 | D114: ='A. Population Info'!I114 -> 0 | E114: ='A. Population Info'!J114 -> 0 | F114: ='A. Population Info'!K114 -> 0 | G114: =VLOOKUP(B:B,OFFSET('B. PoF Adj Factor Scoring'!$E$5:$F$282,,MATCH(G$4,'B. PoF Adj Factor Scoring'!$E$3:$N$3,0)-1),2,TRUE) -> 1 | H114: =VLOOKUP(C:C,OFFSET('B. PoF Adj Factor Scoring'!$E$5:$F$282,,MATCH(H$4,'B. PoF Adj Factor Scoring'!$E$3:$N$3,0)-1),2,TRUE) -> 1 | I114: =VLOOKUP(D:D,OFFSET('B. PoF Adj Factor Scoring'!$E$5:$F$282,,MATCH(I$4,'B. PoF Adj Factor Scoring'!$E$3:$N$3,0)-1),2,TRUE) -> 1 | J114: =VLOOKUP(E:E,OFFSET('B. PoF Adj Factor Scoring'!$E$5:$F$282,,MATCH(J$4,'B. PoF Adj Factor Scoring'!$E$3:$N$3,0)-1),2,TRUE) -> 1 | K114: =VLOOKUP(F:F,OFFSET('B. PoF Adj Factor Scoring'!$E$5:$F$282,,MATCH(K$4,'B. PoF Adj Factor Scoring'!$E$3:$N$3,0)-1),2,TRUE) -> 1
A115: ='A. Population Info'!A115 -> 1000062410 | B115: ='A. Population Info'!G115 -> N/A | C115: ='A. Population Info'!H115 -> 0 | D115: ='A. Population Info'!I115 -> 0 | E115: ='A. Population Info'!J115 -> 0 | F115: ='A. Population Info'!K115 -> 0 | G115: =VLOOKUP(B:B,OFFSET('B. PoF Adj Factor Scoring'!$E$5:$F$282,,MATCH(G$4,'B. PoF Adj Factor Scoring'!$E$3:$N$3,0)-1),2,TRUE) -> 1 | H115: =VLOOKUP(C:C,OFFSET('B. PoF Adj Factor Scoring'!$E$5:$F$282,,MATCH(H$4,'B. PoF Adj Factor Scoring'!$E$3:$N$3,0)-1),2,TRUE) -> 1 | I115: =VLOOKUP(D:D,OFFSET('B. PoF Adj Factor Scoring'!$E$5:$F$282,,MATCH(I$4,'B. PoF Adj Factor Scoring'!$E$3:$N$3,0)-1),2,TRUE) -> 1 | J115: =VLOOKUP(E:E,OFFSET('B. PoF Adj Factor Scoring'!$E$5:$F$282,,MATCH(J$4,'B. PoF Adj Factor Scoring'!$E$3:$N$3,0)-1),2,TRUE) -> 1 | K115: =VLOOKUP(F:F,OFFSET('B. PoF Adj Factor Scoring'!$E$5:$F$282,,MATCH(K$4,'B. PoF Adj Factor Scoring'!$E$3:$N$3,0)-1),2,TRUE) -> 1
A116: ='A. Population Info'!A116 -> 1000062416 | B116: ='A. Population Info'!G116 -> N/A | C116: ='A. Population Info'!H116 -> 0 | D116: ='A. Population Info'!I116 -> 0 | E116: ='A. Population Info'!J116 -> 0 | F116: ='A. Population Info'!K116 -> 0 | G116: =VLOOKUP(B:B,OFFSET('B. PoF Adj Factor Scoring'!$E$5:$F$282,,MATCH(G$4,'B. PoF Adj Factor Scoring'!$E$3:$N$3,0)-1),2,TRUE) -> 1 | H116: =VLOOKUP(C:C,OFFSET('B. PoF Adj Factor Scoring'!$E$5:$F$282,,MATCH(H$4,'B. PoF Adj Factor Scoring'!$E$3:$N$3,0)-1),2,TRUE) -> 1 | I116: =VLOOKUP(D:D,OFFSET('B. PoF Adj Factor Scoring'!$E$5:$F$282,,MATCH(I$4,'B. PoF Adj Factor Scoring'!$E$3:$N$3,0)-1),2,TRUE) -> 1 | J116: =VLOOKUP(E:E,OFFSET('B. PoF Adj Factor Scoring'!$E$5:$F$282,,MATCH(J$4,'B. PoF Adj Factor Scoring'!$E$3:$N$3,0)-1),2,TRUE) -> 1 | K116: =VLOOKUP(F:F,OFFSET('B. PoF Adj Factor Scoring'!$E$5:$F$282,,MATCH(K$4,'B. PoF Adj Factor Scoring'!$E$3:$N$3,0)-1),2,TRUE) -> 1
A117: ='A. Population Info'!A117 -> 1000062422 | B117: ='A. Population Info'!G117 -> N/A | C117: ='A. Population Info'!H117 -> 0 | D117: ='A. Population Info'!I117 -> 0 | E117: ='A. Population Info'!J117 -> 0 | F117: ='A. Population Info'!K117 -> 0 | G117: =VLOOKUP(B:B,OFFSET('B. PoF Adj Factor Scoring'!$E$5:$F$282,,MATCH(G$4,'B. PoF Adj Factor Scoring'!$E$3:$N$3,0)-1),2,TRUE) -> 1 | H117: =VLOOKUP(C:C,OFFSET('B. PoF Adj Factor Scoring'!$E$5:$F$282,,MATCH(H$4,'B. PoF Adj Factor Scoring'!$E$3:$N$3,0)-1),2,TRUE) -> 1 | I117: =VLOOKUP(D:D,OFFSET('B. PoF Adj Factor Scoring'!$E$5:$F$282,,MATCH(I$4,'B. PoF Adj Factor Scoring'!$E$3:$N$3,0)-1),2,TRUE) -> 1 | J117: =VLOOKUP(E:E,OFFSET('B. PoF Adj Factor Scoring'!$E$5:$F$282,,MATCH(J$4,'B. PoF Adj Factor Scoring'!$E$3:$N$3,0)-1),2,TRUE) -> 1 | K117: =VLOOKUP(F:F,OFFSET('B. PoF Adj Factor Scoring'!$E$5:$F$282,,MATCH(K$4,'B. PoF Adj Factor Scoring'!$E$3:$N$3,0)-1),2,TRUE) -> 1
A118: ='A. Population Info'!A118 -> 1000062428 | B118: ='A. Population Info'!G118 -> N/A | C118: ='A. Population Info'!H118 -> 0 | D118: ='A. Population Info'!I118 -> 0 | E118: ='A. Population Info'!J118 -> 0 | F118: ='A. Population Info'!K118 -> 0 | G118: =VLOOKUP(B:B,OFFSET('B. PoF Adj Factor Scoring'!$E$5:$F$282,,MATCH(G$4,'B. PoF Adj Factor Scoring'!$E$3:$N$3,0)-1),2,TRUE) -> 1 | H118: =VLOOKUP(C:C,OFFSET('B. PoF Adj Factor Scoring'!$E$5:$F$282,,MATCH(H$4,'B. PoF Adj Factor Scoring'!$E$3:$N$3,0)-1),2,TRUE) -> 1 | I118: =VLOOKUP(D:D,OFFSET('B. PoF Adj Factor Scoring'!$E$5:$F$282,,MATCH(I$4,'B. PoF Adj Factor Scoring'!$E$3:$N$3,0)-1),2,TRUE) -> 1 | J118: =VLOOKUP(E:E,OFFSET('B. PoF Adj Factor Scoring'!$E$5:$F$282,,MATCH(J$4,'B. PoF Adj Factor Scoring'!$E$3:$N$3,0)-1),2,TRUE) -> 1 | K118: =VLOOKUP(F:F,OFFSET('B. PoF Adj Factor Scoring'!$E$5:$F$282,,MATCH(K$4,'B. PoF Adj Factor Scoring'!$E$3:$N$3,0)-1),2,TRUE) -> 1
A119: ='A. Population Info'!A119 -> 1000062437 | B119: ='A. Population Info'!G119 -> N/A | C119: ='A. Population Info'!H119 -> 0 | D119: ='A. Population Info'!I119 -> 0 | E119: ='A. Population Info'!J119 -> 0 | F119: ='A. Population Info'!K119 -> 0 | G119: =VLOOKUP(B:B,OFFSET('B. PoF Adj Factor Scoring'!$E$5:$F$282,,MATCH(G$4,'B. PoF Adj Factor Scoring'!$E$3:$N$3,0)-1),2,TRUE) -> 1 | H119: =VLOOKUP(C:C,OFFSET('B. PoF Adj Factor Scoring'!$E$5:$F$282,,MATCH(H$4,'B. PoF Adj Factor Scoring'!$E$3:$N$3,0)-1),2,TRUE) -> 1 | I119: =VLOOKUP(D:D,OFFSET('B. PoF Adj Factor Scoring'!$E$5:$F$282,,MATCH(I$4,'B. PoF Adj Factor Scoring'!$E$3:$N$3,0)-1),2,TRUE) -> 1 | J119: =VLOOKUP(E:E,OFFSET('B. PoF Adj Factor Scoring'!$E$5:$F$282,,MATCH(J$4,'B. PoF Adj Factor Scoring'!$E$3:$N$3,0)-1),2,TRUE) -> 1 | K119: =VLOOKUP(F:F,OFFSET('B. PoF Adj Factor Scoring'!$E$5:$F$282,,MATCH(K$4,'B. PoF Adj Factor Scoring'!$E$3:$N$3,0)-1),2,TRUE) -> 1
A120: ='A. Population Info'!A120 -> 1000062503 | B120: ='A. Population Info'!G120 -> N/A | C120: ='A. Population Info'!H120 -> 0 | D120: ='A. Population Info'!I120 -> 0 | E120: ='A. Population Info'!J120 -> 0 | F120: ='A. Population Info'!K120 -> 0 | G120: =VLOOKUP(B:B,OFFSET('B. PoF Adj Factor Scoring'!$E$5:$F$282,,MATCH(G$4,'B. PoF Adj Factor Scoring'!$E$3:$N$3,0)-1),2,TRUE) -> 1 | H120: =VLOOKUP(C:C,OFFSET('B. PoF Adj Factor Scoring'!$E$5:$F$282,,MATCH(H$4,'B. PoF Adj Factor Scoring'!$E$3:$N$3,0)-1),2,TRUE) -> 1 | I120: =VLOOKUP(D:D,OFFSET('B. PoF Adj Factor Scoring'!$E$5:$F$282,,MATCH(I$4,'B. PoF Adj Factor Scoring'!$E$3:$N$3,0)-1),2,TRUE) -> 1 | J120: =VLOOKUP(E:E,OFFSET('B. PoF Adj Factor Scoring'!$E$5:$F$282,,MATCH(J$4,'B. PoF Adj Factor Scoring'!$E$3:$N$3,0)-1),2,TRUE) -> 1 | K120: =VLOOKUP(F:F,OFFSET('B. PoF Adj Factor Scoring'!$E$5:$F$282,,MATCH(K$4,'B. PoF Adj Factor Scoring'!$E$3:$N$3,0)-1),2,TRUE) -> 1
A121: ='A. Population Info'!A121 -> 1000062509 | B121: ='A. Population Info'!G121 -> N/A | C121: ='A. Population Info'!H121 -> 0 | D121: ='A. Population Info'!I121 -> 0 | E121: ='A. Population Info'!J121 -> 0 | F121: ='A. Population Info'!K121 -> 0 | G121: =VLOOKUP(B:B,OFFSET('B. PoF Adj Factor Scoring'!$E$5:$F$282,,MATCH(G$4,'B. PoF Adj Factor Scoring'!$E$3:$N$3,0)-1),2,TRUE) -> 1 | H121: =VLOOKUP(C:C,OFFSET('B. PoF Adj Factor Scoring'!$E$5:$F$282,,MATCH(H$4,'B. PoF Adj Factor Scoring'!$E$3:$N$3,0)-1),2,TRUE) -> 1 | I121: =VLOOKUP(D:D,OFFSET('B. PoF Adj Factor Scoring'!$E$5:$F$282,,MATCH(I$4,'B. PoF Adj Factor Scoring'!$E$3:$N$3,0)-1),2,TRUE) -> 1 | J121: =VLOOKUP(E:E,OFFSET('B. PoF Adj Factor Scoring'!$E$5:$F$282,,MATCH(J$4,'B. PoF Adj Factor Scoring'!$E$3:$N$3,0)-1),2,TRUE) -> 1 | K121: =VLOOKUP(F:F,OFFSET('B. PoF Adj Factor Scoring'!$E$5:$F$282,,MATCH(K$4,'B. PoF Adj Factor Scoring'!$E$3:$N$3,0)-1),2,TRUE) -> 1
A122: ='A. Population Info'!A122 -> 1000062515 | B122: ='A. Population Info'!G122 -> N/A | C122: ='A. Population Info'!H122 -> 0 | D122: ='A. Population Info'!I122 -> 0 | E122: ='A. Population Info'!J122 -> 0 | F122: ='A. Population Info'!K122 -> 0 | G122: =VLOOKUP(B:B,OFFSET('B. PoF Adj Factor Scoring'!$E$5:$F$282,,MATCH(G$4,'B. PoF Adj Factor Scoring'!$E$3:$N$3,0)-1),2,TRUE) -> 1 | H122: =VLOOKUP(C:C,OFFSET('B. PoF Adj Factor Scoring'!$E$5:$F$282,,MATCH(H$4,'B. PoF Adj Factor Scoring'!$E$3:$N$3,0)-1),2,TRUE) -> 1 | I122: =VLOOKUP(D:D,OFFSET('B. PoF Adj Factor Scoring'!$E$5:$F$282,,MATCH(I$4,'B. PoF Adj Factor Scoring'!$E$3:$N$3,0)-1),2,TRUE) -> 1 | J122: =VLOOKUP(E:E,OFFSET('B. PoF Adj Factor Scoring'!$E$5:$F$282,,MATCH(J$4,'B. PoF Adj Factor Scoring'!$E$3:$N$3,0)-1),2,TRUE) -> 1 | K122: =VLOOKUP(F:F,OFFSET('B. PoF Adj Factor Scoring'!$E$5:$F$282,,MATCH(K$4,'B. PoF Adj Factor Scoring'!$E$3:$N$3,0)-1),2,TRUE) -> 1
A123: ='A. Population Info'!A123 -> 1000062521 | B123: ='A. Population Info'!G123 -> N/A | C123: ='A. Population Info'!H123 -> 0 | D123: ='A. Population Info'!I123 -> 0 | E123: ='A. Population Info'!J123 -> 0 | F123: ='A. Population Info'!K123 -> 0 | G123: =VLOOKUP(B:B,OFFSET('B. PoF Adj Factor Scoring'!$E$5:$F$282,,MATCH(G$4,'B. PoF Adj Factor Scoring'!$E$3:$N$3,0)-1),2,TRUE) -> 1 | H123: =VLOOKUP(C:C,OFFSET('B. PoF Adj Factor Scoring'!$E$5:$F$282,,MATCH(H$4,'B. PoF Adj Factor Scoring'!$E$3:$N$3,0)-1),2,TRUE) -> 1 | I123: =VLOOKUP(D:D,OFFSET('B. PoF Adj Factor Scoring'!$E$5:$F$282,,MATCH(I$4,'B. PoF Adj Factor Scoring'!$E$3:$N$3,0)-1),2,TRUE) -> 1 | J123: =VLOOKUP(E:E,OFFSET('B. PoF Adj Factor Scoring'!$E$5:$F$282,,MATCH(J$4,'B. PoF Adj Factor Scoring'!$E$3:$N$3,0)-1),2,TRUE) -> 1 | K123: =VLOOKUP(F:F,OFFSET('B. PoF Adj Factor Scoring'!$E$5:$F$282,,MATCH(K$4,'B. PoF Adj Factor Scoring'!$E$3:$N$3,0)-1),2,TRUE) -> 1
